{"text_format":"2","workbook":"xlsx","n_sheets":2,"sheets":["Raw Data","ESRI_MAPINFO_SHEET"],"not_rendered":{"charts":0,"images":0,"macros":0,"external_links":1,"defined_names":47,"comments":0,"pivot_tables":0},"unopened":[],"bounds":{"document_bytes":16777216,"sheet_cells":100000,"run_cost":"one","rows_first":2000,"rows_last":500,"rows_between":2000,"halvings":0,"cell_chars":16384,"cell_head_chars":4096},"cells_cut":0,"cells_raw":0,"read":"whole","date_system":"1900"}

{"sheet":"Raw Data","index":0,"n_rows":403,"n_cols":84,"rows_kept":403,"cut":false,"hidden":false,"merged":[]}
["Identifier","Display Name","Device identifier","Instance","Submission Date","Submitter","Duration","Form version","Pais","Departamento","Fecha","Municipio","Distrito","Comunidad","Latitude","Longitude","Elevation","Fotografía del Sistema/Punto de Agua","A cuantas comunidades abastece de agua el sistema de agua?","Nombre de las comunidades a quienes abastece el sistema de agua","Es una comunidad","Quien financió la construcción de este sistema/punto de agua?","¿Cuantas familias están afiliadas a la comunidad?","¿Cuantas familias viven permanentemente en la comunidad? (indagar con el dirigente sobre las familias que viven en la comunidad y no la cantidad de afiliados)","¿Cuantas familias tienen acceso al sistema de agua en la comunidad?","¿Cuantas familias no tienen acceso al sistema de agua en la comunidad?","Numero de Usuarios","¿Es este un sistema de agua mejorado?","¿Qué tipo de sistema/punto de agua es este?","¿Qué tipo de sistema/punto de agua es este?--OTHER--","¿Está protegida la fuente del sistema/punto de agua?","¿Qué tipo de fuente de agua no mejorada es esta?","¿Qué tipo de fuente de agua no mejorada es esta?--OTHER--","¿En qué año se construyó este sistema/punto de agua?","¿Hay agua disponible del sistema/punto de agua hoy? (Pregunte: ¿Hubo agua disponible hoy más temprano o durante las horas normales de trabajo)?","¿Por qué no hay agua disponible?","¿Por qué no hay agua disponible?--OTHER--","En el último año, ¿El Sistema/punto de agua se daño o estuvo fuera de servicio por 2 días o mas?","¿Cuantas veces el sistema/punto de agua se daño o estuvo fuera de servicio por 2 días o mas en el ultimo año?","En Promedio cada vez que se daño o estuvo fuera de servicio el sistema/punto de agua ¿cuántos días no hubo servicio de agua?","¿Se realizaron pruebas de calidad del agua hoy o en los últimos 12 meses del sistema/punto de agua?","¿Se realizó prueba de E. coli?","¿Cuál fue el resultado para E. Coli (CFU / 100ml)?","¿Se realizó prueba de contaminación bacteriana?","¿Cuál fue el resultado de la prueba de contaminación bacteriana?","¿Se realizó prueba de cloro residual?","¿Cuál fue el resultado del cloro residual?","¿Se realizó prueba de turbidez?","¿Cuál fue el resultado para turbidez?","¿Hay contaminantes de preocupación presentes en este sistema/punto de agua?","¿Qué contaminantes de preocupación están presentes en este sistema/punto de agua?","¿Qué contaminantes de preocupación están presentes en este sistema/punto de agua?--OTHER--","¿Se realizaron pruebas de los contaminantes de preocupación hoy o en los últimos 12 meses?","Resultados de la prueba de fluoruro","Resultados de la prueba de Arsénico","Resultados de la prueba de Hierro","¿Cual es el aforo de la fuente de agua (en litros / segundo)?","Segundos que tarda en llenar un recipiente de 20 litros","¿Cuántas horas por día está disponible el agua del sistema/punto de agua?","¿Hay un macro medidor en este sistema/punto de agua?","¿Cuántos litros proporciona este sistema / punto de agua por día según el macro medidor?","¿Cuántos recipientes de agua se recolectan por día?","¿Cuál es el tamaño típico (en litros) de los recipientes utilizados para la recolección de agua?","¿En Promedio cuántos recipientes de agua se recolecta una casa por día?","En promedio, ¿El sistema/punto de agua provee suficiente agua todos los días?","Califique el funcionamiento general del sistema/punto de agua (considere fallas, condición física, diseño, etc.)","Hay algún problema mayor o menor en algún componente del sistema de agua?","Describa los problemas","Tienen un proyecto para construir su Sistema de Agua","Indique en que estado esta su proyecto y donde fue presentado al igual si esta o no aprobado","Que acciones van a realizar como comunidad por la falta de agua (indicar si van a priorizar en su POA la construcción de un Sistema de Agua u otras acciones)","¿Su comunidad tiene servicio de energía eléctrica?","¿Su comunidad tiene servicio de telefonía celular?","¿De que empresa tienen el servicio de telefonía celular?","¿Su comunidad tiene servicio de internet?","¿Su comunidad tiene servicio de recojo de basura?","¿Si no tienen servicio de recojo de basura, que hacen con la basura?","¿Hay señal de televisión en su comunidad?","¿Qué canales son los mas vistos?","¿Hay señal de radio en su comunidad?","¿Qué radios son las mas escuchadas?","¿Hay personas con discapacidad en su comunidad?","¿Durante este año y el año pasado, han habido personas con COVID-19 en su comunidad?"]
["va02-ngd2-fdj3","Bolivia - Cochabamba - Arani - Arani - Arani OTB's Bolivar; Progreso; Ferroviaria; Gualberto Villarroel; Final Abaroa; Ingavi","Boi","3193540135","22-04-2021 13:45:54 UTC","Antonio","00:19:15",6,"Bolivia","Cochabamba",null,"Arani","Arani","Arani OTB's Bolivar; Progreso; Ferroviaria; Gualberto Villarroel; Final Abaroa; Ingavi","-17.57652594242245","-65.76863743364811","2803.0","https://waterforpeople.s3.amazonaws.com/images/f19203eb-44ac-4b69-87e0-8efe6d002cc5.jpg",6,"OTB'S Bolivar, Progreso, Ferroviaria, Gualberto Villarroel, Ingavi y Abaroa","Concentrada","Gobierno Nacional|Municipio",1745,1715,1715,0,{"$f":"IF(Y2=0,\"\",(Y2*3))","v":5145},"Si","Sistema por bombeo y gravedad","","Si",null,null,2015,"Si",null,null,"Si",1,4,"Si - se realizaron pruebas hoy","Si",0,"Si","Ausencia","Si",0.03,"Si",3,"No","Turbidez",{"$nulls":5},3.88,{"$f":"IF(BE2=\"\",\"\",(20/BE2))","v":5.1546391752577323},24,"No",{"$nulls":4},"Si","Bueno","No",{"$nulls":4},"Si","Si","Entel|Tigo|Viva","Si","Si",null,"Si","41, 23, 50, 29, 8, 7 y 32","Si","trigal, bella morena y kausachun coca","Si","Si","f0bbd3ae2c6a2f93fd74ec37afba4666"]
["5hdu-vrdh-tge9","Bolivia - Cochabamba - Arani - Arani - Capellania","BOI  ARANI","3214310146","22-04-2021 23:04:41 UTC","Gonzalo Terrazas","00:07:14",6,"Bolivia","Cochabamba",null,"Arani","Arani","Capellania","-17.57228137","-65.7635061","2787.161376953125","https://waterforpeople.s3.amazonaws.com/images/9db350ba-706c-4a2b-ab22-9d65f0942153.jpg",1,"Capellania","Semi dispersa","Municipio|Comité de Agua|Agua Para el Pueblo",48,45,45,0,135,"Si","Sistema por bombeo y gravedad","","Si",null,null,2007,"Si",null,null,"No",null,null,"Si","Si",0,"No",null,"Si",0,"Si",3.75,null,"Turbidez",{"$nulls":5},1.22,16.393442622950818,24,"No",{"$nulls":4},"Si","Bueno","No",{"$nulls":4},"Si","Si","Entel|Tigo","Si","Si",null,"Si","23.10.34.50.41","Si","trigal bella morena la calle","No","No","d13f2a5dabf3e3909fbc1fee4062b5ea"]
["wtvw-rghd-v1hr","Bolivia - Cochabamba - Arani - Arani - Chinguri","Boi","3193540136","22-04-2021 13:47:10 UTC","Antonio","00:08:29",6,"Bolivia","Cochabamba",null,"Arani","Arani","Chinguri ","-17.577223903499544","-65.75819768942893","2812.0","https://waterforpeople.s3.amazonaws.com/images/e766dd24-3df7-4d5b-97bd-75b35ea5913a.jpg",1,"Chinguri","Concentrada","Municipio|Comité de Agua",85,85,85,0,255,"Si","Sistema por bombeo y gravedad","","Si",null,null,2014,"Si",null,null,"No",null,null,"No",{"$nulls":9},"Turbidez",{"$nulls":5},1.5,13.333333333333334,24,"No",{"$nulls":4},"Si","Bueno","No",{"$nulls":4},"Si","Si","Entel|Tigo|Viva","Si","Si",null,"Si","41, 7, 8, 23 y 50","Si","trigal, bella morena y kausachun coca","Si","Si","cc7080278029ed8c9df2a6cf651c81e6"]
["8eh8-djwg-fnvr","Bolivia - Cochabamba - Arani - Arani - Cuesta Pata","Boi","3195290114","22-04-2021 13:45:57 UTC","Antonio","00:06:57",6,"Bolivia","Cochabamba",null,"Arani","Arani","Cuesta Pata","-17.582586770877242","-65.73817893862724","3124.0","https://waterforpeople.s3.amazonaws.com/images/8f81e6df-7e05-4b3c-84ae-70ffa44dca8d.jpg",1,"Cuesta Pata","Semi dispersa","Municipio|Comité de Agua",9,6,6,1,18,"Si","Sistema por gravedad","","Si",null,null,2012,"Si",null,null,"No",null,null,"Si","Si",0,"No",null,"Si",0,"Si",1.18,null,"Turbidez",{"$nulls":5},0.2,100,24,"No",{"$nulls":4},"Si","Bueno","No",{"$nulls":4},"Si","Si","Entel|Tigo","Si","No","Queman|Entierran","Si","41, 50","Si","trigal y kausachun coca","No","No","6f4dd2c3c92feb1f255163e96375114c"]
["6aje-s3ts-vqvu","Bolivia - Cochabamba - Arani - Arani - Pocoata Baja","Boi","3159990111","22-04-2021 13:44:45 UTC","Antonio","00:12:57",6,"Bolivia","Cochabamba",null,"Arani","Arani","Pocoata Baja","-17.582786763086915","-65.75915339402854","2827.0","https://waterforpeople.s3.amazonaws.com/images/cbaa915d-b279-4689-9cb7-dea25cc860fa.jpg",1,"Pocoata Baja","Concentrada","Comité de Agua",85,95,80,15,240,"Si","Sistema por gravedad","","Si",null,null,2012,"Si",null,null,"No",null,null,"Si","Si",0,"No",null,"Si",0,"Si",0.64,null,"Turbidez",{"$nulls":5},0.3,66.666666666666671,24,"No",{"$nulls":4},"Si","Bueno","Si","15 Familias sin agua potable  ",null,null,null,"Si","Si","Entel|Tigo|Viva","Si","Si",null,"Si","23, 41, 50, 8, y 7","Si","Bella morena, trigal y kausachun coca","No","Si","86c711774677b496eb3812cb1b81fe"]
["jee8-0q6g-kwxs","Bolivia - Cochabamba - Arani - Arani - Villa Barrientos","BOI  ARANI","3208300240","22-04-2021 23:04:36 UTC","Gonzalo Terrazas","00:14:02",6,"Bolivia","Cochabamba",null,"Arani","Arani","Villa Barrientos","-17.55804569","-65.7635682","2878.509033203125","https://waterforpeople.s3.amazonaws.com/images/6b6ae174-f751-41f4-b750-5de81d4c1ffe.jpg",1,"Villa Barrientos","Semi dispersa","Municipio|Comité de Agua",45,34,34,0,102,"Si","Sistema por gravedad","","Si",null,null,2015,"Si",null,null,"No",null,null,"Si","Si",0,"No",null,"Si",0,"Si",2.14,null,"Turbidez",{"$nulls":5},0.7,28.571428571428573,24,"No",{"$nulls":4},"Si","Bueno","No",{"$nulls":4},"Si","Si","Entel|Tigo|Viva","Si","No","Queman|Botan al rio, quebrada","Si","41, 50, 34.","Si","trigal.chiwalaque","No","Si","08069ae4d39c3c49e9f18273c8b2a4e"]
["2rbq-nw6s-v00k","Bolivia - Cochabamba - Arani - Arani - Villa Flores","BOI  ARANI","3166920258","22-04-2021 23:04:31 UTC","Gonzalo Terrazas","00:13:38",6,"Bolivia","Cochabamba",null,"Arani","Arani","Villa Flores","-17.56722082","-65.75658795","2845.093017578125","https://waterforpeople.s3.amazonaws.com/images/587be421-0299-41aa-8efb-19c7c18a001d.jpg",1,"Villa Flores","Semi dispersa","Municipio|Comité de Agua|Agua Para el Pueblo",31,28,28,0,84,"Si","Sistema por bombeo y gravedad","","Si",null,null,2013,"Si",null,null,"No",null,null,"Si","Si",0,"No",null,"Si",0,"Si",0.56000000000000005,null,"Turbidez",{"$nulls":5},0.9,22.222222222222221,24,"No",{"$nulls":4},"Si","Bueno","No",{"$nulls":4},"Si","Si","Entel|Tigo|Viva","Si","No","Queman|Entierran","Si","41,50,7","Si","trigal, radio centro","No","No","424d29687cad460817bdde23820bcd8"]
["egss-cuwb-md4h","Bolivia - Cochabamba - Arani - Collpa Ciaco - Balcón Pampa","BOI  ARANI","3197330106","22-04-2021 23:04:25 UTC","Gonzalo Terrazas","00:46:35",6,"Bolivia","Cochabamba",null,"Arani","Collpa Ciaco","Balcón Pampa","-17.60002567","-65.77770732","2776.32177734375","https://waterforpeople.s3.amazonaws.com/images/b846e4eb-cf78-4ebe-a90f-3e91045d632d.jpg",2,"Balcon Pampa, Chullpa Orko","Semi dispersa","Municipio|Agua Para el Pueblo",45,28,28,0,84,"Si","Sistema por bombeo y gravedad","","Si",null,null,2008,"Si",null,null,"No",null,null,"Si","Si",0,"No",null,"Si",0,"Si",0.52,null,"Turbidez",{"$nulls":5},2,10,24,"No",{"$nulls":4},"Si","Bueno","No",{"$nulls":4},"Si","Si","Entel|Tigo","Si","No","Queman|Entierran","Si","41, 50, 7,10,29","Si","trigal,bella morena","No","No","f75b55da5a79f7e5a2049c52797f2b"]
["s14u-4906-81np","Bolivia - Cochabamba - Arani - Collpa Ciaco - Catachilla","Boi","3189990171","22-04-2021 13:47:23 UTC","Antonio","00:14:29",6,"Bolivia","Cochabamba",null,"Arani","Collpa Ciaco","Catachilla","-17.613735096529126","-65.74710139073431","2825.0","https://waterforpeople.s3.amazonaws.com/images/05499f08-d7e9-4a73-926a-acd983f7932d.jpg",1,"Catachilla","Semi dispersa","Municipio|Comité de Agua",16,15,15,0,45,"Si","Sistema por bombeo y gravedad","","Si",null,null,2015,"Si",null,null,"No",null,null,"Si","Si",0,"No",null,"Si",0,"Si",2.84,null,"Turbidez",{"$nulls":5},0.6,33.333333333333336,24,"No",{"$nulls":4},"Si","Bueno","No",{"$nulls":4},"Si","Si","Entel|Tigo","Si","No","Queman|Entierran","Si","41, 7, 8 y 50","Si","trigal, bella morena y kausachun coca","No","No","c72d2c4022ed464998267bca33f21ac1"]
["0fmq-eh39-whgp","Bolivia - Cochabamba - Arani - Collpa Ciaco - Chullpa Orko","BOI  ARANI","3190010158","22-04-2021 23:04:49 UTC","Gonzalo Terrazas","00:11:17",6,"Bolivia","Cochabamba",null,"Arani","Collpa Ciaco","Chullpa Orko","-17.59790013","-65.77132302","2788.3203125","https://waterforpeople.s3.amazonaws.com/images/e1866376-5c78-4774-9d19-dd8c37472ce2.jpg",1,"Chullpa Orko","Semi dispersa","Municipio|Agua Para el Pueblo",40,36,36,0,108,"Si","Sistema por bombeo y gravedad","","Si",null,null,2018,"No","Escasez Estacional","","No",null,null,"Si","Si",4,"No",null,"Si",0,"Si",0.54,"No","Turbidez",{"$nulls":5},3,6.666666666666667,24,"No",{"$nulls":4},"Si","Bueno","No",{"$nulls":4},"Si","Si","Entel|Tigo","Si","No","Queman|Entierran|Botan al rio, quebrada","Si","41,29,7,20,23","Si","trigal,chiwalaque y radio morena","No","No","9c1a91a2db75f63c265c1b5a7513946"]
["p47b-qj97-0dve","Bolivia - Cochabamba - Arani - Collpa Ciaco - Ciaco","Boi","3193480245","22-04-2021 13:47:19 UTC","Antonio","00:13:47",6,"Bolivia","Cochabamba",null,"Arani","Collpa Ciaco","Ciaco","-17.60191736742854","-65.76759363524616","2818.0","https://waterforpeople.s3.amazonaws.com/images/292d436a-b2f2-43a4-98e2-ed1e9bfb064a.jpg",3,"Ciaco, Sivingani, Collpa l","Concentrada","Gobierno Nacional|Municipio|Comité de Agua",54,54,54,0,162,"Si","Sistema por bombeo y gravedad","","Si",null,null,2019,"Si",null,null,"No",null,null,"No",{"$nulls":9},"Turbidez",{"$nulls":5},4,5,24,"No",{"$nulls":4},"Si","Bueno","No",{"$nulls":4},"Si","Si","Entel|Tigo|Viva","Si","Si",null,"Si","41, 8, 50 y 7","Si","trigal, bella morena y kausachun coca","Si","Si","865742ad1d5f51b830b2cbd9e6b2814"]
["c5me-ugaq-ha6k","Bolivia - Cochabamba - Arani - Collpa Ciaco - Colca","BOI  ARANI","3178160083","22-04-2021 23:02:53 UTC","Gonzalo Terrazas","00:20:40",6,"Bolivia","Cochabamba",null,"Arani","Collpa Ciaco","Colca ","-17.59154708","-65.77457531","2763.84375","https://waterforpeople.s3.amazonaws.com/images/85e2d635-9d4d-4304-9c07-541fbba7c7bd.jpg",1,"Colca","Semi dispersa","Municipio",98,95,95,0,285,"Si","Sistema por bombeo y gravedad","","Si",null,null,2012,"Si",null,null,"No",null,null,"Si","Si",0,"No",null,"Si",0,"Si",0.48,null,"Turbidez",{"$nulls":5},1.33,15.037593984962406,24,"No",{"$nulls":4},"Si","Bueno","No",{"$nulls":4},"Si","Si","Entel|Tigo","Si","No","Queman|Entierran","Si","50,7, 29","Si","Bella Norena","No","No","bb209416f561b20402adcab2b2a9743"]
["p47b-qj97-0dve","Bolivia - Cochabamba - Arani - Collpa Ciaco - Ciaco","Boi","3193480245","22-04-2021 13:47:19 UTC","Antonio","00:13:47",6,"Bolivia","Cochabamba",null,"Arani","Collpa Ciaco","Collpa I","-17.601206","-65.761206","2818.2","https://waterforpeople.s3.amazonaws.com/images/292d436a-b2f2-43a4-98e2-ed1e9bfb064a.jpg",3,"Ciaco, Sivingani, Collpa l","Concentrada","Gobierno Nacional|Municipio|Comité de Agua",15,15,15,0,45,"Si","Sistema por bombeo y gravedad","","Si",null,null,2019,"Si",null,null,"No",null,null,"No",{"$nulls":9},"Turbidez",{"$nulls":5},4,5,24,"No",{"$nulls":4},"Si","Bueno","No",{"$nulls":4},"Si","Si","Entel|Tigo|Viva","Si","Si",null,"Si","41, 8, 50 y 7","Si","trigal, bella morena y kausachun coca","Si","Si","865742ad1d5f51b830b2cbd9e6b2814"]
["ahbw-pa2m-6gj7","Bolivia - Cochabamba - Arani - Collpa Ciaco - Collpa II","BOI  ARANI","3202840341","22-04-2021 23:04:19 UTC","Gonzalo Terrazas","00:11:51",6,"Bolivia","Cochabamba",null,"Arani","Collpa Ciaco","Collpa II","-17.59455908","-65.76595478","2791.12646484375","https://waterforpeople.s3.amazonaws.com/images/e9f72eb0-5da3-4870-851d-a6a70cf60c87.jpg",1,"Collpa II","Semi dispersa","Municipio|Agua Para el Pueblo",82,65,65,0,195,"Si","Sistema por bombeo y gravedad","","Si",null,null,2007,"Si",null,null,"No",null,null,"Si","Si",0,"No",null,"Si",0,"Si",0.6,null,"Turbidez",{"$nulls":5},3,6.666666666666667,24,"No",{"$nulls":4},"Si","Bueno","No",{"$nulls":4},"Si","Si","Entel|Tigo","Si","Si",null,"Si","23,41,50,29,7","Si","trigal.bella morena, chiwalaque","No","No","3dc6868c19842fe72e961b28c4a319bf"]
["eqn6-fg8e-9u99","Bolivia - Cochabamba - Arani - Collpa Ciaco - Monte Monte","BOI  ARANI","3195200265","22-04-2021 23:04:14 UTC","Gonzalo Terrazas","00:09:59",6,"Bolivia","Cochabamba",null,"Arani","Collpa Ciaco","Monte Monte","-17.6079902","-65.77499723","2787.705810546875","https://waterforpeople.s3.amazonaws.com/images/1d48d9bd-30f9-46cb-96aa-a2b0bb053ca2.jpg",1,"Monte Monte","Semi dispersa","Municipio|Agua Para el Pueblo",12,12,12,0,36,"Si","Sistema por bombeo y gravedad","","Si",null,null,2016,"Si",null,null,"No",null,null,"Si","Si",0,"No",null,"Si",0,"Si",0.71,null,"Turbidez",{"$nulls":5},0.57999999999999996,34.482758620689658,8,"No",{"$nulls":4},"Si","Bueno","No",{"$nulls":4},"Si","Si","Entel|Tigo","Si","No","Queman|Entierran","Si","23,41,7,34,38","Si","trigal,radio centro,chiwalaque","No","No","baa3781e8a31c0daf6df31d14aec43ab"]
["a1he-8wa3-nvvc","Bolivia - Cochabamba - Arani - Collpa Ciaco - Phajchapata","BOI  ARANI","3179890240","22-04-2021 23:04:09 UTC","Gonzalo Terrazas","00:17:31",6,"Bolivia","Cochabamba",null,"Arani","Collpa Ciaco","Phajchapata","-17.6019589","-65.75704783","2809.45556640625","https://waterforpeople.s3.amazonaws.com/images/4816c947-a985-49db-9ef2-58b3b10c9b05.jpg",1,"Phajchapata","Semi dispersa","Municipio|Agua Para el Pueblo",37,33,33,0,99,"Si","Sistema por bombeo y gravedad","","Si",null,null,2013,"Si",null,null,"No",null,null,"Si","Si",0,"No",null,"Si",0,"Si",0.56000000000000005,null,"Turbidez",{"$nulls":5},0.8,25,24,"No",{"$nulls":4},"Si","Bueno","No",{"$nulls":4},"Si","Si","Entel|Tigo","Si","No","Queman|Entierran","Si","41, 50, 7.","Si","trigal","Si","No","31c6ac18f7fb45afc1831793e1d29ac"]
["r5s0-5xbv-qh5m","Bolivia - Cochabamba - Arani - Collpa Ciaco - Puka Pampa","Boi","3210300146","22-04-2021 13:47:30 UTC","Antonio","00:27:36",6,"Bolivia","Cochabamba",null,"Arani","Collpa Ciaco","Puka Pampa","-17.639064830727875","-65.73541366495192","3177.0","https://waterforpeople.s3.amazonaws.com/images/18e08724-6c69-4004-931d-e9debd9a57e0.jpg",1,"Puka Pampa","Semi dispersa","Municipio|Comité de Agua",10,5,5,0,15,"Si","Sistema por gravedad","","No",null,null,1996,"Si",null,null,"No",null,null,"No",{"$nulls":9},"Turbidez",{"$nulls":5},0.1,200,24,"No",{"$nulls":4},"Si","Malo","Si","Obra de toma y tanque de almacenamiento con un visible deterioro en la infraestructura",null,null,null,"Si","Si","Entel","No","No","Queman|Entierran","Si","41 y 50","Si","trigal, radio erbol, panamericana y kausachun coca","No","No","16b42bd1e8ca70e96e66b62498708024"]
["t9e8-x0uc-ech1","Bolivia - Cochabamba - Arani - Collpa Ciaco - Puka Wasi","Boi","3202850127","22-04-2021 13:47:26 UTC","Antonio","00:11:20",6,"Bolivia","Cochabamba",null,"Arani","Collpa Ciaco","Puka Wasi","-17.654369557276368","-65.72630857117474","3302.0","https://waterforpeople.s3.amazonaws.com/images/a09e94cb-0799-4f5f-9523-64ba8cac22b2.jpg",1,"Puka Wasi","Semi dispersa","Municipio|Comité de Agua|Agua Para el Pueblo",59,40,40,0,120,"Si","Sistema por gravedad","","Si",null,null,2017,"Si",null,null,"No",null,null,"Si","Si",0,"No",null,"Si",0,"Si",0.61,null,"Turbidez",{"$nulls":5},0.4,50,24,"No",{"$nulls":4},"Si","Bueno","No",{"$nulls":4},"Si","Si","Entel|Tigo","Si","No","Queman|Entierran","Si","41 y 50","Si","Trigal, panamericana, radio erbol y kausachun coca","No","No","ccdbbfe45def4762120f8a39dab3a"]
["p47b-qj97-0dve","Bolivia - Cochabamba - Arani - Collpa Ciaco - Ciaco","Boi","3193480245","22-04-2021 13:47:19 UTC","Antonio","00:13:47",6,"Bolivia","Cochabamba",null,"Arani","Collpa Ciaco","Sivingani",-17606698,-65760245,"2818.1","https://waterforpeople.s3.amazonaws.com/images/292d436a-b2f2-43a4-98e2-ed1e9bfb064a.jpg",3,"Ciaco, Sivingani, Collpa l","Concentrada","Gobierno Nacional|Municipio|Comité de Agua",69,69,69,0,207,"Si","Sistema por bombeo y gravedad","","Si",null,null,2019,"Si",null,null,"No",null,null,"Si","Si",0,"No",null,"Si",0,"Si",0.5,null,"Turbidez",{"$nulls":5},4,5,24,"No",{"$nulls":4},"Si","Bueno","No",{"$nulls":4},"Si","Si","Entel|Tigo|Viva","Si","Si",null,"Si","41, 8, 50 y 7","Si","trigal, bella morena y kausachun coca","Si","Si","865742ad1d5f51b830b2cbd9e6b2814"]
["wrqj-nj0t-8r3x","Bolivia - Cochabamba - Arani - Collpa Ciaco - Thola Thola","Boi","3210290130","22-04-2021 13:47:16 UTC","Antonio","00:08:30",6,"Bolivia","Cochabamba",null,"Arani","Collpa Ciaco","Thola Thola ","-17.650987249799073","-65.73583502322435","3246.0","https://waterforpeople.s3.amazonaws.com/images/fad3fed1-8f69-4f5a-9311-6af582f70d1a.jpg",1,"Thola Thola","Semi dispersa","Comité de Agua|Otra ONG",11,5,5,0,15,"Si","Sistema por gravedad","","No",null,null,2007,"Si",null,null,"Si",3,2,"No",{"$nulls":9},"Turbidez",{"$nulls":5},0.2,100,24,"No",{"$nulls":4},"Si","Malo","Si","Obra de toma desprotegida",null,null,null,"Si","Si","Entel","No","No","Queman|Entierran","Si","41 y 50","Si","trigal, kausachun coca, panamericana","No","No","343ee54f98ffb69a2ae38b4b24c1ab"]
["jukd-qjcx-b995","Bolivia - Cochabamba - Arani - Molle Molle - Alto Alianza","Boi","3208320216","22-04-2021 13:44:57 UTC","Antonio","00:20:54",6,"Bolivia","Cochabamba",null,"Arani","Molle Molle","Alto Alianza","-17.556988270953298","-65.80053711310029","2731.0","https://waterforpeople.s3.amazonaws.com/images/0a263b5d-43da-4441-beb0-e3c50e7b479b.jpg",2,"Alto Alianza, Nueva Alianza","Semi dispersa","Municipio|Comité de Agua",50,50,50,0,150,"Si","Sistema por bombeo y gravedad","","Si",null,null,2011,"Si",null,null,"No",null,null,"Si","Si",180,"No",null,"Si",0,"Si",2.34,null,"Turbidez",{"$nulls":5},1.5,13.333333333333334,24,"No",{"$nulls":4},"Si","Bueno","No",{"$nulls":4},"Si","Si","Entel|Tigo|Viva","Si","Si",null,"Si","23, 7, 8, 51","Si","bella morena, trigal, kausachun coca, panamericana,fides y chiwalaque","No","No","c8fd3f53c1cedcec664b5289a98a23"]
["h60k-809p-cdc1","Bolivia - Cochabamba - Arani - Molle Molle - Arachaca","BOI  ARANI","3206320263","22-04-2021 23:04:04 UTC","Gonzalo Terrazas","00:08:48",6,"Bolivia","Cochabamba",null,"Arani","Molle Molle","Arachaca","-17.56135151","-65.77760829","2764.21728515625","https://waterforpeople.s3.amazonaws.com/images/827d408e-1ad5-4855-a07f-37ca38531860.jpg",1,"Arachaca","Semi dispersa","Municipio|Agua Para el Pueblo",90,80,80,0,240,"Si","Sistema por bombeo y gravedad","","Si",null,null,2018,"Si",null,null,"No",null,null,"Si","Si",2,"No",null,"Si",0,"Si",39.299999999999997,null,"Turbidez",{"$nulls":5},0.8,25,24,"No",{"$nulls":4},"Si","Bueno","Si","15 Familias sin agua por elevado ingreso  al sistema de agua  ",null,null,null,"Si","Si","Entel|Tigo","Si","Si",null,"Si","50,20.41,7","Si","trigal,chiwalaque","Si","No","e07c1316a6bb1c4af24f155cacda3a8f"]
["6f62-dpuq-vffq","Bolivia - Cochabamba - Arani - Molle Molle - Chequej Mayu","BOI-SB2018","3169140108","24-02-2021 16:09:00 UTC","Antonio","00:14:11",6,"Bolivia","Cochabamba",null,"Arani","Molle Molle","Chequej Mayu","-17.565281535498798","-65.79753572121263","2759.0","https://waterforpeople.s3.amazonaws.com/images/adc95f9e-ab75-4e0d-b581-e2491d1ade5b.jpg",1,"Chequej Mayu","Semi dispersa","Municipio|Comité de Agua|Agua Para el Pueblo",44,44,44,0,132,"Si","Sistema por bombeo y gravedad","","Si",null,null,2008,"Si",null,null,"No",null,null,"Si","Si",0,"No",null,"Si",0,"Si",1.1299999999999999,"No","Turbidez",{"$nulls":5},2.2999999999999998,8.6956521739130448,24,"No",{"$nulls":4},"Si","Bueno","No",{"$nulls":4},"Si","Si","Entel|Tigo|Viva","Si","No","Queman","Si","23, 41, 7,14, 20, 50","Si","trigal, bella morena","No","No","ce322f22d37c8a90ec5f78799a4e9a"]
["eqyt-ch6b-x75y","Bolivia - Cochabamba - Arani - Molle Molle - Germán Tardío","BOI  ARANI","3179870220","22-04-2021 23:03:57 UTC","Gonzalo Terrazas","00:07:59",6,"Bolivia","Cochabamba",null,"Arani","Molle Molle","Germán Tardío","-17.56225652","-65.7871639","2758.3876953125","https://waterforpeople.s3.amazonaws.com/images/78f0636c-3e53-47e3-88f5-c3e2c25b2d89.jpg",2,"German Tardio,Villa Carmen","Semi dispersa","Municipio|Agua Para el Pueblo",70,50,50,0,150,"Si","Sistema por bombeo y gravedad","","Si",null,null,2017,"Si",null,null,"No",null,null,"No",{"$nulls":9},"Turbidez",{"$nulls":5},2.5,8,24,"No",{"$nulls":4},"Si","Bueno","No",{"$nulls":4},"Si","Si","Entel|Tigo|Viva","Si","Si",null,"Si","29.41,50,7,34","Si","bella morena,chiwalaque,la calle","No","No","911a42bb4caed35e626b5380585cfa"]
["v2fn-gd29-v4mv","Bolivia - Cochabamba - Arani - Molle Molle - Juzgado","Boi","3200710105","22-04-2021 13:45:24 UTC","Antonio","00:04:23",6,"Bolivia","Cochabamba",null,"Arani","Molle Molle","Juzgado","-17.57287859916687","-65.78560391440988","2769.0","https://waterforpeople.s3.amazonaws.com/images/86b820d2-2a0b-409c-a7cc-c9a70a3c602f.jpg",1,"Juzgado","Semi dispersa","Gobierno Nacional|Comité de Agua",178,170,170,0,510,"Si","Sistema por bombeo y gravedad","","Si",null,null,2015,"Si",null,null,"No",null,null,"Si","Si",0,"No",null,"Si",0,"Si",2.2000000000000002,null,"Turbidez",{"$nulls":5},2.5,8,24,"No",{"$nulls":4},"Si","Bueno","No",{"$nulls":4},"Si","Si","Entel|Tigo|Viva","Si","Si",null,"Si","29, 41, 23 y 4","Si","radio bella morena, kausachun coca y trigal","Si","Si","1d7bb03d8b1751311bf9542144ee51"]
["r9wq-b4r3-3ahv","Bolivia - Cochabamba - Arani - Molle Molle - Molle Molle","Boi","3202860150","22-04-2021 13:45:31 UTC","Antonio","00:09:45",6,"Bolivia","Cochabamba",null,"Arani","Molle Molle","Molle Molle","-17.54867199808359","-65.80069527961314","2778.0","https://waterforpeople.s3.amazonaws.com/images/7bcbc4be-5975-4fc9-a957-98ed9fccd2c0.jpg",2,"Molle Molle, Molle Molle Laguna I ","Semi dispersa","Comité de Agua",35,35,35,0,105,"Si","Sistema por bombeo y gravedad","","Si",null,null,2014,"Si",null,null,"No",null,null,"Si","Si",0,"No",null,"Si",0,"Si",0.99,null,"Turbidez",{"$nulls":5},1.5,13.333333333333334,24,"No",{"$nulls":4},"Si","Bueno","No",{"$nulls":4},"Si","Si","Entel|Tigo|Viva","Si","Si",null,"Si","23, 41, 50 y 8","Si","trigal, bella morena y kausachun coca","Si","Si","56c979324ef80d51dcd7258244c6dc7"]
["vnrn-k4d0-rk02","Bolivia - Cochabamba - Arani - Molle Molle - Molle Molle","Boi","3200680229","22-04-2021 13:45:28 UTC","Antonio","00:09:49",6,"Bolivia","Cochabamba",null,"Arani","Molle Molle","Molle Molle Laguna I","-17.553288","-65.798596","2779.1","https://waterforpeople.s3.amazonaws.com/images/e5096ba3-8597-482b-93ee-d2118414a92c.jpg",2,"Molle Molle, Molle Molle Laguna I ","Semi dispersa","Comité de Agua",27,27,27,0,81,"Si","Sistema por bombeo y gravedad","","Si",null,null,2020,"Si",null,null,"No",null,null,"Si","Si",0,"No",null,"Si",0,"Si",0.99,null,"Turbidez",{"$nulls":5},2,10,24,"No",{"$nulls":4},"Si","Bueno","No",{"$nulls":4},"Si","Si","Entel|Tigo|Viva","Si","Si",null,"Si","41, 8, 7, 50 y 23","Si","bella morena","Si","No","6ab34d60ef584e6867b9fc4ff4bdd1c"]
["vnrn-k4d0-rk02","Bolivia - Cochabamba - Arani - Molle Molle - Molle Molle","Boi","3200680229","22-04-2021 13:45:28 UTC","Antonio","00:09:49",6,"Bolivia","Cochabamba",null,"Arani","Molle Molle","Molle Molle Laguna II","-17.550592040643096","-65.79978358000517","2779.0","https://waterforpeople.s3.amazonaws.com/images/e5096ba3-8597-482b-93ee-d2118414a92c.jpg",1,"Molle Molle Laguna II","Semi dispersa","Comité de Agua",70,70,70,0,210,"Si","Sistema por bombeo (hidropulmon/torre hidroneumática)","","Si",null,null,2020,"Si",null,null,"No",null,null,"Si","Si",0,"No",null,"Si",0,"Si",78.900000000000006,null,"Turbidez",{"$nulls":5},2,10,24,"No",{"$nulls":4},"Si","Bueno","No",{"$nulls":4},"Si","Si","Entel|Tigo|Viva","Si","Si",null,"Si","41, 8, 7, 50 y 23","Si","bella morena","Si","No","6ab34d60ef584e6867b9fc4ff4bdd1c"]
["jukd-qjcx-b995","Bolivia - Cochabamba - Arani - Molle Molle - Alto Alianza","Boi","3208320216","22-04-2021 13:44:57 UTC","Antonio","00:20:54",6,"Bolivia","Cochabamba",null,"Arani","Molle Molle","Nueva Alianza","-17.560341","-65.800159","2731.1","https://waterforpeople.s3.amazonaws.com/images/0a263b5d-43da-4441-beb0-e3c50e7b479b.jpg",2,"Alto Alianza, Nueva Alianza","Semi dispersa","Municipio|Comité de Agua",31,31,31,0,93,"Si","Sistema por bombeo y gravedad","","Si",null,null,2011,"Si",null,null,"No",null,null,"Si","Si",180,"No",null,"Si",0,"Si",2.34,null,"Turbidez",{"$nulls":5},1.5,13.333333333333334,24,"No",{"$nulls":4},"Si","Bueno","No",{"$nulls":4},"Si","Si","Entel|Tigo|Viva","Si","Si",null,"Si","23, 7, 8, 51","Si","bella morena, trigal, kausachun coca, panamericana,fides y chiwalaque","No","No","c8fd3f53c1cedcec664b5289a98a23"]
["g2hn-kvgc-19mx","Bolivia - Cochabamba - Arani - Molle Molle - Sacsa","BOI  ARANI","3218180117","22-04-2021 23:03:52 UTC","Gonzalo Terrazas","00:11:07",6,"Bolivia","Cochabamba",null,"Arani","Molle Molle","Sacsa","-17.55930369","-65.76846404","2762.2041015625","https://waterforpeople.s3.amazonaws.com/images/ef30d605-7666-422c-a54c-e7e9ef679ac8.jpg",1,"Sacsa","Semi dispersa","Municipio|Agua Para el Pueblo",36,30,30,2,90,"Si","Sistema por bombeo y gravedad","","No",null,null,2019,"Si",null,null,"No",null,null,"Si","Si",0,"No",null,"Si",0,"Si",2.62,null,"Turbidez",{"$nulls":5},0.5,40,24,"No",{"$nulls":4},"Si","Bueno","No",{"$nulls":4},"Si","Si","Entel|Tigo|Viva","Si","No","Queman|Entierran","Si","41,23,7,50","Si","trigal,chiwalaque,","No","No","18ec2337992bc544bea3a23ec32d2"]
["w2v6-x6b6-camv","Bolivia - Cochabamba - Arani - Molle Molle - Tambillo Linde","BOI  ARANI","3166920235","22-04-2021 23:02:58 UTC","Gonzalo Terrazas","00:14:09",6,"Bolivia","Cochabamba",null,"Arani","Molle Molle","Tambillo Linde","-17.56289814","-65.80287166","2763.240234375","https://waterforpeople.s3.amazonaws.com/images/b8f58913-f62c-4008-b3d7-cdb0b7212116.jpg",1,"Tambillo Linde","Semi dispersa","Comité de Agua",70,65,65,0,195,"Si","Sistema por bombeo (hidropulmon o torre hidroneumatica)","","No",null,null,2021,"Si",null,null,"No",null,null,"Si","Si",0,"No",null,"Si",0,"Si",0.85,null,"Turbidez",{"$nulls":5},0.9,22.222222222222221,24,"No",{"$nulls":4},"Si","Bueno","No",{"$nulls":4},"Si","Si","Entel|Tigo|Viva","Si","Si",null,"Si","7,29,41","Si","trigal,bella morena,chiwalaque,tormenta","Si","No","dc42604d9e90611cbad47785dafa1e76"]
["eqyt-ch6b-x75y","Bolivia - Cochabamba - Arani - Molle Molle - Germán Tardío","BOI  ARANI","3179870220","22-04-2021 23:03:57 UTC","Gonzalo Terrazas","00:07:59",6,"Bolivia","Cochabamba",null,"Arani","Molle Molle","Villa Carmen","-17.563073","-65.784861","2758.3876953126","https://waterforpeople.s3.amazonaws.com/images/78f0636c-3e53-47e3-88f5-c3e2c25b2d89.jpg",2,"German Tardio,Villa Carmen","Semi dispersa","Municipio|Agua Para el Pueblo",50,50,50,0,150,"Si","Sistema por bombeo y gravedad","","Si",null,null,2017,"Si",null,null,"No",null,null,"Si","Si",0,"No",null,"Si",0,"Si",1.1599999999999999,null,"Turbidez",{"$nulls":5},2.5,8,24,"No",{"$nulls":4},"Si","Bueno","No",{"$nulls":4},"Si","Si","Entel|Tigo|Viva","Si","Si",null,"Si","29.41,50,7,34","Si","bella morena,chiwalaque,la calle","No","No","911a42bb4caed35e626b5380585cfa"]
["m6r3-snmc-her0","Bolivia - Cochabamba - Arani - Molle Molle - Villa Evita","Boi","3192160138","22-04-2021 13:45:20 UTC","Antonio","00:09:24",6,"Bolivia","Cochabamba",null,"Arani","Molle Molle","Villa Evita","-17.56405010819435","-65.79177333042026","2764.0","https://waterforpeople.s3.amazonaws.com/images/8d3cdfca-9cc0-4206-be33-c0d615e3c6cb.jpg",1,"Villa Evita","Semi dispersa","Municipio|Comité de Agua|Agua Para el Pueblo",31,25,25,0,75,"Si","Sistema por bombeo (hidropulmon/torre hidroneumática)","","Si",null,null,2019,"Si",null,null,"No",null,null,"Si","Si",0,"No",null,"Si",0,"Si",0.77,null,"Turbidez",{"$nulls":5},1.5,{"$f":"IF(BE34=\"\",\"\",(20/BE34))","v":13.333333333333334},24,"No",{"$nulls":4},"Si","Bueno","No",{"$nulls":4},"Si","Si","Entel|Tigo|Viva","Si","No","Queman|Entierran","Si","23, 41, 8 y 50","Si","bella morena, trigal y kausachun coca","No","No","4c0e8b8ff11d45dccc7fdfb33c274f"]
["dh4c-0b8n-gga1","Bolivia - Cochabamba - Arani - Pocoata - Cuchillera","Boi","3178150127","22-04-2021 13:45:50 UTC","Antonio","00:04:22",6,"Bolivia","Cochabamba",null,"Arani","Pocoata","Cuchillera","-17.646281691268086","-65.69868517108262","3571.0","https://waterforpeople.s3.amazonaws.com/images/ceaea81e-83b0-414b-bf4b-9727cb725c0f.jpg",1,"Cuchillera","Dispersa","Municipio|Comité de Agua|Agua Para el Pueblo",42,39,39,0,117,"Si","Sistema por gravedad","","Si",null,null,2015,"Si",null,null,"No",null,null,"Si","Si",0,"No",null,"Si",0,"Si",0.82,null,"Turbidez",{"$nulls":5},0.4,50,24,"No",{"$nulls":4},"Si","Bueno","No",{"$nulls":4},"Si","Si","Entel","Si","No","Queman|Entierran","Si","41 y 50","Si","trigal y kausachun coca","Si","No","e4a6474ade23cad1308d6557c84315ef"]
["avqs-4yrx-y05e","Bolivia - Cochabamba - Arani - Pocoata - Phuyu Phuyu Chico","BOI  ARANI","3206340115","22-04-2021 23:02:47 UTC","Gonzalo Terrazas","00:10:28",6,"Bolivia","Cochabamba",null,"Arani","Pocoata","Phuyu Phuyu Chico","-17.64159708","-65.66283786","3870.3984375","https://waterforpeople.s3.amazonaws.com/images/bcb5b91a-1b27-42e4-b277-c9f3172eceee.jpg",1,"Phuyu Phuyu Chico","Dispersa","Municipio|Agua Para el Pueblo",30,10,10,0,30,"Si","Sistema por gravedad","","Si",null,null,2019,"Si",null,null,"No",null,null,"Si","Si",0,"No",null,"Si",0,"Si",1.02,null,"Turbidez",{"$nulls":5},0.3,66.666666666666671,24,"No",{"$nulls":4},"Si","Bueno","No",{"$nulls":4},"Si","Si","Entel","Si","No","Queman|Botan al rio, quebrada","Si","7, 23, 41","Si","chiwalaque","No","No","9fcaf3933a625eb6dcc81d50e4abb3"]
["am7y-61uj-dvd6","Bolivia - Cochabamba - Arani - Pocoata - Pila Pata","BOI  ARANI","3179890224","22-04-2021 23:03:39 UTC","Gonzalo Terrazas","00:12:10",6,"Bolivia","Cochabamba",null,"Arani","Pocoata","Pila Pata","-17.64965","-65.68020431","3734.1640625","https://waterforpeople.s3.amazonaws.com/images/05591906-8c10-4c90-9a5b-8fc305961dc0.jpg",1,"Pila pata","Dispersa","Municipio|Agua Para el Pueblo",20,10,10,0,30,"Si","Sistema por gravedad","","No",null,null,2013,"Si",null,null,"No",null,null,"Si","Si",2,"No",null,"Si",0,"Si",0.78,null,"Turbidez",{"$nulls":5},1,20,24,"No",{"$nulls":4},"Si","Bueno","No",{"$nulls":4},"Si","Si","Entel","Si","No","Queman|Entierran","Si","10,4,20","Si","chiwalaque","No","No","8be49d2346d2454f26dc94071192a0"]
["sgvs-qupc-6c1j","Bolivia - Cochabamba - Arani - Pocoata - Pocoata Alta","Boi","3195280107","22-04-2021 13:44:41 UTC","Antonio","00:10:03",6,"Bolivia","Cochabamba",null,"Arani","Pocoata","Pocoata Alta","-17.61092150118202","-65.72063486091793","2990.0","https://waterforpeople.s3.amazonaws.com/images/cbcb9dcb-7634-4063-9a3e-44055799ae92.jpg",1,"Pocoata Alta","Concentrada","Municipio|Comité de Agua",215,189,189,0,567,"Si","Sistema por gravedad","","Si",null,null,2014,"Si",null,null,"No",null,null,"Si","Si",2,"No",null,"Si",0,"Si",1.02,null,"Turbidez",{"$nulls":5},0.54,37.037037037037038,24,"No",{"$nulls":4},"Si","Bueno","No",{"$nulls":4},"Si","Si","Entel|Tigo","Si","No","Queman|Entierran","Si","41, 23, 50 y 8","Si","trigal, radio bella morena y kausachun coca","Si","No","a96290b845ab71abc4c5979b2847712"]
["2528-vyw3-gwrq","Bolivia - Cochabamba - Arani - Pocoata - Pocoata Centro","Boi","3189970252","22-04-2021 13:45:45 UTC","Antonio","00:08:21",6,"Bolivia","Cochabamba",null,"Arani","Pocoata","Pocoata Centro","-17.605338357388973","-65.73426542803645","2946.0","https://waterforpeople.s3.amazonaws.com/images/f1c042ce-261c-4c29-a21a-526251fda407.jpg",1,"Pocoata Centro","Semi dispersa","Municipio|Comité de Agua|Agua Para el Pueblo",114,104,104,0,312,"Si","Sistema por gravedad","","Si",null,null,2012,"Si",null,null,"No",null,null,"Si","Si",4,"No",null,"Si",0,"Si",0.78,null,"Turbidez",{"$nulls":5},0.6,33.333333333333336,24,"No",{"$nulls":4},"Si","Bueno","No",{"$nulls":4},"Si","Si","Entel|Tigo|Viva","Si","No","Queman|Entierran","Si","23, 41, 50, 7, 8","Si","bella morena, trigal, panamericana y kausachun coca","Si","Si","fa9a29a798737cd966d9ebff0a2b3b"]
["sw04-hqx2-kwjs","Bolivia - Cochabamba - Arani - Pocoata - Saga Saga","BOI  ARANI","3193550109","22-04-2021 23:03:46 UTC","Gonzalo Terrazas","00:15:36",6,"Bolivia","Cochabamba",null,"Arani","Pocoata","Saga Saga","-17.66689423","-65.68047195","3925.060546875","https://waterforpeople.s3.amazonaws.com/images/406bf833-1511-4c50-9124-171cb8b695db.jpg",1,"Saga Saga","Dispersa","Municipio|Agua Para el Pueblo",70,20,20,0,60,"Si","Sistema por gravedad","","No",null,null,2009,"Si",null,null,"No",null,null,"Si","Si",0,"No",null,"Si",0,"Si",0.92,null,"Turbidez",{"$nulls":5},0.8,25,24,"No",{"$nulls":4},"Si","Bueno","No",{"$nulls":4},"Si","Si","Entel|Tigo","Si","No","Queman|Entierran","Si","7,34,41,44,29,50","Si","chiwalaque,la calle,causachun koca, bella morena.","Si","No","2d288c3d9defcf65253c0ed3ef96845"]
["y6s3-558c-sj30","Bolivia - Cochabamba - Arani - Pocoata - Wasa Wayu","BOI  ARANI","3210320094","22-04-2021 23:03:33 UTC","Gonzalo Terrazas","00:11:53",6,"Bolivia","Cochabamba",null,"Arani","Pocoata","Wasa Wayu","-17.58391444","-65.70007263","3514.24267578125","https://waterforpeople.s3.amazonaws.com/images/ccc9236b-d677-4b5a-b69b-0bd520d25002.jpg",1,"Huasa Wayu","Dispersa","Municipio|Agua Para el Pueblo",23,4,4,0,12,"Si","Sistema por gravedad","","Si",null,null,2013,"Si",null,null,"No",null,null,"Si","Si",4,"No",null,"Si",0,"Si",0.51,null,"Turbidez",{"$nulls":5},0.16,125,24,"No",{"$nulls":4},"Si","Bueno","No",{"$nulls":4},"Si","Si","Entel|Tigo","Si","No","Queman|Entierran","Si","7,34,41,50","Si","panorama,chiwalaque","No","No","a7a52876775b1ad8ee3c6c974e687ee"]
["6t2r-e88q-kq8h","Bolivia - Cochabamba - Arani - Puka Orqo - Puka Orko","BOI  ARANI","3206320257","22-04-2021 23:03:18 UTC","Gonzalo Terrazas","00:53:10",6,"Bolivia","Cochabamba",null,"Arani","Puka Orqo","Av. Paz y Piqueria","-17.600737","-65.791352","2766.048095703125","https://waterforpeople.s3.amazonaws.com/images/7b45805f-c97e-4dac-a2c8-f141f1c829a7.jpg",4,"Puka Orko, Ortega Chico, Ortega Grande, Av. Paz y Piqueria","Semi dispersa","Municipio|Comité de Agua",14,14,14,0,42,"Si","Sistema por bombeo y gravedad","","Si",null,null,1996,"Si",null,null,"No",null,null,"No",{"$nulls":9},"Turbidez",{"$nulls":5},2,10,24,"No",{"$nulls":4},"Si","Bueno","No",{"$nulls":4},"Si","Si","Entel|Tigo|Viva","Si","Si",null,"Si","41,7,29,50,10","Si","bella morena,chiwalaque","Si","No","94f34588faeb213c2720b25571b996b5"]
["327a-qpu0-ht7a","Bolivia - Cochabamba - Arani - Puka Orqo - Chaupi Rancho","Boi","3173900081","22-04-2021 13:45:05 UTC","Antonio","00:05:56",6,"Bolivia","Cochabamba",null,"Arani","Puka Orqo","Chaupi Rancho","-17.591975131072104","-65.79785155132413","2738.0","https://waterforpeople.s3.amazonaws.com/images/0b0e2a9f-0c7e-4ef7-97ec-88405ee62824.jpg",1,"Chaupi Rancho","Semi dispersa","Municipio|Comité de Agua",43,40,40,0,120,"Si","Sistema por bombeo y gravedad","","Si",null,null,2015,"Si",null,null,"No",null,null,"Si","Si",0,"No",null,"Si",0,"Si",0.78,null,"Turbidez",{"$nulls":5},1.5,13.333333333333334,24,"No",{"$nulls":4},"Si","Bueno","No",{"$nulls":4},"Si","Si","Entel|Tigo|Viva","Si","No","Queman|Entierran","Si","23, 41, 50 y 8","Si","trigal, bella morena y kausachun coca","Si","No","6d22c5ed1750828253a7d031b97eb91"]
["7ecc-12dp-8bgh","Bolivia - Cochabamba - Arani - Puka Orqo - Collpa Baja","Boi","3179900113","22-04-2021 13:45:01 UTC","Antonio","00:10:22",6,"Bolivia","Cochabamba",null,"Arani","Puka Orqo","Collpa Baja","-17.580206813290715","-65.78047427348793","2771.0","https://waterforpeople.s3.amazonaws.com/images/644130d2-aec0-4c45-92c4-c4a76014501c.jpg",3,"Collpa Baja, Mayu Pata y Eterovich","Concentrada","Municipio|Comité de Agua",144,144,144,0,432,"Si","Sistema por bombeo y gravedad","","Si",null,null,2016,"Si",null,null,"No",null,null,"Si","Si",0,"No",null,"Si",0,"Si",1,null,"Turbidez",{"$nulls":5},2,10,24,"No",{"$nulls":4},"Si","Bueno","No",{"$nulls":4},"Si","Si","Entel|Tigo|Viva","Si","Si",null,"Si","41 y 23","Si","kausachun coca, bella morena y trigal","Si","Si","2d63b22528d9b38243c8da1799f9a5f"]
["7ecc-12dp-8bgh","Bolivia - Cochabamba - Arani - Puka Orqo - Collpa Baja","Boi","3179900113","22-04-2021 13:45:01 UTC","Antonio","00:10:22",6,"Bolivia","Cochabamba",null,"Arani","Puka Orqo","Eterovich","-17.587439","-65.788940","2771.2","https://waterforpeople.s3.amazonaws.com/images/644130d2-aec0-4c45-92c4-c4a76014501c.jpg",3,"Collpa Baja, Mayu Pata y Eterovich","Concentrada","Municipio|Comité de Agua",27,27,27,0,81,"Si","Sistema por bombeo y gravedad","","Si",null,null,2016,"Si",null,null,"No",null,null,"No",{"$nulls":9},"Turbidez",{"$nulls":5},2,10,24,"No",{"$nulls":4},"Si","Bueno","No",{"$nulls":4},"Si","Si","Entel|Tigo|Viva","Si","Si",null,"Si","41 y 23","Si","kausachun coca, bella morena y trigal","Si","Si","2d63b22528d9b38243c8da1799f9a5f"]
["smhn-bbcx-rmg3","Bolivia - Cochabamba - Arani - Puka Orqo - Linde Grande","Boi","3202850102","22-04-2021 13:45:10 UTC","Antonio","00:07:48",6,"Bolivia","Cochabamba",null,"Arani","Puka Orqo","Linde Chico","-17.592513","-65.804170","2742.1","https://waterforpeople.s3.amazonaws.com/images/b67bb6a4-a160-4461-9c53-fc8ade62d157.jpg",2,"Linde Grande y Linde Chico","Semi dispersa","Municipio|Comité de Agua",19,19,19,0,57,"Si","Sistema por bombeo y gravedad","","Si",null,null,2007,"Si",null,null,"No",null,null,"Si","Si",0,"No",null,"Si",0,"Si",1.59,null,"Turbidez",{"$nulls":5},1.5,13.333333333333334,24,"No",{"$nulls":4},"Si","Bueno","No",{"$nulls":4},"Si","Si","Entel|Tigo|Viva","Si","No","Queman|Entierran","Si","23, 41, 8, 50 y 7","Si","trigal, bella morena y kausachun coca","Si","Si","eaf0b7759fddc56e260992632695e11"]
["smhn-bbcx-rmg3","Bolivia - Cochabamba - Arani - Puka Orqo - Linde Grande","Boi","3202850102","22-04-2021 13:45:10 UTC","Antonio","00:07:48",6,"Bolivia","Cochabamba",null,"Arani","Puka Orqo","Linde Grande","-17.58904838003218","-65.80484608188272","2742.0","https://waterforpeople.s3.amazonaws.com/images/b67bb6a4-a160-4461-9c53-fc8ade62d157.jpg",2,"Linde Grande y Linde Chico","Semi dispersa","Municipio|Comité de Agua",40,40,40,0,120,"Si","Sistema por bombeo y gravedad","","Si",null,null,2007,"Si",null,null,"No",null,null,"Si","Si",0,"No",null,"Si",0,"Si",1.59,null,"Turbidez",{"$nulls":5},1.5,13.333333333333334,24,"No",{"$nulls":4},"Si","Bueno","No",{"$nulls":4},"Si","Si","Entel|Tigo|Viva","Si","No","Queman|Entierran","Si","23, 41, 8, 50 y 7","Si","trigal, bella morena y kausachun coca","Si","Si","eaf0b7759fddc56e260992632695e11"]
["7ecc-12dp-8bgh","Bolivia - Cochabamba - Arani - Puka Orqo - Collpa Baja","Boi","3179900113","22-04-2021 13:45:01 UTC","Antonio","00:10:22",6,"Bolivia","Cochabamba",null,"Arani","Puka Orqo","Mayu Pata","-17.578292","-65.782963","2771.1","https://waterforpeople.s3.amazonaws.com/images/644130d2-aec0-4c45-92c4-c4a76014501c.jpg",3,"Collpa Baja, Mayu Pata y Eterovich","Concentrada","Municipio|Comité de Agua",9,9,9,0,27,"Si","Sistema por bombeo y gravedad","","Si",null,null,2016,"Si",null,null,"No",null,null,"No",{"$nulls":9},"Turbidez",{"$nulls":5},2,10,24,"No",{"$nulls":4},"Si","Bueno","No",{"$nulls":4},"Si","Si","Entel|Tigo|Viva","Si","Si",null,"Si","41 y 23","Si","kausachun coca, bella morena y trigal","Si","Si","2d63b22528d9b38243c8da1799f9a5f"]
["6t2r-e88q-kq8h","Bolivia - Cochabamba - Arani - Puka Orqo - Puka Orko","BOI  ARANI","3206320257","22-04-2021 23:03:18 UTC","Gonzalo Terrazas","00:53:10",6,"Bolivia","Cochabamba",null,"Arani","Puka Orqo","Ortega Chico","-17.601338","-65.783166","2766.048095703125","https://waterforpeople.s3.amazonaws.com/images/7b45805f-c97e-4dac-a2c8-f141f1c829a7.jpg",4,"Puka Orko, Ortega Chico, Ortega Grande, Av. Paz y Piqueria","Semi dispersa","Municipio|Comité de Agua",30,30,30,0,90,"Si","Sistema por bombeo y gravedad","","Si",null,null,1996,"Si",null,null,"No",null,null,"No",{"$nulls":9},"Turbidez",{"$nulls":5},2,10,24,"No",{"$nulls":4},"Si","Bueno","No",{"$nulls":4},"Si","Si","Entel|Tigo|Viva","Si","Si",null,"Si","41,7,29,50,10","Si","bella morena,chiwalaque","Si","No","94f34588faeb213c2720b25571b996b5"]
["6t2r-e88q-kq8h","Bolivia - Cochabamba - Arani - Puka Orqo - Puka Orko","BOI  ARANI","3206320257","22-04-2021 23:03:18 UTC","Gonzalo Terrazas","00:53:10",6,"Bolivia","Cochabamba",null,"Arani","Puka Orqo","Ortega Grande","-17.596832","-65.780438","2766.048095703125","https://waterforpeople.s3.amazonaws.com/images/7b45805f-c97e-4dac-a2c8-f141f1c829a7.jpg",4,"Puka Orko, Ortega Chico, Ortega Grande, Av. Paz y Piqueria","Semi dispersa","Municipio|Comité de Agua",34,34,34,0,102,"Si","Sistema por bombeo y gravedad","","Si",null,null,1996,"Si",null,null,"No",null,null,"No",{"$nulls":9},"Turbidez",{"$nulls":5},2,10,24,"No",{"$nulls":4},"Si","Bueno","No",{"$nulls":4},"Si","Si","Entel|Tigo|Viva","Si","Si",null,"Si","41,7,29,50,10","Si","bella morena,chiwalaque","Si","No","94f34588faeb213c2720b25571b996b5"]
["6t2r-e88q-kq8h","Bolivia - Cochabamba - Arani - Puka Orqo - Puka Orko","BOI  ARANI","3206320257","22-04-2021 23:03:18 UTC","Gonzalo Terrazas","00:53:10",6,"Bolivia","Cochabamba",null,"Arani","Puka Orqo","Puka Orko","-17.59143315","-65.78521708","2766.048095703125","https://waterforpeople.s3.amazonaws.com/images/7b45805f-c97e-4dac-a2c8-f141f1c829a7.jpg",4,"Puka Orko, Ortega Chico, Ortega Grande, Av. Paz y Piqueria","Semi dispersa","Municipio|Comité de Agua",112,112,112,0,336,"Si","Sistema por bombeo y gravedad","","Si",null,null,1996,"Si",null,null,"No",null,null,"Si","Si",0,"No",null,"Si",0,"Si",1.0900000000000001,null,"Turbidez",{"$nulls":5},2,10,24,"No",{"$nulls":4},"Si","Bueno","Si","10 Familias sin agua por elevado ingreso  al sistema de agua  ",null,null,null,"Si","Si","Entel|Tigo|Viva","Si","Si",null,"Si","41,7,29,50,10","Si","bella morena,chiwalaque","Si","No","94f34588faeb213c2720b25571b996b5"]
["snq8-686k-m0ts","Bolivia - Cochabamba - Arani - Puka Orqo - Linde Chico","Boi","3202860141","22-04-2021 13:45:16 UTC","Antonio","00:04:31",6,"Bolivia","Cochabamba",null,"Arani","Puka Orqo","Urbanización Linde","-17.591298543848097","-65.80306677147746","2729.0","https://waterforpeople.s3.amazonaws.com/images/c68bfd85-a28a-4573-a3ce-01c3d0b7e8a1.jpg",1,"Urbanización Linde","Semi dispersa","Municipio|Comité de Agua|Agua Para el Pueblo",226,113,113,0,339,"Si","Sistema por bombeo (hidropulmon/torre hidroneumática)","","Si",null,null,2017,"Si",null,null,"No",null,null,"Si","Si",80,"No",null,"Si",0,"Si",0.83,null,"Turbidez",{"$nulls":5},1.5,13.333333333333334,24,"No",{"$nulls":4},"Si","Bueno","No",{"$nulls":4},"Si","Si","Entel|Tigo|Viva","Si","No","Queman|Entierran","Si","23, 41, 50, 7 y 8","Si","trigal, bella morena y kausachun coca","Si","Si","c21136ac46ea1f6c325849462d878b"]
["7xdv-0j3r-nt75","Bolivia - Cochabamba - Arani - Serrano - Cinta Qhochi","BOI  ARANI","3195200256","22-04-2021 23:03:27 UTC","Gonzalo Terrazas","00:09:25",6,"Bolivia","Cochabamba",null,"Arani","Serrano","Cinta Qhochi","-17.52567021","-65.71566412","3428.73095703125","https://waterforpeople.s3.amazonaws.com/images/e0715103-f974-40d2-9098-288dbb4d7b69.jpg",1,"Cinta Qochi","Semi dispersa","Municipio|Agua Para el Pueblo",40,18,18,0,54,"Si","Sistema por bombeo y gravedad","","Si",null,null,2014,"Si",null,null,"No",null,null,"Si","Si",0,"No",null,"Si",0,"Si",1.01,null,"Turbidez",{"$nulls":5},0.4,50,24,"No",{"$nulls":4},"Si","Bueno","No",{"$nulls":4},"Si","Si","Entel|Tigo","Si","No","Queman|Entierran","Si","7, 41, 50","Si","chiwalaque","No","No","cdfdf81994120364181ee8bff43e7"]
["2wka-j4eq-khvx","Bolivia - Cochabamba - Arani - Serrano - Huaychapata Villa Cariño","BOI  ARANI","3166000111","22-04-2021 23:03:13 UTC","Gonzalo Terrazas","00:14:43",6,"Bolivia","Cochabamba",null,"Arani","Serrano","Huaychapata Villa Cariño","-17.55662677","-65.68172552","3413.5205078125","https://waterforpeople.s3.amazonaws.com/images/f06c03a4-adc9-4f39-b939-e0802b352c1e.jpg",1,"Huaychapata Villa Cariño","Dispersa","Municipio|Agua Para el Pueblo",45,38,38,0,114,"Si","Sistema por bombeo y gravedad","","Si",null,null,2008,"Si",null,null,"No",null,null,"Si","Si",0,"No",null,"Si",0,"Si",0.89,null,"Turbidez",{"$nulls":5},0.7,28.571428571428573,24,"No",{"$nulls":4},"Si","Bueno","Si","En el  tanque de almacenamiento existe fisuras",null,null,null,"Si","Si","Entel|Tigo","Si","No","Queman|Entierran","Si","7,34,41,50,12.","Si","chiwalaque,bella morena","No","No","f75451caa4d4bcc4fd6ed5c9a247e8a"]
["x0h5-8n3j-mheu","Bolivia - Cochabamba - Arani - Serrano - Huaychapata Villa Surumi","Boi","3165970214","22-04-2021 13:45:42 UTC","Antonio","00:10:57",6,"Bolivia","Cochabamba",null,"Arani","Serrano","Huaychapata Villa Surumi","-17.578559769317508","-65.68947153165936","3485.0","https://waterforpeople.s3.amazonaws.com/images/a4e3ef64-6370-4bdc-a30f-89eaccaf833d.jpg",1,"Huaychapata Villa Surumi","Semi dispersa","Municipio|Comité de Agua|Agua Para el Pueblo",59,36,36,0,108,"Si","Sistema por gravedad","","Si",null,null,2019,"Si",null,null,"Si",2,3,"Si","Si",0,"No",null,"Si",0,"Si",0.82,null,"Turbidez",{"$nulls":5},0.4,50,24,"No",{"$nulls":4},"Si","Bueno","No",{"$nulls":4},"Si","Si","Entel","Si","No","Queman|Entierran","Si","7, 8 y 5","Si","kausachun coca, pienera y chiwalaque, radio sepra","Si","No","8461d9201729cdd1e1646f10888b109b"]
["yrnd-ypmb-8t6k","Bolivia - Cochabamba - Arani - Serrano - Jutulaya","BOI  ARANI","3210310135","22-04-2021 23:03:08 UTC","Gonzalo Terrazas","00:07:53",6,"Bolivia","Cochabamba",null,"Arani","Serrano","Jutulaya","-17.52205865","-65.72924992","3422.136962890625","https://waterforpeople.s3.amazonaws.com/images/8d6bb25c-12d6-4464-af48-99f1461024bf.jpg",1,"Jutulaya","Dispersa","Municipio|Agua Para el Pueblo",54,20,20,0,60,"Si","Sistema por gravedad","","Si",null,null,2015,"Si",null,null,"No",null,null,"Si","Si",0,"No",null,"Si",0,"Si",1.88,null,"Turbidez",{"$nulls":5},0.5,40,24,"No",{"$nulls":4},"Si","Bueno","Si","Hay una zona donde 15 familias no cuentan con agua",null,null,null,"Si","Si","Entel","Si","No","Queman|Entierran","Si","7, 29, 41.","Si","Kausachun Coca.","No","No","b6861511bdd357797decc463222e8bb8"]
["pmhy-7vk4-n3nc","Bolivia - Cochabamba - Arani - Serrano - kewiñal","Boi","3198670076","22-04-2021 13:44:49 UTC","Antonio","00:07:53",6,"Bolivia","Cochabamba",null,"Arani","Serrano","kewiñal","-17.561815157532692","-65.71751126088202","3381.0","https://waterforpeople.s3.amazonaws.com/images/905dbac8-f1bd-4083-8244-3e593262952f.jpg",1,"Kewiñal","Dispersa","Municipio|Comité de Agua|Otra ONG",20,16,16,0,48,"Si","Sistema por bombeo y gravedad","","Si",null,null,2015,"Si",null,null,"Si",2,2,"Si","Si",0,"No",null,"Si",0,"Si",0.8,null,"Turbidez",{"$nulls":5},0.75,26.666666666666668,24,"No",{"$nulls":4},"Si","Bueno","No",{"$nulls":4},"Si","Si","Entel","Si","No","Queman|Entierran","No",null,"Si","bella morena, kausachun coca, fides y reflejos","No","No","7edaa9439fa0472a803982b1b349b1"]
["sgyj-t9r4-hycf","Bolivia - Cochabamba - Arani - Serrano - kumu kewiña","Boi","3192170080","22-04-2021 13:44:53 UTC","Antonio","00:05:23",6,"Bolivia","Cochabamba",null,"Arani","Serrano","kumu kewiña","-17.54093835130334","-65.70567056536674","3503.0","https://waterforpeople.s3.amazonaws.com/images/9dd05516-9532-4910-b6b0-51618ed31993.jpg",1,"Kumo Kewiña","Semi dispersa","Municipio|Comité de Agua|Agua Para el Pueblo",32,25,25,0,75,"Si","Sistema por gravedad","","Si",null,null,2017,"Si",null,null,"No",null,null,"Si","Si",0,"No",null,"Si",0,"Si",0.54,null,"Turbidez",{"$nulls":5},0.6,33.333333333333336,24,"No",{"$nulls":4},"Si","Bueno","No",{"$nulls":4},"Si","Si","Entel","Si","No","Queman|Entierran","Si","7, 41 y 50","Si","kausachun coca","No","No","fe20363f211cab842613f7772795c3f"]
["s9t2-hdbs-kffu","Bolivia - Cochabamba - Arani - Serrano - Laguna","Boi","3202840153","22-04-2021 13:45:38 UTC","Antonio","00:06:35",6,"Bolivia","Cochabamba",null,"Arani","Serrano","Laguna","-17.538295621052384","-65.71151417680085","3487.0","https://waterforpeople.s3.amazonaws.com/images/4050b1f5-d11f-4b94-8596-db36f01e9d03.jpg",1,"Laguna","Dispersa","Municipio|Comité de Agua",62,40,40,0,120,"Si","Sistema por bombeo y gravedad","","Si",null,null,2014,"Si",null,null,"No",null,null,"Si","Si",0,"No",null,"Si",0,"Si",8.0500000000000007,null,"Turbidez",{"$nulls":5},1.5,13.333333333333334,24,"No",{"$nulls":4},"Si","Bueno","No",{"$nulls":4},"Si","Si","Entel","Si","No","Queman|Entierran","Si","23, 41 y 50","Si","trigal y kausachun coca","Si","No","79dfee7bf63415b81582750d3ce4d4a"]
["5td4-djpk-h0pb","Bolivia - Cochabamba - Arani - Serrano - Serrano Alto","Boi","3200710111","22-04-2021 13:45:35 UTC","Antonio","00:04:47",6,"Bolivia","Cochabamba",null,"Arani","Serrano","Serrano Alto","-17.54432011395693","-65.69917308166623","3557.0","https://waterforpeople.s3.amazonaws.com/images/8cf13149-0f35-40ff-aefe-101c0b34af18.jpg",1,"Serrano Alto","Dispersa","Municipio|Comité de Agua|Agua Para el Pueblo",12,8,8,0,24,"Si","Sistema por gravedad","","Si",null,null,2017,"Si",null,null,"Si",20,90,"No",{"$nulls":9},"Turbidez",{"$nulls":5},0.06,333.33333333333337,6,"No",{"$nulls":4},"No","Malo","Si","En época de sequia la vertiente se seca",null,null,null,"Si","Si","Entel","Si","No","Queman|Entierran","Si","41, 7, 8 y 50","Si","chiwalaque, kausachin coca y fides","No","No","62dcecdeca5238272788896d117a"]
["tx5e-e4tm-6tet","Bolivia - Cochabamba - Arani - Serrano - Serrano Centro","BOI  ARANI","3166930095","22-04-2021 23:03:03 UTC","Gonzalo Terrazas","00:08:14",6,"Bolivia","Cochabamba",null,"Arani","Serrano","Serrano Centro","-17.54785431","-65.68945632","3406.3779296875","https://waterforpeople.s3.amazonaws.com/images/b75085db-075d-4275-9f88-591699f55fbc.jpg",1,"Serrano Centro","Dispersa","Municipio|Comité de Agua|Otra ONG",45,39,39,3,117,"Si","Sistema por bombeo y gravedad","","Si",null,null,2014,"Si",null,null,"No",null,null,"Si","Si",0,"No",null,"Si",0,"Si",0.92,null,"Turbidez",{"$nulls":5},2,10,24,"No",{"$nulls":4},"Si","Bueno","No",{"$nulls":4},"Si","Si","Entel|Tigo","Si","No","Queman|Entierran","Si","7,34,29","Si","chiwalaque","Si","No","e5adf8eb147a28b08dc2df9ae927bb7"]
["wb3s-1mh5-7dcc","Bolivia - Cochabamba - Arbieto - D 1 Arbieto - Achamoco","BOI  NOE","3246550064","16-06-2021 14:40:42 UTC","Noe","00:04:29",6,"Bolivia","Cochabamba",null,"Arbieto",1,"Achamoco","-17.41749278269708","-66.15227043628693","2604.0","https://waterforpeople.s3.amazonaws.com/images/eb7897f9-d287-486e-be32-df87188458cb.jpg",1,"Achamoco","Concentrada","Gobierno Nacional|Municipio",170,80,80,0,240,"Si","Sistema por bombeo y gravedad","","Si",null,null,2016,"Si",null,null,"No",{"$nulls":11},"No",{"$nulls":6},2.5,8,24,"No",{"$nulls":4},"Si","Bueno","No",{"$nulls":4},"Si","Si","Entel|Tigo","No","No","Queman|Entierran","Si","Locales y nacionales","Si","Locales y nacionales","No","Si","e4b35c60f78046a996ed6683e71a4fb"]
["rpxg-hs7n-xdbv","Bolivia - Cochabamba - Arbieto - D 1 Arbieto - Arbieto C.P.","BOI  NOE","3252780162","16-06-2021 15:08:54 UTC","Noe","00:09:26",6,"Bolivia","Cochabamba",null,"Arbieto",1,"Arbieto C.P.","-17.593343937769532","-66.01451477967203","2802.0","https://waterforpeople.s3.amazonaws.com/images/07f3415b-256a-479b-836c-ddcde8f85654.jpg",1,"Abrieto C.P","Concentrada","Gobierno Nacional|Municipio",720,720,720,0,2160,"Si","Sistema por bombeo y gravedad","","Si",null,null,2018,"Si",null,null,"No",{"$nulls":11},"No",{"$nulls":6},2.8,7.1428571428571432,24,"No",{"$nulls":4},"Si","Bueno","No",{"$nulls":4},"Si","Si","Entel|Tigo","Si","Si",null,"Si","Nacionales","Si","Locales","Si","Si","8ece6b2d775fa250567c6ad515958ac4"]
["n2jy-n63a-0r71","Bolivia - Cochabamba - Arbieto - D 1 Arbieto - Ini Rancho","BOI  NOE","3220870182","16-06-2021 14:56:02 UTC","Noe","00:13:13",6,"Bolivia","Cochabamba",null,"Arbieto",1,"Ini Rancho","-17.604485750198364","-66.00115100853145","2767.0","https://waterforpeople.s3.amazonaws.com/images/7a0bb7fb-40e0-4669-a822-bafc20896749.jpg",1,"Ini Rancho","Concentrada","Gobierno Nacional|Municipio|Comité de Agua",34,32,32,0,96,"Si","Sistema por bombeo y gravedad","","No",null,null,2006,"Si",null,null,"Si",3,2,{"$nulls":9},"No",{"$nulls":6},0.3,66.666666666666671,12,"No",{"$nulls":4},"No","Bueno","Si","Escaces de Agua",null,null,null,"Si","Si","Entel|Tigo","No","No","Queman|Entierran|Botan al rio, quebrada","Si","Nacionales","Si","Locales","Si","Si","798b73a2b985218e8e50833039b581"]
["av44-eq0e-9e3t","Bolivia - Cochabamba - Arbieto - D 1 Arbieto - Kori Mayu","BOI  NOE","3230970164","16-06-2021 14:47:01 UTC","Noe","00:05:22",6,"Bolivia","Cochabamba",null,"Arbieto",1,"Kori Mayu","-17.586616622284055","-66.02813235484064","2748.0","https://waterforpeople.s3.amazonaws.com/images/4c40f5cd-b40e-4bb8-9be8-819147c779ca.jpg",1,"Kori Mayu","Dispersa","Municipio|Comité de Agua|Agua Para el Pueblo",103,28,28,0,84,"Si","Sistema por bombeo y gravedad","","Si",null,null,2020,"Si",null,null,"No",{"$nulls":11},"No",{"$nulls":6},5.8,3.4482758620689657,24,"No",{"$nulls":4},"Si","Bueno","No",{"$nulls":4},"Si","Si","Entel|Tigo","No","No","Queman|Entierran|Botan al rio, quebrada","Si","Nacionales","Si","Nacionales","No","Si","dc1f7c461a8142f371691bc729fd9f1b"]
["mkry-xre5-db33","Bolivia - Cochabamba - Arbieto - D 1 Arbieto - La Loma","BOI  NOE","3228750092","16-06-2021 14:54:10 UTC","Noe","00:05:10",6,"Bolivia","Cochabamba",null,"Arbieto",1,"La Loma","-17.56766073871404","-66.03295127861202","2724.0","https://waterforpeople.s3.amazonaws.com/images/646cf810-f216-4928-9622-348280d916c9.jpg",1,"La Loma","Concentrada","Municipio|Comité de Agua|Agua Para el Pueblo",164,90,90,0,{"$f":"IF(Y66=0,\"\",(Y66*3))","v":270},"Si","Sistema por bombeo y gravedad","","Si",null,null,2021,"Si",null,null,"No",null,null,"Si","Si",0,"No",null,"Si",0,"Si",1.32,"No",{"$nulls":6},0.2,{"$f":"IF(BE66=\"\",\"\",(20/BE66))","v":100},24,"No",{"$nulls":4},"Si","Bueno","No",{"$nulls":4},"Si","Si","Entel|Tigo","No","No","Queman|Entierran|Botan al rio, quebrada","Si","Nacionales","Si","Locales","No","Si","d87d8e2dc139a0d89e299c2daa3b75"]
["t31y-qqw5-evwn","Bolivia - Cochabamba - Arbieto - D 1 Arbieto - Santa Rosa","BOI  NOE","3240640129","16-06-2021 14:45:27 UTC","Noe","00:03:47",6,"Bolivia","Cochabamba",null,"Arbieto",1,"Santa Rosa ","-17.41744190454483","-66.15224587731063","2631.0","https://waterforpeople.s3.amazonaws.com/images/e70c81ab-60bb-4aaa-b5ca-05609ed32b6d.jpg",1,"Santa Rosa ","Concentrada","Gobierno Nacional|Municipio",250,110,110,0,330,"Si","Sistema por bombeo y gravedad","","Si",null,null,1995,"Si",null,null,"Si",2,1,"Si","Si",0,"No",null,"Si",0,"Si",0.97,"No",{"$nulls":6},2.5,8,24,"No",{"$nulls":4},"Si","Bueno","No",{"$nulls":4},"Si","Si","Entel|Tigo","No","No","Queman|Botan al rio, quebrada","Si","Nacionales","Si","Locales","No","No","4e1bf440b2f1a343c0bc74b052115665"]
["yewv-p7n4-32uk","Bolivia - Cochabamba - Arbieto - D 1 Arbieto - Tiataco","BOI  NOE","3252760214","16-06-2021 15:14:13 UTC","Noe","00:06:56",6,"Bolivia","Cochabamba",null,"Arbieto",1,"Tiataco","-17.596180122345686","-66.00109124556184","2752.0","https://waterforpeople.s3.amazonaws.com/images/f9b15abc-1d09-41d8-8f24-378b84b6b9e2.jpg",1,"Tiataco","Concentrada","Comité de Agua|Otra ONG",110,85,85,5,255,"Si","Sistema por bombeo y gravedad","","Si",null,null,2019,"Si",null,null,"No",{"$nulls":11},"No",{"$nulls":6},2.5,8,24,"No",{"$nulls":4},"Si","Bueno","No",{"$nulls":4},"Si","Si","Entel|Tigo","No","No","Queman|Entierran|Botan al rio, quebrada","Si","Locales y nacionales","Si","Locales y nacionales","Si","Si","c94c3f196197bdcc5fc9c073327e2051"]
["2qu0-y0bs-670q","Bolivia - Cochabamba - Arbieto - D 1 Arbieto - Villa Imperial","BOI  NOE","3250890161","16-06-2021 14:52:34 UTC","Noe","00:12:10",6,"Bolivia","Cochabamba",null,"Arbieto",1,"Villa Imperial","-17.580441548489034","-66.04229751974344","2755.0","https://waterforpeople.s3.amazonaws.com/images/fa0c3554-4891-4204-b7db-b167c71b1aab.jpg",1,"Villa Imperial","Concentrada","Municipio|Comité de Agua|Agua Para el Pueblo",109,67,67,0,201,"Si","Sistema por bombeo y gravedad","","Si",null,null,2017,"Si",null,null,"No",{"$nulls":11},"No",{"$nulls":6},2.2999999999999998,8.6956521739130448,24,"No",{"$nulls":4},"Si","Bueno","No",{"$nulls":4},"Si","Si","Entel|Tigo","No","No","Queman|Entierran|Botan al rio, quebrada","Si","Nacionales","Si","Locales","No","Si","35d458dda1255b8b5b3db5b03a3ead"]
["7y1m-7u3p-rpjr","Bolivia - Cochabamba - Arbieto - D 1 Arbieto - Villa Mercedes","BOI  NOE","3254380067","16-06-2021 14:50:18 UTC","Noe","00:07:42",6,"Bolivia","Cochabamba",null,"Arbieto",1,"Villa Mercedes","-17.573830909095705","-66.03588653728366","2736.0","https://waterforpeople.s3.amazonaws.com/images/648bf120-2c59-40bf-9284-72522a3d52b3.jpg",1,"Villa Mercedes","Concentrada","Gobierno Nacional|Municipio|Comité de Agua",100,100,91,9,273,"Si","Sistema por bombeo y gravedad","","No",null,null,1994,"Si",null,null,"Si",3,1,"Si","Si",0,"No",null,"Si",0,"Si",1.27,"No",{"$nulls":6},2.8,7.1428571428571432,24,"No",{"$nulls":4},"Si","Bueno","Si","Protección de fuente y Tanque",null,null,null,"Si","Si","Entel|Tigo","No","No","Queman|Entierran|Botan al rio, quebrada","Si","Nacionales","Si","Locales","Si","Si","5b448dbd2e74b895dc3ca1ddeba742b"]
["dmnn-me06-0kb3","Bolivia - Cochabamba - Arbieto - D 1 Arbieto - Villa Verde","BOI  NOE","3230980106","16-06-2021 15:06:41 UTC","Noe","00:10:08",6,"Bolivia","Cochabamba",null,"Arbieto",1,"Villa Verde","-17.573973736725748","-66.0295591223985","2733.0","https://waterforpeople.s3.amazonaws.com/images/f4cd352c-2b09-461a-9d80-d8b9c8a7157e.jpg",1,"Villa Verde","Concentrada","Gobierno Nacional",80,65,65,0,195,"Si","Sistema por bombeo y gravedad","","Si",null,null,1995,"Si",null,null,"No",{"$nulls":11},"No",{"$nulls":6},0.8,25,24,"No",{"$nulls":4},"No","Bueno","No",{"$nulls":4},"Si","Si","Entel|Tigo","No","No","Queman|Entierran|Botan al rio, quebrada","Si","Nacionales","Si","Locales","Si","Si","8c2c25ad12c21c89dc09f9ad67783aa"]
["jgm8-qfw1-1y66","Bolivia - Cochabamba - Arbieto - D 2 Aranjuez - Aranjuez","BOI  NOE","3238830168","16-06-2021 14:58:57 UTC","Noe","00:16:29",6,"Bolivia","Cochabamba",null,"Arbieto",2,"Aranjuez","-17.598325428552926","-65.98230639472604","2734.0","https://waterforpeople.s3.amazonaws.com/images/cc1d9a94-b15e-4fcd-95f8-ee21d67d5903.jpg",1,"Aranjuez","Concentrada","Municipio|Comité de Agua",120,120,120,0,360,"Si","Sistema por bombeo y gravedad","","Si",null,null,2014,"Si",null,null,"No",{"$nulls":11},"No",{"$nulls":6},2.5,8,24,"No",{"$nulls":4},"Si","Bueno","No",{"$nulls":4},"Si","Si","Entel|Tigo","No","No","Queman|Entierran|Botan al rio, quebrada","Si","Nacionales","Si","Locales","No","Si","a21692fc1dbcee26622fa124548c364b"]
["6ff7-90fg-k7r1","Bolivia - Cochabamba - Arbieto - D 2 Aranjuez - Liquinas","BOI  NOE","3228750096","16-06-2021 15:01:35 UTC","Noe","00:08:31",6,"Bolivia","Cochabamba",null,"Arbieto",2,"Liquinas","-17.575239948928356","-65.99201439879835","2705.0","https://waterforpeople.s3.amazonaws.com/images/5555c8b2-0e06-4aa7-ade2-3d49d13d5352.jpg",1,"Liquinas","Concentrada","Gobierno Nacional",105,80,80,0,240,"Si","Sistema por bombeo y gravedad","","Si",null,null,1998,"Si",null,null,"Si",4,2,{"$nulls":9},"No",{"$nulls":6},0.8,25,24,"No",{"$nulls":4},"No","Malo","Si","Existe sedimentación de limo en el tanque de agua y requiere limpieza constante",null,null,null,"Si","Si","Entel|Tigo","No","No","Queman|Entierran|Botan al rio, quebrada","Si","Punata","Si","Regionales","Si","Si","42644a9e1bcbd26ffcce6e9652db24eb"]
["2eky-whh3-cygv","Bolivia - Cochabamba - Arbieto - D 2 Aranjuez - Loma Liquinas","BOI  NOE","3220890073","16-06-2021 15:03:56 UTC","Noe","00:03:00",6,"Bolivia","Cochabamba",null,"Arbieto",2,"Loma Liquinas","-17.576232450082898","-65.98145253024995","2759.0","https://waterforpeople.s3.amazonaws.com/images/43848c84-c3c4-46cf-9fc9-ab216dec7ed0.jpg",1,"Loma Liquinas","Concentrada","Gobierno Nacional|Municipio",80,75,75,0,225,"Si","Sistema por bombeo y gravedad","","Si",null,null,2006,"Si",null,null,"No",{"$nulls":11},"No",{"$nulls":6},2.2000000000000002,9.0909090909090899,24,"No",{"$nulls":4},"Si","Bueno","No",{"$nulls":4},"Si","Si","Entel|Tigo","No","No","Queman|Entierran|Botan al rio, quebrada","Si","Locales","Si","Locales","No","Si","3e5f88df70b07eba3e48634957fd57b"]
["25yn-kheq-v1tq","Bolivia - Cochabamba - Arbieto - D 3 Arpita - Achiota","BOI  Tiraque1","3239260064","08-07-2021 19:05:49 UTC","Daniel Arellano","00:06:56",6,"Bolivia","Cochabamba",null,"Arbieto",3,"Achiota","-17.58655666000512","-66.12794557675042","3298.3002576632425","https://waterforpeople.s3.amazonaws.com/images/9ae2e7e2-81da-4053-805b-41b44699bd74.jpg",1,"Achiota","Semi dispersa","Otra ONG",32,5,13,0,39,"Si","Sistema por gravedad","","No",null,null,1998,"Si",null,null,"No",{"$nulls":18},0.3,66.666666666666671,24,"No",{"$nulls":4},"Si","Malo","Si","Se requiete mejerar la fuente",null,null,null,"Si","Si","Entel","No","No","Queman|Entierran","Si","Unitel. Bolivision. Atb","Si","Radio valle alto. Vision, panorama.","No","No","5bae8cb3591d1f7731bd941269cfb10"]
["d8r6-6ap8-jyxf","Bolivia - Cochabamba - Arbieto - D 3 Arpita - Arpita","BOI  NOE","3236470170","16-06-2021 15:20:38 UTC","Noe","00:12:03",6,"Bolivia","Cochabamba",null,"Arbieto",3,"Arpita","-17.56777456495911","-66.07518760487437","2753.0","https://waterforpeople.s3.amazonaws.com/images/29c386d7-61e8-40f3-af4e-c08bf4313a87.jpg",1,"Arpita","Concentrada","Municipio|Comité de Agua|Agua Para el Pueblo",120,104,100,4,300,"Si","Sistema por bombeo y gravedad","","Si",null,null,2006,"Si",null,null,"Si",2,1,"Si","Si",0,"No",null,"Si",0,"Si",1.1200000000000001,"No",{"$nulls":6},2.8,7.1428571428571432,24,"No",{"$nulls":4},"Si","Bueno","Si","Comprar bomba",null,null,null,"Si","Si","Entel|Tigo","No","No","Queman|Entierran|Botan al rio, quebrada","Si","Canal 7","Si","Punata y Tarata","Si","Si","c494c88ac55242cb3eab43b6e025947a"]
["g79k-kgg6-advw","Bolivia - Cochabamba - Arbieto - D 3 Arpita - Canto Copa Pujyu","BOI  Tiraque1","3246511716","13-06-2021 20:00:35 UTC","Daniel Arellano","00:04:58",6,"Bolivia","Cochabamba",null,"Arbieto",3,"Canto Copa Pujyu","-17.552725432362642","-66.10973805784074","2770.2845028657466","https://waterforpeople.s3.amazonaws.com/images/68ae6183-e372-4189-8c05-8d018a4a8b59.jpg",1,"Canto Copa Pujyo","Semi dispersa","Municipio|Otra ONG",46,24,24,0,72,"Si","Sistema por bombeo y gravedad","","Si",null,null,2004,"Si",null,null,"No",null,null,"Si","Si",0,"No",null,"Si",0,"Si",0.48,"No",{"$nulls":6},2,10,24,"No",{"$nulls":4},"Si","Bueno","No",{"$nulls":4},"Si","Si","Entel|Tigo","No","No","Queman|Entierran","Si","Bolivision","Si","Radio municipal","No","No","a2fcd22b0c4ac3ce1de85f0d3f3f5a4"]
["44bp-buas-kuyc","Bolivia - Cochabamba - Arbieto - D 3 Arpita - Copa Pujyu Central","BOI  NOE","3220890231","16-06-2021 20:45:08 UTC","Noe","00:03:22",6,"Bolivia","Cochabamba",null,"Arbieto",3,"Copa Pujyu Central","-17.556710788048804","-66.09801194630563","2774.0","https://waterforpeople.s3.amazonaws.com/images/22a4df7a-b59e-489b-8eff-bcd0426cda94.jpg",1,"Copa Pujyu Centro","Concentrada","Municipio|Comité de Agua|Agua Para el Pueblo",150,92,92,0,276,"Si","Sistema por bombeo y gravedad","","No",null,null,2006,"Si",null,null,"No",null,null,"Si","Si",0,"No",null,"Si",0,"Si",0.56000000000000005,"No",{"$nulls":6},2,10,24,"No",{"$nulls":4},"Si","Bueno","No",{"$nulls":4},"Si","Si","Entel|Tigo","No","No","Queman|Entierran|Botan al rio, quebrada","Si","Cbba","Si","Punata y Tarata","No","Si","69edbc987f19a2edf1454ffa93cc28"]
["rsjn-g3rh-ngt3","Bolivia - Cochabamba - Arbieto - D 3 Arpita - Copa Pujyu Nuevo","BOI  NOE","3226450182","16-06-2021 15:26:32 UTC","Noe","00:10:57",6,"Bolivia","Cochabamba",null,"Arbieto",3,"Copa Pujyu Nuevo","-17.559833424165845","-66.09284978359938","2774.0","https://waterforpeople.s3.amazonaws.com/images/f8e32eeb-5854-4bee-bfff-fc0c1a2f8b3b.jpg",1,"Copa Pujyu Nuevo","Concentrada","Comité de Agua|Agua Para el Pueblo",100,80,80,0,240,"Si","Sistema por bombeo y gravedad","","Si",null,null,2006,"Si",null,null,"No",null,null,"Si","Si",0,"No",null,"Si",0,"Si",0.66,"No",{"$nulls":6},0.4,50,24,"No",{"$nulls":4},"Si","Bueno","No",{"$nulls":4},"Si","Si","Entel|Tigo","No","No","Queman|Entierran|Botan al rio, quebrada","Si","Nacionales","Si","Punata y Tarata","No","Si","5d6f5077ecdacc23b0352a87628912"]
["ag7e-4qwd-6sys","Bolivia - Cochabamba - Arbieto - D 3 Arpita - Flores Rancho","BOI  NOE","3238850115","16-06-2021 15:29:36 UTC","Noe","00:15:19",6,"Bolivia","Cochabamba",null,"Arbieto",3,"Flores Rancho","-17.57792660035193","-66.06134564615786","2765.0","https://waterforpeople.s3.amazonaws.com/images/f65fc20e-8058-4038-a29b-c0ec7ab779de.jpg",1,"Flores Rancho","Concentrada","Municipio|Comité de Agua|Agua Para el Pueblo",85,50,45,5,135,"Si","Sistema por bombeo y gravedad","","Si",null,null,2004,"Si",null,null,"No",null,null,"Si","Si",0,"No",null,"Si",0,"Si",0.61,"No",{"$nulls":6},2.2999999999999998,8.6956521739130448,24,"No",{"$nulls":4},"Si","Bueno","No",{"$nulls":4},"Si","Si","Entel|Tigo","No","No","Queman|Entierran|Botan al rio, quebrada","Si","Nacionales","Si","Punata h Tarata","No","Si","c8ec5093dd43ee476c23fe56395731a8"]
["89sw-qx63-anax","Bolivia - Cochabamba - Arbieto - D 3 Arpita - Jama Chuma","BOI  Tiraque1","3222481469","13-06-2021 20:45:06 UTC","Daniel Arellano","00:16:48",6,"Bolivia","Cochabamba",null,"Arbieto",3,"Jama Chuma","-17.534927186707147","-66.11758583122992","2739.8770401589572","https://waterforpeople.s3.amazonaws.com/images/8190b40b-b5ce-4319-88bf-28cc90ac3b0a.jpg",3,"Jama Chuma, Thajra y Kaluyo","Concentrada","Gobierno Nacional|Municipio|Comité de Agua",135,135,120,15,360,"Si","Sistema por bombeo y gravedad","","Si",null,null,2000,"Si",null,null,"No",null,null,"Si","Si",0,"No",null,"Si",0,"Si",1.08,"No",{"$nulls":6},2,10,24,"No",{"$nulls":4},"Si","Bueno","No",{"$nulls":4},"Si","Si","Entel|Tigo","No","Si",null,"Si","Canal 7","Si","Redio panamericana","No","No","af6abe33829265383ef445edc365c28"]
["p4mr-8thb-pq77","Bolivia - Cochabamba - Arbieto - D 3 Arpita - Jatam Pata","BOI  Tiraque1","3250880419","18-06-2021 16:08:38 UTC","Daniel Arellano","00:06:04",6,"Bolivia","Cochabamba",null,"Arbieto",3,"Jatam Pata","-17.543755316039718","-66.10801398634189","2769.087157599628","https://waterforpeople.s3.amazonaws.com/images/688006e2-4cc5-4f40-bf3f-c733078341f6.jpg",1,"Jatam Pata","Concentrada","Municipio",50,45,45,0,135,"Si","Sistema por bombeo y gravedad","","Si",null,null,2001,"Si",null,null,"No",null,null,"Si","Si",0,"No",null,"Si",0,"Si",0.53,"No",{"$nulls":6},2,10,24,"No",{"$nulls":4},"Si","Bueno","Si",{"$nulls":4},"Si","Si","Entel|Tigo","No","No","Queman|Entierran","Si","Canal 7","Si","Radio tarata","No","No","71ee56fcb5ee78afb05bcdd5bf12f8"]
["89sw-qx63-anax","Bolivia - Cochabamba - Arbieto - D 3 Arpita - Jama Chuma","BOI  Tiraque1","3222481469","13-06-2021 20:45:06 UTC","Daniel Arellano","00:16:48",6,"Bolivia","Cochabamba",null,"Arbieto",3,"Kaluyo","-17.534927186707147","-66.11758583122992","2739.8770401589572","https://waterforpeople.s3.amazonaws.com/images/8190b40b-b5ce-4319-88bf-28cc90ac3b0a.jpg",3,"Jama Chuma, Thajra y Kaluyo","Concentrada","Gobierno Nacional|Municipio|Comité de Agua",88,88,88,0,264,"Si","Sistema por bombeo y gravedad","","Si",null,null,2000,"Si",null,null,"No",null,null,"Si","Si",0,"No",null,"Si",0,"Si",1.08,"No",{"$nulls":6},2,10,24,"No",{"$nulls":4},"Si","Bueno","No",{"$nulls":4},"Si","Si","Entel|Tigo","No","Si",null,"Si","Canal 7","Si","Redio panamericana","No","No","af6abe33829265383ef445edc365c28"]
["grs9-xa10-fvj2","Bolivia - Cochabamba - Arbieto - D 3 Arpita - Mamanaca","BOI  NOE","3233310141","27-07-2021 16:09:11 UTC","Noe","00:09:42",6,"Bolivia","Cochabamba",null,"Arbieto",3,"Mamanaca","-17.58854161016643","-66.0520717408508","2759.0","https://waterforpeople.s3.amazonaws.com/images/e79dbfc9-3a05-4df1-a7ea-e01c9c927e55.jpg",1,"Mamanaca","Concentrada","Gobierno Nacional|Municipio|Comité de Agua",320,280,320,10,960,"Si","Sistema por bombeo y gravedad","","Si",null,null,2014,"Si",null,null,"No",null,null,"Si","Si",0,"No",null,"Si",0,"Si",0.81,"No",{"$nulls":6},4.5,4.4444444444444446,24,"No",{"$nulls":4},"Si","Bueno","No",{"$nulls":4},"Si","Si","Entel|Tigo","No","No","Queman|Entierran|Botan al rio, quebrada","Si","Nacionales","Si","Punata y Tarata","Si","Si","d836a54212ff4d5ff65ae5548758a81e"]
["95k1-yr0e-kcrh","Bolivia - Cochabamba - Arbieto - D 3 Arpita - Muyurina","BOI  NOE","3234940192","16-06-2021 15:28:04 UTC","Noe","00:16:49",6,"Bolivia","Cochabamba",null,"Arbieto",3,"Muyurina","-17.56418547593057","-66.09037234447896","2700.0","https://waterforpeople.s3.amazonaws.com/images/df53aa23-475f-413c-bb22-59ecd7a6f1a0.jpg",1,"Muyurina","Concentrada","Comité de Agua|Otra ONG",90,75,75,0,225,"Si","Sistema por bombeo y gravedad","","No",null,null,1993,"No","Escasez Estacional","","Si",3,1,"Si","Si",0,"No",null,"Si",0,"Si",0.48,"No",{"$nulls":6},2.5,8,12,"No",{"$nulls":4},"No","Malo","Si","Sistema de agua cumplio su vida útil, fallas en la red de distribución y tanque de almacenamiento",null,null,null,"Si","Si","Entel|Tigo","No","No","Queman|Entierran|Botan al rio, quebrada","Si","Canal 7","Si","Punata","No","No","15a273fed28873f9a45641ac5df2a43"]
["erb9-cj5e-y725","Bolivia - Cochabamba - Arbieto - D 3 Arpita - Pata Churigua","BOI  NOE","3250900198","16-06-2021 15:31:17 UTC","Noe","00:09:04",6,"Bolivia","Cochabamba",null,"Arbieto",3,"Pata Churigua","-17.61290289927274","-66.12831386737525","3340.0","https://waterforpeople.s3.amazonaws.com/images/1e36a0dd-bb60-451c-a093-9d9ab307c563.jpg",1,"Pata Churigua","Semi dispersa","Municipio|Comité de Agua|Otra ONG",84,40,40,0,120,"Si","Sistema por bombeo y gravedad","","No",null,null,2008,"No","Escasez Estacional","","Si",2,2,{"$nulls":9},"No",{"$nulls":6},0.5,40,8,"No",{"$nulls":4},"No","Malo","Si","Bajo caudal de la fuente de agua",null,null,null,"Si","Si","Entel","No","No","Queman|Entierran|Botan al rio, quebrada","No",null,"Si","Punata y Tarata","No","No","b2e7389c9bb451a4c81ce886553f5c1"]
["8sjq-5xcj-7ybe","Bolivia - Cochabamba - Arbieto - D 3 Arpita - Rayo Pampa","BOI  NOE","3238850110","16-06-2021 15:25:23 UTC","Noe","00:11:27",6,"Bolivia","Cochabamba",null,"Arbieto",3,"Rayo Pampa","-17.547753676772118","-66.1009766254574","2744.0","https://waterforpeople.s3.amazonaws.com/images/8b40a193-ac8e-4654-b4fa-0dea70982711.jpg",1,"Rayo Pampa","Concentrada","Municipio|Comité de Agua",125,93,93,0,279,"Si","Sistema por bombeo y gravedad","","Si",null,null,2000,"Si",null,null,"Si",3,1,"Si","Si",0,"No",null,"Si",0,"Si",0.57999999999999996,"No",{"$nulls":6},2,10,24,"No",{"$nulls":4},"Si","Bueno","No",{"$nulls":4},"Si","Si","Entel|Tigo","No","No","Queman|Entierran|Botan al rio, quebrada","Si","Canal 7","Si","Punata y Tarata","Si","No","2471dff7f2ffbbce2cc1cf3ca6a6615f"]
["89sw-qx63-anax","Bolivia - Cochabamba - Arbieto - D 3 Arpita - Jama Chuma","BOI  Tiraque1","3222481469","13-06-2021 20:45:06 UTC","Daniel Arellano","00:16:48",6,"Bolivia","Cochabamba",null,"Arbieto",3,"Thajra","-17.534927186707147","-66.11758583122992","2739.8770401589572","https://waterforpeople.s3.amazonaws.com/images/8190b40b-b5ce-4319-88bf-28cc90ac3b0a.jpg",3,"Jama Chuma, Thajra y Kaluyo","Concentrada","Gobierno Nacional|Municipio|Comité de Agua",42,42,42,0,126,"Si","Sistema por bombeo y gravedad","","Si",null,null,2000,"Si",null,null,"No",null,null,"Si","Si",0,"No",null,"Si",0,"Si",1.08,"No",{"$nulls":6},2,10,24,"No",{"$nulls":4},"Si","Bueno","No",{"$nulls":4},"Si","Si","Entel|Tigo","No","Si",null,"Si","Canal 7","Si","Redio panamericana","No","No","af6abe33829265383ef445edc365c28"]
["waqy-ygks-bpr5","Bolivia - Cochabamba - Arbieto - D 3 Arpita - Villa Cabot","BOI  NOE","3252780167","16-06-2021 15:23:35 UTC","Noe","00:10:32",6,"Bolivia","Cochabamba",null,"Arbieto",3,"Villa Cabot","-17.555812625214458","-66.08851868659258","2777.0","https://waterforpeople.s3.amazonaws.com/images/e53cf243-8f0c-454c-8f2f-4a7ec4bb6ed9.jpg",1,"Villa Cabot","Concentrada","Municipio|Comité de Agua|Agua Para el Pueblo",112,90,90,0,270,"Si","Sistema por bombeo y gravedad","","Si",null,null,2018,"Si",null,null,"Si",1,1,"Si","Si",0,"No",null,"Si",0,"Si",0.51,"No",{"$nulls":6},2,10,24,"No",{"$nulls":4},"Si","Bueno","No",{"$nulls":4},"Si","Si","Entel|Tigo","No","No","Queman|Entierran|Botan al rio, quebrada","Si","Canal 7","Si","Tarata","Si","Si","abc6976d1cda65b451d55d482cff654c"]
["h52w-2gqj-jw0v","Bolivia - Cochabamba - Arbieto - D 4 Llave Mayu - 20 De Octubre","BOI  NOE","3254380130","16-06-2021 19:13:28 UTC","Noe","00:27:36",6,"Bolivia","Cochabamba",null,"Arbieto",4,"15 de Enero","-17.485925406217575","-66.11168157309294","2749.0","https://waterforpeople.s3.amazonaws.com/images/1a9e5125-de1c-4955-b546-ecc8d78fcc81.jpg",1,"15 de Enero","Concentrada","Municipio|Comité de Agua",335,100,0,100,"","Si","Sistema por gravedad abastecido por cisterna","",null,"Turril abastecidos por cisterna",null,2014,"No","Sistema/Punto de agua no funciona",{"$nulls":25},5,200,1,"No","No Funciona","Si","No funciona el SAP y la Comunidad se provee de Cisterna, se separaron de 20 de Octubre",null,null,null,"Si","Si","Entel|Tigo|Viva","No","No","Queman|Entierran|Botan al rio, quebrada","Si","Nacionales","Si","Locales","Si","Si","6371f298388eda4b6924347af3547"]
["wksk-fvn8-f808","Bolivia - Cochabamba - Arbieto - D 4 Llave Mayu - 20 De Mayo","BOI  Tiraque1","3224541006","11-06-2021 23:24:53 UTC","Daniel Arellano","00:13:55",6,"Bolivia","Cochabamba",null,"Arbieto",4,"20 De Octubre",-17.49263264,-66.119584880000005,2939,"https://waterforpeople.s3.amazonaws.com/images/58d7150b-6376-46ce-a1a0-28507b64d507.jpg",1,"20 De Octubre","Concentrada","Comité de Agua",1100,600,0,600,"","Si","Sistema por gravedad abastecido por cisterna",null,null,"Turril abastecidos por cisterna","",2014,"No","Sistema/Punto de agua no funciona",{"$nulls":21},{"$f":"IF(BE91=\"\",\"\",(20/BE91))","v":""},null,null,null,5,200,1,"No","No Funciona","Si","No funciona el SAP y la Comunidad se provee de Cisterna",null,null,null,"Si","Si","Entel","No","No","Queman","Si","Bolivision, ATB, canal 7","Si","Radio panamericana","Si","Si","8d3eb5c261d4cec0822573f93d7e4a91"]
["uxew-77e7-aexk","Bolivia - Cochabamba - Arbieto - D 4 Llave Mayu - 20 De Mayo","BOI  NOE","3230980140","16-06-2021 18:32:12 UTC","Noe","00:12:17",6,"Bolivia","Cochabamba",null,"Arbieto",4,"3 de Noviembre","-17.417470780201256","-66.1522925645113","2626.0","https://waterforpeople.s3.amazonaws.com/images/acae8939-c41a-4068-90a6-da9bdf3e6fb6.jpg",1,"3 de Noviembre","Concentrada","Comité de Agua",110,45,45,0,135,"Si","Sistema por gravedad abastecido por cisterna","","No",null,null,2019,"No","Sistema/Punto de agua no funciona",{"$nulls":21},"",1,{"$nulls":5},"No","Malo","Si","Tienen un tanque de almacenamiento que se abastece de cisterna y distribuye a las familias con mangueras, se requiere fuente de agua y red de distribución",null,null,null,"Si","Si","Entel|Tigo","No","No","Queman|Entierran|Botan al rio, quebrada","Si","Nacionales","Si","Cbba","Si","Si","60c2b57b33a6669574697014ea8b9ff"]
["pw7c-3kw1-4j4b","Bolivia - Cochabamba - Arbieto - D 5 Angostura - Las Lomas","BOI  Tiraque1","3224541988","13-06-2021 22:20:38 UTC","Daniel Arellano","00:12:08",6,"Bolivia","Cochabamba",null,"Arbieto",4,"Las Lomas","-17.50158444627765","-66.09048959754979","2763.5853179208934","https://waterforpeople.s3.amazonaws.com/images/73e2fcb8-3039-4318-a840-c41428ab1e7b.jpg",1,"Las Lomas","Concentrada","Municipio|Comité de Agua|Agua Para el Pueblo",100,31,31,0,93,"Si","Sistema por gravedad abastecido por cisterna",null,null,"",null,2017,"Si",null,null,"Si",2,2,{"$nulls":16},2.34,8.5470085470085468,24,"No",{"$nulls":4},"Si","Malo","Si","Fuga de agua en la red debido a la topografía de la zona",null,null,null,"Si","Si","Entel|Tigo","Si","No","Queman|Entierran","Si","Unitel","Si","Centro","No","No","c93af49a26e0b9f3ca73f152c96f67"]
["bvxg-xmd9-ht9k","Bolivia - Cochabamba - Arbieto - D 4 Llave Mayu - 20 De Mayo","BOI  NOE","3220900084","16-06-2021 18:22:49 UTC","Noe","00:11:40",6,"Bolivia","Cochabamba",null,"Arbieto",4,"Libertador","-17.489139530807734","-66.1103626806289","2786.0","https://waterforpeople.s3.amazonaws.com/images/6c329362-6461-49bc-9f4b-c0ada780c850.jpg",1,"Libertador","Concentrada","Municipio",146,45,0,45,"","No",null,null,null,"Turril abastecidos por cisterna","",{"$nulls":24},"",null,null,null,2,200,2,{"$nulls":4},"No",null,"Gestionar y buscar financiamiento","Si","Si","Entel|Tigo","No","No","Queman|Entierran|Botan al rio, quebrada","Si","Nacionales","Si","Nacionales","No","No","159b68bb77743965ce33d7c370ed3d"]
["kq9u-ypcv-pkrc","Bolivia - Cochabamba - Arbieto - D 4 Llave Mayu - 20 De Mayo","BOI  NOE","3238840191","16-06-2021 18:59:43 UTC","Noe","00:13:04",6,"Bolivia","Cochabamba",null,"Arbieto",4,"Llave Mayu Central","-17.48471459839493","-66.09516318887472","2618.0","https://waterforpeople.s3.amazonaws.com/images/d7b110b6-4988-4231-aa91-64ad271e5803.jpg",1,"Llave Mayu Central","Concentrada","Gobierno Nacional|Comité de Agua",250,250,150,100,450,"Si","Sistema por bombeo y gravedad","","No",null,null,2020,"No",null,"No tiene red de distribución","No",{"$nulls":11},"No",{"$nulls":6},2.5,8,12,"No",{"$nulls":4},"No","Malo","Si","Tanque gestionado UGR, pozo perforado por las familias a credito, se requiere red de distribución y micromedición",null,null,null,"Si","Si","Entel|Tigo","No","No","Queman|Entierran|Botan al rio, quebrada","Si","Nacionales","Si","Locales","Si","Si","f87e11101a4648a74b312719ba6181d1"]
["4c12-qxsy-u4qf","Bolivia - Cochabamba - Arbieto - D 4 Llave Mayu - San Salvador","BOI  NOE","3232690107","16-06-2021 17:27:25 UTC","Noe","00:38:48",6,"Bolivia","Cochabamba",null,"Arbieto",4,"Llave Mayu II","-17.497353586368263","-66.12228912301362","2995.0","https://waterforpeople.s3.amazonaws.com/images/cf03ac4a-1b16-47af-bedb-2db698e820b9.jpg",1,"Llave Mayu II","Concentrada","Municipio",50,15,0,15,"","No",null,null,null,"Turril abastecidos por cisterna","",{"$nulls":24},"",null,null,null,3,200,2,{"$nulls":4},"No",null,"Gestionar proyecto y buscar financiamiento","Si","Si","Entel|Tigo","No","No","Queman|Entierran|Botan al rio, quebrada","Si","Locales y nacionales","Si","Locales y Nacionales","No","Si","371941c1e05e71cbd9c2a65de1f8dce"]
["bjm0-j3ku-te0m","Bolivia - Cochabamba - Arbieto - D 4 Llave Mayu - Primero De Abril","BOI  NOE","3222510206","16-06-2021 20:17:41 UTC","Noe","00:08:22",6,"Bolivia","Cochabamba",null,"Arbieto",4,"Primero De Abril","-17.480231621302664","-66.0927916970104","2877.0","https://waterforpeople.s3.amazonaws.com/images/62911d5a-c1f6-46e9-9f1e-0392923e17a0.jpg",1,"Primero De Abril","Concentrada","Municipio|Comité de Agua",45,31,0,31,"","Si","Sistema por gravedad abastecido por cisterna","","No",null,null,2020,"No","Sistema/Punto de agua no funciona","","No",{"$nulls":11},"No",{"$nulls":7},"",0,"No",{"$nulls":4},"No","No Funciona","Si","Falta fuente de agua",null,null,null,"Si","Si","Entel|Tigo","No","No","Queman|Entierran|Botan al rio, quebrada","Si","Nacionales","Si","Locales","Si","Si","0da97d7e8a0992ea3da8ddb574a897"]
["bkvk-av2e-wa9s","Bolivia - Cochabamba - Arbieto - D 4 Llave Mayu - Puente Capriles","BOI  Tiraque1","3250930117","18-06-2021 17:00:29 UTC","Daniel Arellano","00:20:28",6,"Bolivia","Cochabamba",null,"Arbieto",4,"Puente Capriles","-17.48871109255888","-66.10416614614905","2727.9149095518515","https://waterforpeople.s3.amazonaws.com/images/0cbcc5d6-a34b-442e-8d78-b082410024e6.jpg",1,"Puente Capriles","Concentrada","Municipio|Otra ONG",100,70,0,70,"","Si","Sistema por bombeo y gravedad","","No",null,null,2021,"No",null,"Esta en proceso de construcción, ya usan el pozo","No",{"$nulls":11},"No",{"$nulls":6},2.5,8,24,"No",{"$nulls":4},"No","No Funciona","Si","SAP en proceso de construcción, la comunidad ya habilitó el pozo y distribuyen de forma temporal con mangueras",null,null,null,"Si","Si","Entel","Si","No","Queman|Entierran","Si","Bilivision","Si","Radio centro, panamericana.","No","Si","29e544c82a2a99b57c2ae5bcaaeb31b4"]
["42b7-dbsn-tsd3","Bolivia - Cochabamba - Arbieto - D 4 Llave Mayu - Puerta Del Sol","BOI  NOE","3242770165","16-06-2021 15:42:04 UTC","Noe","00:07:15",6,"Bolivia","Cochabamba",null,"Arbieto",4,"Puerta Del Sol","-17.48431243468076","-66.1140317749232","2851.0","https://waterforpeople.s3.amazonaws.com/images/68b94fbc-ec63-4cfb-8fbe-391070b3482c.jpg",1,"Puerta Del Sol","Concentrada","Comité de Agua",103,64,64,0,192,"Si","Sistema por gravedad abastecido por cisterna","","No",null,null,2013,"Si",null,null,"Si",3,2,{"$nulls":9},"No",{"$nulls":6},2,10,12,"No",{"$nulls":4},"No","Malo","Si","Filtraciones y fisuras en el tanque de almacenamiento",null,null,null,"Si","Si","Entel|Tigo","No","No","Queman|Entierran|Botan al rio, quebrada","Si","Nacional","Si","Locales","Si","Si","dcb36eaeb71ab25a7627e2b5d171df8e"]
["3616-n0nf-5q7t","Bolivia - Cochabamba - Arbieto - D 4 Llave Mayu - 20 De Mayo","BOI  NOE","3254380113","16-06-2021 18:25:30 UTC","Noe","00:21:41",6,"Bolivia","Cochabamba",null,"Arbieto",4,"San Francisco","-17.49010659288615","-66.10805153846741","2747.0","https://waterforpeople.s3.amazonaws.com/images/a116903c-b2b4-4549-88b7-73e8c66fc23b.jpg",1,"San Francisco","Concentrada","Municipio",220,80,0,80,"","No",null,null,null,"Turril abastecidos por cisterna","",{"$nulls":24},"",null,null,null,3,200,3,{"$nulls":4},"No",null,"Gestionar y buscar financiamiento","Si","Si","Entel|Tigo","Si","No","Queman|Entierran|Botan al rio, quebrada","Si","Nacionales","Si","Nacionales","No","No","09112bba9cbc7b086c772597787c4d4"]
["852q-1g22-y1y6","Bolivia - Cochabamba - Arbieto - D 4 Llave Mayu - San Salvador","BOI  NOE","3234970176","16-06-2021 15:52:24 UTC","Noe","00:06:06",6,"Bolivia","Cochabamba",null,"Arbieto",4,"San Salvador","-17.417530207894742","-66.1522925645113","2568.0","https://waterforpeople.s3.amazonaws.com/images/49ddfa65-a840-4141-a6c6-45955656723a.jpg",1,"San Salvador","Concentrada","Iglesia",705,410,0,410,"","No",null,null,null,"Turril abastecidos por cisterna","",{"$nulls":24},"",null,null,null,3,200,2,{"$nulls":4},"Si","Tenemos 2 tanques de almacenamiento construidos por la Iglesia, se requiere fuente de agua y red de distribución","Gestionar y buscar financiemiento para implementar red distribución","Si","Si","Entel|Tigo","No","No","Queman|Entierran|Botan al rio, quebrada","Si","Nacionales","Si","Locales","Si","Si","59ebff32621ae1b95b2940d3af8db160"]
["2yht-crf2-nepk","Bolivia - Cochabamba - Arbieto - D 4 Llave Mayu - Santa Rosa De Lima","BOI  NOE","3242790168","16-06-2021 17:30:24 UTC","Noe","00:09:29",6,"Bolivia","Cochabamba",null,"Arbieto",4,"Santa Rosa De Lima","-17.496324037201703","-66.1153098475188","2944.0","https://waterforpeople.s3.amazonaws.com/images/a9c3e1b1-cd60-4cf7-a487-13eb3ecf4c83.jpg",1,"Santa Rosa De Lima","Concentrada","Comité de Agua",1100,800,200,600,600,"Si","Sistema por bombeo y gravedad","","No",null,null,2019,"No","Sistema/Punto de agua no funciona",null,"Si",10,10,{"$nulls":9},"No",{"$nulls":7},"",0,"No",{"$nulls":4},"No","No funciona, bajo caudal del pozo","Si","No hay suficiente agua en el pozo, por tal situación esta paralizado el SAP. La comunidad actualmente se provee de cisterna",null,null,null,"Si","Si","Entel|Tigo","No","No","Queman|Entierran|Botan al rio, quebrada","Si","Nacionales","Si","Locales","Si","Si","b59e75c3e81dc99b3176b25397cec1c2"]
["m7r2-vxs3-b9n9","Bolivia - Cochabamba - Arbieto - D 4 Llave Mayu - Uspa - Uspa","BOI  NOE","3250900237","16-06-2021 18:54:07 UTC","Noe","00:06:28",6,"Bolivia","Cochabamba",null,"Arbieto",4,"Uspa - Uspa","-17.481377008371055","-66.11183244735003","2629.0","https://waterforpeople.s3.amazonaws.com/images/2c8302a9-2f29-4adf-963c-4fc63178c46b.jpg",1,"Uspa - Uspa","Concentrada","Municipio|Comité de Agua",23,23,23,0,69,"Si","Sistema por bombeo y gravedad","","Si",null,null,2014,"Si",null,null,"No",{"$nulls":11},"No",{"$nulls":6},0.5,40,24,"No",{"$nulls":4},"Si","Bueno","Si","El agua tiene un color amarillento y necesitan tratamiento del agua",null,null,null,"Si","Si","Entel|Tigo|Viva","No","No","Queman|Entierran|Botan al rio, quebrada","Si","Nacionales","Si","Locales","Si","Si","8356da555851e9d164a85e8bb96dda"]
["7j9m-b2hc-k41v","Bolivia - Cochabamba - Arbieto - D 4 Llave Mayu - Villa Montes","BOI  NOE","3240630172","16-06-2021 15:35:12 UTC","Noe","00:07:18",6,"Bolivia","Cochabamba",null,"Arbieto",4,"Villa Montes","-17.48658694792539","-66.10809914767742","2751.0","https://waterforpeople.s3.amazonaws.com/images/d25aaf63-139f-43ff-ac67-88e87b3fb52d.jpg",1,"Villa Montes","Concentrada","Municipio|Comité de Agua|Otra ONG",139,131,126,5,378,"Si","Sistema por bombeo y gravedad","","Si",null,null,2015,"Si",null,null,"No",null,null,"Si","Si",0,"No",null,"Si",0,"Si",11.3,"No",{"$nulls":6},1.5,13.333333333333334,24,"No",{"$nulls":4},"Si","Bueno","No",{"$nulls":4},"Si","Si","Entel|Tigo","Si","No","Queman|Entierran|Botan al rio, quebrada","Si","Nacionales","Si","Locales","No","No","0fb6c3ad5d0732c8fdc8e5e1f453e2"]
["qgj2-s76m-wp81","Bolivia - Cochabamba - Arbieto - D 4 Llave Mayu - Yuraj Jallpa","BOI  NOE","3232670149","16-06-2021 15:46:41 UTC","Noe","00:06:02",6,"Bolivia","Cochabamba",null,"Arbieto",4,"Yuraj Jallpa","-17.417407748289406","-66.15228468552232","2627.0","https://waterforpeople.s3.amazonaws.com/images/6231d127-7bef-4ec0-ae13-59c2ad10ac75.jpg",1,"Yuraj Jallpa","Concentrada","Municipio|Comité de Agua|Otra ONG",103,55,45,10,135,"Si","Sistema por gravedad abastecido por cisterna","","Si",null,null,2015,"Si","","Cargamos con cisterna","Si",3,2,"Si","Si",0,"No",null,"Si",0,"Si",2.57,"No",{"$nulls":6},1.5,13.333333333333334,12,"No",{"$nulls":4},"No","Bueno","Si","Se requiere FI para fortalecer las capacidades del CAPYS",null,null,null,"Si","Si","Entel|Tigo","No","No","Queman|Entierran|Botan al rio, quebrada","Si","Nacionales","Si","Locales","Si","Si","da16bf60fe8cd5e96bbd421dd8a495d1"]
["4sv7-xx17-ve3k","Bolivia - Cochabamba - Arbieto - D 5 Angostura - Angostura","BOI  Tiraque1","3262470114","13-08-2021 13:52:54 UTC","Daniel Arellano","00:26:15",6,"Bolivia","Cochabamba",null,"Arbieto",5,"Angostura","-17.3935274","-66.1688459","0.0","https://waterforpeople.s3.amazonaws.com/images/50fa70f4-776c-43a3-aa71-1478e1c9660f.jpg",1,"Angostura","Concentrada","Municipio|Otra ONG",600,500,500,0,1500,"Si","Sistema por bombeo y gravedad","","Si",null,null,2002,"Si",null,null,"No",{"$nulls":11},"No",{"$nulls":6},0.5,40,24,"No",{"$nulls":4},"Si","Bueno","No",{"$nulls":4},"Si","Si","Entel|Tigo","Si","No","Queman|Entierran","Si","Canal 7, ATB","Si","Radio municipal, FM","No","Si","79aa45be8d3a489f6431d7342acaf"]
["2jyj-ge8u-qvac","Bolivia - Cochabamba - Arbieto - D 5 Angostura - Canelas","BOI  Tiraque1","3238771634","13-06-2021 21:19:06 UTC","Daniel Arellano","00:07:23",6,"Bolivia","Cochabamba",null,"Arbieto",5,"Canelas","-17.490275077145906","-66.07860589781527","2827.7178578935564","https://waterforpeople.s3.amazonaws.com/images/a823717d-6dfc-4a3b-8233-4361519759e2.jpg",1,"Canelas","Semi dispersa","Municipio",170,100,85,15,255,"Si","Sistema por gravedad","","Si",null,null,2013,"Si",null,null,"No",{"$nulls":11},"No",{"$nulls":6},0.3,66.666666666666671,24,"No",{"$nulls":4},"Si","Bueno","Si","Hay familias alejadas que no estan conectadas al SAP",null,null,null,"Si","Si","Entel|Tigo","No","No","Queman|Entierran","Si","Atb, Bolivision","Si","Panamericana","No","No","a03915bbf9915d7722acec1e2cb1"]
["2ktb-uvdb-12au","Bolivia - Cochabamba - Arbieto - D 5 Angostura - Olimpio","BOI  Tiraque1","3234851499","13-06-2021 21:21:47 UTC","Daniel Arellano","00:06:42",6,"Bolivia","Cochabamba",null,"Arbieto",5,"Olimpio","-17.501856337042923","-66.08302321524543","0.0","https://waterforpeople.s3.amazonaws.com/images/9a6f9f82-0afa-4a1a-bbed-7db02d430cea.jpg",1,"Olimpio","Concentrada","Municipio|Comité de Agua|Agua Para el Pueblo|Otra ONG",280,50,0,50,"","No",null,null,null,"Turril abastecidos por cisterna","",{"$nulls":24},"",null,null,null,2,200,2,{"$nulls":4},"Si","En proceso","Gestionar","Si","Si","Entel","No","No","Queman|Botan al rio, quebrada","Si","Bolivia Tv Unitel","Si","Cercado Cbba","No","No","557865121d3d29cc8bb1a159d77a517"]
["9k6m-4nhj-qg07","Bolivia - Cochabamba - Arbieto - D 5 Angostura - Thoco Loma","BOI  NOE","3249660064","10-08-2021 14:26:38 UTC","Noe","00:08:49",6,"Bolivia","Cochabamba",null,"Arbieto",5,"Thoco Loma","-17.509997519664466","-66.08516693115234","2763.0","https://waterforpeople.s3.amazonaws.com/images/0c6477bd-bf28-4078-be11-ab79ce5e3ef4.jpg",1,"Thoco Loma","Concentrada","Gobierno Nacional|Municipio",105,80,80,8,240,"Si","Sistema por gravedad","","No",null,null,1995,"Si",null,null,"Si",5,2,{"$nulls":9},"No",{"$nulls":6},0.22,90.909090909090907,8,"No",{"$nulls":4},"No","Malo","Si","Bajo caudal de agua de la vertiente y escaces de agua",null,null,null,"Si","Si","Entel","No","No","Queman|Entierran","Si","Tv Bolivia","Si","Locales","No","Si","7b724f7c8de558a8bf66e3df7474f7e1"]
["wksk-fvn8-f808","Bolivia - Cochabamba - Arbieto - D 4 Llave Mayu - 20 De Mayo","BOI  Tiraque1","3224541006","11-06-2021 23:24:53 UTC","Daniel Arellano","00:13:55",6,"Bolivia","Cochabamba",null,"Arbieto",6,"20 De Mayo","-17.48184354014172","-66.09458914029358","2833.48779296875","https://waterforpeople.s3.amazonaws.com/images/6cc43a19-c31e-4f8d-a3b2-739a9f4a4097.jpg",1,"20 De Mayo","Concentrada","Comité de Agua",74,35,0,35,"","Si","Sistema por gravedad",null,null,"Turril abastecidos por cisterna","",2010,"No","El SAP no funciona, no tiene fuente de agua ",{"$nulls":21},"",null,null,null,5,200,200,"No","No Funciona",null,null,"No",null,"Hacer perforar pozo de agua, cambiar la red de distribución. Tiene un tanque de agua superficial","Si","Si","Entel","No","No","Queman","Si","Bolivision, ATB, canal 7","Si","Radio panamericana","Si","No","8d3eb5c261d4cec0822573f93d7e4a91"]
["1w5s-tum9-ksyw","Bolivia - Cochabamba - Arbieto - D 4 Llave Mayu - Algarrobos","BOI  Tiraque1","3234850722","11-06-2021 22:55:24 UTC","Daniel Arellano","00:06:52",6,"Bolivia","Cochabamba",null,"Arbieto",6,"Algarrobos","-17.476764435162636","-66.09670504659623","0.0","https://waterforpeople.s3.amazonaws.com/images/5e77a673-f8c7-4149-a4db-1f7567a0e777.jpg",1,"Algarrobos","Concentrada","Municipio",96,70,65,5,195,"Si","Sistema por bombeo y gravedad","","Si",null,null,2015,"Si",null,null,"No",null,null,"Si","Si",0,"No",null,"Si",0,"Si",2.29,"No",{"$nulls":6},1,20,24,"No",{"$nulls":4},"Si","Bueno","No",{"$nulls":4},"Si","Si","Entel|Tigo","Si","Si",null,"Si","ATB, Bolivision","Si","Radio centro","No","No","6145af77c7cf1ac394305befb6b1c9c6"]
["7uej-c1r5-6p2d","Bolivia - Cochabamba - Arbieto - D 4 Llave Mayu - Alto Litoral","BOI  Tiraque1","3230900932","12-06-2021 00:29:18 UTC","Daniel Arellano","00:14:24",6,"Bolivia","Cochabamba",null,"Arbieto",6,"Alto Litoral","-17.476544419435776","-66.09045631885844","2836.397053464316","https://waterforpeople.s3.amazonaws.com/images/e3f13dae-d455-43fc-b9d4-20d38a357564.jpg",1,"Alto Litoral","Concentrada","Gobierno Nacional|Municipio",85,80,80,0,240,"Si","Sistema por bombeo y gravedad","","Si",null,null,2016,"Si",null,null,"No",{"$nulls":11},"No",{"$nulls":6},0.2,100,4,"No",{"$nulls":4},"No","Bueno","Si","Disminucion del caudal del pozo",null,null,null,"Si","Si","Entel|Tigo","No","No","Queman","Si","Bolivision","Si","FM","No","No","f9e1e4625fe9e625375957da7a74dfd"]
["34ub-hy0h-gyx8","Bolivia - Cochabamba - Arbieto - D 4 Llave Mayu - Llave Mayu I","BOI  NOE","3222510133","16-06-2021 18:52:19 UTC","Noe","00:20:29",6,"Bolivia","Cochabamba",null,"Arbieto",6,"Alto Llave Mayu","-17.462662649340928","-66.08031498268247","3093.0","https://waterforpeople.s3.amazonaws.com/images/2fecfb0b-c8c2-4f3e-87c5-0b74df8569ee.jpg",1,"Alto Llave Mayu","Concentrada","Municipio",180,10,0,10,"","No",null,null,null,"Turril abastecidos por cisterna","",{"$nulls":24},"",null,null,null,2,200,2,{"$nulls":4},"No",null,"Gestionar y buscar financiamiento","No","Si","Entel|Tigo","No","No","Queman|Entierran|Botan al rio, quebrada","No",null,"Si","Causachun Coca","No","No","d2504c152db245f944cbe6e66dcec5b"]
["k86s-2y0g-2672","Bolivia - Cochabamba - Arbieto - D 4 Llave Mayu - Campos Los Andes","BOI  Tiraque1","3236460914","12-06-2021 01:56:22 UTC","Daniel Arellano","00:25:21",6,"Bolivia","Cochabamba",null,"Arbieto",6,"Campos Los Andes","-17.46944998415469","-66.0877366214596","2916.587826348841","https://waterforpeople.s3.amazonaws.com/images/c43b1499-f8ef-4a2e-a0c8-1e6c14537abb.jpg",1,"Campos Los Andes","Concentrada","Municipio|Comité de Agua",94,38,38,0,114,"Si","Sistema por gravedad abastecido por cisterna","","No",null,null,2019,"Si",null,null,"No",{"$nulls":11},"No",{"$nulls":6},0.5,40,24,"No",{"$nulls":4},"Si","Bueno","Si","La OTB no cuenta con fuente de agua, se provicionan por carro cisterna.",null,null,null,"Si","Si","Entel|Tigo","No","No","Queman","Si","ATB, canal7","Si","Panamericana, centro","No","No","a9893391a0ceebb8aec6507871e35830"]
["sr2q-11xt-bctj","Bolivia - Cochabamba - Arbieto - D 4 Llave Mayu - Cristal Mayu","BOI  NOE","3238830233","16-06-2021 18:07:56 UTC","Noe","00:11:50",6,"Bolivia","Cochabamba",null,"Arbieto",6,"Cristal Mayu","-17.472490053623915","-66.08091864734888","2860.0","https://waterforpeople.s3.amazonaws.com/images/4fd9023a-be7c-4877-998c-00e303f09849.jpg",1,"Cristal Mayu","Concentrada","Municipio|Comité de Agua|Otra ONG",200,170,150,20,450,"Si","Sistema por bombeo y gravedad","","Si",null,null,2020,"Si",null,null,"Si",3,2,{"$nulls":9},"No",{"$nulls":6},1,20,24,"No",{"$nulls":4},"Si","Bueno","Si","Tengo problemas en la conexión de energia con ELFEC, ya que el tramite esta paralizado",null,null,null,"Si","Si","Entel|Tigo","No","No","Queman|Entierran|Botan al rio, quebrada","Si","locales","Si","Locales","No","No","354645679e756389abfc9a012cd29d1"]
["s0sm-5m5b-5gas","Bolivia - Cochabamba - Arbieto - D 4 Llave Mayu - Florida","BOI  Tiraque1","3224540651","11-06-2021 21:59:16 UTC","Daniel Arellano","00:14:22",6,"Bolivia","Cochabamba",null,"Arbieto",6,"Florida","-17.48341765792474","-66.09529538956002","0.0","https://waterforpeople.s3.amazonaws.com/images/ed879caf-7390-4a2c-bf77-dc66b660b7e7.jpg",1,"Florida","Concentrada","Municipio",140,90,80,10,240,"Si","Sistema por bombeo y gravedad","","Si",null,null,2016,"Si",null,null,"No",{"$nulls":11},"No",{"$nulls":6},2,10,24,"No",{"$nulls":4},"No","Bueno","Si","Reventon en la red",null,null,null,"Si","Si","Entel|Tigo","Si","No","Queman","Si","Bolivision","Si","Centro","No","No","cb90ff49e3fabbf6f833c6fe6be8810"]
["49rd-jy1b-8bjq","Bolivia - Cochabamba - Arbieto - D 4 Llave Mayu - Fortaleza","BOI  NOE","3248690248","16-06-2021 20:53:26 UTC","Noe","00:15:19",6,"Bolivia","Cochabamba",null,"Arbieto",6,"Fortaleza","-17.48709535226226","-66.09098288230598","2647.0","https://waterforpeople.s3.amazonaws.com/images/583d90f6-8f8f-4ca4-8606-51629ee7874e.jpg",1,"Fortaleza","Concentrada","Municipio|Comité de Agua",120,80,80,0,240,"Si","Sistema por bombeo y gravedad","","Si",null,null,2014,"Si",null,null,"No",{"$nulls":11},"No",{"$nulls":6},1.8,11.111111111111111,24,"No",{"$nulls":4},"Si","Bueno","Si","Requieren calibrar los medidores domiciliarios",null,null,null,"Si","Si","Entel|Tigo","No","No","Queman|Entierran|Botan al rio, quebrada","Si","Nacionales","Si","Locales","Si","Si","cb397387df0a8b46367ce9c6b1ab0b6"]
["fdr7-wqyq-3v2g","Bolivia - Cochabamba - Arbieto - D 4 Llave Mayu - Llave Mayu I","BOI  NOE","3228770107","16-06-2021 18:01:00 UTC","Noe","00:19:13",6,"Bolivia","Cochabamba",null,"Arbieto",6,"Llave Mayu","-17.480257689021528","-66.0905849095434","2736.0","https://waterforpeople.s3.amazonaws.com/images/96decbda-8b47-4068-91b1-8e2f8dcac799.jpg",1,"Llave Mayu","Concentrada","Municipio|Comité de Agua|Otra ONG",180,80,80,0,240,"Si","Sistema por bombeo y gravedad","","Si",null,null,2020,"Si",null,null,"No",{"$nulls":11},"No",{"$nulls":6},1,20,12,"No",{"$nulls":4},"No","Bueno","Si","Bajo caudal de la fuente",null,null,null,"Si","Si","Entel|Tigo|Viva","No","No","Queman|Entierran|Botan al rio, quebrada","Si","Nacionales","Si","Locales","No","No","44cfd0a2ee04c25e534941e3477ec"]
["b4qe-4prn-rpjf","Bolivia - Cochabamba - Arbieto - D 4 Llave Mayu - Llave Mayu I","BOI  NOE","3240630182","16-06-2021 18:14:20 UTC","Noe","00:08:56",6,"Bolivia","Cochabamba",null,"Arbieto",6,"Llave Mayu I","-17.468527341261506","-66.08301672153175","2975.0","https://waterforpeople.s3.amazonaws.com/images/59a44b2c-a471-4ab1-a938-e45a39ef1177.jpg",1,"Llave Mayu I","Concentrada","Municipio",200,15,0,15,"","No",null,null,null,"Turril abastecidos por cisterna","",{"$nulls":24},"",null,null,null,2,200,2,{"$nulls":4},"No",null,"Buscar una obra de toma y financiamiento para construcción de tanque de Almacenamiento","Si","Si","Entel|Tigo","No","No","Queman|Entierran|Botan al rio, quebrada","Si","Cbba","Si","Cbba","No","No","6688d95991e6173eedad51f966a857"]
["0yg9-xynp-vu87","Bolivia - Cochabamba - Arbieto - D 4 Llave Mayu - Llave Mayu I","BOI  NOE","3256360111","16-06-2021 18:18:11 UTC","Noe","00:10:31",6,"Bolivia","Cochabamba",null,"Arbieto_",6,"Molle Pampa Alto","-17.45837870053947","-66.07835001312196","3145.0","https://waterforpeople.s3.amazonaws.com/images/fd5a5c9d-ce74-4fcb-98cf-41d5dcc30cbb.jpg",1,"Molle Pampa Alto","Concentrada","Municipio",220,6,0,6,"","No",null,null,null,"Turril abastecidos por cisterna","",{"$nulls":24},"",null,null,null,2,200,200,null,null,null,"No tiene Personería Jurídica","Si","Perforación de pozo profundo en proceso","Gestionar y buscar financiamiento","No","Si","Entel","No","No","Queman|Entierran|Botan al rio, quebrada","No",null,"Si","Causachun Coca","No","No","956c32b98e4b929b650f6e894cea1c"]
["bj2d-fqka-qa4e","Bolivia - Cochabamba - Arbieto - D 4 Llave Mayu - Nueva Esperanza","BOI  Tiraque1","3235030200","21-06-2021 23:28:03 UTC","Daniel Arellano","00:28:26",6,"Bolivia","Cochabamba",null,"Arbieto",6,"Nueva Esperanza","-17.479479705438774","-66.09217930240374","2869.3162532011047","https://waterforpeople.s3.amazonaws.com/images/7e05c92b-7f45-4e0a-b385-4a027e43e666.jpg",1,"Nueva Esperanza","Concentrada","Comité de Agua",100,70,0,70,"","Si","Sistema por gravedad abastecido por cisterna",null,"No","Turril abastecidos por cisterna","",2019,"No","Conflicto con Campo Los Andes",{"$nulls":21},"",null,null,null,1,200,200,null,null,null,"Conflicto con Campo Los Andes","No",null,"Priorizar en el POA la construccion SAP","Si","Si","Entel|Tigo","No","No","Queman","Si","Canal 7, nolivision y ATB","Si","Radio panamericana","No","No","a470cdc21222b2dbd6b73f40ab178112"]
["8vnv-efee-wh2p","Bolivia - Cochabamba - Arbieto - D 4 Llave Mayu - San Carlos","BOI  Tiraque1","3234871718","13-06-2021 15:45:02 UTC","Daniel Arellano","00:22:50",6,"Bolivia","Cochabamba",null,"Arbieto",6,"San Carlos","-17.46908310780811","-66.08783010808676","0.0","https://waterforpeople.s3.amazonaws.com/images/762559b1-25de-48e1-9edc-1311b9da3f04.jpg",1,"San Carlos","Concentrada","Comité de Agua",600,240,0,240,"","Si","Sistema por bombeo y gravedad","","Si",null,null,2012,"No",{"$nulls":22},"",null,"No",{"$nulls":4},"No","No Funciona","Si","El pozo se ha secado ya no funcionana SAP.",null,null,null,"Si","Si","Entel|Tigo","No","No","Queman","Si","Canal 7, Bolivision","Si","Redio centro","No","No","88597d8199bdae871815196c15439b7c"]
["pm7j-rhn0-ea8p","Bolivia - Cochabamba - Arbieto - D 4 Llave Mayu - Campos Los Andes","BOI  Tiraque1","3244450723","12-06-2021 02:17:54 UTC","Daniel Arellano","00:32:15",6,"Bolivia","Cochabamba",null,"Arbieto_",6,"Sola Mayu","-17.47483681926995","-66.08719172987286","2825.8711922299117","https://waterforpeople.s3.amazonaws.com/images/3766d538-3cca-4fd1-a013-07dc473ddfb6.jpg",1,"Sola Mayu","Concentrada","Comité de Agua",120,100,0,100,"","No",null,null,null,"Turril abastecidos por cisterna","",{"$nulls":24},{"$f":"IF(BE123=\"\",\"\",(20/BE123))","v":""},null,null,null,10,200,20,null,null,null,"No tiene Personería Jurídica","No",null,"Elaboracion proyecto de perforacion de pozo de agua.","Si","Si","Entel|Tigo","No","No","Queman","Si","Biolivision","Si","Panamericana","No","No","17df7ff3aef64b6d54bc932d3cd0c1"]
["vf0w-6wxk-uerg","Bolivia - Cochabamba - Arbieto - D 4 Llave Mayu - Villa Esperanza","BOI  Tiraque1","3234850565","11-06-2021 22:16:47 UTC","Daniel Arellano","00:13:18",6,"Bolivia","Cochabamba",null,"Arbieto",6,"Villa Esperanza","-17.479622556966742","-66.09510326093195","0.0","https://waterforpeople.s3.amazonaws.com/images/969e967d-5711-4cd7-841c-85ca70695ccd.jpg",1,"Villa Esperanza","Concentrada","Municipio|Comité de Agua",130,80,60,20,180,"Si","Sistema por bombeo y gravedad","","Si",null,null,2018,"No","Bajo caudal de agua","","No",{"$nulls":11},"No",{"$nulls":6},1.2,16.666666666666668,2,"No",{"$nulls":4},"No","Bueno","Si","El caudal a disminuido",null,null,null,"Si","Si","Entel|Tigo","Si","No","Queman","Si","Canal 7","Si","Panamericana, centro.","No","Si","a6ce8bd920602025e8a4e35d6ae56"]
["nyft-euxq-13qu","Bolivia - Cochabamba - Arbieto - D 4 Llave Mayu - Llave Mayu I","BOI  NOE","3238850125","16-06-2021 18:06:32 UTC","Noe","00:12:37",6,"Bolivia","Cochabamba",null,"Arbieto",6,"Villa Nueva","-17.477238778956234","-66.08892562799156","2885.0","https://waterforpeople.s3.amazonaws.com/images/cc3523ec-8817-4088-9a07-0006221b6c24.jpg",1,"Villa Nueva","Concentrada","Comité de Agua",200,65,0,65,"","No",null,null,null,"Turril abastecidos por cisterna","",{"$nulls":24},"",null,null,null,3,200,3,{"$nulls":4},"Si","Perforación de Pozo y Red","Gestionar y buscar financiamiento","Si","Si","Entel|Viva","No","No","Queman|Entierran|Botan al rio, quebrada","Si","Nacionales","Si","Locales","No","No","5a77b92a132238fe35d7d2ee2438e5e"]
["c7bf-85sv-26vd","Bolivia - Cochabamba - Arbieto - D 4 Llave Mayu - Llave Mayu I","BOI  NOE","3232680224","16-06-2021 19:03:04 UTC","Noe","00:21:20",6,"Bolivia","Cochabamba",null,"Arbieto_",6,"Villa Porvenir","-17.47099170461297","-66.08439051546156","2877.0","https://waterforpeople.s3.amazonaws.com/images/6780bf84-71ba-46f8-9e30-ee1e98dba1c1.jpg",1,"Villa Porvenir","Concentrada","Municipio|Comité de Agua",200,18,0,18,"","No",null,null,null,"Turril abastecidos por cisterna","",{"$nulls":24},"",null,null,null,2,200,2,null,null,null,"No tiene Personería Jurídica","No",null,"Gestionar y solicitar agua a la Comunidad Cristal Mayo ya que ellos tienen un pozo profundo","Si","Si","Entel|Tigo","No","No","Queman|Entierran|Botan al rio, quebrada","No",null,"Si","Locales","No","No","8dcf8075b0ffd95231df37912fdba22"]
["s0yg-qd19-yud6","Bolivia - Cochabamba - Pocona - Chaquely - Chaquely","BOI-GALAXIJ5-02","3230920994","10-06-2021 13:51:27 UTC","10-06-2021 13:51:27 UTC","00:04:37",1,"Bolivia","Cochabamba",null,"Pocona","Chaquely","Chaquely","-17.73602942","-65.40532247","2637.0","https://waterforpeople.s3.amazonaws.com/images/6b419bde-29e0-4f21-b28c-4c3d57035567.jpg",1,"Chaquely","Dispersa","Municipio|Otra ONG",18,18,18,0,54,"Si","Sistema por gravedad","","No",null,null,2015,"Si",null,null,"No",null,null,"Si - se realizaron pruebas hoy","No",null,"Si","Presencia","No",null,"Si",2.2000000000000002,"No",{"$nulls":6},0.3,66.666666666666671,24,"No",{"$nulls":4},"Si","Bueno","Si","Cañeria negra para conexion de grifos",null,null,null,"Si","Si","Entel","Si","No","Botan al rio, quebrada","No",null,"No",null,"No","No","50c7d6942e22b4b531e2ef018167b34"]
["3k9s-avbn-8wtt","Bolivia - Cochabamba - Pocona - Chaquely - Huerta Kuchu","Boi-100-1","3248650243","10-06-2021 14:54:42 UTC","Llasa","00:15:56",1,"Bolivia","Cochabamba",null,"Pocona","Chaquely","Huerta Kuchu","-17.71182366","-65.42521436","2818.0","https://waterforpeople.s3.amazonaws.com/images/fccbef63-fd88-4769-b35a-acf40468d236.jpg",1,"Huerta Kuchu","Semi dispersa","Municipio",65,35,35,0,105,"Si","Sistema por gravedad","","Si",null,null,2015,"Si",null,null,"No",null,null,"Si - se realizaron pruebas hoy","No",null,"Si","Ausencia","No",null,"Si",0.52,"No",{"$nulls":6},1,20,24,"No",{"$nulls":4},"Si","Bueno","No",{"$nulls":4},"Si","Si","Entel","Si","No","Queman|Botan al rio, quebrada","Si","unitel","Si","radio totora, radio municipal pocona","No","No","943211c6acf8f57718f0f53ef712a9ee"]
["9t0u-7den-q494","Bolivia - Cochabamba - Pocona - Chaquely - Kanapata","Boi-100-1","3238800415","10-06-2021 14:01:44 UTC","Llasa","00:21:52",1,"Bolivia","Cochabamba",null,"Pocona","Chaquely","Kanapata","-17.74273307","-65.40209829","2646.0","https://waterforpeople.s3.amazonaws.com/images/c97c51df-2c25-4e59-8138-1b23d3cf6785.jpg",1,"Kanapata Tanque 1","Semi dispersa","Municipio",40,35,35,0,105,"Si","Sistema por gravedad","","No",null,null,1995,"Si",null,null,"Si",5,5,"Si - se realizaron pruebas hoy","No",null,"Si","Ausencia","No",null,"Si",0.97,"No",{"$nulls":6},1.3,15.384615384615383,24,"No",{"$nulls":4},"Si","Malo","Si","Cumplio su vida util",null,null,null,"Si","Si","Entel|Tigo","Si","No","Queman|Botan al rio, quebrada","Si","ATB, unitel","Si","radio municipal pocona, causachun coca","No","No","cd28bb15ff206bd0fa954f3870a225f4"]
["pbk9-03bn-bvyt","Bolivia - Cochabamba - Pocona - Chaquely - Kanapata","Boi-100-1","3240620442","10-06-2021 14:03:56 UTC","Llasa","00:07:48",1,"Bolivia","Cochabamba",null,"Pocona","Chaquely","Kanapata","-17.74956878","-65.41628994","2868.0","https://waterforpeople.s3.amazonaws.com/images/cae5b34b-bc91-495f-81a2-a91765b83662.jpg",1,"Kanapata Tanque 2","Semi dispersa","Municipio",35,35,35,0,{"$f":"IF(Y130=0,\"\",(Y130*3))","v":105},"Si","Sistema por gravedad","","No",null,null,1995,"Si",null,null,"Si",5,5,"Si - se realizaron pruebas hoy","No",null,"Si","Ausencia","No",null,"Si",0.97,"No",{"$nulls":6},0.8,25,24,"No",{"$nulls":4},"Si","Malo","Si","Cumplio su vida util",null,null,null,"Si","Si","Entel|Tigo","Si","No","Queman|Botan al rio, quebrada","Si","ATB, unitel","Si","radio municipal pocona, causachun coca","No","No","2a43dc8c11c8ce29baa03c9111e28a3a"]
["jvwt-p9s3-dx3m","Bolivia - Cochabamba - Pocona - Chaquely - Huerta Kuchu","Boi-100-1","3250850680","10-06-2021 14:14:08 UTC","Llasa","00:14:55",1,"Bolivia","Cochabamba",null,"Pocona","Chaquely","Tamborga","-17.72169412","-65.41717723","2640.0","https://waterforpeople.s3.amazonaws.com/images/e654fb8b-fea3-4b17-a8cf-55fb5d10df36.jpg",1,"Tamborga","Semi dispersa","Municipio",21,17,17,0,51,"Si","Sistema por gravedad","","Si",null,null,2015,"Si",null,null,"No",null,null,"Si - se realizaron pruebas hoy","No",null,"Si","Presencia","No",null,"Si",1.1499999999999999,"No",{"$nulls":6},1.2,16.666666666666668,24,"No",{"$nulls":4},"Si","Bueno","No",{"$nulls":4},"Si","Si","Entel","Si","No","Queman|Botan al rio, quebrada","Si","unitel, ATB","Si","radio municipal pocona, casachun coca","No","No","12df9bcdbd85646e933f3d91125f8913"]
["ngns-9knd-bwhq","Bolivia - Cochabamba - Pocona - Chiuchi - Chiuchi Arriba","Boi-100-1","3246510822","11-06-2021 14:20:52 UTC","Llasa","00:14:38",1,"Bolivia","Cochabamba",null,"Pocona","Chiuchi","Chiuchi Arriba","-17.60716818","-65.31535086","2738.0","https://waterforpeople.s3.amazonaws.com/images/1485aba1-109e-466a-a3c2-13d39d7a7782.jpg",1,"Chiuchi Arriba","Semi dispersa","Otra ONG",85,70,50,20,150,"Si","Sistema por gravedad","","Si",null,null,2011,"Si",null,null,"No",null,null,"Si - se realizaron pruebas hoy","No",null,"Si","Ausencia","No",null,"Si",4.3,"No",{"$nulls":6},1,20,24,"No",{"$nulls":4},"Si","Bueno","Si","No pagan tarifa",null,null,null,"Si","Si","Entel","Si","No","Queman|Entierran|Botan al rio, quebrada","Si","unitel con plato antena","Si","Radio Pocona y Totora","Si","No","d13baebbf6e5bcec267524fd23dd43b"]
["2seu-a3mm-vs31","Bolivia - Cochabamba - Pocona - Chiuchi - Jurina","BOI-GALAXIJ5-02","3248660499","11-06-2021 14:03:11 UTC","Pocona2","00:07:35",1,"Bolivia","Cochabamba",null,"Pocona","Chiuchi","Jurina","-17.60947733","-65.34209367","2775.0","https://waterforpeople.s3.amazonaws.com/images/eff1112c-61c5-4d41-8b51-d203c6b80926.jpg",1,"Jurina","Dispersa","Municipio",12,12,12,0,36,"Si","Sistema por gravedad","","No",null,null,1997,"Si",null,null,"No",null,null,"Si - se realizaron pruebas hoy","No",null,"Si","Presencia","No",null,"Si",1.4,"No",{"$nulls":6},0.5,40,24,"No",{"$nulls":4},"No","Malo","Si","Falta mantenimiento, no hay un CAPYS",null,null,null,"Si","No",null,"Si","No","Botan al rio, quebrada","No",null,"No",null,"No","No","88288f53105820764fdf2d569215520"]
["gqbk-jdn0-9df2","Bolivia - Cochabamba - Pocona - Chiuchi - Ura Pampa","Boi-100-1","3240610760","11-06-2021 14:12:41 UTC","Llasa","00:04:44",1,"Bolivia","Cochabamba",null,"Pocona","Chiuchi","Ura Pampa","-17.62171239","-65.345066","2531.0","https://waterforpeople.s3.amazonaws.com/images/a68af304-6cdc-4110-90ce-7deb4a7f0178.jpg",1,"Ura Pampa","Dispersa","Municipio",13,13,13,0,39,"Si","Sistema por gravedad","","No",null,null,1999,"Si",null,null,"No",null,null,"Si - se realizaron pruebas hoy","No",null,"Si","Ausencia","No",null,"Si",1.29,"No",{"$nulls":6},1.1000000000000001,18.18181818181818,24,"No",{"$nulls":4},"Si","Malo","Si","Tanque de distribución en mal estado",null,null,null,"Si","Si","Entel","Si","No","Queman|Botan al rio, quebrada","Si","unitel","Si","la calle, bella morena","No","No","45e740da36aaa0a7d9ab50b0326ef1c"]
["290x-bb83-b6y0","Bolivia - Cochabamba - Pocona - Huaylla Pampa - Alto Pocona","BOI-GALAXIJ5-02","3242740984","11-06-2021 16:15:52 UTC","Pocona2","00:06:11",1,"Bolivia","Cochabamba",null,"Pocona","Huaylla Pampa","Alto Pocona","-17.67611369","-65.42796108","2830.0","https://waterforpeople.s3.amazonaws.com/images/6369fbb8-7054-4cd0-a126-7f3730e63235.jpg",1,"alto pocona","Concentrada","Municipio",54,9,9,45,27,"Si","Sistema por gravedad","","Si",null,null,2013,"Si",null,null,"Si",1,2,"Si - se realizaron pruebas hoy","No",null,"Si","Ausencia","No",null,"Si",8.1199999999999992,"No",{"$nulls":6},0.8,25,24,"No",{"$nulls":4},"No","Bueno","Si","escases de agua poca agua",null,null,null,"Si","Si","Entel|Tigo","Si","No","Queman|Botan al rio, quebrada","Si","con plato unitel","Si","fm. pocona","No","No","ee15bcdd28e423396eedbd54f5316398"]
["6ja7-pj7h-60c5","Bolivia - Cochabamba - Pocona - Huaylla Pampa - Banda Rancho","Boi-100-1","3248650425","11-06-2021 16:00:22 UTC","Llasa","00:12:53",1,"Bolivia","Cochabamba",null,"Pocona","Huaylla Pampa","Banda Rancho","-17.66376416","-65.41768106","2800.0","https://waterforpeople.s3.amazonaws.com/images/dfc88103-2e3e-494a-8d68-0cfe2e2475b0.jpg",1,"banda rancho","Dispersa","Iglesia",36,18,18,0,54,"Si","Sistema por gravedad","","No",null,null,1997,"Si",null,null,"No",null,null,"Si - se realizaron pruebas hoy","No",null,"Si","Ausencia","No",null,"Si",1.02,"No",{"$nulls":6},0.5,40,24,"No",{"$nulls":4},"Si","Bueno","No",{"$nulls":4},"Si","Si","Entel|Tigo","Si","No","Queman|Botan al rio, quebrada","Si","unitel, ATB, canal 29","Si","radio municipal pocona, la calle, chiwalaqui","No","No","ef802c2988be5bb5ef2cd2c261ae633d"]
["pt8y-9u40-1jhc","Bolivia - Cochabamba - Pocona - Huaylla Pampa - Huaylla Pampa","BOI-GALAXIJ5-08","3252711435","11-06-2021 15:43:56 UTC","Pocona 1","00:09:18",1,"Bolivia","Cochabamba",null,"Pocona","Huaylla Pampa","Huaylla Pampa","-17.66593187","-65.43340407","2810.0","https://waterforpeople.s3.amazonaws.com/images/babd58d7-f0f2-4009-b357-08cf81cd4ade.jpg",1,"Huayllamarca","Semi dispersa","Otra ONG",84,45,30,15,90,"Si","Sistema por gravedad","","No",null,null,1993,"Si",null,null,"Si",5,5,"Si - se realizaron pruebas hoy","No",null,"Si","Ausencia","No",null,"Si",2.5499999999999998,"No",{"$nulls":6},1,20,24,"No",{"$nulls":4},"Si","Malo","Si","SAP cumplio su vida util, no tiene un CAPYS, hay familias sin agua",null,null,null,"Si","Si","Entel|Tigo","Si","No","Queman|Entierran","No",null,"Si","Radio Pocona y Colonial","No","No","6af065611f93c53686b5c3f7a615a27f"]
["7qn9-hnpp-6fuq","Bolivia - Cochabamba - Pocona - Huaylla Pampa - Tabla Corral","BOI-GALAXIJ5-02","3250831154","11-06-2021 16:09:41 UTC","Pocona2","00:07:45",1,"Bolivia","Cochabamba",null,"Pocona","Huaylla Pampa","Tabla Corral","-17.65257789","-65.45466964","3005.0","https://waterforpeople.s3.amazonaws.com/images/614aa640-bdc0-436e-9ac0-56368792099d.jpg",1,"tabla corral","Dispersa","Iglesia",40,40,40,0,120,"Si","Sistema por gravedad","","No",null,null,2005,"Si",null,null,"Si",5,5,"Si - se realizaron pruebas hoy","No",null,"Si","Ausencia","No",null,"Si",1.79,"No",{"$nulls":6},1.5,13.333333333333334,24,"No",{"$nulls":4},"Si","Malo","Si",{"$nulls":4},"Si","Si","Entel","No","No","Botan al rio, quebrada","No",null,"No",null,"No","No","d7cbaaac9c29f85992dc489679f6aba6"]
["wkhn-edpa-ugm3","Bolivia - Cochabamba - Pocona - Incallajta - Incallajta Baja","Boi-100-1","3248660298","11-06-2021 16:37:22 UTC","Llasa","00:07:03",1,"Bolivia","Cochabamba",null,"Pocona","Incallajta","Incallajta Baja","-17.6208872","-65.39560393","2928.0","https://waterforpeople.s3.amazonaws.com/images/a6de62ed-2012-471d-b25b-2ab8a0f15611.jpg",1,"Incallajta Baja","Semi dispersa","Municipio",45,45,45,0,135,"Si","Sistema por gravedad","","No",null,null,2006,"Si",null,null,"No",null,null,"Si - se realizaron pruebas hoy","No",null,"Si","Ausencia","No",null,"Si",0.66,"No",{"$nulls":6},0.5,40,24,"No",{"$nulls":4},"Si","Bueno","No",{"$nulls":4},"Si","Si","Entel","Si","No","Queman|Botan al rio, quebrada","Si","canal 7","Si","chiwalaqui, radio pocona","No","No","193555699885658037823f47608dc8"]
["77hc-vf5v-qe96","Bolivia - Cochabamba - Pocona - Incallajta - Leuque","BOI-GALAXIJ5-02","3224541185","11-06-2021 13:54:00 UTC","Pocona2","00:05:50",1,"Bolivia","Cochabamba",null,"Pocona","Incallajta","Leuque","-17.59946743","-65.43662002","3381.0","https://waterforpeople.s3.amazonaws.com/images/1afb830e-8003-4a1d-99fe-a662dc1f54a9.jpg",1,"Leuque","Dispersa","Municipio|Iglesia",11,11,11,0,33,"Si","Sistema por gravedad","","Si",null,null,2007,"Si",null,null,"Si",5,2,"Si - se realizaron pruebas hoy","No",null,"Si","Presencia","No",null,"Si",1.29,"No",{"$nulls":6},0.5,40,24,"No",{"$nulls":4},"Si","Malo","Si","Cañeria en mal estado necesita refaccion, no hay un CAPYS",null,null,null,"No","Si","Entel","Si","No","Botan al rio, quebrada","No",null,"No",null,"No","No","6f4197edfb2c49bed2ed2beb6c8477"]
["qr6a-41gu-spsn","Bolivia - Cochabamba - Pocona - Incallajta - Machaj Marka","Boi-100-1","3240620602","11-06-2021 16:30:24 UTC","Llasa","00:06:07",1,"Bolivia","Cochabamba",null,"Pocona","Incallajta","Machaj Marka","-17.62035388","-65.38187711","2863.0","https://waterforpeople.s3.amazonaws.com/images/d978e7e0-f33e-48b2-ab5a-9187256e46f5.jpg",1,"Machaj Marka Tanque 1","Dispersa","Municipio",42,42,42,0,126,"Si","Sistema por gravedad","","Si",null,null,1999,"Si",null,null,"No",null,null,"Si - se realizaron pruebas hoy","No",null,"Si","Ausencia","No",null,"Si",0.85,"No",{"$nulls":6},3.1,6.4516129032258061,24,"No",{"$nulls":4},"Si","Malo","Si","Tanque de almacenamiento con fisuras y filtracion de agua al rededor de las 4 paredes, no hay una tarifa",null,null,null,"Si","Si","Entel","Si","No","Queman|Botan al rio, quebrada","Si","canal 7","Si","chiwalaqui","No","No","6e41ac32e55a14c98e8b6e2072da9247"]
["xkj1-9f3v-g2tb","Bolivia - Cochabamba - Pocona - Incallajta - Machaj Marka","Boi-100-1","3240610859","11-06-2021 16:31:39 UTC","Llasa","00:06:39",1,"Bolivia","Cochabamba",null,"Pocona","Incallajta","Machaj Marka","-17.60223384","-65.40568654","3286.0","https://waterforpeople.s3.amazonaws.com/images/a0189a40-3fee-4db0-8160-3367f4945a11.jpg",1,"Machaj Marka Tanque 2","Dispersa","Municipio",42,42,42,0,126,"Si","Sistema por gravedad","","Si",null,null,1999,"Si",null,null,"No",null,null,"Si - se realizaron pruebas hoy","No",null,"Si","Ausencia","No",null,"Si",1.8,"No",{"$nulls":6},0.8,25,24,"No",{"$nulls":4},"Si","Malo","Si","Falta de mantenimiento, no hay una tarifa",null,null,null,"Si","Si","Entel","Si","No","Queman|Botan al rio, quebrada","Si","canal 7","Si","chuwalaqui","No","No","4d5d188ecf6c2f3330d5951f508c7ad0"]
["ykk3-8spu-s9vq","Bolivia - Cochabamba - Pocona - Incallajta - Quirusillani","BOI-GALAXIJ5-02","3240611059","11-06-2021 13:54:56 UTC","Pocona2","00:08:50",1,"Bolivia","Cochabamba",null,"Pocona","Incallajta","Quirusillani","-17.59219548","-65.41789033","3327.0","https://waterforpeople.s3.amazonaws.com/images/1966d389-7a59-4b6d-8709-bf6e12fa239d.jpg",1,"Quirusillani","Dispersa","Otra ONG",37,37,37,0,111,"Si","Sistema por gravedad","","No",null,null,1997,"Si",null,null,"No",null,null,"Si - se realizaron pruebas hoy","No",null,"Si","Ausencia","No",null,"Si",1.0900000000000001,"No",{"$nulls":6},0.8,25,24,"No",{"$nulls":4},"Si","Malo","Si","No realizaron mantenimiento no hay CAPYS",null,null,null,"Si","Si","Entel","Si","No","Botan al rio, quebrada","No",null,"No",null,"No","No","84572236e8f4283da78393025747b8"]
["jn1e-3rs6-x0um","Bolivia - Cochabamba - Pocona - Jatun Pampa - Chullunkia","BOI-GALAXIJ5-08","3252721472","11-06-2021 15:04:10 UTC","Pocona 1","00:15:12",1,"Bolivia","Cochabamba",null,"Pocona","Jatun Pampa","Chullunkia","-17.61506497","-65.48650406","3271.0","https://waterforpeople.s3.amazonaws.com/images/4b4f4325-43a1-4cfc-a963-21de445ce813.jpg",1,"Chullunkia","Semi dispersa","Iglesia",15,2,2,0,6,"Si","Sistema por gravedad","","Si",null,null,1997,"Si",null,null,"No",null,null,"Si - se realizaron pruebas hoy","No",null,"Si","Ausencia","No",null,"Si",1.78,"No",{"$nulls":6},1.2,16.666666666666668,24,"No",{"$nulls":4},"Si","Malo","No",{"$nulls":4},"No","Si","Entel","Si","No","Queman|Entierran","No",null,"Si","Radio Pocona","No","No","d1f978afe4ad77bfe61babc169ea128"]
["s7kk-jpt8-wukf","Bolivia - Cochabamba - Pocona - Jatun Pampa - Chullunkia","BOI-GALAXIJ5-08","3234920880","11-06-2021 15:06:17 UTC","Pocona 1","00:08:49",1,"Bolivia","Cochabamba",null,"Pocona","Jatun Pampa","Chullunkia","-17.61747444","-65.48325136","3392.0","https://waterforpeople.s3.amazonaws.com/images/9df66049-e3ca-48cc-a87e-571bd0bf37bc.jpg",1,"Chullunkia","Semi dispersa","Iglesia",15,3,3,0,9,"Si","Sistema por gravedad","","Si",null,null,1997,"Si",null,null,"No",null,null,"Si - se realizaron pruebas hoy","No",null,"Si","Ausencia","No",null,"Si",1.78,"No",{"$nulls":6},1,20,24,"No",{"$nulls":4},"Si","Bueno","No",{"$nulls":4},"No","Si","Entel","Si","No","Queman|Entierran","No",null,"Si","Radio Pocona","No","No","6a9eed2734e1c419ac17ae76b7ab2577"]
["6k7m-f6fe-44yc","Bolivia - Cochabamba - Pocona - Jatun Pampa - Jatun Pampa","Boi-100-1","3244450676","11-06-2021 16:08:17 UTC","Llasa","00:04:28",1,"Bolivia","Cochabamba",null,"Pocona","Jatun Pampa","Jatun Pampa","-17.60681856","-65.4926294","3488.0","https://waterforpeople.s3.amazonaws.com/images/adad48d5-91a0-4ced-b9a1-a8147e87b669.jpg",1,"Jatun Pampa","Semi dispersa","Iglesia",15,8,8,0,24,"Si","Sistema por gravedad","","No",null,null,1990,"Si",null,null,"No",null,null,"Si - se realizaron pruebas hoy","No",null,"Si","Ausencia","No",null,"Si",3.29,"No",{"$nulls":6},0.3,66.666666666666671,24,"No",{"$nulls":4},"Si","Malo","Si","Cañerias de agua con fugas de agua",null,null,null,"Si","Si","Entel","Si","No","Queman|Botan al rio, quebrada","Si","unitel","Si","chuwalaqui, radio totora","No","No","65044c1b4afc1de660518b4e261f8"]
["kme2-2vjm-ssc6","Bolivia - Cochabamba - Pocona - Jatun Pampa - Loman Centro","BOI-GALAXIJ5-02","3252711079","11-06-2021 15:58:44 UTC","Pocona2","00:20:25",1,"Bolivia","Cochabamba",null,"Pocona","Jatun Pampa","Loman Centro","-17.6367323","-65.48651778","3620.0","https://waterforpeople.s3.amazonaws.com/images/f89222ca-0cab-422f-b6b3-bf13f2627840.jpg",1,"Loman Centro","Dispersa","Iglesia",35,20,20,0,60,"Si","Sistema por gravedad","","No",null,null,2005,"Si",null,null,"Si",2,3,"Si - se realizaron pruebas hoy","No",null,"Si","Ausencia","No",null,"Si",0.9,"No",{"$nulls":6},0.5,40,24,"No",{"$nulls":4},"No","Malo","Si","No tiene un CAPYS",null,null,null,"Si","Si","Entel","Si","No","Botan al rio, quebrada","No",null,"No",null,"No","No","71d8fbb19816e7d639f558b42cf822"]
["hncx-ktr4-u5ye","Bolivia - Cochabamba - Pocona - Jatun Pampa - Puca Loma","BOI-GALAXIJ5-02","3242751125","11-06-2021 16:11:00 UTC","Pocona2","00:04:26",1,"Bolivia","Cochabamba",null,"Pocona","Jatun Pampa","Puca Loma","-17.60689973","-65.49543189","3532.0","https://waterforpeople.s3.amazonaws.com/images/5c7ac8e2-4e33-462b-bfcf-d434ab67d6d3.jpg",1,"Puca Loma","Dispersa","Iglesia",9,9,9,0,27,"Si","Sistema por gravedad","","No",null,null,1997,"Si",null,null,"Si",5,7,"Si - se realizaron pruebas hoy","No",null,"Si","Ausencia","No",null,"Si",0.87,"No",{"$nulls":6},1,20,24,"No",{"$nulls":4},"Si","Malo","Si","Tanque y la red se deteriora por falta de mantenimiento",null,null,null,"Si","Si","Entel","Si","No","Botan al rio, quebrada","No",null,"No",null,"No","No","37c065104af72ffac57c35d89329189"]
["ymqa-a5m8-hyka","Bolivia - Cochabamba - Pocona - Jatun Pampa - Puca Puca","Boi-100-1","3238770725","11-06-2021 16:06:41 UTC","Llasa","00:12:02",1,"Bolivia","Cochabamba",null,"Pocona","Jatun Pampa","Puca Puca","-17.61420422","-65.51488434","3603.0","https://waterforpeople.s3.amazonaws.com/images/894ae2e7-857a-4cfe-a2a8-471694f13499.jpg",1,"Puca Puca","Semi dispersa","Iglesia",42,30,25,5,75,"Si","Sistema por gravedad","","No",null,null,2005,"Si",null,null,"Si",5,5,"Si - se realizaron pruebas hoy","No",null,"Si","Ausencia","No",null,"Si",4.0199999999999996,"No",{"$nulls":6},0.25,80,24,"No",{"$nulls":4},"No","Malo","Si","Mantenimiento general del SAP",null,null,null,"Si","Si","Entel","Si","No","Queman|Botan al rio, quebrada","Si","unitel","Si","chihualaqui","No","No","40c192ccdb3bc9e1c988e8d4f39437"]
["504m-jnx3-yjdn","Bolivia - Cochabamba - Pocona - Junta Vecinal Monte Punku - Junta Vecinal Monte Punku A","BOI-GALAXIJ5-02","3232640831","11-06-2021 13:14:53 UTC","Pocona2","00:10:45",1,"Bolivia","Cochabamba",null,"Pocona","Junta Vecinal Monte Punku","Junta Vecinal Monte Punku A","-17.58013655","-65.29917701","2944.0","https://waterforpeople.s3.amazonaws.com/images/d100778b-0ddc-4cdf-833e-1ba2100d8d01.jpg",1,"junta vecinal monte puncu A","Semi dispersa","Municipio|Otra ONG",103,103,103,0,309,"Si","Sistema por gravedad","","Si",null,null,2019,"Si",null,null,"No",null,null,"Si - se realizaron pruebas hoy","No",null,"Si","Presencia","No",null,"Si",2.71,"No",{"$nulls":6},1.5,13.333333333333334,24,"No",{"$nulls":4},"Si","Bueno","No","Falta instalar el cerco perimetral en el taque de agua",null,null,null,"Si","Si","Entel|Tigo","Si","Si",null,"Si","atv unitel","Si","radio de todo lado","Si","No","f9c6607a2477df20eda7d321994d4474"]
["0j1g-q3wf-g2ny","Bolivia - Cochabamba - Pocona - Junta Vecinal Pocona - Junta Vecinal Pocona","BOI-GALAXIJ5-08","3252721494","11-06-2021 15:50:33 UTC","Pocona 1","00:08:24",1,"Bolivia","Cochabamba",null,"Pocona","Junta Vecinal Pocona","Junta Vecinal Pocona","-17.67407292","-65.42356974","2770.0","https://waterforpeople.s3.amazonaws.com/images/664e1617-dfc5-41d9-8dbf-a79876999665.jpg",1,"JuntabVecinal Pocona","Concentrada","Iglesia",110,70,70,0,210,"Si","Sistema por gravedad","","Si",null,null,1993,"Si",null,null,"No",null,null,"Si - se realizaron pruebas hoy","No",null,"Si","Ausencia","No",null,"Si",1.6,"No",{"$nulls":6},2,10,24,"No",{"$nulls":4},"Si","Bueno","Si","Descubrimiento de la red de distribucion por el raspado de la callen principal",null,null,null,"Si","Si","Entel|Tigo","Si","No","Queman|Entierran","Si","Canal 7","Si","Radio Totora y Pocona","Si","Si","51d06984f588023dc9bb790597c959a"]
["ku3r-5dft-2b97","Bolivia - Cochabamba - Pocona - Kellu Mayu - Kellu Mayu","BOI-GALAXIJ5-08","3250831396","10-06-2021 17:25:13 UTC","Pocona 1","00:10:44",1,"Bolivia","Cochabamba",null,"Pocona","Kellu Mayu","Kellu Mayu","-17.59825009","-65.27700745","3049.0","https://waterforpeople.s3.amazonaws.com/images/0a536e2b-9ac4-448d-a818-4863f9f514b2.jpg",1,"Kellu Mayu toma 2","Semi dispersa","Municipio",75,51,51,0,153,"Si","Sistema por gravedad","","Si",null,null,2002,"Si",null,null,"No",null,null,"Si - se realizaron pruebas hoy","No",null,"Si","Ausencia","No",null,"Si",2.4900000000000002,"No",{"$nulls":6},1,20,24,"No",{"$nulls":4},"Si","Bueno","No",{"$nulls":4},"Si","Si","Entel","Si","No","Queman|Entierran","No",null,"Si","Radio Pocona, Radio Cocapata","Si","No","49f2db1ef67c25b983c79e657b67ac"]
["w57w-wrmq-tnjr","Bolivia - Cochabamba - Pocona - Kellu Mayu - Kellu Mayu","BOI-GALAXIJ5-08","3240611387","10-06-2021 17:25:55 UTC","Pocona 1","00:06:10",1,"Bolivia","Cochabamba",null,"Pocona","Kellu Mayu","Kellu Mayu","-17.59941802","-65.27700882","3028.0","https://waterforpeople.s3.amazonaws.com/images/84965549-e027-4e79-b64d-c45355c75770.jpg",1,"Kellu Mayu toma 1","Semi dispersa","Municipio",65,51,51,0,153,"Si","Sistema por gravedad","","Si",null,null,1996,"Si",null,null,"No",null,null,"Si - se realizaron pruebas hoy","No",null,"Si","Presencia","No",null,"Si",28,"No",{"$nulls":6},1.5,13.333333333333334,24,"No",{"$nulls":4},"Si","Bueno","No",{"$nulls":4},"Si","Si","Entel","Si","No","Queman|Entierran","No",null,"Si","Radio Pocona y Cocapata","Si","No","34ee17faef6adad919618448d35145f6"]
["pt17-95pw-5hrn","Bolivia - Cochabamba - Pocona - Kellu Mayu - Monte Punku B","BOI-GALAXIJ5-02","3228700854","11-06-2021 13:22:31 UTC","Pocona2","00:05:47",1,"Bolivia","Cochabamba",null,"Pocona","Kellu Mayu","Monte Punku B","-17.59434497","-65.28440434","2935.0","https://waterforpeople.s3.amazonaws.com/images/a4fd5df3-0699-41ca-af1c-6bbcd8ef18e3.jpg",1,"montepuncu B","Dispersa","Gobierno Nacional|Municipio",35,35,35,0,105,"Si","Sistema por gravedad","","Si",null,null,1999,"Si",null,null,"No",null,null,"Si - se realizaron pruebas hoy","No",null,"Si","Ausencia","No",null,"Si",0.47,"No",{"$nulls":6},1.8,11.111111111111111,24,"No",{"$nulls":4},"Si","Bueno","Si","Mantenimiento del tanque",null,null,null,"Si","Si","Entel","Si","No","Entierran|Botan al rio, quebrada","No",null,"Si","municipal de pocona","No","No","a620678d54e5edec8d83e111852b2b61"]
["1e90-r58p-a8qe","Bolivia - Cochabamba - Pocona - Laimiña - Chaquely","Boi-100-1","3252720672","10-06-2021 13:41:12 UTC","Llasa","00:18:37",1,"Bolivia","Cochabamba",null,"Pocona","Laimiña","Chaquely","-17.64085649","-65.36969948","2714.0","https://waterforpeople.s3.amazonaws.com/images/c25376e1-50c5-4a66-bd9f-08fe8a9327b9.jpg",1,"Chaquely A","Semi dispersa","Municipio",23,23,14,9,42,"Si","Sistema por gravedad","","Si",null,null,2016,"Si",null,null,"No",null,null,"Si - se realizaron pruebas hoy","No",null,"Si","Presencia","No",null,"Si",6.74,"No",{"$nulls":6},0.1,{"$f":"IF(BE155=\"\",\"\",(20/BE155))","v":200},24,"No",{"$nulls":4},"Si","Bueno","No",{"$nulls":4},"Si","Si","Entel|Tigo","Si","No","Queman|Botan al rio, quebrada","Si","ATB, unitel","Si","radio totora, cusachun coca,  radio municipal pocona","No","No","784fae284c54ed675625bfb2718511"]
["sugr-x8xt-3ctr","Bolivia - Cochabamba - Pocona - Laimiña - Laimiña","Boi-100-1","3248650205","10-06-2021 13:33:56 UTC","Llasa","00:12:57",1,"Bolivia","Cochabamba",null,"Pocona","Laimiña","Laimiña","-17.6495932","-65.37627917","2654.0","https://waterforpeople.s3.amazonaws.com/images/9fa45b8b-6f6d-4d25-8722-b2706a3adef1.jpg",1,"Laimiña","Semi dispersa","Municipio",80,80,80,0,240,"Si","Sistema por gravedad","","Si",null,null,2010,"Si",null,null,"No",null,null,"Si - se realizaron pruebas hoy","No",null,"Si","Presencia","No",null,"Si",2.85,"No",{"$nulls":6},1.5,13.333333333333334,24,"No",{"$nulls":4},"Si","Bueno","No",{"$nulls":4},"Si","Si","Entel|Tigo","Si","No","Queman|Botan al rio, quebrada","Si","unitel, ATB","Si","causachun coca, radio totora, radio  municipal pocona","No","No","c1d0d645a6b19baf57836a6f48307e52"]
["ckfv-07wv-43jn","Bolivia - Cochabamba - Pocona - Laimiña - Laimiña","Boi-100-1","3230900637","10-06-2021 13:35:08 UTC","Llasa","00:08:46",1,"Bolivia","Cochabamba",null,"Pocona","Laimiña","Laimiña","-17.64883081","-65.36861626","2626.0","https://waterforpeople.s3.amazonaws.com/images/fc3f8372-9706-48ab-a9d4-f1118a500fcf.jpg",1,"Laimiña","Semi dispersa","Municipio",80,80,80,0,240,"Si","Sistema por gravedad","","Si",null,null,1999,"Si",null,null,"No",null,null,"Si - se realizaron pruebas hoy","No",null,"Si","Presencia","No",null,"Si",2.85,"No",{"$nulls":6},1,20,24,"No",{"$nulls":4},"Si","Bueno","Si","Tanque 2 con filtraciones",null,null,null,"Si","Si","Entel|Tigo","Si","No","Queman|Botan al rio, quebrada","Si","unitel, ATB","Si","radio totora, causachun coca, radio municipal pocona","No","No","31b4e2a58a5192738147df158d316bd"]
["kjws-xt20-69q9","Bolivia - Cochabamba - Pocona - Laimiña - Pizorga","BOI-GALAXIJ5-08","3238801174","11-06-2021 16:19:15 UTC","Pocona 1","00:21:34",1,"Bolivia","Cochabamba",null,"Pocona","Laimiña","Pizorga","-17.68524094","-65.40863824","2751.0","https://waterforpeople.s3.amazonaws.com/images/15821b83-f415-4e5c-80bb-07a040904b6d.jpg",1,"Pizorga","Semi dispersa","Otra ONG",180,100,93,7,279,"Si","Sistema por gravedad","","Si",null,null,1987,"Si",null,null,"No",null,null,"Si - se realizaron pruebas hoy","No",null,"Si","Ausencia","No",null,"Si",1.02,"No",{"$nulls":6},2,10,24,"No",{"$nulls":4},"Si","Bueno","No",{"$nulls":4},"Si","Si","Entel|Tigo","Si","No","Queman|Entierran","No",null,"Si","Radio Pocona y Totora","No","No","7659a8261f88d3a14051eef4c92d0ea"]
["t7b9-67ua-rqfh","Bolivia - Cochabamba - Pocona - Laimiña - Qollpa","Boi-100-1","3250860464","10-06-2021 13:45:59 UTC","Llasa","00:12:57",1,"Bolivia","Cochabamba",null,"Pocona","Laimiña","Qollpa","-17.64027913","-65.36181451","2682.0","https://waterforpeople.s3.amazonaws.com/images/705a0b1c-cf55-4ab5-af23-1199151d3d92.jpg",1,"Qollpa","Semi dispersa","Municipio",85,85,85,0,255,"Si","Sistema por gravedad","","Si",null,null,1992,"Si",null,null,"No",null,null,"Si - se realizaron pruebas hoy","No",null,"Si","Ausencia","No",null,"Si",0.35,"No",{"$nulls":6},0.9,22.222222222222221,24,"No",{"$nulls":4},"Si","Bueno","No",{"$nulls":4},"Si","Si","Entel|Tigo","Si","No","Queman|Botan al rio, quebrada","Si","unitel, ATB","Si","radio municipal pocona, causachun coca","No","No","faf3bba8b9773fb3145645746ef6ef19"]
["ep38-s9ww-9r6c","Bolivia - Cochabamba - Pocona - Laimiña - Tumuyo A","BOI-GALAXIJ5-02","3242740989","11-06-2021 16:27:03 UTC","Pocona2","00:05:16",1,"Bolivia","Cochabamba",null,"Pocona","Laimiña","Tumuyo A","-17.66186335","-65.3718113","2619.0","https://waterforpeople.s3.amazonaws.com/images/1ad8fc63-6bdc-45fd-a5e1-e0d2f4b60c62.jpg",2,"Tumuyu A y B","Dispersa","Gobierno Nacional",32,32,32,0,96,"Si","Sistema por gravedad","","Si",null,null,1997,"Si",null,null,"No",null,null,"Si - se realizaron pruebas hoy","No",null,"Si","Ausencia","No",null,"Si",5.69,"No",{"$nulls":6},1.5,13.333333333333334,24,"No",{"$nulls":4},"Si","Bueno","Si","No quieren dar informacion",null,null,null,"Si","Si","Entel","Si","No","Botan al rio, quebrada","No",null,"No",null,"No","No","861155b8f92be8d818d4751c879426"]
["ep38-s9ww-9r6c","Bolivia - Cochabamba - Pocona - Laimiña - Tumuyo A","BOI-GALAXIJ5-02","3242740989","11-06-2021 16:27:03 UTC","Pocona2","00:05:16",1,"Bolivia","Cochabamba",null,"Pocona","Laimiña","Tumuyo B",-17.666435977443999,-65.374456308782101,"2619.0","https://waterforpeople.s3.amazonaws.com/images/1ad8fc63-6bdc-45fd-a5e1-e0d2f4b60c62.jpg",2,"Tumuyu A y B","Dispersa","Gobierno Nacional",30,30,30,0,90,"Si","Sistema por gravedad","","Si",null,null,1997,"Si",null,null,"No",null,null,"Si - se realizaron pruebas hoy","No",null,"Si","Ausencia","No",null,"Si",5.69,"No",{"$nulls":6},1.5,13.333333333333334,24,"No",{"$nulls":4},"Si","Bueno","Si","No quieren dar informacion",null,null,null,"Si","Si","Entel","Si","No","Botan al rio, quebrada","No",null,"No",null,"No","No","861155b8f92be8d818d4751c879426"]
["pypp-xhm7-tve0","Bolivia - Cochabamba - Pocona - Lope Mendoza - Chullchungani","BOI-GALAXIJ5-02","3250851002","10-06-2021 14:16:35 UTC","Pocona2","00:08:55",1,"Bolivia","Cochabamba",null,"Pocona","Lope Mendoza","Chullchungani","-17.56682081","-65.3269816","3121.0","https://waterforpeople.s3.amazonaws.com/images/8391f6d4-4bb9-41e4-9e9b-049e6fe64e4b.jpg",1,"Chullchungani","Dispersa","Gobierno Nacional|Otra ONG",250,250,250,0,750,"Si","Sistema por gravedad","","No",null,null,1987,"Si",null,null,"Si",2,2,"Si - se realizaron pruebas hoy","No",null,"Si","Ausencia","No",null,"Si",0.6,"No",{"$nulls":6},2.5,8,24,"No",{"$nulls":4},"Si","Malo","Si","Fugas de agua por la cañeria negra en aduccion y distribucion",null,null,null,"Si","Si","Entel","Si","No","Botan al rio, quebrada","Si","unitel","Si","causachun coca","No","No","c86930cfba29af15f1a65b71b98a5056"]
["jypw-mt41-hk81","Bolivia - Cochabamba - Pocona - Lope Mendoza - Cocapata","BOI-GALAXIJ5-08","3242741063","10-06-2021 15:14:07 UTC","Pocona 1","00:11:51",1,"Bolivia","Cochabamba",null,"Pocona","Lope Mendoza","Cocapata","-17.57691422","-65.30409647","2987.0","https://waterforpeople.s3.amazonaws.com/images/b83d0112-54c3-4364-9bf0-9f348a2e60c2.jpg",1,"Cocapata","Semi dispersa","Otra ONG",144,144,144,0,432,"Si","Sistema por gravedad","","Si",null,null,1992,"Si",null,null,"No",null,null,"Si - se realizaron pruebas hoy","No",null,"Si","Ausencia","No",null,"Si",0.89,"No",{"$nulls":6},0.6,33.333333333333336,24,"No",{"$nulls":4},"Si","Bueno","Si","Mantenimiento del tanque",null,null,null,"Si","Si","Entel","Si","No","Queman|Entierran","No",null,"Si","Radio Pocona","No","No","dab775661eb5e35a6cc49d9431c666"]
["433n-w39m-jhjt","Bolivia - Cochabamba - Pocona - Lope Mendoza - Cocapata","BOI-GALAXIJ5-08","3240611300","10-06-2021 15:14:44 UTC","Pocona 1","00:08:43",1,"Bolivia","Cochabamba",null,"Pocona","Lope Mendoza","Cocapata","-17.58587182","-65.31819221","3044.0","https://waterforpeople.s3.amazonaws.com/images/4c397923-5ad9-4509-9dcb-523d3cc2cb41.jpg",1,"Cocapata","Semi dispersa","Otra ONG",144,144,144,0,432,"Si","Sistema por gravedad","","Si",null,null,1992,"Si",null,null,"No",null,null,"Si - se realizaron pruebas hoy","No",null,"Si","Ausencia","No",null,"Si",0.89,"No",{"$nulls":6},1.5,13.333333333333334,24,"No",{"$nulls":4},"Si","Bueno","Si","Llave de paso en mal estado",null,null,null,"Si","Si","Entel","Si","No","Queman|Entierran","No",null,"Si","Radio Pocona","No","No","af7f81d7fce2dbb4b3828d33f1a6476"]
["25px-4xs9-f9ak","Bolivia - Cochabamba - Pocona - Lope Mendoza - Cocapata","BOI-GALAXIJ5-08","3252711233","10-06-2021 15:15:25 UTC","Pocona 1","00:11:37",1,"Bolivia","Cochabamba",null,"Pocona","Lope Mendoza","Cocapata","-17.5725554","-65.31042408","3098.0","https://waterforpeople.s3.amazonaws.com/images/bf158d3e-f882-4e58-ac40-a96f72cbdce6.jpg",1,"Cocapata","Semi dispersa","Comité de Agua",144,144,144,0,432,"Si","Sistema por gravedad","","Si",null,null,2018,"Si",null,null,"No",null,null,"Si - se realizaron pruebas hoy","No",null,"Si","Ausencia","No",null,"Si",0.89,"No",{"$nulls":6},2,10,24,"No",{"$nulls":4},"Si","Bueno","Si","Mantenimiento del tanque",null,null,null,"Si","Si","Entel","Si","No","Queman|Entierran","No",null,"Si","Radio Pocona","No","No","6f12ca64f6533cac9d2c9944c82f44c"]
["qeby-9sdq-2wgk","Bolivia - Cochabamba - Pocona - Lope Mendoza - Escalante","BOI-GALAXIJ5-02","3246510996","10-06-2021 14:20:38 UTC","Pocona2","00:05:10",1,"Bolivia","Cochabamba",null,"Pocona","Lope Mendoza","Escalante","-17.54577379","-65.36577938","3055.0","https://waterforpeople.s3.amazonaws.com/images/21eaf495-ad53-47c6-82c2-69aaa165b70a.jpg",1,"Escalante","Dispersa","Gobierno Nacional|Municipio",48,48,48,0,144,"Si","Sistema por gravedad","","Si",null,null,1999,"Si",null,null,"No",null,null,"Si - se realizaron pruebas hoy","No",null,"Si","Ausencia","No",null,"Si",1.04,"No",{"$nulls":6},0.5,40,24,"No",{"$nulls":4},"No","Malo","Si","Falta limpieza interior y cañeria negra rotas con fugas",null,null,null,"Si","Si","Entel","Si","No","Botan al rio, quebrada","Si","unitel","Si","causachun coca","No","No","3464d6a10501dcb46af4c3a9341f280"]
["04f9-be41-ux23","Bolivia - Cochabamba - Pocona - Lope Mendoza - Kewiña Pampa","Boi-100-1","3240620480","10-06-2021 15:34:07 UTC","Llasa","00:07:41",1,"Bolivia","Cochabamba",null,"Pocona","Lope Mendoza","Kewiña Pampa","-17.50661388","-65.3990691","3259.0","https://waterforpeople.s3.amazonaws.com/images/9a25417e-6ec6-4054-bf51-4994586d6d7a.jpg",1,"Kewiña Pampa","Semi dispersa","Municipio",82,82,82,0,246,"Si","Sistema por gravedad","","No",null,null,1982,"Si",null,null,"No",null,null,"Si - se realizaron pruebas hoy","No",null,"Si","Ausencia","No",null,"Si",0.8,"No",{"$nulls":6},1.1000000000000001,18.18181818181818,24,"No",{"$nulls":4},"Si","Bueno","No",{"$nulls":4},"Si","Si","Entel","Si","No","Queman|Botan al rio, quebrada","Si","unitel","Si","causachun coca, bella morena","No","No","94975cc636632834895fa6ed3a36a7e8"]
["bjf9-mvh8-thg5","Bolivia - Cochabamba - Pocona - Lope Mendoza - Lagunilla","BOI-GALAXIJ5-08","3222481058","10-06-2021 15:10:16 UTC","Pocona 1","00:39:56",1,"Bolivia","Cochabamba",null,"Pocona","Lope Mendoza","Lagunilla","-17.59585459","-65.32072352","3014.0","https://waterforpeople.s3.amazonaws.com/images/c3a8106c-2e6a-43a0-b68f-d37af6d6b5b1.jpg",1,"Lagunilla","Dispersa","Iglesia",25,15,15,0,45,"Si","Sistema por gravedad","","Si",null,null,2000,"Si",null,null,"No",null,null,"Si - se realizaron pruebas hoy","No",null,"Si","Ausencia","No",null,"Si",2.6,"No",{"$nulls":6},0.5,40,24,"No",{"$nulls":4},"Si","Malo","Si","Filtracion del tanque y red",null,null,null,"Si","Si","Entel","Si","No","Queman|Entierran","No",null,"Si","Radio Pocona, Radio Guadalupe","No","No","1317209be73739cbc14358e47ccea73"]
["5h79-5ymg-bx1s","Bolivia - Cochabamba - Pocona - Lope Mendoza - Lope Mendoza Grande","BOI-GALAXIJ5-02","3224541099","10-06-2021 14:25:12 UTC","Pocona2","00:07:58",1,"Bolivia","Cochabamba",null,"Pocona","Lope Mendoza","Lope Mendoza","-17.51722028","-65.3741021","3113.0","https://waterforpeople.s3.amazonaws.com/images/f98dfe36-97e2-4a8b-b102-5a8f09a69bb3.jpg",1,"Lope Mendoza","Dispersa","Gobierno Nacional|Municipio|Comité de Agua",34,34,34,0,102,"Si","Sistema por gravedad","","Si",null,null,1992,"Si",null,null,"Si",2,2,"Si - se realizaron pruebas hoy","No",null,"Si","Presencia","No",null,"Si",1.03,"No",{"$nulls":6},1.5,13.333333333333334,24,"No",{"$nulls":4},"Si","Bueno","Si","Tanque Con fisura y limpieza de tanque interior",null,null,null,"Si","Si","Entel","Si","No","Botan al rio, quebrada","Si","red tv unitel","Si","causachun coca","No","No","7ba7d43f8ccb2195808df1e75214cca4"]
["vwyj-vm5y-b3be","Bolivia - Cochabamba - Pocona - Lope Mendoza - Lope Mendoza Alto","Boi-100-1","3224540762","10-06-2021 15:46:18 UTC","Llasa","00:13:25",1,"Bolivia","Cochabamba",null,"Pocona","Lope Mendoza","Lope Mendoza Alto","-17.51088117","-65.38695048","3251.0","https://waterforpeople.s3.amazonaws.com/images/0a0b1517-c8f1-4567-9eee-a91555e4f11f.jpg",1,"Lope Mendoza Alto","Semi dispersa","Municipio",64,64,54,0,162,"Si","Sistema por gravedad","","Si",null,null,2019,"Si",null,null,"No",null,null,"Si - se realizaron pruebas hoy","No",null,"Si","Ausencia","No",null,"Si",0.6,"No",{"$nulls":6},1.9,10.526315789473685,24,"No",{"$nulls":4},"Si","Bueno","No",{"$nulls":4},"Si","Si","Entel","Si","No","Queman|Botan al rio, quebrada","Si","unitel","Si","radio bella morena, causachun coca","No","No","30967794235aa4cf9568459e8ba1f86"]
["4phv-x4jt-w4yw","Bolivia - Cochabamba - Pocona - Lope Mendoza - Chullchungani","BOI-GALAXIJ5-08","3252711217","10-06-2021 15:04:00 UTC","Pocona 1","00:20:13",1,"Bolivia","Cochabamba",null,"Pocona","Lope Mendoza","Mataral Arriba","-17.58637606","-65.34364242","3024.0","https://waterforpeople.s3.amazonaws.com/images/6f575919-2f6c-4171-926d-4d0b8cbfa28d.jpg",2,"Mataral Arriba y Mataral Abajo","Semi dispersa","Iglesia",32,20,20,0,60,"Si","Sistema por gravedad","","Si",null,null,2002,"Si",null,null,"No",null,null,"Si - se realizaron pruebas hoy","No",null,"Si","Presencia","No",null,"Si",1.25,"No",{"$nulls":6},1.5,13.333333333333334,24,"No",{"$nulls":4},"Si","Bueno","No",{"$nulls":4},"Si","Si","Entel","Si","No","Queman","No",null,"Si","Radio Totora y Pocona","No","No","eeac43401af1d9435ff5ffc0d5cf366f"]
["uekh-ybf8-wxbq","Bolivia - Cochabamba - Pocona - Lope Mendoza - Villa Mojon","Boi-100-1","3232640641","10-06-2021 15:26:54 UTC","Llasa","00:17:06",1,"Bolivia","Cochabamba",null,"Pocona","Lope Mendoza","Mojon","-17.49710169","-65.42057773","3298.0","https://waterforpeople.s3.amazonaws.com/images/71d2c459-0d62-4619-88ac-96b5ed1bae84.jpg",1,"Villa Mojon","Semi dispersa","Municipio",85,85,85,0,255,"Si","Sistema por gravedad","","Si",null,null,2016,"Si",null,null,"No",null,null,"Si - se realizaron pruebas hoy","No",null,"Si","Ausencia","No",null,"Si",0.8,"No",{"$nulls":6},1.4,14.285714285714286,24,"No",{"$nulls":4},"Si","Bueno","No",{"$nulls":4},"Si","Si","Entel","Si","No","Queman|Botan al rio, quebrada","Si","unitel","Si","causachun coca, radio bella morena","No","No","65bf85d97f2b3a5264995e76c0da9"]
["sqhf-snrt-8b0m","Bolivia - Cochabamba - Pocona - Lope Mendoza - Muyurina","Boi-100-1","3230920722","10-06-2021 15:24:24 UTC","Llasa","00:07:45",1,"Bolivia","Cochabamba",null,"Pocona","Lope Mendoza","Muyurina","-17.53386535","-65.3933482","3051.0","https://waterforpeople.s3.amazonaws.com/images/77827602-46a3-4cd5-b41b-825688ca4ad9.jpg",1,"Muyurina","Semi dispersa","Municipio",64,64,55,9,165,"Si","Sistema por gravedad","","Si",null,null,2021,"Si",null,null,"No",null,null,"Si - se realizaron pruebas hoy","No",null,"Si","Ausencia","No",null,"Si",0.68,"No",{"$nulls":6},1.8,11.111111111111111,24,"No",{"$nulls":4},"Si","Bueno","No","muyurina-punto1",null,null,null,"Si","Si","Entel","Si","No","Queman|Botan al rio, quebrada","Si","unitel","Si","radio bella morena, causachun coca","No","No","3b559131ff79386d52e38764bc87c8"]
["gt8m-reh8-nv1s","Bolivia - Cochabamba - Pocona - Lope Mendoza - Muyurina","Boi-100-1","3240610632","10-06-2021 15:24:55 UTC","Llasa","00:08:00",1,"Bolivia","Cochabamba",null,"Pocona","Lope Mendoza","Muyurina","-17.51004827","-65.39004369","3246.0","https://waterforpeople.s3.amazonaws.com/images/e54a0fa5-68b2-4755-a187-c7fca9b77ae8.jpg",1,"Muyurina","Semi dispersa","Municipio",64,64,55,0,165,"Si","Sistema por gravedad","","Si",null,null,2021,"Si",null,null,"No",null,null,"Si - se realizaron pruebas hoy","No",null,"Si","Presencia","No",null,"Si",11.6,"No",{"$nulls":6},1.6,12.5,24,"No",{"$nulls":4},"Si","Bueno","No","moyurina-punto 2",null,null,null,"Si","Si","Entel","Si","No","Queman|Botan al rio, quebrada","Si","unitel, ATB","Si","bella morena, causachun coca, radio la calle","No","No","6b286c5887c6558619539989545927d"]
["ua3q-9ktp-rg85","Bolivia - Cochabamba - Pocona - Mauka Pocona - Chilliijchi Norte","BOI-GALAXIJ5-08","3250851607","11-06-2021 16:23:47 UTC","Pocona 1","00:19:25",1,"Bolivia","Cochabamba",null,"Pocona","Mauka Pocona","Chilliijchi Norte","-17.65121111","-65.34737569","2631.0","https://waterforpeople.s3.amazonaws.com/images/bea42917-ec6c-41f5-8802-3f0317b99ac7.jpg",1,"Chilliijchi Norte","Semi dispersa","Municipio",28,27,17,10,51,"Si","Sistema por gravedad","","Si",null,null,2004,"Si",null,null,"No",null,null,"Si - se realizaron pruebas hoy","No",null,"Si","Ausencia","No",null,"Si",8.06,"No",{"$nulls":6},1.5,13.333333333333334,24,"No",{"$nulls":4},"Si","Bueno","Si","Hay problema en el paso de quebrada",null,null,null,"Si","Si","Entel|Tigo","Si","No","Queman|Entierran","No",null,"Si","Radio Pocona","No","No","7790e5c62c30f5fd6e6bb1cb7b9feff8"]
["kq7m-65kh-4k17","Bolivia - Cochabamba - Pocona - Mauka Pocona - Chillijchi","BOI-GALAXIJ5-02","3220780261","04-06-2021 14:06:43 UTC","Pocona2","00:23:59",1,"Bolivia","Cochabamba",null,"Pocona","Mauka Pocona","Chillijchi","-17.66732679","-65.341511","2543.0","https://waterforpeople.s3.amazonaws.com/images/dec75bed-8b04-40ec-8a98-316c67262f17.jpg",1,"Chillijchi","Semi dispersa","Iglesia",49,30,30,0,90,"Si","Sistema por gravedad","","Si",null,null,1994,"Si",null,null,"No",null,null,"Si - se realizaron pruebas hoy","No",null,"Si","Ausencia","No",null,"Si",2.2999999999999998,"No",{"$nulls":6},1.5,13.333333333333334,24,"No",{"$nulls":4},"Si","Bueno","No",{"$nulls":4},"Si","Si","Entel","Si","No","Queman","Si","unitel. con plato","Si","varios","No","No","83c5b8d161181bc66e3011a8d52a8a32"]
["35f6-7vt3-7j1w","Bolivia - Cochabamba - Pocona - Mauka Pocona - Copa Rancho","BOI-GALAXIJ5-02","3228700761","10-06-2021 13:42:54 UTC","Pocona2","00:06:06",1,"Bolivia","Cochabamba",null,"Pocona","Mauka Pocona","Copa Rancho","-17.6668185","-65.35312644","3068.0","https://waterforpeople.s3.amazonaws.com/images/6d6d5089-699b-4c66-b8f1-11722705ffb4.jpg",1,"Copa Rancho","Dispersa","Municipio|Otra ONG",48,48,48,0,144,"Si","Sistema por gravedad","","No",null,null,2014,"Si",null,null,"No",null,null,"Si - se realizaron pruebas hoy","No",null,"Si","Presencia","No",null,"Si",3.03,"No",{"$nulls":6},1.5,13.333333333333334,24,"No",{"$nulls":4},"Si","Bueno","Si","Cañeria negra",null,null,null,"Si","Si","Entel|Tigo","Si","No","Entierran|Botan al rio, quebrada","Si","tv lugar unitel","Si","causachun coca","No","No","6e90968fb9e968da8768de2d76f453c"]
["t267-xam9-mbgb","Bolivia - Cochabamba - Pocona - Mauka Pocona - Qhopi","BOI-GALAXIJ5-02","3224520229","04-06-2021 13:57:38 UTC","Pocona2","00:24:23",1,"Bolivia","Cochabamba",null,"Pocona","Mauka Pocona","Qhopi","-17.68291453","-65.36025003","2550.0","https://waterforpeople.s3.amazonaws.com/images/aecfa9bb-09b8-4206-87b8-0159b67e8706.jpg",1,"Qhopi","Semi dispersa","Municipio|Otra ONG",124,70,70,0,210,"Si","Sistema por gravedad","","Si",null,null,2011,"Si",null,null,"No",null,null,"Si - se realizaron pruebas hoy","No",null,"Si","Ausencia","No",null,"Si",2.1,"No",{"$nulls":6},2,10,24,"No",{"$nulls":4},"Si","Bueno","No",{"$nulls":4},"Si","Si","Entel","Si","No","Queman|Botan al rio, quebrada","Si","canal unitel por plato","Si","totora radio","No","No","24f595b62a2a2a87431d23c5c2f4f20"]
["heau-1xq8-v37d","Bolivia - Cochabamba - Pocona - Mauka Pocona - Qhopi Esquina","Boi-100-1","3236440419","03-01-2015 17:32:41 UTC","Llasa","00:28:42",1,"Bolivia","Cochabamba",null,"Pocona","Mauka Pocona","Qhopi Esquina","-17.69705867","-65.34527928","2527.0","https://waterforpeople.s3.amazonaws.com/images/3104c851-ac39-4d50-9323-b27abc4910d3.jpg",1,"Qhopi Esquina","Semi dispersa","Municipio",22,22,22,0,66,"Si","Sistema por gravedad","","Si",null,null,2008,"Si",null,null,"No",null,null,"Si - se realizaron pruebas hoy","No",null,"Si","Ausencia","No",null,"Si",1.19,"No",{"$nulls":6},0.25,80,24,"No",{"$nulls":4},"Si","Bueno","No",{"$nulls":4},"Si","Si","Entel","Si","No","Botan al rio, quebrada","Si","unitel, ATB","Si","radio totora, causachun coca","No","No","fa1decff66d38b1a10d381e3382faa39"]
["m76y-02w0-118n","Bolivia - Cochabamba - Pocona - Pampa Grande - Conda Arriba","Boi-100-1","3232600392","03-01-2015 18:12:33 UTC","Llasa","00:20:31",1,"Bolivia","Cochabamba",null,"Pocona","Pampa Grande","Conda Arriba","-17.70776707","-65.3615312","2446.0","https://waterforpeople.s3.amazonaws.com/images/5081b05f-2fe4-4739-9239-622f51c78874.jpg",1,"Conda Arriba","Semi dispersa","Comité de Agua",45,45,0,45,"","No",null,null,null,"Vertiente no protegida",{"$nulls":29},4,5,3,{"$nulls":4},"No",null,"Comunidad en conflictos social por la fuente de agua","Si","Si","Entel","Si","No","Botan al rio, quebrada","Si","unitel","Si","causachun coca, radio totora","No","No","eae769e023bf46637a4cc43aeb2a20"]
["x13m-khq8-cnqd","Bolivia - Cochabamba - Pocona - Pampa Grande - Conda Arriba","BOI-GALAXIJ5-02","3234870980","10-06-2021 13:59:01 UTC","Pocona2","00:06:21",1,"Bolivia","Cochabamba",null,"Pocona","Pampa Grande","Conda Arriba","-17.7318978","-65.35139488","2160.0","https://waterforpeople.s3.amazonaws.com/images/20398fd7-9948-443e-911e-529c03f1db99.jpg",1,"Zona Tambo Pampa Grande","Dispersa","Comité de Agua",4,4,4,0,12,"Si","Sistema por gravedad","","No",null,null,2010,"Si",null,null,"No",null,null,"Si - se realizaron pruebas hoy","No",null,"Si","Presencia","No",null,"Si",0.86,"No",{"$nulls":6},0.2,{"$f":"IF(BE181=\"\",\"\",(20/BE181))","v":100},24,"No",{"$nulls":4},"Si","Malo","Si","Cañeria negra para grifos y con filtracion",null,null,null,"No","No",null,"No","No","Botan al rio, quebrada","No",null,"No",null,"No","No","b2ba6ebe2143d4c7a9cd9b72c8fdb8"]
["7k2w-ugf0-g1us","Bolivia - Cochabamba - Pocona - Pampa Grande - Conda Arriba Este","Boi-100-1","3224520433","03-01-2015 18:06:37 UTC","Llasa","00:14:22",1,"Bolivia","Cochabamba",null,"Pocona","Pampa Grande","Conda Arriba Este","-17.70747459","-65.3495727","2401.0","https://waterforpeople.s3.amazonaws.com/images/dfaa44d8-5377-449f-bd11-a0cf18f60d6f.jpg",1,"Conda Arriba Este","Dispersa","Comité de Agua",32,32,0,32,"","No",null,null,null,"Rio",{"$nulls":29},4,5,3,{"$nulls":4},"No",null,"Comunidad en conflictos social por la fuente de agua","No","Si","Entel","Si","No","Queman","Si","unitel","Si","causachun coca, radio totora","No","No","66eef277216e3bd158a893d3e5bfbd1"]
["4541-nrhh-s8sr","Bolivia - Cochabamba - Pocona - Pampa Grande - Conda Baja","Boi-100-1","3252650316","03-01-2015 18:23:28 UTC","Llasa","00:11:45",1,"Bolivia","Cochabamba",null,"Pocona","Pampa Grande","Conda Baja","-17.71978908","-65.38326242","2488.0","https://waterforpeople.s3.amazonaws.com/images/dc12815d-83f3-441c-a644-06aeda96eca3.jpg",1,"Conda Baja","Concentrada","Comité de Agua",70,70,70,0,210,"Si","Sistema por gravedad","","Si",null,null,2014,"Si",null,null,"No",null,null,"Si - se realizaron pruebas hoy","No",null,"Si","Ausencia","No",null,"Si",5,"No",{"$nulls":6},2,{"$f":"IF(BE183=\"\",\"\",(20/BE183))","v":10},24,"No",{"$nulls":4},"Si","Bueno","No",{"$nulls":4},"Si","Si","Entel","Si","No","Queman|Botan al rio, quebrada","Si","unitel","Si","radio totora, causachun coca","No","No","a8d6914266e9bde6396e7ff8213075"]
["8w83-sa6h-0mpf","Bolivia - Cochabamba - Pocona - Pampa Grande - Conda Baja","Boi-100-1","3230810476","03-01-2015 18:24:00 UTC","Llasa","00:14:13",1,"Bolivia","Cochabamba",null,"Pocona","Pampa Grande","Conda Baja","-17.71981665","-65.38962687","2596.0","https://waterforpeople.s3.amazonaws.com/images/97d22ddd-e806-451b-b558-25b17e096f21.jpg",1,"Conda Baja","Concentrada","Municipio",60,60,60,0,180,"Si","Sistema por gravedad","","Si",null,null,2014,"Si",null,null,"No",null,null,"Si - se realizaron pruebas hoy","No",null,"Si","Ausencia","No",null,"Si",2.2000000000000002,"No",{"$nulls":6},1.6,12.5,24,"No",{"$nulls":4},"Si","Bueno","No",{"$nulls":4},"Si","Si","Entel","Si","No","Queman|Botan al rio, quebrada","Si","unitel","Si","radio totora, causachun coca","Si","Si","91b4c7512d9a1d77ce482a1d9c51ea"]
["hyvg-6dvc-xg0e","Bolivia - Cochabamba - Pocona - Pampa Grande - Qaqa Huasi","Boi-100-1","3238710425","03-01-2015 18:30:47 UTC","Llasa","00:14:20",1,"Bolivia","Cochabamba",null,"Pocona","Pampa Grande","Qaqa Huasi","-17.74765855","-65.37684061","2590.0","https://waterforpeople.s3.amazonaws.com/images/8a306084-a875-4fb1-b06c-9398a9df110d.jpg",1,"Qaqa Huasi","Dispersa","Comité de Agua",12,12,12,0,36,"Si","Sistema por gravedad","","Si",null,null,1999,"Si",null,null,"No",null,null,"Si - se realizaron pruebas hoy","No",null,"Si","Presencia","No",null,"Si",4.5,"No",{"$nulls":6},1.2,16.666666666666668,24,"No",{"$nulls":4},"Si","Malo","Si","El tanque de agua esta en mal estado, tiene filtracion por sus laterales-punto 1",null,null,null,"Si","Si","Entel","Si","No","Queman|Botan al rio, quebrada","Si","unitel, ATB","Si","radio totora, causachun coca","No","No","e65d85fa6c673310553988cc7b5e91e8"]
["3cpa-b6n4-fmwx","Bolivia - Cochabamba - Pocona - Pampa Grande - Qaqa Huasi","Boi-100-1","3242670463","03-01-2015 18:34:18 UTC","Llasa","00:14:30",1,"Bolivia","Cochabamba",null,"Pocona","Pampa Grande","Qaqa Huasi","-17.76157389","-65.38713961","2810.0","https://waterforpeople.s3.amazonaws.com/images/d3bbe49e-5f10-4f7c-a807-67cce7ff5c86.jpg",1,"Zona Puka Loma","Dispersa","Municipio",21,21,21,0,63,"Si","Sistema por gravedad","","Si",null,null,2009,"Si",null,null,"No",null,null,"No",{"$nulls":15},0.2,100,24,"No",{"$nulls":4},"Si","Bueno","Si","Qaqa Huasi Puca loma, conecciones domiciliarias con cañerias negras-punto 2",null,null,null,"Si","Si","Entel","Si","No","Queman|Botan al rio, quebrada","Si","ATB, unitel","Si","casuchun coca, radio totora","No","No","7f9ef1b8edb2d6c3465c6b793e1322"]
["bsr3-bp4g-ngqb","Bolivia - Cochabamba - Pocona - Pampa Grande - Thio Thio","Boi-100-1","3248590472","03-01-2015 18:19:01 UTC","Llasa","00:21:55",1,"Bolivia","Cochabamba",null,"Pocona","Pampa Grande","Thio Thio","-17.71398695","-65.3736669","2535.0","https://waterforpeople.s3.amazonaws.com/images/872fad09-0623-4a78-a52f-488ca0ae3f7b.jpg",1,"Thio Thio","Semi dispersa","Comité de Agua",32,20,20,0,60,"Si","Sistema por gravedad","","Si",null,null,2003,"Si",null,null,"No",null,null,"Si - se realizaron pruebas hoy","No",null,"Si","Presencia","No",null,"Si",4.3,"No",{"$nulls":6},0.22,90.909090909090907,24,"No",{"$nulls":4},"Si","Bueno","Si","La comunidad construyo con sus propios recursos el tanque de agua para su consumo humano",null,null,null,"Si","Si","Entel","Si","No","Botan al rio, quebrada","Si","unitel","Si","causachun coca, radio totora","No","No","378cd94f7176e4875ec3133a19f8dc39"]
["r5px-c44q-u1mk","Bolivia - Cochabamba - Pocona - Pampa Loma - Churo Alto","Boi-100-1","3220830696","10-06-2021 15:48:47 UTC","Llasa","00:11:18",1,"Bolivia","Cochabamba",null,"Pocona","Pampa Loma","Churo Alto","-17.54287993","-65.49738436","3854.0","https://waterforpeople.s3.amazonaws.com/images/b46d087e-ab8a-471d-af56-d129b495fcfd.jpg",1,"Churo Alto","Dispersa","Comité de Agua",20,8,8,0,24,"Si","Sistema por gravedad","","Si",null,null,2018,"Si",null,null,"No",null,null,"Si - se realizaron pruebas hoy","No",null,"Si","Ausencia","No",null,"Si",0.82,"No",{"$nulls":6},1.1000000000000001,18.18181818181818,24,"No",{"$nulls":4},"Si","Bueno","No",{"$nulls":4},"Si","Si","Entel","Si","No","Queman|Botan al rio, quebrada","Si","canal 7","Si","chiwalaqui","No","No","d53746512591a9676bb3a21869ee5573"]
["0e1x-nc5d-p7pm","Bolivia - Cochabamba - Pocona - Pampa Loma - Jatun Kasa","Boi-100-1","3222480692","11-06-2021 14:55:51 UTC","Llasa","00:13:05",1,"Bolivia","Cochabamba",null,"Pocona","Pampa Loma","Jatun Kasa","-17.5880466","-65.45263033","3287.0","https://waterforpeople.s3.amazonaws.com/images/7aab8ab2-17ed-4f00-96a1-c8a253d55968.jpg",1,"Jatun Kasa","Dispersa","Iglesia",18,12,12,0,36,"Si","Sistema por gravedad","","No",null,null,1997,"Si",null,null,"No",null,null,"Si - se realizaron pruebas hoy","No",null,"Si","Ausencia","No",null,"Si",2.85,"No",{"$nulls":6},0.3,66.666666666666671,24,"No",{"$nulls":4},"Si","Malo","No","Red con fugas",null,null,null,"No","Si","Entel","Si","No","Queman|Botan al rio, quebrada","No",null,"Si","municipal pocona, la calle","No","No","232a3991d236bcd4327e95595368bcd"]
["b57q-ss6s-6ad3","Bolivia - Cochabamba - Pocona - Pampa Loma - Mama Huasi Alto","Boi-100-1","3242740683","11-06-2021 14:54:02 UTC","Llasa","00:11:42",1,"Bolivia","Cochabamba",null,"Pocona","Pampa Loma","Mama Huasi Alto","-17.55277285","-65.48089006","3642.0","https://waterforpeople.s3.amazonaws.com/images/fce31f5c-fc9b-45e5-83a2-f78d08d98b6d.jpg",1,"Mama Huasi Alto y Pujru Pujru","Dispersa","Municipio",80,65,65,0,195,"Si","Sistema por gravedad","","Si",null,null,1999,"Si",null,null,"No",null,null,"Si - se realizaron pruebas hoy","No",null,"Si","Ausencia","No",null,"Si",5.63,"No",{"$nulls":6},1,20,24,"No",{"$nulls":4},"Si","Bueno","Si",{"$nulls":4},"Si","Si","Entel","Si","No","Queman|Botan al rio, quebrada","Si","ATB, UNITEL","Si","la calle, causachun coca","No","No","dabcb29805e576735e71f101b3530d"]
["9u3g-ytfm-53sm","Bolivia - Cochabamba - Pocona - Pampa Loma - Mama Huasi Bajo","Boi-100-1","3224540882","11-06-2021 14:37:37 UTC","Llasa","00:04:27",1,"Bolivia","Cochabamba",null,"Pocona","Pampa Loma","Mama Huasi Bajo","-17.57798254","-65.44365526","3501.0","https://waterforpeople.s3.amazonaws.com/images/58798d27-994f-4a74-a786-22434c223b98.jpg",1,"Mama Huasi Bajo","Dispersa","Municipio",30,30,30,0,90,"Si","Sistema por gravedad","","Si",null,null,2014,"Si",null,null,"No",null,null,"Si - se realizaron pruebas hoy","No",null,"Si","Ausencia","No",null,"Si",1.48,"No",{"$nulls":6},1.2,16.666666666666668,24,"No",{"$nulls":4},"Si","Bueno","No",{"$nulls":4},"Si","Si","Entel","Si","No","Queman|Botan al rio, quebrada","Si","unitel","Si","la calle, bella morena","No","No","86b335bf08cc3b8bdc28f048c02be2"]
["51cv-033y-npek","Bolivia - Cochabamba - Pocona - Pampa Loma - Vacas Kuchu","BOI-GALAXIJ5-08","3240621267","11-06-2021 15:00:27 UTC","Pocona 1","00:05:49",1,"Bolivia","Cochabamba",null,"Pocona","Pampa Loma","Vacas Kuchu","-17.59450839","-65.44446899","3452.0","https://waterforpeople.s3.amazonaws.com/images/b8881325-9e56-454f-8377-92145b2b7e0a.jpg",1,"Vacas Kuchu","Semi dispersa","Otra ONG",29,20,20,0,60,"Si","Sistema por gravedad","","Si",null,null,2014,"Si",null,null,"No",null,null,"Si - se realizaron pruebas hoy","No",null,"Si","Ausencia","No",null,"Si",0.8,"No",{"$nulls":6},1,20,24,"No",{"$nulls":4},"Si","Bueno","No",{"$nulls":4},"Si","Si","Entel","Si","No","Queman|Entierran","No",null,"Si","Radio Totora y Pocona","No","No","75d61331b9fa262a461cdb6b764530fb"]
["1s2s-9vby-a7r8","Bolivia - Cochabamba - Pocona - Pampa Loma - Vacas Kuchu","BOI-GALAXIJ5-08","3242741190","11-06-2021 15:00:50 UTC","Pocona 1","00:12:14",1,"Bolivia","Cochabamba",null,"Pocona","Pampa Loma","Vacas Kuchu","-17.59745787","-65.448036","3547.0","https://waterforpeople.s3.amazonaws.com/images/a5b3f090-ba1e-4c47-8ee7-a0fc75fcda97.jpg",1,"Vacas Kuchu","Semi dispersa","Otra ONG",29,20,20,0,60,"Si","Sistema por gravedad","","No",null,null,2014,"Si",null,null,"No",null,null,"Si - se realizaron pruebas hoy","No",null,"Si","Ausencia","No",null,"Si",0.8,"No",{"$nulls":6},0.7,28.571428571428573,24,"No",{"$nulls":4},"Si","Bueno","No",{"$nulls":4},"Si","Si","Entel","Si","No","Queman|Entierran","No",null,"Si","Radio Totora y Pocona","No","No","5e34f9cc382ecde49e8b7826ce0ba51"]
["0vps-1yyn-pvh3","Bolivia - Cochabamba - Pocona - Phuyu Huasi - Quewiñal","BOI-GALAXIJ5-02","3252721015","10-06-2021 16:02:22 UTC","Pocona2","00:23:32",1,"Bolivia","Cochabamba",null,"Pocona","Phuyu Huasi","Chaupi Rancho","-17.58084487","-65.39323103","3408.0","https://waterforpeople.s3.amazonaws.com/images/d1ac0692-42ea-481a-a04d-02a2b7a1f245.jpg",2,"Quewiñal y Chaupi Rancho","Dispersa","Municipio|Otra ONG",10,10,10,0,{"$f":"IF(Y194=0,\"\",(Y194*3))","v":30},"Si","Sistema por gravedad","","Si",null,null,2019,"Si",null,null,"No",null,null,"Si - se realizaron pruebas hoy","No",null,"Si","Presencia","No",null,"Si",0.61,"No",{"$nulls":6},0.8,25,24,"No",{"$nulls":4},"Si","Bueno","No",{"$nulls":4},"Si","Si","Entel","Si","No","Botan al rio, quebrada","No",null,"No",null,"No","No","6419baf84debeec95eeb7e304e272"]
["nnn5-yee5-5yw3","Bolivia - Cochabamba - Pocona - Phuyu Huasi - Cuesta Punta B","Boi-100-1","3234850633","11-06-2021 13:31:06 UTC","Llasa","00:08:06",1,"Bolivia","Cochabamba",null,"Pocona","Phuyu Huasi","Cuesta Punta","-17.5866617","-65.38354767","3291.0","https://waterforpeople.s3.amazonaws.com/images/e52a3059-59a3-4f21-9d5b-ba5a6cedb720.jpg",1,"Cuesta Punta","Semi dispersa","Municipio",47,47,47,0,141,"Si","Sistema por gravedad","","Si",null,null,2013,"Si",null,null,"No",null,null,"Si - se realizaron pruebas hoy","No",null,"Si","Ausencia","No",null,"Si",1.42,"No",{"$nulls":6},1.3,15.384615384615383,24,"No",{"$nulls":4},"Si","Bueno","Si","la cominudad es cuesta punta",null,null,null,"Si","Si","Entel|Tigo","Si","No","Queman|Botan al rio, quebrada","Si","unitel, ATB","Si","bella morena, la calle","No","No","0623fb32fbf8018697b56f76e661238"]
["cbvh-ce1c-u046","Bolivia - Cochabamba - Pocona - Phuyu Huasi - Cuesta Punta Arriba","BOI-GALAXIJ5-02","3236460964","10-06-2021 16:05:09 UTC","Pocona2","00:04:16",1,"Bolivia","Cochabamba",null,"Pocona","Phuyu Huasi","Cuesta Punta Arriba","-17.59237582","-65.37567061","3290.0","https://waterforpeople.s3.amazonaws.com/images/84158b13-2151-4f78-a9c9-da8691d36ad5.jpg",1,"Cuesta Punta Arriba","Dispersa","Municipio|Otra ONG",47,47,47,0,141,"Si","Sistema por gravedad","","Si",null,null,2017,"Si",null,null,"No",null,null,"Si - se realizaron pruebas hoy","No",null,"Si","Ausencia","No",null,"Si",0.76,"No",{"$nulls":6},1,20,24,"No",{"$nulls":4},"Si","Bueno","No",{"$nulls":4},"Si","Si","Entel","Si","No","Botan al rio, quebrada","No",null,"No",null,"No","No","c88143ec863c107831c9e6fb86ad4a"]
["20wv-h34u-jpxx","Bolivia - Cochabamba - Pocona - Phuyu Huasi - Kullpana","Boi-100-1","3252720757","11-06-2021 13:49:43 UTC","Llasa","00:10:11",1,"Bolivia","Cochabamba",null,"Pocona","Phuyu Huasi","Kullpana","-17.56794617","-65.3887774","3217.0","https://waterforpeople.s3.amazonaws.com/images/760b173c-0785-4931-941a-c51ba738774b.jpg",0,"Kullpana","Semi dispersa","Comité de Agua",15,15,0,15,"","No",null,null,null,"Vertiente no protegida","",{"$nulls":24},"",null,null,null,4,200,4,{"$nulls":4},"No",null,"ir a la alcaldia a pedir ayuda para la construccion de tanque","Si","Si","Entel","Si","No","Queman|Botan al rio, quebrada","Si","unitel, ATB","Si","bella morena, la calle","No","No","592079d290c99f128f9f98e48e2eca"]
["q1dd-vw62-mspm","Bolivia - Cochabamba - Pocona - Phuyu Huasi - Oqhollu Mayu","Boi-100-1","3232640658","11-06-2021 13:26:50 UTC","Llasa","00:10:58",1,"Bolivia","Cochabamba",null,"Pocona","Phuyu Huasi","Oqhollu Mayu","-17.58329293","-65.38687234","3308.0","https://waterforpeople.s3.amazonaws.com/images/505260d3-0580-455d-aadd-0a0df3f172e0.jpg",1,"Oqhollu Mayu","Semi dispersa","Municipio|Comité de Agua",28,28,28,0,84,"Si","Sistema por gravedad","","No",null,null,1997,"Si",null,null,"Si",5,5,"Si - se realizaron pruebas hoy","No",null,"Si","Ausencia","No",null,"Si",3.17,"No",{"$nulls":6},1.1000000000000001,18.18181818181818,24,"No",{"$nulls":4},"Si","Malo","Si","Tanque en mal estado, SAP cumplio su vida util",null,null,null,"Si","Si","Entel","Si","No","Queman|Botan al rio, quebrada","Si","ATB, unitel","Si","radio bella morena, radio la calle","No","No","e0d314e91c5d8d7c547bd9d995b5722f"]
["0vps-1yyn-pvh3","Bolivia - Cochabamba - Pocona - Phuyu Huasi - Quewiñal","BOI-GALAXIJ5-02","3252721015","10-06-2021 16:02:22 UTC","Pocona2","00:23:32",1,"Bolivia","Cochabamba",null,"Pocona","Phuyu Huasi","Quewiñal","-17.58084487","-65.39323103","3408.0","https://waterforpeople.s3.amazonaws.com/images/d1ac0692-42ea-481a-a04d-02a2b7a1f245.jpg",2,"Quewiñal y Chaupi Rancho","Dispersa","Municipio|Otra ONG",33,33,33,0,99,"Si","Sistema por gravedad","","Si",null,null,2019,"Si",null,null,"No",null,null,"Si - se realizaron pruebas hoy","No",null,"Si","Presencia","No",null,"Si",0.61,"No",{"$nulls":6},0.8,25,24,"No",{"$nulls":4},"Si","Bueno","No",{"$nulls":4},"Si","Si","Entel","Si","No","Botan al rio, quebrada","No",null,"No",null,"No","No","6419baf84debeec95eeb7e304e272"]
["pwx0-bgv8-xd0t","Bolivia - Cochabamba - Pocona - Phuyu Huasi - Veliz Rancho","BOI-GALAXIJ5-02","3234920445","11-06-2021 13:10:41 UTC","Pocona2","00:14:45",1,"Bolivia","Cochabamba",null,"Pocona","Phuyu Huasi","Veliz Rancho","-17.565388","-65.37317847","3241.0","https://waterforpeople.s3.amazonaws.com/images/c22a5612-f2a2-4ea8-b7ab-8728dafd9584.jpg",0,"Veliz Rancho","Dispersa","Iglesia",29,29,0,29,"","No",null,null,null,"Rio","",{"$nulls":24},"",null,null,null,80,80,4,{"$nulls":4},"No",null,"no saben","No","Si","Entel","Si","No","Botan al rio, quebrada","No",null,"No",null,"No","No","37c4de2da9a4a8ecd77431986424a51e"]
["qs8x-wm4t-pva1","Bolivia - Cochabamba - Pocona - Pila Pata - Chaupi Loma","BOI-GALAXIJ5-08","3252711291","10-06-2021 17:16:48 UTC","Pocona 1","00:12:56",1,"Bolivia","Cochabamba",null,"Pocona","Pila Pata","Chaupi Loma","-17.5356351","-65.43324869","3298.0","https://waterforpeople.s3.amazonaws.com/images/ce28ce3b-bd8a-4738-907c-f712dae25037.jpg",1,"Chaupi loma","Semi dispersa","Municipio|Otra ONG",56,35,35,0,105,"Si","Sistema por bombeo y gravedad","","Si",null,null,2015,"Si",null,null,"No",null,null,"Si - se realizaron pruebas hoy","No",null,"Si","Presencia","No",null,"Si",2.08,"No",{"$nulls":6},0.8,25,24,"No",{"$nulls":4},"Si","Bueno","No",{"$nulls":4},"Si","Si","Entel","Si","No","Queman|Entierran","No",null,"Si","Radio Pocona","No","No","750d24986e98134f8859943237475c"]
["a8ns-m39j-0n7a","Bolivia - Cochabamba - Pocona - Pila Pata - Churo Alto","BOI-GALAXIJ5-08","3242731293","10-06-2021 16:33:17 UTC","Pocona 1","00:09:56",1,"Bolivia","Cochabamba",null,"Pocona","Pila Pata","Churo","-17.52472324","-65.44647768","3430.0","https://waterforpeople.s3.amazonaws.com/images/6f86890c-60cd-4a32-8192-9db753d4a6a6.jpg",1,"Churu","Semi dispersa","Iglesia",30,4,0,4,"","No",null,null,null,"","Toman del rio",{"$nulls":24},"",null,null,null,10,5,2,{"$nulls":4},"No",null,"en el POA","Si","Si","Entel","Si","No","Queman|Entierran","No",null,"Si","Radio Pocona","No","No","cb5f1d404fcc857edabb939bace5d6f3"]
["p1w0-q5gs-qv64","Bolivia - Cochabamba - Pocona - Pila Pata - Pampa Grande","BOI-GALAXIJ5-08","3250831391","10-06-2021 17:19:16 UTC","Pocona 1","00:05:17",1,"Bolivia","Cochabamba",null,"Pocona","Pila Pata","Pampa Grande","-17.52791712","-65.4280797","3355.0","https://waterforpeople.s3.amazonaws.com/images/754bac37-f9e6-4383-b197-b928471422ac.jpg",1,"Pampa Grande","Semi dispersa","Municipio|Comité de Agua",50,35,35,0,105,"Si","Sistema por gravedad","","Si",null,null,2020,"Si",null,null,"No",null,null,"Si - se realizaron pruebas hoy","No",null,"Si","Presencia","No",null,"Si",0.99,"No",{"$nulls":6},1.2,16.666666666666668,24,"No",{"$nulls":4},"Si","Bueno","No",{"$nulls":4},"Si","Si","Entel","Si","No","Queman|Entierran","No",null,"Si","Radio Totora y Pocona","No","No","2ad654ce522cded3b59ded6f6bc5bd7"]
["by4t-gtk8-k5jx","Bolivia - Cochabamba - Pocona - Pila Pata - Salsuri","BOI-GALAXIJ5-08","3224541534","10-06-2021 16:51:42 UTC","Pocona 1","00:09:56",1,"Bolivia","Cochabamba",null,"Pocona","Pila Pata","Salsuri","-17.52566378","-65.44502801","3407.0","https://waterforpeople.s3.amazonaws.com/images/2b5188b8-a0e7-47f8-b31f-9b2f47a3cefd.jpg",1,"Salsuri","Dispersa","Municipio|Agua Para el Pueblo",60,37,37,0,111,"Si","Sistema por bombeo y gravedad","","Si",null,null,2020,"Si",null,null,"No",null,null,"Si - se realizaron pruebas hoy","No",null,"Si","Ausencia","No",null,"Si",1.61,"No",{"$nulls":6},1.5,13.333333333333334,24,"No",{"$nulls":4},"Si","Bueno","No",{"$nulls":4},"Si","Si","Entel","Si","No","Queman","No",null,"Si","Radio Pocona y Totora","No","No","7ade804e89c75c1da441dabfc4cf0ee"]
["5dwc-yd27-g65a","Bolivia - Cochabamba - Pocona - Tablon - Julpe Arriba","BOI-GALAXIJ5-02","3224520209","25-05-2021 20:00:27 UTC","Pocona2","00:12:06",1,"Bolivia","Cochabamba",null,"Pocona","Tablon","Julpe Arriba","-17.77994637","-65.35246055","2267.0","https://waterforpeople.s3.amazonaws.com/images/ddab2f66-6407-4b37-9f52-ba0a76ae89f1.jpg",1,"Julpe Arriba","Dispersa","Municipio",12,12,0,12,"","No",null,null,null,"","Cosecha de lluvia",{"$nulls":24},"",null,null,null,1,1200,1,{"$nulls":4},"No",null,"no sabe","No","Si","Entel","Si","No","Botan al rio, quebrada","No",null,"No",null,"No","No","5d13d24be517cf788c55e646483ecff5"]
["nxmu-m4aj-hff9","Bolivia - Cochabamba - Pocona - Tablon - Tablon","BOI-GALAXIJ5-08","3230840251","04-06-2021 13:22:05 UTC","Pocona 1","00:18:19",1,"Bolivia","Cochabamba",null,"Pocona","Tablon","Tablon","-17.77520294","-65.33780554","2379.0","https://waterforpeople.s3.amazonaws.com/images/a19c28f8-15de-40d4-8f22-181dacdda187.jpg",1,"Tablon","Dispersa","Gobierno Nacional|Municipio",27,8,0,8,"","No",null,null,null,"","Cosecha de lluvia",{"$nulls":24},"",null,null,null,3,1200,1,{"$nulls":4},"No",null,"no sabe","No","Si","Entel","Si","No","Botan al rio, quebrada","No",null,"No",null,"No","No","57d088feb3d6143ddf785dda63a430b4"]
["ca0e-yd6p-taw9","Bolivia - Cochabamba - Pocona - Tranca - J. V. Kewiña K'asa","BOI-GALAXIJ5-08","3244420427","04-06-2021 15:36:26 UTC","Pocona 1","00:18:17",1,"Bolivia","Cochabamba",null,"Pocona","Tranca","J. V. Kewiña K'asa","-17.78268337","-65.48217456","3450.0","https://waterforpeople.s3.amazonaws.com/images/d03d5cc3-12e8-4d65-a13c-6da4bab5d71e.jpg",1,"Kewiña Kasa","Semi dispersa","Otra ONG",22,15,15,0,45,"Si","Sistema por gravedad","","Si",null,null,1993,"Si",null,null,"No",null,null,"Si - se realizaron pruebas hoy","No",null,"Si","Ausencia","No",null,"Si",2.7,"No",{"$nulls":6},0.2,100,24,"No",{"$nulls":4},"Si","Malo","Si","Tanque de almacenamiento en mal estado",null,null,null,"Si","Si","Entel","Si","No","Queman","Si","Unitel, ATB con tv cable","Si","Radio Pocona, Radio Totora","No","No","7aa9ce96f5e467ed358a67866d1d13a"]
["r7gc-1pca-280j","Bolivia - Cochabamba - Pocona - Tranca - Larimarca","BOI-GALAXIJ5-08","3228670337","04-06-2021 15:43:27 UTC","Pocona 1","00:12:07",1,"Bolivia","Cochabamba",null,"Pocona","Tranca","Larimarca","-17.78571588","-65.42700903","2904.0","https://waterforpeople.s3.amazonaws.com/images/87a95611-445b-445c-a32a-e8b64a60a21a.jpg",0,"Larimarca","Dispersa","Iglesia",95,80,0,80,"","No",null,null,null,"Rio","",{"$nulls":24},"",null,null,null,1,5,3,{"$nulls":4},"No",null,"La comunidad no tiene un sistema de agua Gestionar al GAM","No","Si","Entel","Si","No","Queman|Entierran|Botan al rio, quebrada","No",null,"Si","Radio Pocona, radio esperanza","No","No","9e5f8341927ba14414e554ca2a79632"]
["tafj-8pb9-exv9","Bolivia - Cochabamba - Pocona - Tranca - Sombrerito","BOI-GALAXIJ5-08","3230840445","04-06-2021 16:32:13 UTC","Pocona 1","00:12:22",1,"Bolivia","Cochabamba",null,"Pocona","Tranca","Sombrerito","-17.76887412","-65.49125964","3464.0","https://waterforpeople.s3.amazonaws.com/images/00f81f70-d21a-4fa3-a392-a9c66a4ca7d4.jpg",0,"Sombrerito","Dispersa","Iglesia",15,5,0,5,"","No",null,null,null,"Rio","",{"$nulls":24},"",null,null,null,1,5,4,{"$nulls":4},"No",null,"Gestionar al GAM","No","Si","Entel","No","No","Queman|Botan al rio, quebrada","No",null,"Si","Radio Totora","No","No","6b6a5422145abb58b3b40e8a1354b46"]
["vj72-d6kr-jkkn","Bolivia - Cochabamba - Pocona - Tranca - Tranca","BOI-GALAXIJ5-08","3246490418","04-06-2021 15:54:24 UTC","Pocona 1","00:11:28",1,"Bolivia","Cochabamba",null,"Pocona","Tranca","Tranca","-17.73339338","-65.45549815","3414.0","https://waterforpeople.s3.amazonaws.com/images/d23c8824-0393-49ff-89e2-54f6e1b47083.jpg",1,"Tranca","Dispersa","Iglesia",30,3,0,3,"","No",null,null,null,"Rio","",{"$nulls":24},"",null,null,null,4,5,3,{"$nulls":4},"No",null,"La comunidad no tiene sistema de agua, Gestionar al GAM","No","Si","Entel","No","No","Entierran|Botan al rio, quebrada","Si","ATB y Unitel por tv cable","Si","Radio Totora","No","No","76f1b78177f8ef143830a7b239cdfed2"]
["1c4v-qtbp-4kmy","Bolivia - Cochabamba - Pocona - Tranca - Yacu Particu","BOI-GALAXIJ5-08","3230840434","04-06-2021 15:46:59 UTC","Pocona 1","00:12:12",1,"Bolivia","Cochabamba",null,"Pocona","Tranca","Yacu Particu","-17.70922852","-65.54126473","3766.0","https://waterforpeople.s3.amazonaws.com/images/d9e96799-9250-4487-82e1-a8b9cc7627b8.jpg",1,"Yacu partico","Semi dispersa","Iglesia",50,20,20,0,60,"Si","Sistema por gravedad","","Si",null,null,1994,"Si",null,null,"No",null,null,"Si - se realizaron pruebas hoy","No",null,"Si","Ausencia","No",null,"Si",1.3,"No",{"$nulls":6},0.2,100,24,"No",{"$nulls":4},"Si","Malo","Si","El tanque esta en mal estado",null,null,null,"Si","Si","Entel","Si","No","Queman|Entierran","Si","unitel por tv cable","Si","radio pocona","No","No","308da02f3282934264335d4840393e79"]
["60sw-w51d-wcuk","Bolivia - Cochabamba - Pocona - Wayapacha - 15 de enero","BOI-GALAXIJ5-08","3250831361","10-06-2021 16:55:49 UTC","Pocona 1","00:08:42",1,"Bolivia","Cochabamba",null,"Pocona","Wayapacha","15 de enero","-17.54489125","-65.42556179","3269.0","https://waterforpeople.s3.amazonaws.com/images/d5507642-876a-48e7-9c8e-24cbdd7866d5.jpg",1,"15 de Enero","Semi dispersa","Otra ONG|Iglesia",50,25,25,0,75,"Si","Sistema por gravedad","","Si",null,null,1999,"Si",null,null,"No",null,null,"Si - se realizaron pruebas hoy","No",null,"Si","Presencia","No",null,"Si",14.4,"No",{"$nulls":6},1,20,24,"No",{"$nulls":4},"Si","Bueno","Si","Fuga de agua en tanque",null,null,null,"Si","Si","Entel","Si","No","Queman|Entierran","No",null,"Si","Radio Totora","Si","No","cf19dc64e693523b45b25d6911d8d490"]
["77rx-62gs-g79r","Bolivia - Cochabamba - Pocona - Wayapacha - Kasa Qollpana","Boi-100-1","3250850742","11-06-2021 13:43:36 UTC","Llasa","00:15:52",1,"Bolivia","Cochabamba",null,"Pocona","Wayapacha","Kasa Qollpana","-17.57400361","-65.39581311","3329.0","https://waterforpeople.s3.amazonaws.com/images/0279e401-c0df-4996-a280-411b2eb64390.jpg",1,"kasa qollapana","Semi dispersa","Municipio",20,20,20,0,60,"Si","Sistema por gravedad","","Si",null,null,2020,"Si",null,null,"No",null,null,"Si - se realizaron pruebas hoy","No",null,"Si","Ausencia","No",null,"Si",1.32,"No",{"$nulls":6},1.1000000000000001,18.18181818181818,24,"No",{"$nulls":4},"Si","Bueno","Si","2 medidores en mal estado y sin funcionamiento",null,null,null,"Si","Si","Entel","Si","No","Queman|Botan al rio, quebrada","Si","unitel, ATB","Si","radio bella morena, casachun coca","No","No","497a969d79f9ab2707d83eb3afedb8"]
["8qm3-bkm7-cyj4","Bolivia - Cochabamba - Pocona - Wayapacha - Mayun Punku","BOI-GALAXIJ5-08","3220831343","10-06-2021 15:22:00 UTC","Pocona 1","00:03:48",1,"Bolivia","Cochabamba",null,"Pocona","Wayapacha","Mayun Punku","-17.55801514","-65.42944944","3336.0","https://waterforpeople.s3.amazonaws.com/images/2cb1e3cd-226f-4b22-a457-cd19d864a8f2.jpg",1,"Mayun Punku","Dispersa","Otra ONG",10,10,10,0,30,"Si","Sistema por gravedad","","Si",null,null,2010,"Si",null,null,"No",null,null,"Si - se realizaron pruebas hoy","No",null,"Si","Presencia","No",null,"Si",0.76,"No",{"$nulls":6},1,20,24,"No",{"$nulls":4},"Si","Bueno","No",{"$nulls":4},"Si","Si","Entel","Si","No","Queman|Entierran","No",null,"Si","Radio Pocona","No","No","e8f91e1cd9729fdf77bce6142db04d9d"]
["8p6e-5jub-92xe","Bolivia - Cochabamba - Pocona - Wayapacha - Mayun Punku","BOI-GALAXIJ5-08","3230891322","10-06-2021 15:22:27 UTC","Pocona 1","00:09:44",1,"Bolivia","Cochabamba",null,"Pocona","Wayapacha","Mayun Punku","-17.55753765","-65.43416642","3307.0","https://waterforpeople.s3.amazonaws.com/images/f5958e67-b8ca-4260-a72a-612305107409.jpg",1,"Mayun Punku","Semi dispersa","Iglesia",20,20,20,0,60,"Si","Sistema por gravedad","","Si",null,null,1996,"Si",null,null,"No",null,null,"Si - se realizaron pruebas hoy","No",null,"Si","Presencia","No",null,"Si",0.76,"No",{"$nulls":6},1,20,24,"No",{"$nulls":4},"Si","Bueno","Si","Figas en el Tanque",null,null,null,"Si","Si","Entel","Si","No","Queman|Entierran","No",null,"Si","Radio Pocona","No","No","e6116574e174149d7c29e11079b3e044"]
["96j9-pg70-fay7","Bolivia - Cochabamba - Pocona - Wayapacha - Potrero","Boi-100-1","3252740294","10-06-2021 15:37:21 UTC","Llasa","00:11:28",1,"Bolivia","Cochabamba",null,"Pocona","Wayapacha","Potrero","-17.56580939","-65.40864223","3339.0","https://waterforpeople.s3.amazonaws.com/images/5c283fab-ac19-4ec8-859d-7f6bf9cd6e12.jpg",1,"potrero","Dispersa","Gobierno Nacional|Comité de Agua",59,55,55,0,165,"Si","Sistema por gravedad","","Si",null,null,1993,"Si",null,null,"No",null,null,"Si - se realizaron pruebas hoy","No",null,"Si","Presencia","No",null,"Si",0.77,"No",{"$nulls":6},1.9,10.526315789473685,24,"No",{"$nulls":4},"Si","Bueno","No",{"$nulls":4},"Si","Si","Entel","Si","No","Queman|Botan al rio, quebrada","Si","unitel, ATB","Si","bella morena, causachun coca","No","No","e4f4b92d80b6456c75148251eb28144"]
["6jgu-f5g2-tsu2","Bolivia - Cochabamba - Pocona - Wayapacha - Wayapacha","BOI-GALAXIJ5-02","3252711071","11-06-2021 15:07:41 UTC","Pocona2","00:05:43",1,"Bolivia","Cochabamba",null,"Pocona","Wayapacha","Wayapacha","-17.55095188","-65.40774545","3109.0","https://waterforpeople.s3.amazonaws.com/images/2f75f0b8-9638-4d49-a9bf-18d92379ca5f.jpg",1,"huayapacha","Concentrada","Gobierno Nacional|Municipio|Otra ONG",70,70,70,0,210,"Si","Sistema por gravedad","","Si",null,null,2011,"Si",null,null,"No",null,null,"Si - se realizaron pruebas hoy","No",null,"Si","Presencia","No",null,"Si",4.8600000000000003,"No",{"$nulls":6},1.5,13.333333333333334,24,"No",{"$nulls":4},"Si","Bueno","No","Solicitan ampliación de red",null,null,null,"Si","Si","Entel","Si","No","Queman","Si","atv unitel","Si","radio","No","No","a5d542bcdf30a44b745f1ddfb03561e"]
["yme4-gvrb-u6ya","Bolivia - Cochabamba - Pocona - Yuraq Molino - Cañada Arriba","BOI-GALAXIJ5-02","3246490236","04-06-2021 13:47:59 UTC","Pocona2","00:19:28",1,"Bolivia","Cochabamba",null,"Pocona","Yuraq Molino","Cañada","-17.70515853","-65.28703365","2625.0","https://waterforpeople.s3.amazonaws.com/images/f78f6646-4e93-49a4-ba99-da9ede1543a5.jpg",1,"Cañada","Dispersa","Otra ONG",25,13,13,0,39,"Si","Sistema por gravedad","","No",null,null,1997,"Si",null,null,"No",null,null,"Si - se realizaron pruebas hoy","No",null,"Si","Presencia","No",null,"Si",18.899999999999999,"No",{"$nulls":6},0.5,40,24,"No",{"$nulls":4},"Si","Bueno","No",{"$nulls":4},"Si","Si","Entel","Si","No","Botan al rio, quebrada","No",null,"No",null,"No","No","531c9ed82efaeddef6186fa4114cd5"]
["6b1q-c28m-tmf0","Bolivia - Cochabamba - Pocona - Yuraq Molino - Cañada Arriba","BOI-GALAXIJ5-02","3230900952","10-06-2021 13:20:49 UTC","Pocona2","00:21:08",1,"Bolivia","Cochabamba",null,"Pocona","Yuraq Molino","Cañada Arriba","-17.7141094","-65.3166845","2651.0","https://waterforpeople.s3.amazonaws.com/images/42793750-a747-474a-a6eb-4d8018530c8c.jpg",1,"Cañada Arriba","Dispersa","Iglesia",35,7,0,7,"","No",null,null,null,"Vertiente no protegida","",{"$nulls":24},"",null,null,null,80,500,1,{"$nulls":4},"No",null,"no sabe","No","Si","Entel","Si","No","Botan al rio, quebrada","No",null,"No",null,"No","No","577fbea6eec1572f6ae3151fcdca3381"]
["g4f3-dv10-g2jw","Bolivia - Cochabamba - Pocona - Yuraq Molino - Chimboata","Boi-100-1","3252680422","03-01-2015 16:56:02 UTC","Llasa","00:11:59",1,"Bolivia","Cochabamba",null,"Pocona","Yuraq Molino","Chimboata","-17.66149779","-65.2789719","2624.0","https://waterforpeople.s3.amazonaws.com/images/d10ea826-6682-4184-8272-548b63ec2ddf.jpg",1,"Chimboata","Concentrada","Municipio|Otra ONG",78,78,78,0,234,"Si","Sistema por gravedad","","Si",null,null,2005,"Si",null,null,"No",null,null,"Si - se realizaron pruebas hoy","No",null,"Si","Ausencia","No",null,"Si",3.13,"No",{"$nulls":6},1,20,24,"No",{"$nulls":4},"Si","Bueno","No",{"$nulls":4},"Si","Si","Entel","Si","No","Queman|Botan al rio, quebrada","Si","unitel","Si","la calle, cusachun coca","No","No","a4499f03715bc1611f3e473b8e69f5"]
["twx6-hmp6-je7f","Bolivia - Cochabamba - Pocona - Yuraq Molino - Misky Yaku","Boi-100-1","3238730396","03-01-2015 16:49:36 UTC","Llasa","00:14:00",1,"Bolivia","Cochabamba",null,"Pocona","Yuraq Molino","Misky Yaku","-17.68401347","-65.27440294","2661.0","https://waterforpeople.s3.amazonaws.com/images/3155b9ca-bf83-492e-8549-e0ca2e0a2188.jpg",1,"Misky Yaku","Dispersa","Municipio|Comité de Agua|Iglesia",68,14,14,0,42,"Si","Sistema por gravedad","","Si",null,null,1995,"Si",null,null,"Si",5,5,"Si - se realizaron pruebas hoy","No",null,"Si","Presencia","No",null,"Si",3.2,"No",{"$nulls":6},0.2,100,24,"No",{"$nulls":4},"Si","Malo","Si","Cañeria negra conectado al grifo al interperie con roturas de red cada vez",null,null,null,"Si","Si","Entel","Si","No","Queman|Botan al rio, quebrada","No",null,"Si","muchos","No","No","79d9d7335c1acbc6e51491012c1e5eb"]
["5n9m-3893-m5u1","Bolivia - Cochabamba - Pocona - Yuraq Molino - Molle Molle","BOI-GALAXIJ5-02","3242670247","04-06-2021 15:04:33 UTC","Pocona2","00:20:15",1,"Bolivia","Cochabamba",null,"Pocona","Yuraq Molino","Molle Molle","-17.69145334","-65.26776342","2710.0","https://waterforpeople.s3.amazonaws.com/images/9dce2478-0caa-454c-9aa9-05638a8a22d8.jpg",1,"Molle Molle","Dispersa","Municipio|Otra ONG",34,8,8,0,24,"Si","Sistema por gravedad","","Si",null,null,1994,"No","Escasez Estacional","","Si",1,7,"Si - se realizaron pruebas hoy","No",null,"Si","Presencia","No",null,"Si",2.2000000000000002,"No",{"$nulls":6},0.2,100,1,"No",{"$nulls":4},"No","Malo","Si","Escases de agua agua no suficiente para consumo humano",null,null,null,"Si","Si","Entel","Si","No","Botan al rio, quebrada","Si","canal 30. unitel con plato","Si","ratio totora . causachun coca","No","No","d19e286a8d674692782cf05b327caf52"]
["s01t-6p0q-kauy","Bolivia - Cochabamba - Pocona - Yuraq Molino - Pilancho","Boi-100-1","3250760396","03-01-2015 16:36:41 UTC","Llasa","00:15:59",1,"Bolivia","Cochabamba",null,"Pocona","Yuraq Molino","Pilancho","-17.68058389","-65.2963941","2544.0","https://waterforpeople.s3.amazonaws.com/images/34bac083-203e-450e-9075-4823c229c035.jpg",1,"Pilancho","Semi dispersa","Municipio",42,42,42,0,126,"Si","Sistema por bombeo y gravedad","","Si",null,null,2019,"Si",null,null,"No",null,null,"Si - se realizaron pruebas hoy","No",null,"Si","Ausencia","No",null,"Si",3.5,"No",{"$nulls":6},2,10,24,"No",{"$nulls":4},"Si","Bueno","No",{"$nulls":4},"Si","Si","Entel","Si","No","Queman|Botan al rio, quebrada","No",null,"No",null,"No","No","685ba2bae048fecc35e84b46bc39d66b"]
["y4gs-9thx-x26b","Bolivia - Cochabamba - Pocona - Yuraq Molino - Qollpana","Boi-100-1","3230930365","11-06-2021 14:31:39 UTC","Llasa","00:15:30",1,"Bolivia","Cochabamba",null,"Pocona","Yuraq Molino","Qollpana","-17.62370945","-65.28525148","2887.0","https://waterforpeople.s3.amazonaws.com/images/dcc5627c-c512-415a-ae32-3edd2d41b894.jpg",1,"Qollpana","Dispersa","Municipio",32,32,32,0,96,"Si","Sistema por gravedad","","No",null,null,2017,"Si",null,null,"No",null,null,"Si - se realizaron pruebas hoy","No",null,"Si","Ausencia","No",null,"Si",6.43,"No",{"$nulls":6},0.5,40,24,"No",{"$nulls":4},"Si","Bueno","No",{"$nulls":4},"Si","Si","Entel","Si","No","Queman|Botan al rio, quebrada","Si","unitel, ATB","Si","bella morena, la calle","No","No","c36ecb81f4e0d07f59d52bf97213254b"]
["bkh9-55gg-tapm","Bolivia - Cochabamba - Pocona - Yuraq Molino - Tipa Tipa","BOI-GALAXIJ5-02","3230840226","27-05-2021 03:05:22 UTC","Pocona2","00:42:01",1,"Bolivia","Cochabamba",null,"Pocona","Yuraq Molino","Tipa Tipa","-17.72959997","-65.33857966","2544.0","https://waterforpeople.s3.amazonaws.com/images/6bbab426-4a3f-441a-ad9d-348da032ed46.jpg",1,"Tipa Tipa","Dispersa","Gobierno Nacional",5,4,4,0,12,"Si","Sistema por gravedad","","No",null,null,1994,"Si",null,null,"No",null,null,"Si - se realizaron pruebas hoy","No",null,"Si","Ausencia","No",null,"Si",2.8,"No",{"$nulls":6},0.2,100,6,"No",{"$nulls":4},"No","Malo","Si","Politubo negro al interperie con grifo",null,null,null,"No","Si","Entel","Si","No","Botan al rio, quebrada","No",null,"No",null,"No","No","815575dba868c5f137767f0726474"]
["xdec-p48q-19ye","Bolivia - Cochabamba - Pocona - Yuraq Molino - Tipa Tipa","BOI-GALAXIJ5-02","3224520213","27-05-2021 03:09:19 UTC","Pocona2","00:09:13",1,"Bolivia","Cochabamba",null,"Pocona","Yuraq Molino","Tipa Tipa","-17.72377089","-65.32563372","2169.0","https://waterforpeople.s3.amazonaws.com/images/ca26eb92-2621-4705-ad30-2761242c47dd.jpg",1,"Tipa Tipa","Dispersa","Gobierno Nacional|Municipio",6,6,6,0,18,"Si","Sistema por gravedad","","Si",null,null,2012,"Si",null,null,"Si",7,7,"Si - se realizaron pruebas hoy","No",null,"Si","Ausencia","No",null,"Si",2.8,"No",{"$nulls":6},0.5,40,12,"No",{"$nulls":4},"No","Bueno","Si","Tuberia negro al interperie insuficiente agua",null,null,null,"No","Si","Entel","Si","No","Botan al rio, quebrada","No",null,"No",null,"No","No","9bf3feb3172fb04a634497f1b5d1c8fb"]
["4sp3-q0ku-yh9s","Bolivia - Cochabamba - Pocona - Yuraq Molino - Yuraq Molino","Boi-100-1","3252650266","03-01-2015 15:52:33 UTC","Llasa","00:08:17",1,"Bolivia","Cochabamba",null,"Pocona","Yuraq Molino","Yuraq Molino","-17.65877436","-65.31145407","2525.0","https://waterforpeople.s3.amazonaws.com/images/7e3e98d0-c78f-45dc-97c0-61e2f188704c.jpg",1,"Yuraq Molino","Semi dispersa","Otra ONG",55,55,55,0,165,"Si","Sistema por gravedad","","Si",null,null,2020,"Si",null,null,"No",null,null,"Si - se realizaron pruebas hoy","No",null,"Si","Ausencia","No",null,"Si",8.4,"No",{"$nulls":6},1.5,13.333333333333334,24,"No",{"$nulls":4},"Si","Bueno","No",{"$nulls":4},"Si","Si","Entel|Tigo","Si","No","Queman|Entierran","Si","no sabe","Si","no sabe","No","No","c1bc81423cf7f1df3af3dff86ca8fd3f"]
["cf96-rykk-a19e","Bolivia - Cochabamba - San Benito - Paracaya - Alizu Mayu","BOI-WFP-2","3252720401","09-06-2021 19:18:05 UTC","Rodrigo Garcia","00:06:09",6,"Bolivia","Cochabamba",null,"San Benito","Paracaya","Alizu Mayu","-17.462928146123886","-65.81109370104969","3273.0","https://waterforpeople.s3.amazonaws.com/images/fd0dfcfb-ffba-4d87-acab-849924501596.jpg","1","Alizu Mayu","Semi dispersa","Municipio|Comité de Agua",36,23,23,0,69,"Si","Sistema por gravedad","","Si",null,null,2018,"Si",null,null,"No",null,null,"No",{"$nulls":15},0.8,25,24,"No",{"$nulls":4},"Si","Bueno","No",{"$nulls":4},"Si","Si","Entel|Tigo","Si","Si",null,"Si","dos canales locales canal8 y canal 41","Si","emisoras del valle alto","No","No","5342d713da6ff962e49c926277b4afe"]
["muse-gqy2-4j78","Bolivia - Cochabamba - San Benito - Paracaya - Jaldín Rancho","BOI-WFP-2","3238560108","25-05-2021 14:42:01 UTC","Rodrigo Garcia","00:07:39",6,"Bolivia","Cochabamba",null,"San Benito","Paracaya","Jaldín Rancho","-17.520738719031215","-65.83224652335048","2788.0","https://waterforpeople.s3.amazonaws.com/images/227d6a0a-bd33-46f2-9d28-f88032a076c2.jpg","1","Jaldín Rancho","Semi dispersa","Gobierno Nacional|Municipio|Comité de Agua",87,71,71,0,213,"Si","Sistema por bombeo y gravedad","","Si",null,null,2017,"Si",null,null,"No",null,null,"Si","Si",0,"No",null,"Si",0,"Si",0.73,{"$nulls":7},2,10,24,"No",{"$nulls":4},"Si","Bueno","No",{"$nulls":4},"Si","Si","Entel|Tigo|Viva","Si","Si",null,"Si","canales locales del valle alto","Si","emisoras locales del valle alto","Si","Si","6fbea218117c37b87739f86021d517bc"]
["4hxt-btpw-90ar","Bolivia - Cochabamba - San Benito - Paracaya - Linde Paracaya","BOI-WFP-2","3238480493","22-05-2021 16:43:54 UTC","Rodrigo Garcia","00:28:45",6,"Bolivia","Cochabamba",null,"San Benito","Paracaya","Linde Paracaya","-17.503329925239086","-65.86534414440393","2764.0","https://waterforpeople.s3.amazonaws.com/images/88ce13e0-94ec-41cc-ad42-fb5efc3c080f.jpg","1","Linde Paracaya","Semi dispersa","Gobierno Nacional|Municipio|Comité de Agua|Agua Para el Pueblo",236,223,223,0,669,"Si","Sistema por bombeo y gravedad","","Si",null,null,2019,"Si",null,null,"No",null,null,"Si","Si",8,"No",null,"Si",0,"Si",53.9,{"$nulls":7},6,3.3333333333333335,24,"No",{"$nulls":4},"Si","Bueno","Si","Clorador no funciona, requiere asistencia técnica al nuevo directorio",null,null,null,"Si","Si","Entel|Tigo|Viva","Si","Si",null,"Si","canales locales del valle alto","Si","emisoras locales del valle alto","Si","Si","512c99c5ecaf677f39aba9b6b344ca5"]
["d04y-ft3y-fjwy","Bolivia - Cochabamba - San Benito - Paracaya - Mora Mora","BOI-WFP-2","3246580160","21-06-2021 14:59:29 UTC","Rodrigo Garcia","00:04:51",6,"Bolivia","Cochabamba",null,"San Benito","Paracaya","Mora Mora","-17.52002143766731","-65.85613913834095","2756.0","https://waterforpeople.s3.amazonaws.com/images/c202b7d6-6295-43de-9928-ba7867912cf7.jpg","1","Mora Mora","Concentrada","Municipio|Comité de Agua|Agua Para el Pueblo",333,333,333,0,999,"Si","Sistema por bombeo y gravedad","","No",null,null,1995,"Si",null,null,"No",null,null,"Si","Si",0,"No",null,"Si",0,"Si",0.32,{"$nulls":7},4,5,24,"No",{"$nulls":4},"Si","Bueno","No",{"$nulls":4},"Si","Si","Entel|Tigo|Viva","Si","Si",null,"Si","canales locales del Valle Alto","Si","Emisoras del Valle Alto","Si","Si","e24d682e6c5deff1051d73a28ec1716"]
["h561-p970-bxs5","Bolivia - Cochabamba - San Benito - Paracaya - Pabellón A","BOI-WFP-2","3232720139","21-06-2021 13:14:22 UTC","Rodrigo Garcia","00:06:32",6,"Bolivia","Cochabamba",null,"San Benito","Paracaya","Pabellón A","-17.50625219196081","-65.85507379844785","2792.0","https://waterforpeople.s3.amazonaws.com/images/219a99c7-5286-4e6a-b1f1-d7d0e5db9acf.jpg","2","Pabellon A y Pabellon B","Concentrada","Comité de Agua",275,250,250,0,750,"Si","Sistema por bombeo y gravedad","","No",null,null,2019,"Si",null,null,"No",null,null,"Si","Si",0,"No",null,"Si",0,"Si",0.98,{"$nulls":7},4,5,24,"No",{"$nulls":4},"Si","Bueno","Si","Falta asistencia técnica para mejorar la administración de los 2 SAP",null,null,null,"Si","Si","Entel|Tigo|Viva","Si","Si",null,"Si","canales locales del valle alto","Si","emisoras locales del Valle Alto","Si","Si","f018aead2f1e2790f3c0211b3b641ce1"]
["rknw-y9h8-3wbu","Bolivia - Cochabamba - San Benito - Paracaya - Pabellón B","BOI-WFP-2","3224370523","22-05-2021 17:48:58 UTC","Rodrigo Garcia","00:09:23",6,"Bolivia","Cochabamba",null,"San Benito","Paracaya","Pabellón B","-17.518185591325164","-65.84752547554672","2757.0","https://waterforpeople.s3.amazonaws.com/images/d005a5c7-7a90-49c2-b604-0e6d826a654e.jpg","3","Pabellon B, Pabellon A, Mora Mora","Concentrada","Gobierno Nacional|Municipio|Comité de Agua",250,225,225,0,675,"Si","Sistema por bombeo y gravedad","","Si",null,null,1996,"Si",null,null,"Si",1,1,"Si","Si",0,"No",null,"Si",0,"Si",0.9,{"$nulls":7},3,6.666666666666667,24,"Si",{"$nulls":4},"Si","Malo","No",{"$nulls":4},"Si","Si","Entel|Tigo|Viva","Si","Si",null,"Si","canales locales del valle alto","Si","radios locales del valle alto","Si","Si","e8dca9d53df6d931ad5fe018548b9546"]
["0td3-xdf5-6p02","Bolivia - Cochabamba - San Benito - Paracaya - Tuti Pucayan","BOI-WFP-2","3220600208","27-05-2021 10:40:06 UTC","Rodrigo Garcia","00:14:54",6,"Bolivia","Cochabamba",null,"San Benito","Paracaya","Tuti Pucayan","-17.485211435705423","-65.85806831717491","3129.0","https://waterforpeople.s3.amazonaws.com/images/9b37c070-33f8-403e-8790-89427599fbf7.jpg","1","Tuti Pucayan","Semi dispersa","Municipio|Comité de Agua|Otra ONG",32,6,6,0,18,"Si","Sistema por gravedad","","Si",null,null,2020,"Si",null,null,"No",null,null,"No",{"$nulls":15},0.3,66.666666666666671,24,"No",{"$nulls":4},"Si","Bueno","No",{"$nulls":4},"Si","Si","Entel|Tigo","Si","No","Queman|Entierran","Si","canales locales valle alto","Si","señales locales del valle alto","No","No","d8db6f9c6835614379692ebef038bb"]
["e7ua-rn17-ahk4","Bolivia - Cochabamba - San Benito - Paracaya - Tuti San Isidro","BOI-WFP-2","3238500385","20-05-2021 14:26:52 UTC","Rodrigo Garcia","00:05:27",6,"Bolivia","Cochabamba",null,"San Benito","Paracaya","Tuti San Isidro","-17.47996943537146","-65.86847755126655","2995.0","https://waterforpeople.s3.amazonaws.com/images/53ac0702-e7d2-4d44-b28b-3dc1e845513c.jpg","1","Tuti San Isidro","Dispersa","Gobierno Nacional|Municipio",45,45,36,9,108,"Si","Sistema por gravedad","","No",null,null,2000,"Si",null,null,"No",null,null,"No",{"$nulls":15},0.8,25,24,"No",{"$nulls":4},"No","Malo","Si","Clorador no funciona, tanque de almacenamiento con fisuras y fugas, fugas en la red de distribución",null,null,null,"Si","Si","Entel|Tigo","Si","No","Queman|Entierran","Si","pocos canales locales","Si","señal del valle alto","No","No","b226472a4f8e1b9df25cfbb748e667d"]
["0wfh-r13s-8yp0","Bolivia - Cochabamba - San Benito - Paracaya - Villa Florida","BOI-WFP-2","3238550111","25-05-2021 14:52:44 UTC","Rodrigo Garcia","00:10:43",6,"Bolivia","Cochabamba",null,"San Benito","Paracaya","Villa Florida","-17.51313671004027","-65.81586719490588","2914.0","https://waterforpeople.s3.amazonaws.com/images/42ffa452-00a3-48f1-b0ff-c18fa5a8b173.jpg","2","Villa Florida","Semi dispersa","Gobierno Nacional|Municipio|Comité de Agua",45,45,45,0,135,"Si","Sistema por bombeo y gravedad","","Si",null,null,2011,"Si",null,null,"No",null,null,"Si","Si",0,"No",null,"Si",0,"Si",0.9,{"$nulls":7},4.3,4.6511627906976747,24,"No",{"$nulls":4},"Si","Bueno","Si","Clorador no funciona, falta asistencia técnica",null,null,null,"Si","Si","Entel|Tigo|Viva","Si","Si",null,"Si","canales locales del calle alto","Si","Radios Locales del Calle Alto","No","Si","ab9a1822cd294609c751d5b8217b2ab"]
["ccbq-nsqq-qykq","Bolivia - Cochabamba - San Benito - Paracaya - Villa Rosario","BOI-WFP-2","3256320176","27-05-2021 14:48:44 UTC","Rodrigo Garcia","00:13:12",6,"Bolivia","Cochabamba",null,"San Benito","Paracaya","Villa Rosario","-17.502197320573032","-65.86083174683154","2787.0","https://waterforpeople.s3.amazonaws.com/images/b10590b5-ec70-4a48-aea1-709ba89744b7.jpg","1","Villa Rosario","Semi dispersa","Municipio|Comité de Agua|Agua Para el Pueblo",230,143,143,0,429,"Si","Sistema por bombeo y gravedad","","Si",null,null,2017,"Si",null,null,"No",null,null,"No",{"$nulls":15},5.5,3.6363636363636362,24,"No",{"$nulls":4},"Si","Bueno","No",{"$nulls":4},"Si","Si","Entel|Tigo|Viva","No","No","Queman|Entierran","Si","canales locales del Valle Alto","Si","Emisoras de Radios locales del Valle Alto","Si","Si","7a2f49972eff90cc72723c2d29d7e9"]
["mffh-js6v-3pjr","Bolivia - Cochabamba - San Benito - Paracaya - Wañakawa Grande","BOI-WFP-2","3238560168","25-05-2021 15:04:08 UTC","Rodrigo Garcia","00:10:51",6,"Bolivia","Cochabamba",null,"San Benito","Paracaya","Wañakawa Grande","-17.514693229459226","-65.82680826075375","2801.0","https://waterforpeople.s3.amazonaws.com/images/3924f312-d937-4c8c-b58b-25bb472f7ddc.jpg","1","Wañakawa Grande","Concentrada","Municipio|Comité de Agua",136,126,126,0,378,"Si","Sistema por bombeo y gravedad","","Si",null,null,2020,"Si",null,null,"Si",1,2,"Si","Si",0,"No",null,"Si",0,"Si",0.72,{"$nulls":7},1.5,13.333333333333334,24,"No",{"$nulls":4},"No","Bueno","Si","Racionamiento en octubre, noviembre y diciembre, solo 3 horas",null,null,null,"Si","Si","Entel|Tigo|Viva","Si","Si",null,"Si","canales locales del valle alto","Si","emisoras de radios locales del valle alto","No","Si","e5b452a4f2d6272b1c5ea5c79e61a5ad"]
["vec9-28x8-wqym","Bolivia - Cochabamba - San Benito - San Benito - La Maica","BOI-WFP-2","3252520268","27-05-2021 11:12:10 UTC","Rodrigo Garcia","00:12:13",6,"Bolivia","Cochabamba",null,"San Benito_","San Benito","Chaqui K´ocha",-17.461202474743299,-65.879949465594194,3731.1455414918801,"https://waterforpeople.s3.amazonaws.com/images/236fccfd-809d-41cc-8a2d-ba5806dfcfe9.jpg",1,"Chaqui K´ocha","Dispersa","Municipio|Comite de Agua",40,38,38,0,114,"Si","Sistema por gravedad",null,"No",null,null,1998,"Si",null,null,"No",null,null,"No",{"$nulls":15},0.5,40,24,"No",{"$nulls":4},"No","Malo","Si","Fugas de agua en la red, conflicto de limites con el municipo de Sacaba",null,null,null,"Si","Si","Entel|Tigo","No","No","Queman|Entierran","Si","canales locales del valle alto","Si","emisoras de radios locales del valle alto","No","No","e5b452a4f2d6272b1c5ea5c79e61a5ad"]
["vec9-28x8-wqym","Bolivia - Cochabamba - San Benito - San Benito - La Maica","BOI-WFP-2","3252520268","27-05-2021 11:12:10 UTC","Rodrigo Garcia","00:12:13",6,"Bolivia","Cochabamba",null,"San Benito","San Benito","La Maica","-17.518998929299414","-65.88739081285894","2763.0","https://waterforpeople.s3.amazonaws.com/images/7b9ea1eb-58be-494d-b412-fae2857f4dc3.jpg","1","La Maica","Concentrada","Gobierno Nacional|Municipio|Comité de Agua|Agua Para el Pueblo",443,443,423,20,1269,"Si","Sistema por bombeo y gravedad","","Si",null,null,2020,"Si",null,null,"No",null,null,"Si","Si",0,"No",null,"Si",0,"Si",0.8,{"$nulls":7},4,5,24,"No",{"$nulls":4},"Si","Bueno","No",{"$nulls":4},"Si","Si","Entel|Tigo|Viva","Si","Si",null,"Si","Canales locales del Valle Alto","Si","Emisoras de radios locales del Valle Alto","Si","Si","83649eb4eec7565522a644173d6e0ad"]
["cdqq-xjkr-qkdg","Bolivia - Cochabamba - San Benito - San Benito - Laimiña","BOI-WFP-2","3254320126","27-05-2021 11:27:47 UTC","Rodrigo Garcia","00:09:47",6,"Bolivia","Cochabamba",null,"San Benito","San Benito","Laimiña","-17.50385366845876","-65.8925852458924","2759.0","https://waterforpeople.s3.amazonaws.com/images/09f9191a-716f-4d88-a709-34f786842399.jpg","1","Laimiña","Semi dispersa","Gobierno Nacional|Municipio|Comité de Agua",160,148,136,12,408,"Si","Sistema por bombeo y gravedad","","No",null,null,2013,"Si",null,null,"No",null,null,"Si","Si",0,"No",null,"Si",0,"Si",0.92,{"$nulls":7},6.5,3.0769230769230771,24,"No",{"$nulls":4},"Si","Bueno","No",{"$nulls":4},"Si","Si","Entel|Tigo|Viva","Si","Si",null,"Si","Canales Locales del Valle Alto","Si","Emisoras de radios locales del Valle Alto","No","Si","e6be3e1b15a7ef34dda87ac7520e3b0"]
["m32q-0syx-1upa","Bolivia - Cochabamba - San Benito - San Benito - Saca Sirca","BOI-WFP-2","3238570189","25-05-2021 15:27:50 UTC","Rodrigo Garcia","00:10:41",6,"Bolivia","Cochabamba",null,"San Benito","San Benito","Saca Sirca","-17.534022191539407","-65.87123955599964","2740.0","https://waterforpeople.s3.amazonaws.com/images/63a1ca5f-b647-44fe-96ce-5ca4502a01f3.jpg","2","Saca Sirca","Semi dispersa","Municipio|Comité de Agua|Agua Para el Pueblo",31,31,31,0,93,"Si","Sistema por bombeo (hidropulmon/torre hidroneumática)","","Si",null,null,2016,"Si",null,null,"No",null,null,"No",{"$nulls":15},3,6.666666666666667,14,"Si",{"$nulls":4},"Si","Bueno","No",{"$nulls":4},"Si","Si","Entel|Tigo|Viva","No","No","Queman|Entierran","Si","canales locales del valle alto","Si","radios locales del valle alto","No","Si","b652ac9ef9e7010d8ead62e22c39fd"]
["r4dm-u95p-dvpd","Bolivia - Cochabamba - San Benito - San Benito - Santa Bárbara","BOI-WFP-2","3250840375","09-06-2021 12:24:22 UTC","Rodrigo Garcia","00:08:15",6,"Bolivia","Cochabamba",null,"San Benito","San Benito","Santa Bárbara","-17.5160907022655","-65.89154044166207","2786.0","https://waterforpeople.s3.amazonaws.com/images/c0343538-f676-4f80-a7b1-fa5e2c161f3c.jpg","7","Zona Norte, Zona Oeste, Zona Este, Zona Sud Hurayrancho, OTB Trenceria, OTB Santa Barbara y OTB Barrio Barderrama","Semi dispersa","Gobierno Nacional|Comité de Agua|Agua Para el Pueblo",39,39,39,0,117,"Si","Sistema por bombeo y gravedad","","Si",null,null,2019,"Si",null,null,"No",null,null,"No",{"$nulls":15},3.5,5.7142857142857144,6,"No",{"$nulls":4},"No","Bueno","No",{"$nulls":4},"Si","Si","Entel|Tigo|Viva","Si","Si",null,"Si","canales locales del Valle Alto","Si","Emisoras Locales del Valle Alto","Si","Si","3a2068f86ca2a8921c39299f2bb3f47b"]
["g97p-tb36-yv21","Bolivia - Cochabamba - San Benito - San Benito - Sulti Kasapata","BOI-WFP-2","3248460223","27-05-2021 12:13:44 UTC","Rodrigo Garcia","00:16:51",6,"Bolivia","Cochabamba",null,"San Benito","San Benito","Sulti Kasapata","-17.498947698622942","-65.89690838009119","2988.0","https://waterforpeople.s3.amazonaws.com/images/1934db64-1a5c-408a-a80e-2b6fd08eb09d.jpg","1","Sulti Kasapata","Semi dispersa","Municipio|Comité de Agua|Agua Para el Pueblo",300,200,200,0,600,"Si","Sistema por gravedad","","Si",null,null,2018,"Si",null,null,"No",null,null,"Si","Si",0,"No",null,"Si",0,"Si",2.2000000000000002,{"$nulls":7},5,4,24,"No",{"$nulls":4},"Si","Bueno","No",{"$nulls":4},"Si","Si","Entel|Tigo|Viva","Si","Si",null,"Si","canales locales del Valle Alto","Si","Emisoras de Radios Locales del Valle Alto","No","Si","a973ddab5de64da3983754e1cdacecdf"]
["r4dm-u95p-dvpd","Bolivia - Cochabamba - San Benito - San Benito - Santa Bárbara","BOI-WFP-2","3250840375","09-06-2021 12:24:22 UTC","Rodrigo Garcia","00:08:15",6,"Bolivia","Cochabamba",null,"San Benito","San Benito","Trenceria","-17.5160907022655","-65.89154044166207","2786.0","https://waterforpeople.s3.amazonaws.com/images/c0343538-f676-4f80-a7b1-fa5e2c161f3c.jpg","7","Zona Norte, Zona Oeste, Zona Este, Zona Sud Hurayrancho, OTB Trenceria, OTB Santa Barbara y OTB Barrio Barderrama","Semi dispersa","Gobierno Nacional|Comité de Agua|Agua Para el Pueblo",105,105,105,0,315,"Si","Sistema por bombeo y gravedad","","Si",null,null,2019,"Si",null,null,"No",null,null,"No",{"$nulls":15},3.5,5.7142857142857144,6,"No",{"$nulls":4},"No","Bueno","No",{"$nulls":4},"Si","Si","Entel|Tigo|Viva","Si","Si",null,"Si","canales locales del Valle Alto","Si","Emisoras Locales del Valle Alto","Si","Si","3a2068f86ca2a8921c39299f2bb3f47b"]
["r4dm-u95p-dvpd","Bolivia - Cochabamba - San Benito - San Benito - Santa Bárbara","BOI-WFP-2","3250840375","09-06-2021 12:24:22 UTC","Rodrigo Garcia","00:08:15",6,"Bolivia","Cochabamba",null,"San Benito","San Benito","Uray Rancho","-17.5160907022655","-65.89154044166207","2786.0","https://waterforpeople.s3.amazonaws.com/images/c0343538-f676-4f80-a7b1-fa5e2c161f3c.jpg","7","Zona Norte, Zona Oeste, Zona Este, Zona Sud Hurayrancho, OTB Trenceria, OTB Santa Barbara y OTB Barrio Barderrama","Semi dispersa","Gobierno Nacional|Comité de Agua|Agua Para el Pueblo",171,171,171,0,513,"Si","Sistema por bombeo y gravedad","","Si",null,null,2019,"Si",null,null,"No",null,null,"No",{"$nulls":15},3.5,5.7142857142857144,6,"No",{"$nulls":4},"No","Bueno","No",{"$nulls":4},"Si","Si","Entel|Tigo|Viva","Si","Si",null,"Si","canales locales del Valle Alto","Si","Emisoras Locales del Valle Alto","Si","Si","3a2068f86ca2a8921c39299f2bb3f47b"]
["ts90-skcx-tc8w","Bolivia - Cochabamba - San Benito - San Benito - Via Rancho","BOI-WFP-2","3232490195","25-05-2021 15:21:49 UTC","Rodrigo Garcia","00:24:47",6,"Bolivia","Cochabamba",null,"San Benito","San Benito","Via Rancho","-17.50893171876669","-65.87507469579577","2778.0","https://waterforpeople.s3.amazonaws.com/images/822b7362-a020-42f3-bc5e-8247a07df77c.jpg","3","Via Rancho","Concentrada","Municipio|Comité de Agua|Agua Para el Pueblo",280,220,220,0,660,"Si","Sistema por gravedad","","Si",null,null,2016,"Si",null,null,"No",null,null,"No",{"$nulls":15},1.5,{"$f":"IF(BE247=\"\",\"\",(20/BE247))","v":13.333333333333334},24,"No",{"$nulls":4},"Si","Bueno","Si","Posibles fugas, requieren un macromedidor para controlar el agua al ingreso",null,null,null,"Si","Si","Entel|Tigo|Viva","Si","Si",null,"Si","Canales locales del Valle Alto","Si","Emisoras Locales del Valle Alto","Si","Si","95239d71d2b33bf7d602f88a3d757ba"]
["r4dm-u95p-dvpd","Bolivia - Cochabamba - San Benito - San Benito - Santa Bárbara","BOI-WFP-2","3250840375","09-06-2021 12:24:22 UTC","Rodrigo Garcia","00:08:15",6,"Bolivia","Cochabamba",null,"San Benito","San Benito","Zona Este","-17.5160907022655","-65.89154044166207","2786.0","https://waterforpeople.s3.amazonaws.com/images/c0343538-f676-4f80-a7b1-fa5e2c161f3c.jpg","7","Zona Norte, Zona Oeste, Zona Este, Zona Sud Hurayrancho, OTB Trenceria, OTB Santa Barbara y OTB Barrio Barderrama","Semi dispersa","Gobierno Nacional|Comité de Agua|Agua Para el Pueblo",329,329,329,0,987,"Si","Sistema por bombeo y gravedad","","Si",null,null,2019,"Si",null,null,"No",null,null,"Si","Si",0,"No",null,"Si",0,"Si",0.9,{"$nulls":7},3.5,5.7142857142857144,6,"No",{"$nulls":4},"No","Bueno","No",{"$nulls":4},"Si","Si","Entel|Tigo|Viva","Si","Si",null,"Si","canales locales del Valle Alto","Si","Emisoras Locales del Valle Alto","Si","Si","3a2068f86ca2a8921c39299f2bb3f47b"]
["r4dm-u95p-dvpd","Bolivia - Cochabamba - San Benito - San Benito - Santa Bárbara","BOI-WFP-2","3250840375","09-06-2021 12:24:22 UTC","Rodrigo Garcia","00:08:15",6,"Bolivia","Cochabamba",null,"San Benito","San Benito","Zona Nuevo Norte","-17.5160907022655","-65.89154044166207","2786.0","https://waterforpeople.s3.amazonaws.com/images/c0343538-f676-4f80-a7b1-fa5e2c161f3c.jpg","7","Zona Norte, Zona Oeste, Zona Este, Zona Sud Hurayrancho, OTB Trenceria, OTB Santa Barbara y OTB Barrio Barderrama","Semi dispersa","Gobierno Nacional|Comité de Agua|Agua Para el Pueblo",79,79,79,0,237,"Si","Sistema por bombeo y gravedad","","Si",null,null,2019,"Si",null,null,"No",null,null,"Si","Si",0,"No",null,"Si",0,"Si",0.9,{"$nulls":7},3.5,5.7142857142857144,6,"No",{"$nulls":4},"No","Bueno","No",{"$nulls":4},"Si","Si","Entel|Tigo|Viva","Si","Si",null,"Si","canales locales del Valle Alto","Si","Emisoras Locales del Valle Alto","Si","Si","3a2068f86ca2a8921c39299f2bb3f47b"]
["r4dm-u95p-dvpd","Bolivia - Cochabamba - San Benito - San Benito - Santa Bárbara","BOI-WFP-2","3250840375","09-06-2021 12:24:22 UTC","Rodrigo Garcia","00:08:15",6,"Bolivia","Cochabamba",null,"San Benito","San Benito","Zona Oeste","-17.5160907022655","-65.89154044166207","2786.0","https://waterforpeople.s3.amazonaws.com/images/c0343538-f676-4f80-a7b1-fa5e2c161f3c.jpg","7","Zona Norte, Zona Oeste, Zona Este, Zona Sud Hurayrancho, OTB Trenceria, OTB Santa Barbara y OTB Barrio Barderrama","Semi dispersa","Gobierno Nacional|Comité de Agua|Agua Para el Pueblo",197,197,197,0,591,"Si","Sistema por bombeo y gravedad","","Si",null,null,2019,"Si",null,null,"No",null,null,"Si","Si",0,"No",null,"Si",0,"Si",0.9,{"$nulls":7},3.5,5.7142857142857144,6,"No",{"$nulls":4},"No","Bueno","No",{"$nulls":4},"Si","Si","Entel|Tigo|Viva","Si","Si",null,"Si","canales locales del Valle Alto","Si","Emisoras Locales del Valle Alto","Si","Si","3a2068f86ca2a8921c39299f2bb3f47b"]
["a4qm-aa95-97t4","Bolivia - Cochabamba - San Benito - San Lorenzo - San Lorenzo","BOI-WFP-2","3240460306","27-05-2021 21:08:04 UTC","Rodrigo Garcia","00:28:52",6,"Bolivia","Cochabamba",null,"San Benito","San Lorenzo","Ero San Lorenzo","-17.525145378895104","-65.9148636739701","2749.0","https://waterforpeople.s3.amazonaws.com/images/24dea99a-a1d9-40fd-8a1a-30ea457f09d2.jpg","3","Ero San Lorenzo, San Lorenzo Central y San Lorenzo Oeste","Concentrada","Municipio|Comité de Agua",207,207,207,0,621,"Si","Sistema por bombeo y gravedad","","Si",null,null,1996,"Si",null,null,"No",null,null,"No",{"$nulls":15},2,10,12,"No",{"$nulls":4},"Si","Malo","Si","Tarifa baja, el agua es salada y no existe una buena administración, hay disponibilidad del directorio en mejorar",null,null,null,"Si","Si","Entel|Tigo|Viva","Si","Si",null,"Si","canales locales del Valle Alto","Si","Emisoras Locales del Valle Alto","Si","Si","a473a23499ed434d48978b5c6a4eed"]
["15ns-rac3-46h7","Bolivia - Cochabamba - San Benito - San Lorenzo - Tolata Chico","BOI-WFP-2","3250530145","20-05-2021 12:05:33 UTC","Rodrigo Garcia","00:15:49",6,"Bolivia","Cochabamba",null,"San Benito","San Lorenzo","OTB Ecologica Nueva Esperanza","-17.524030543863773","-65.94800060614944","2801.0","https://waterforpeople.s3.amazonaws.com/images/51e6b16c-7244-484c-9e43-730e4590c967.jpg","1","OTB Ecologica Nueva Esperanza","Semi dispersa","Comité de Agua",788,50,50,0,150,"Si","Sistema por bombeo y gravedad","","Si",null,null,2015,"Si",null,null,"Si",0,0,"No",{"$nulls":15},1.2,16.666666666666668,6,"No",{"$nulls":4},"No","Malo","Si","El servicio de agua no es continuo, bajo caudal para la población",null,null,null,"Si","Si","Entel|Tigo","No","Si",null,"Si","canales del valle alto","Si","radios del valle alto","No","No","3a9f4d541949431df1f96bbef4be1b86"]
["a4qm-aa95-97t4","Bolivia - Cochabamba - San Benito - San Lorenzo - San Lorenzo","BOI-WFP-2","3240460306","27-05-2021 21:08:04 UTC","Rodrigo Garcia","00:28:52",6,"Bolivia","Cochabamba",null,"San Benito","San Lorenzo","San Lorenzo","-17.525145378895104","-65.9148636739701","2749.0","https://waterforpeople.s3.amazonaws.com/images/24dea99a-a1d9-40fd-8a1a-30ea457f09d2.jpg","3","Ero San Lorenzo, San Lorenzo Central y San Lorenzo Oeste","Concentrada","Municipio|Comité de Agua",128,128,128,0,384,"Si","Sistema por bombeo y gravedad","","Si",null,null,1996,"Si",null,null,"No",null,null,"Si","Si",62,"No",null,"Si",0,"Si",0.73,{"$nulls":7},2,10,12,"No",{"$nulls":4},"Si","Malo","Si","Tarifa baja, el agua es salada y no existe una buena administración, hay disponibilidad del directorio en mejorar",null,null,null,"Si","Si","Entel|Tigo|Viva","Si","Si",null,"Si","canales locales del Valle Alto","Si","Emisoras Locales del Valle Alto","Si","Si","a473a23499ed434d48978b5c6a4eed"]
["a4qm-aa95-97t4","Bolivia - Cochabamba - San Benito - San Lorenzo - San Lorenzo","BOI-WFP-2","3240460306","27-05-2021 21:08:04 UTC","Rodrigo Garcia","00:28:52",6,"Bolivia","Cochabamba",null,"San Benito","San Lorenzo","San Lorenzo Central","-17.525145378895104","-65.9148636739701","2749.0","https://waterforpeople.s3.amazonaws.com/images/24dea99a-a1d9-40fd-8a1a-30ea457f09d2.jpg","3","Ero San Lorenzo, San Lorenzo Central y San Lorenzo Oeste","Concentrada","Municipio|Comité de Agua",146,146,146,0,438,"Si","Sistema por bombeo y gravedad","","Si",null,null,1996,"Si",null,null,"No",null,null,"No",{"$nulls":15},2,10,12,"No",{"$nulls":4},"Si","Malo","Si","Tarifa baja, el agua es salada y no existe una buena administración, hay disponibilidad del directorio en mejorar",null,null,null,"Si","Si","Entel|Tigo|Viva","Si","Si",null,"Si","canales locales del Valle Alto","Si","Emisoras Locales del Valle Alto","Si","Si","a473a23499ed434d48978b5c6a4eed"]
["ym7q-ttug-nkfj","Bolivia - Cochabamba - San Benito - San Lorenzo - Tolata Chico","BOI-WFP-2","3230660179","25-05-2021 20:50:11 UTC","Rodrigo Garcia","00:32:45",6,"Bolivia","Cochabamba",null,"San Benito","San Lorenzo","Tolata Chico","-17.508164732716978","-65.94967992044985","2749.0","https://waterforpeople.s3.amazonaws.com/images/5480a978-87c6-4aa4-9235-3d867f8b311a.jpg","1","Tolata Chico","Semi dispersa","Municipio|Comité de Agua",186,160,160,0,480,"Si","Sistema por bombeo y gravedad","","Si",null,null,2018,"Si",null,null,"Si",1,1,"Si","Si",0,"No",null,"Si",0,"Si",1.4,{"$nulls":7},3.8,5.2631578947368425,24,"No",{"$nulls":4},"Si","Bueno","No",{"$nulls":4},"Si","Si","Entel|Tigo|Viva","Si","Si",null,"Si","Canales locales del Valle Alto","Si","Sintonia locales del Valle Alto","Si","Si","d0b3736307d4e7ff78963ad35eaa81a"]
["d32r-ruv4-tk0q","Bolivia - Cochabamba - San Benito - San Lorenzo - San Lorenzo","BOI-WFP-2","3240470322","27-05-2021 17:53:28 UTC","Rodrigo Garcia","00:13:14",6,"Bolivia","Cochabamba",null,"San Benito_","San Lorenzo","Urbanizacion Mirador","-17.522197547368705","-65.91811191290617","2771.0","https://waterforpeople.s3.amazonaws.com/images/5bd8e1fb-b4f0-44e4-831a-5ff4f46e0a6c.jpg","1","Urbanizacion Mirador","Dispersa","Comité de Agua",632,25,12,13,36,"Si","Sistema por bombeo y gravedad","","No",null,null,2000,"No","Racionamiento","","No",null,null,"No",{"$nulls":15},0.3,66.666666666666671,2,"No",{"$nulls":4},"No","Malo","Si","Administración deficiente del SAP, no tienen conexiones domiciliarias, son piletas públicas y solo por algunas horas al día. No esta reconocida legalmente por el municipio.\nNo tienen Personería Jurídica y tienen conflictos sociales internos",null,null,null,"Si","Si","Entel|Tigo|Viva","No","No","Queman|Entierran|Botan al rio, quebrada","Si","canales locales del valle alto","Si","radios locales del valle alto","Si","Si","6556a5577498678ce8f31c7250ae18"]
["gmv5-u4fg-ptqu","Bolivia - Cochabamba - San Benito - Sunchupampa - La Fiada","BOI-WFP-2","3252470219","20-05-2021 12:01:25 UTC","Rodrigo Garcia","00:11:08",6,"Bolivia","Cochabamba",null,"San Benito","Sunchupampa","La Fiada","-17.56121157668531","-65.91441063210368","2758.0","https://waterforpeople.s3.amazonaws.com/images/f50bd48f-8ef4-4331-be96-43657e23a1c9.jpg","1","La Fiada","Concentrada","Municipio|Comité de Agua",45,32,32,0,96,"Si","Sistema por bombeo y gravedad","","No",null,null,2015,"Si",null,null,"No",null,null,"No",{"$nulls":15},6,3.3333333333333335,24,"No",{"$nulls":4},"Si","Bueno","No",{"$nulls":4},"Si","Si","Entel|Tigo|Viva","Si","Si",null,"Si","canales locales","Si","señal local de radio","No","Si","9bc645888c1d2b2767811a5d6bf65228"]
["b8jd-1he3-qupb","Bolivia - Cochabamba - San Benito - Sunchupampa - Lobo Rancho","BOI-WFP-2","3242480206","20-05-2021 12:08:48 UTC","Rodrigo Garcia","00:09:15",6,"Bolivia","Cochabamba",null,"San Benito","Sunchupampa","Lobo Rancho","-17.56963098887354","-65.91088654473424","2720.0","https://waterforpeople.s3.amazonaws.com/images/e279bc76-9540-473d-be2c-7a1984695f17.jpg","1","Lobo Rancho","Concentrada","Municipio|Comité de Agua",164,125,125,0,{"$f":"IF(Y258=0,\"\",(Y258*3))","v":375},"Si","Sistema por bombeo y gravedad","","Si",null,null,2014,"Si",null,null,"Si",1,1,"No",{"$nulls":15},3,6.666666666666667,24,"No",{"$nulls":4},"Si","Bueno","Si","No funciones el clorador",null,null,null,"Si","Si","Entel|Tigo|Viva","Si","Si",null,"Si","señal local","Si","señal local","No","No","18f4f34b33557942791bb22b7c4f9cbc"]
["c631-7wvw-32wh","Bolivia - Cochabamba - San Benito - Sunchupampa - Lobo Rancho Capilla","BOI-WFP-2","3250620187","26-05-2021 15:34:26 UTC","Rodrigo Garcia","00:07:33",6,"Bolivia","Cochabamba",null,"San Benito","Sunchupampa","Lobo Rancho Capilla","-17.56818645168096","-65.90511954389513","2725.0","https://waterforpeople.s3.amazonaws.com/images/4456c395-b54a-4e57-9a35-7fce6cfbb25b.jpg","1","Lobo Rancho Capilla","Semi dispersa","Municipio|Comité de Agua",129,129,129,0,387,"Si","Sistema por bombeo y gravedad","","Si",null,null,2018,"Si",null,null,"No",null,null,"Si","Si",0,"No",null,"Si",0,"Si",0.43,{"$nulls":7},4,5,24,"No",{"$nulls":4},"Si","Bueno","Si","50% de los medidores están en mal estado",null,null,null,"Si","Si","Entel|Tigo","Si","Si",null,"Si","vanales locales del Valle Alto","Si","Emisoras locales del Valle Alto","No","Si","3170701fb4d3e4bb5f9f332fe166bd33"]
["ekyh-uejr-skyn","Bolivia - Cochabamba - San Benito - Sunchupampa - Sunchu Pampa","BOI-WFP-2","3250620200","26-05-2021 16:06:03 UTC","Rodrigo Garcia","00:06:31",6,"Bolivia","Cochabamba",null,"San Benito","Sunchupampa","Sunchu Pampa","-17.567065288312733","-65.92082790099084","2723.0","https://waterforpeople.s3.amazonaws.com/images/b5fb991b-9848-480c-a27e-53eb156ea35e.jpg","2","Sunchu Pampa, Villa Verde","Semi dispersa","Gobierno Nacional",296,250,250,0,750,"Si","Sistema por bombeo y gravedad","","Si",null,null,1996,"Si",null,null,"No",null,null,"Si","Si",0,"No",null,"Si",0,"Si",0.65,{"$nulls":7},4,5,24,"No",{"$nulls":4},"Si","Bueno","No",{"$nulls":4},"Si","Si","Entel|Tigo|Viva","Si","Si",null,"Si","canales locales del Valle Alto","Si","Emisoras Locales del Valle Alto","Si","Si","40caf5485e0de69e4307e84bef7871"]
["ekyh-uejr-skyn","Bolivia - Cochabamba - San Benito - Sunchupampa - Sunchu Pampa","BOI-WFP-2","3250620200","26-05-2021 16:06:03 UTC","Rodrigo Garcia","00:06:31",6,"Bolivia","Cochabamba",null,"San Benito","Sunchupampa","Villa Verde","-17.567065288312733","-65.92082790099084","2723.0","https://waterforpeople.s3.amazonaws.com/images/b5fb991b-9848-480c-a27e-53eb156ea35e.jpg","2","Sunchu Pampa, Villa Verde","Semi dispersa","Gobierno Nacional",13,13,13,0,39,"Si","Sistema por bombeo y gravedad","","Si",null,null,1996,"Si",null,null,"No",null,null,"No",{"$nulls":15},4,5,24,"No",{"$nulls":4},"Si","Bueno","No",{"$nulls":4},"Si","Si","Entel|Tigo|Viva","Si","Si",null,"Si","canales locales del Valle Alto","Si","Emisoras Locales del Valle Alto","Si","Si","40caf5485e0de69e4307e84bef7871"]
["mf1t-by5p-60tb","Bolivia - Cochabamba - Tiraque - 1 - 15 de Octubre","BOI  NOE","3252722016","08-06-2021 14:04:24 UTC","Noe","00:10:11",6,"Bolivia","Cochabamba",null,"Tiraque",1,"15 de Octubre","-17.42769624106586","-65.72128881700337","3324.0","https://waterforpeople.s3.amazonaws.com/images/862eadab-c70f-475d-a302-f8ed26fcdad6.jpg",1,"15 de Octubre","Concentrada","Gobierno Nacional|Municipio|Comité de Agua",110,100,100,0,300,"Si","Sistema por gravedad","","No",null,null,2012,"Si",null,null,"Si",1,1,"Si","Si",116,"No",null,"Si",0,"Si",2.81,"No",{"$nulls":6},0.12,166.66666666666669,24,"No",{"$nulls":4},"Si","Bueno","No",{"$nulls":4},"Si","Si","Entel|Tigo","No","Si",null,"Si","Tiraque Tv","Si","Locales y Causachun Coca","No","Si","a3a671a7f740aa41878df5a9737f6"]
["axdn-7sh3-yvpe","Bolivia - Cochabamba - Tiraque - 1 - Plano pista","BOI  NOE","3220690353","30-05-2021 21:08:15 UTC","Noe","00:17:51",6,"Bolivia","Cochabamba",null,"Tiraque",1,"Plano pista","-17.413126565515995","-65.71739056147635","3394.0","https://waterforpeople.s3.amazonaws.com/images/dd4affdf-25b1-424c-a831-063c32d92d22.jpg",11,"Capilla Alto, Capilla Bajo; Central, Plano Pista, Millo Mayu, Plano Alto, Plano Bajo; Ormachea, Chago Capilla, Chago, Bario nuevo","Dispersa","Municipio",425,425,425,0,1275,"Si","Sistema por gravedad","","No",null,null,1999,"Si",null,null,"Si",3,1,"No",{"$nulls":15},1,20,24,"No",{"$nulls":4},"No","Malo","Si","Sistema antiguo y cumplió su vida util",null,null,null,"Si","Si","Entel|Tigo","Si","Si",null,"Si","Bolivia Tv","Si","Causachun Coca","No","No","39b4e5fb2e4d6ebe78d2846726e4469"]
["3cca-ayau-9kue","Bolivia - Cochabamba - Tiraque - 1 - Pucara Chico","BOI  Tiraque1","3235920275","30-07-2021 14:13:57 UTC","Daniel Arellano","00:09:42",6,"Bolivia","Cochabamba",null,"Tiraque",1,"Pucara Chico ","-17.44100625375392","-65.69680254726605","3578.286022483371","https://waterforpeople.s3.amazonaws.com/images/f423e443-043f-41e2-8b53-1d874eb6505e.jpg",1,"Pucara Chico","Semi dispersa","Municipio",100,18,18,0,54,"Si","Sistema por bombeo y gravedad","","Si",null,null,2010,"Si",null,null,"No",null,null,"Si","Si",0,"No",null,"Si",0,"Si",0.92,"No",{"$nulls":6},0.5,40,24,"No",{"$nulls":4},"Si","Bueno","No",{"$nulls":4},"Si","Si","Entel","No","No","Entierran","Si","Atb","Si","Radio municipal","No","No","c88950cec7c2cd88d9e1e3eb4b1c3688"]
["c00s-fm06-x2kv","Bolivia - Cochabamba - Tiraque - 1 - Tiraque Centro Poblado; Campo Ferial; Concordia del Norte; Cala Cala; Señor de Exaltacion; Santa Cruz; Barrio Nuevo","BOI  NOE","3248540315","30-05-2021 02:41:56 UTC","Noe","00:08:55",6,"Bolivia","Cochabamba",null,"Tiraque",1,"Tiraque Centro Poblado; Campo Ferial; Concordia del Norte; Cala Cala; Señor de Exaltacion; Santa Cruz; Barrio Nuevo","-17.425577421672642","-65.7142052706331","3392.0","https://waterforpeople.s3.amazonaws.com/images/2ce15211-f51f-42f6-b2d8-989dcc4191cf.jpg",6,"Campo Ferial, Concordia del Norte, Cala Cala, Sr de Exaltacion, Santa Cruz, Barrio Nuevo","Concentrada","Gobierno Nacional|Municipio|Comité de Agua|Otra ONG",1137,1137,1137,0,3411,"Si","Sistema por gravedad","","Si",null,null,2004,"Si",null,null,"No",null,null,"Si","Si",0,"No",null,"Si",0,"Si",0.68,{"$nulls":7},2.6,7.6923076923076916,24,"No",{"$nulls":4},"Si","Bueno","No",{"$nulls":4},"Si","Si","Entel|Tigo","Si","Si",null,"Si","Bolivia Tv","Si","Causachun Coca","Si","Si","b95a7342f19dcf877711e91f8a56dae"]
["4var-ck3d-1trh","Bolivia - Cochabamba - Tiraque - 1 - Tiraque Centro Poblado; Campo Ferial; Concordia del Norte; Cala Cala; Señor de Exaltacion; Santa Cruz; Barrio Nuevo","BOI  NOE","3252590345","30-05-2021 02:45:19 UTC","Noe","00:10:29",6,"Bolivia","Cochabamba",null,"Tiraque",1,"Tiraque Centro Poblado; Campo Ferial; Concordia del Norte; Cala Cala; Señor de Exaltacion; Santa Cruz; Barrio Nuevo","-17.41424177773297","-65.7183341961354","3399.0","https://waterforpeople.s3.amazonaws.com/images/4128ba3a-96ea-4f2a-a2a5-18ff5123e992.jpg",6,"Campo Ferial, Concordia del Norte, Cala Cala, Sr de Exaltación, Santa Cruz, Barrio Nuevo","Concentrada","Gobierno Nacional|Municipio",1137,1137,1137,0,3411,"Si","Sistema por gravedad","","Si",null,null,2018,"Si",null,null,"No",null,null,"Si","Si",0,"No",null,"Si",0,"Si",0.68,{"$nulls":7},7.6,2.6315789473684212,24,"Si",829,null,null,null,"Si","Bueno","No",{"$nulls":4},"Si","Si","Entel|Tigo","Si","Si",null,"Si","Bolivia Tv","Si","Causachun Coca","No","Si","d820b4c153f7abe80ff7a79375c885"]
["11km-x4g6-nprp","Bolivia - Cochabamba - Tiraque - 1 - Tiraque Centro Poblado; Campo Ferial; Concordia del Norte; Cala Cala; Señor de Exaltacion; Santa Cruz; Barrio Nuevo","BOI  NOE","3252570361","30-05-2021 02:49:23 UTC","Noe","00:07:07",6,"Bolivia","Cochabamba",null,"Tiraque",1,"Tiraque Centro Poblado; Campo Ferial; Concordia del Norte; Cala Cala; Señor de Exaltacion; Santa Cruz; Barrio Nuevo","-17.41427019238472","-65.71856528520584","3422.0","https://waterforpeople.s3.amazonaws.com/images/3004b2f9-a239-4248-beab-cb1c60b5a9da.jpg",6,"Campo Ferial, Concordia del Norte, Cala Cala, Sr de Exaltación, Santa Cruz y Barrio Nuevo","Semi dispersa","Gobierno Nacional|Municipio|Comité de Agua",1137,1137,1137,0,3411,"Si","Sistema por gravedad","","Si",null,null,2019,"Si",null,null,"No",null,null,"Si","Si",0,"No",null,"Si",0,"Si",0.68,{"$nulls":7},3.2,6.25,24,"Si",800,null,null,null,"Si","Bueno","No",{"$nulls":4},"Si","Si","Entel|Tigo","Si","Si",null,"Si","Bolivia Tv","Si","Causachun Coca","No","Si","2eaa21e6fe9a555b012ac29d84da454"]
["pm8r-xwdw-pdwf","Bolivia - Cochabamba - Tiraque - 1 - Virvini","BOI  NOE","3250640378","30-05-2021 21:06:02 UTC","Noe","00:17:54",6,"Bolivia","Cochabamba",null,"Tiraque",1,"Virvini","-17.437961641699076","-65.71555567905307","3293.0","https://waterforpeople.s3.amazonaws.com/images/f1dfdf29-c003-4ada-ad8c-e7cd49f53cfe.jpg",5,"Virvini, 15 de octubre, Grupo Pequeño, Payco Mayo Alto y Payco Mayu Bajo","Dispersa","Gobierno Nacional|Municipio",98,98,98,0,294,"Si","Sistema por gravedad","","Si",null,null,1997,"Si",null,null,"No",null,null,"No",{"$nulls":15},0.9,22.222222222222221,24,"No",{"$nulls":4},"Si","Bueno","No",{"$nulls":4},"Si","Si","Entel|Tigo","Si","Si",null,"Si","Bolivia Tv","Si","Tiraque Punata y Causachun Coca","No","Si","61a9d4fa0aa99dcabcf5642fa348b1"]
["pe9w-1w1d-1ah7","Bolivia - Cochabamba - Tiraque - 2 - Kayarani Bajo","BOI  Tiraque1","3246520089","09-06-2021 03:45:48 UTC","Daniel Arellano","00:07:29",6,"Bolivia","Cochabamba",null,"Tiraque",2,"Kayarani Bajo","-17.452092133326158","-65.76817793650487","3075.397498395294","https://waterforpeople.s3.amazonaws.com/images/1f224462-97b3-48b5-bbb0-433765d7b2d9.jpg",1,"Kayarani Bajo","Semi dispersa","Municipio",52,45,45,0,135,"Si","Sistema por gravedad","","Si",null,null,2013,"Si",null,null,"No",null,null,"No",{"$nulls":15},0.3,66.666666666666671,24,"No",{"$nulls":4},"Si","Bueno","No",{"$nulls":4},"Si","Si","Entel","No","No","Entierran","Si","Canal 7","Si","Radio","No","No","41cfd941d6cb9cc3faf7f2b849ffc4"]
["bak2-g785-93un","Bolivia - Cochabamba - Tiraque - 2 - Pucara Grande","BOI  NOE","3244390348","30-05-2021 02:36:11 UTC","Noe","00:04:42",6,"Bolivia","Cochabamba",null,"Tiraque",2,"Pucara Grande","-17.441334896720946","-65.68200937472284","3690.0","https://waterforpeople.s3.amazonaws.com/images/a1c5d0ef-ed10-4412-bc50-0ab6c2679b69.jpg",1,"Pucara Grande","Concentrada","Municipio|Comité de Agua|Agua Para el Pueblo",54,35,35,0,105,"Si","Sistema por bombeo y gravedad","","Si",null,null,2010,"Si",null,null,"No",null,null,"Si","Si",0,"No",null,"Si",0,"Si",0.79,{"$nulls":7},0.8,25,24,"No",{"$nulls":4},"Si","Bueno","No",{"$nulls":4},"Si","Si","Entel|Viva","No","No","Queman|Botan al rio, quebrada","Si","Bolivia Tv","Si","Causachun Coca","No","No","5551d5181ae19571628f6f10eed89"]
["7vqx-3kkj-81r8","Bolivia - Cochabamba - Tiraque - 2 - Quewiñal","BOI  NOE","3234680397","30-05-2021 02:26:03 UTC","Noe","00:07:15",6,"Bolivia","Cochabamba",null,"Tiraque",2,"Quewiñal","-17.49644649680704","-65.6757930200547","3850.0","https://waterforpeople.s3.amazonaws.com/images/1b6f8a4b-24d9-4846-ba06-3322cc4980fb.jpg",1,"Quewiñal","Concentrada","Municipio|Comité de Agua|Agua Para el Pueblo",23,16,16,0,48,"Si","Sistema por bombeo y gravedad","","Si",null,null,2019,"Si",null,null,"No",null,null,"No",{"$nulls":15},0.8,25,24,"No",{"$nulls":4},"Si","Bueno","Si","Ninguna",null,null,null,"Si","Si","Entel|Tigo","No","No","Queman|Botan al rio, quebrada","Si","Bolivia Tv","Si","Causachun Coca","No","No","d83dad771fe67ecde1cae310f94b"]
["gvcr-acp8-aae6","Bolivia - Cochabamba - Tiraque - 2 - Sacabambilla Alta","BOI  Tiraque1","3220841541","12-06-2021 16:39:29 UTC","Daniel Arellano","00:11:10",6,"Bolivia","Cochabamba",null,"Tiraque",2,"Sacabambilla Alta","-17.482671544678844","-65.7505140980736","0.0","https://waterforpeople.s3.amazonaws.com/images/1f0273b6-86a7-45a0-8ec9-9fb9ce7d118c.jpg",1,"Sacabambilla Alta","Semi dispersa","Municipio|Comité de Agua",80,60,55,5,165,"Si","Sistema por bombeo y gravedad","","No",null,null,2015,"Si",null,null,"No",null,null,"No",{"$nulls":8},"No",{"$nulls":6},2,10,24,"No",{"$nulls":4},"Si","Bueno","No",{"$nulls":4},"Si","Si","Entel","No","No","Queman","Si","Canal 7","Si","Panamericana","No","No","7dc305dc3f79430bdadad99fdf02859"]
["1b48-a9sr-6y3f","Bolivia - Cochabamba - Tiraque - 2 - Sacabambilla Bajo","BOI  Tiraque1","3228710272","09-06-2021 20:35:58 UTC","Daniel Arellano","00:14:53",6,"Bolivia","Cochabamba",null,"Tiraque",2,"Sacabambilla Bajo","-17.421702362118076","-66.14238957980501","2680.3487912379205","https://waterforpeople.s3.amazonaws.com/images/3df778a4-4459-4570-a4ca-bc0de76aeb13.jpg",1,"Sacabambilla Bajo","Concentrada","Municipio",120,98,98,0,294,"Si","Sistema por gravedad","","No",null,null,1998,"Si",null,null,"No",null,null,"Si","Si",0,"No",null,"Si",0,"Si",0.5,"No",{"$nulls":6},0.3,66.666666666666671,24,"No",{"$nulls":4},"No","Bueno","Si","No almacena agua en el tanque",null,null,null,"Si","Si","Entel","No","No","Queman","Si","Canal 7","Si","Radio Tiraque","No","No","6de25fe470a26377b82434f5ccbb8eee"]
["rq13-p3ts-xh52","Bolivia - Cochabamba - Tiraque - 2 - Sacabambilla Media","BOI  Tiraque1","3238771254","12-06-2021 16:43:54 UTC","Daniel Arellano","00:11:03",6,"Bolivia","Cochabamba",null,"Tiraque",2,"Sacabambilla Media","-17.488631200013184","-65.74008919862925","3179.085164378397","https://waterforpeople.s3.amazonaws.com/images/d0fdebbd-d26c-4cdb-8743-2c4b41b1a36a.jpg",1,"Sacabambilla Media","Semi dispersa","Municipio",44,40,40,0,120,"Si","Sistema por gravedad","","No",null,null,1983,"Si",null,null,"No",null,null,"Si","Si",0,"No",null,"Si",0,"Si",0.74,"No",{"$nulls":6},0.5,40,24,"No",{"$nulls":4},"Si","Bueno","Si","Falta cerco perimetral",null,null,null,"Si","Si","Entel","No","No","Queman|Entierran","Si","Canal 7","Si","Panamericana, laser","No","No","73c9054361c6f397dd24d63f8ad037"]
["mm3x-qxws-5r79","Bolivia - Cochabamba - Tiraque - 2 - Toralapa Alto","BOI  NOE","3232550321","30-05-2021 02:03:01 UTC","Noe","00:11:34",6,"Bolivia","Cochabamba",null,"Tiraque",2,"Toralapa Alto","-17.475630124099553","-65.70115447975695","3303.0","https://waterforpeople.s3.amazonaws.com/images/509293c2-02be-4e74-bcdb-1517d16ec97e.jpg",2,"Toralapa Centro y Alto","Concentrada","Gobierno Nacional",50,35,35,0,105,"Si","Sistema por gravedad","","Si",null,null,2000,"Si",null,"","Si",2,1,"No",{"$nulls":15},0.8,25,24,"No",{"$nulls":4},"No","Malo","Si","Mejoramiento de obra de toma",null,null,null,"Si","Si","Entel|Tigo","No","No","Queman|Botan al rio, quebrada","Si","Bolivia Tv","Si","Causachun Coca","No","No","71939f259a85c5b765d49ab77eb647c"]
["706f-e6u8-xxux","Bolivia - Cochabamba - Tiraque - 2 - Toralapa Bajo","BOI  NOE","3230720329","30-05-2021 01:51:52 UTC","Noe","00:07:24",6,"Bolivia","Cochabamba",null,"Tiraque",2,"Toralapa Bajo","-17.46888738591224","-65.7125852163881","3274.0","https://waterforpeople.s3.amazonaws.com/images/721d3d66-e2fe-48f2-9bd4-3dc3dfe4916d.jpg",1,"Toralapa Bajo","Concentrada","Municipio",58,42,42,0,126,"Si","Sistema por bombeo y gravedad","","Si",null,null,1995,"Si",null,null,"No",null,null,"Si","Si",0,"No",null,"Si",0,"Si",3.92,{"$nulls":7},0.5,40,24,"No",{"$nulls":4},"Si","Bueno","No",{"$nulls":4},"Si","Si","Entel|Tigo","No","No","Queman|Botan al rio, quebrada","Si","Bolivia Tv","Si","Causachun Coca y Tiraque","No","No","f120af3db7b1c35f18eb6d8e0ff2ccf"]
["gk62-nahd-4jdf","Bolivia - Cochabamba - Tiraque - 2 - Toralapa Centro","BOI  NOE","3234690348","30-05-2021 01:57:28 UTC","Noe","00:13:37",6,"Bolivia","Cochabamba",null,"Tiraque",2,"Toralapa Centro","-17.472402001731098","-65.69885741919279","3309.0","https://waterforpeople.s3.amazonaws.com/images/0dda3591-a86d-4a0e-b538-66ba9a42b6fb.jpg",2,"Toralapa Centro y Alto","Semi dispersa","Gobierno Nacional|Municipio|Comité de Agua",53,40,40,0,120,"Si","Sistema por gravedad","","No",null,null,2000,"Si",null,null,"Si",3,1,"Si","Si",0,"No",null,"Si",0,"Si",1.21,{"$nulls":7},0.8,25,24,"No",{"$nulls":4},"Si","Malo","Si","Mejorar la fuente de agua",null,null,null,"Si","Si","Entel|Tigo","No","No","Queman|Botan al rio, quebrada","Si","Punata, Bolivia Tv","Si","Causachun Coca","No","No","f345e0d372f452f0ce54182197465585"]
["7hq6-ke0s-082q","Bolivia - Cochabamba - Tiraque - 2 - Tuturuyu Alto","BOI  NOE","3252590338","30-05-2021 02:23:07 UTC","Noe","00:12:52",6,"Bolivia","Cochabamba",null,"Tiraque",2,"Tuturuyu Alto","-17.49940493144095","-65.69993717595935","3313.0","https://waterforpeople.s3.amazonaws.com/images/2fa44db6-7d85-444b-b6c4-1b31c44c1d65.jpg",1,"Tuturuyu Alto","Concentrada","Municipio|Comité de Agua|Agua Para el Pueblo",59,57,57,0,171,"Si","Sistema por bombeo y gravedad","","Si",null,null,2018,"Si",null,null,"No",null,null,"Si","Si",20,"No",null,"Si",0,"Si",3.85,{"$nulls":7},0.6,33.333333333333336,24,"No",{"$nulls":4},"Si","Bueno","No",{"$nulls":4},"Si","Si","Entel|Tigo","No","No","Botan al rio, quebrada","Si","TV Bolivia","Si","Causachun Coca","No","No","ae3f4d198bcab309dba4e7fa3567178"]
["b5v4-crqw-xr42","Bolivia - Cochabamba - Tiraque - 2 - Tuturuyu Bajo","BOI  NOE","3224470414","30-05-2021 02:07:16 UTC","Noe","00:04:34",6,"Bolivia","Cochabamba",null,"Tiraque",2,"Tuturuyu Bajo","-17.51090046018362","-65.7266787160188","3334.0","https://waterforpeople.s3.amazonaws.com/images/c580a089-4512-4cb5-91e8-bb039b1e05ce.jpg",1,"Tuturuyu Bajo","Concentrada","Municipio",60,30,30,0,90,"Si","Sistema por bombeo y gravedad","","Si",null,null,1997,"Si",null,null,"No",null,null,"Si","Si",6,"No",null,"Si",0,"Si",0.89,{"$nulls":7},0.5,40,24,"No",{"$nulls":4},"Si","Bueno","No",{"$nulls":4},"Si","Si","Entel|Tigo","No","No","Queman|Entierran|Botan al rio, quebrada","Si","Bolivia Tv","Si","Causachun Coca","No","No","6b6c8ad079c55f1ee512df1367dfa0a4"]
["p5k8-4w8r-e5q2","Bolivia - Cochabamba - Tiraque - 2 - Tuturuyu Bajo","BOI  NOE","3234710403","30-05-2021 02:19:32 UTC","Noe","00:14:19",6,"Bolivia","Cochabamba",null,"Tiraque",2,"Tuturuyu Bajo","-17.50515852123499","-65.71485729888082","3293.0","https://waterforpeople.s3.amazonaws.com/images/30f027ea-7b8a-4296-9861-781a15466ac1.jpg",1,"Tuturuyu Bajo SAP 2","Concentrada","Municipio|Comité de Agua|Agua Para el Pueblo",60,30,30,0,90,"Si","Sistema por bombeo y gravedad","","Si",null,null,2012,"Si",null,null,"No",null,null,"Si","Si",6,"No",null,"Si",0,"Si",0.89,{"$nulls":7},0.5,40,24,"No",{"$nulls":4},"Si","Bueno","No",{"$nulls":4},"Si","Si","Entel|Tigo","No","No","Queman|Botan al rio, quebrada","Si","Bolivia Tv","Si","Causachun Coca","Si","No","f344a24df3f5b7bb517f9173de6efe3"]
["x9nn-1prr-32ed","Bolivia - Cochabamba - Tiraque - 2 - Uchuchi kancha","BOI  NOE","3250670400","30-05-2021 02:31:59 UTC","Noe","00:08:07",6,"Bolivia","Cochabamba",null,"Tiraque",2,"Uchuchi kancha","-17.447323012165725","-65.67075809463859","3733.0","https://waterforpeople.s3.amazonaws.com/images/a7f3a33c-be2d-41ad-991a-823f665399df.jpg",1,"Uchuchi kancha","Semi dispersa","Municipio|Comité de Agua|Agua Para el Pueblo",65,60,60,0,180,"Si","Sistema por bombeo y gravedad","","Si",null,null,2013,"Si",null,null,"No",null,null,"Si","Si",0,"No",null,"Si",0,"Si",1.94,{"$nulls":7},0.4,50,24,"No",{"$nulls":4},"Si","Bueno","No",{"$nulls":4},"Si","Si","Entel|Tigo","No","No","Queman|Botan al rio, quebrada","Si","Bolivia Tv","Si","Causachun Coca","No","No","cddc646af32949361ffe5fb6b84fcfe2"]
["92d1-n0ty-unvt","Bolivia - Cochabamba - Tiraque - 2 - Viscachani","BOI  Tiraque1","3246520317","09-06-2021 23:15:21 UTC","Daniel Arellano","00:12:08",6,"Bolivia","Cochabamba",null,"Tiraque",2,"Viscachani","-17.4987083211141","-65.72644612042386","0.0","https://waterforpeople.s3.amazonaws.com/images/5701777c-7f72-43e0-addf-31fa97b118e1.jpg",1,"Viscachani","Semi dispersa","Municipio|Agua Para el Pueblo",50,50,50,0,150,"Si","Sistema por bombeo y gravedad","","Si",null,null,2017,"Si",null,null,"No",null,null,"Si","Si",0,"No",null,"Si",0,"Si",0.48,{"$nulls":7},2,10,24,"No",{"$nulls":4},"Si","Bueno","No",{"$nulls":4},"Si","Si","Entel","No","No","Queman|Entierran","Si","Canal 7, ATB","Si","Radio Totora","No","No","9e9691eb474ce19e224803b71e758"]
["1x6e-42cq-gxbf","Bolivia - Cochabamba - Tiraque - 2 - Waca Wasi","BOI  NOE","3234690345","30-05-2021 01:45:44 UTC","Noe","00:19:43",6,"Bolivia","Cochabamba",null,"Tiraque",2,"Waca Wasi","-17.466223281808197","-65.72777900844812","3243.0","https://waterforpeople.s3.amazonaws.com/images/e4dec3a1-f294-4d7d-9a6a-c42b9b0b63be.jpg",1,"Waca Wasi","Semi dispersa","Gobierno Nacional|Municipio|Otra ONG",96,90,90,0,270,"Si","Sistema por bombeo y gravedad","","Si",null,null,1995,"Si",null,null,"No",null,null,"Si","Si",0,"No",null,"Si",0,"Si",0.79,{"$nulls":7},0.18,111.11111111111111,24,"No",{"$nulls":4},"Si","Bueno","Si","Renovar tanque de almacenamiento",null,null,null,"Si","Si","Entel|Tigo","No","No","Queman|Botan al rio, quebrada","Si","Bolivia Tv","Si","Tiraque y Causachun Coca","No","No","c981793cb3af228aa74a9587d0dac83e"]
["m6hp-9shf-6pdk","Bolivia - Cochabamba - Tiraque - 3 - Ch´aki Qhocha","BOI  NOE","3242590379","30-05-2021 21:32:46 UTC","Noe","00:21:52",6,"Bolivia","Cochabamba",null,"Tiraque",3,"Ch´aki Qhocha","-17.462339904159307","-65.64811010845006","3753.0","https://waterforpeople.s3.amazonaws.com/images/5afb51ec-a2ff-41f6-a052-413cdfe828a5.jpg","1","Ch´aki Qhocha","Concentrada","Municipio|Agua Para el Pueblo",65,55,55,0,165,"Si","Sistema por gravedad","","Si",null,null,2013,"Si",null,null,"No",null,null,"Si","Si",0,"No",null,"Si",0,"Si",0.36,"No",{"$nulls":6},0.22,90.909090909090907,24,"No",{"$nulls":4},"Si","Bueno","No",{"$nulls":4},"Si","Si","Entel|Tigo","No","No","Queman|Botan al rio, quebrada","Si","Bolivia Tv","Si","Causachun Coca","No","No","5cba5961befb5dc66eed498e72f9571"]
["t4du-e2gp-xur0","Bolivia - Cochabamba - Tiraque - 3 - Ch´aki Qhocha","BOI  NOE","3252590379","30-05-2021 22:16:03 UTC","Noe","00:04:31",6,"Bolivia","Cochabamba",null,"Tiraque",3,"Huaylla Pujru","-17.458732249215245","-65.65499760210514","3678.0","https://waterforpeople.s3.amazonaws.com/images/6d30a920-ab33-4da1-a294-d5181a517777.jpg","1","Huaylla Pujru","Concentrada","Gobierno Nacional",45,35,30,5,90,"Si","Sistema por gravedad","","No",null,null,1997,"Si",null,null,"No",null,null,"Si","Si",0,"No",null,"Si",0,"Si",0.49,{"$nulls":7},0.14000000000000001,142.85714285714283,24,"No",{"$nulls":4},"Si","Bueno","No",{"$nulls":4},"Si","Si","Entel","No","No","Botan al rio, quebrada","Si","Tiraque y Bolivia Tv","Si","Causachun Coca","No","No","415d3b84a3b4cc7578958d96fefd069"]
["3f5c-csm6-5v1n","Bolivia - Cochabamba - Tiraque - 3 - Qhochimita","BOI  Tiraque1","3246530064","10-06-2021 01:24:56 UTC","Daniel Arellano","00:13:24",6,"Bolivia","Cochabamba",null,"Tiraque",3,"Qhochimita","-17.432651157369882","-65.66925032932926","3636.360010589473","https://waterforpeople.s3.amazonaws.com/images/fe37a594-5a9a-42f9-b166-cb477f10148d.jpg","1","Qhochimita","Semi dispersa","Municipio",93,100,100,0,300,"Si","Sistema por bombeo y gravedad","","Si",null,null,2013,"Si",null,null,"No",null,null,"Si","Si",0,"No",null,"Si",0,"Si",0.44,{"$nulls":7},0.5,40,24,"No",{"$nulls":4},"Si","Bueno","No",{"$nulls":4},"Si","Si","Entel","No","No","Queman","Si","Canal 7","Si","Radio Tiraque","No","No","99b13b2242c3a195eb902442b72fd1d0"]
["cunk-8te9-jf89","Bolivia - Cochabamba - Tiraque - 3 - Qolque Qhoya","BOI  Tiraque1","3234871693","13-06-2021 14:13:57 UTC","Daniel Arellano","00:08:33",6,"Bolivia","Cochabamba",null,"Tiraque",3,"Qolque Qhoya","-17.423238978963543","-65.66219941549123","3763.72867807094","https://waterforpeople.s3.amazonaws.com/images/9f65ce3a-8f61-4a33-8e11-5f6e4ccab575.jpg","1","Qolque Qhoya","Semi dispersa","Municipio|Agua Para el Pueblo",80,40,40,0,120,"Si","Sistema por gravedad","","Si",null,null,2011,"Si",null,null,"No",null,null,"Si","Si",0,"No",null,"Si",0,"Si",0.53,"No",{"$nulls":6},0.6,33.333333333333336,24,"No",{"$nulls":4},"Si","Bueno","Si","No cuenta con equipo de cloracion",null,null,null,"Si","Si","Entel","No","No","Queman|Entierran","Si","Canal 7","Si","Radio municipal","No","No","39dd6daab6493456a5a2467eea5f9f"]
["cheb-a06q-ceqh","Bolivia - Cochabamba - Tiraque - 3 - Sank´ayani Alto","BOI  NOE","3232550353","30-05-2021 21:46:51 UTC","Noe","00:07:03",6,"Bolivia","Cochabamba",null,"Tiraque",3,"Sank´ayani Alto","-17.424686257727444","-65.64333661459386","3926.0","https://waterforpeople.s3.amazonaws.com/images/5c64615e-3fd8-4504-88fc-260f457bb7fb.jpg","3","Sank´ayani Alto, Los Andes y Chapi Loma 1","Dispersa","Municipio|Comité de Agua|Agua Para el Pueblo",175,100,90,10,270,"Si","Sistema por gravedad","","Si",null,null,2016,"Si",null,null,"No",null,null,"Si","Si",0,"No",null,"Si",0,"Si",0.62,"No",{"$nulls":6},0.12,166.66666666666669,24,"No",{"$nulls":4},"Si","Bueno","No",{"$nulls":4},"Si","Si","Entel|Tigo","No","No","Queman|Botan al rio, quebrada","Si","Bolivia Tv","Si","Causachun Coca","No","No","bfcff511d6db58b2713ada2d28e9f"]
["u3tf-qfum-ayva","Bolivia - Cochabamba - Tiraque - 3 - Sank´ayani Alto","BOI  Tiraque1","3220840487","10-06-2021 00:21:03 UTC","Daniel Arellano","00:21:03",6,"Bolivia","Cochabamba",null,"Tiraque",3,"Sank´ayani Alto","-17.42477973780487","-65.64970998285939","3868.7388233896345","https://waterforpeople.s3.amazonaws.com/images/ab8912a4-99a3-43e7-a0c5-d30116bb9522.jpg","1","Sank´ayani Alto 2","Semi dispersa","Municipio|Otra ONG",60,50,45,0,135,"Si","Sistema por gravedad","","Si",null,null,1999,"Si",null,null,"No",null,null,"Si","Si",0,"No",null,"Si",0,"Si",0.62,{"$nulls":7},0.4,50,24,"No",{"$nulls":4},"Si","Bueno","Si","No tiene clorador",null,null,null,"Si","Si","Entel","No","No","Queman|Entierran","Si","Canal 7","Si","Radio Totora","No","No","75428a7f9378c28bfcfd75a8846c7ec"]
["k405-3cy7-s592","Bolivia - Cochabamba - Tiraque - 3 - Sank´ayani Bajo","BOI  Tiraque1","3230921655","13-06-2021 15:29:24 UTC","Daniel Arellano","00:26:44",6,"Bolivia","Cochabamba",null,"Tiraque",3,"Sank´ayani Bajo","-17.400102565299758","-65.65100107069466","3940.1981753222644","https://waterforpeople.s3.amazonaws.com/images/8802b9b1-f094-4630-9bf9-ae8f5dfe4820.jpg","1","Sank´ayani Bajo","Semi dispersa","Municipio|Otra ONG",110,100,90,10,270,"Si","Sistema por gravedad","","Si",null,null,1995,"Si",null,null,"No",null,null,"Si","Si",0,"No",null,"Si",0,"Si",0.71,"No",{"$nulls":6},0.5,40,24,"No",{"$nulls":4},"Si","Bueno","Si","Cumplio vida util la red. Hay 10 familias sin agua.",null,null,null,"Si","Si","Entel","No","No","Queman|Entierran","Si","Canal7","Si","Radio Municipal","No","No","cedf8158554eaa1f6fcc321e2b272784"]
["01b9-egjd-u1mf","Bolivia - Cochabamba - Tiraque - 3 - Sank´ayani Bajo","BOI  NOE","3222481683","14-06-2021 17:00:34 UTC","Noe","00:41:50",6,"Bolivia","Cochabamba",null,"Tiraque",3,"Sank´ayani Bajo","-17.417450579814613","-66.15243153646588","2610.0","https://waterforpeople.s3.amazonaws.com/images/11edfa81-67ff-4d2f-a218-5d65643be726.jpg","1","Sank´ayani Bajo","Semi dispersa","Municipio|Comité de Agua",42,38,38,0,114,"Si","Sistema por gravedad","","No",null,null,1995,"Si",null,null,"Si",3,2,"Si","Si",0,"No",null,"Si",0,"Si",0.71,"No",{"$nulls":6},0.22,90.909090909090907,12,"No",{"$nulls":4},"Si","Bueno","Si","Necesitamos otra fuente de Agua que abastesca a toda la comunidad. Hay 10 familias sin agua",null,null,null,"Si","Si","Entel|Tigo","No","No","Queman|Entierran|Botan al rio, quebrada","No",null,"Si","Causachun Coca","Si","Si","8c604ec57aaaf497aa265ed39ffa1"]
["hbe0-n6ju-5sv8","Bolivia - Cochabamba - Tiraque - 4 - Canal Mayu","BOI  NOE","3252560421","30-05-2021 22:11:14 UTC","Noe","00:05:58",6,"Bolivia","Cochabamba",null,"Tiraque",4,"Canal Mayu","-17.40730545949191","-65.72158453054726","3446.0","https://waterforpeople.s3.amazonaws.com/images/717ac608-87d6-467e-82b2-575ce43fd197.jpg","1","Canal Mayu","Concentrada","Municipio|Otra ONG",60,54,54,0,162,"Si","Sistema por gravedad","","No",null,null,2008,"Si",null,null,"No",null,null,"Si","Si",2,"No",null,"Si",0,"Si",0.45,"No",{"$nulls":6},0.26,76.92307692307692,24,"No",{"$nulls":4},"Si","Bueno","Si","Protección de fuente",null,null,null,"Si","Si","Entel","No","No","Botan al rio, quebrada","Si","Bolivia Tv","Si","Causachun Coca","No","No","10f018ca2ad3e2df6edb9b6e4f5d38c"]
["mk38-4x72-chd2","Bolivia - Cochabamba - Tiraque - 4 - Chapanani","BOI  Tiraque1","3234990085","17-06-2021 18:25:55 UTC","Daniel Arellano","00:11:18",6,"Bolivia","Cochabamba",null,"Tiraque",4,"Chapanani","-17.412568856036696","-65.75574253344887","0.0","https://waterforpeople.s3.amazonaws.com/images/c140bfb9-f8a5-420c-9ebf-8e7bf56cf765.jpg","1","Chapapani","Semi dispersa","Gobierno Nacional",65,65,65,0,195,"Si","Sistema por gravedad","","Si",null,null,1997,"Si",null,null,"No",null,null,"Si","Si",0,"No",null,"Si",0,"Si",3.49,"No",{"$nulls":6},0.5,40,24,"No",{"$nulls":4},"Si","Bueno","No",{"$nulls":4},"Si","Si","Entel|Tigo","Si","No","Queman|Entierran","Si","Canal municipal","Si","Radio Tiraque","No","No","b2815f6f9571edff2d15e319255f48d"]
["5130-8045-bqq8","Bolivia - Cochabamba - Tiraque - 4 - Kaspi Cancha Huanu Huanu","BOI  NOE","3232530396","30-05-2021 22:03:16 UTC","Noe","00:06:07",6,"Bolivia","Cochabamba",null,"Tiraque",4,"Kaspi Cancha Huanu Huanu","-17.391366055235267","-65.67780040204525","3959.0","https://waterforpeople.s3.amazonaws.com/images/deed3069-1700-49a4-86ae-e95f3cbe3f53.jpg","1","Kaspi Kancha Huanu Huanu","Concentrada","Municipio|Agua Para el Pueblo",55,40,40,0,120,"Si","Sistema por gravedad","","Si",null,null,2017,"Si",null,null,"Si",3,2,"Si","Si",0,"No",null,"Si",0,"Si",0.46,{"$nulls":7},0.34,58.823529411764703,12,"No",{"$nulls":4},"No","Malo","Si","Se requiere F.I.",null,null,null,"Si","Si","Entel","No","No","Botan al rio, quebrada","No",null,"Si","Causachun Coca","No","No","30f0f18b33d9dcecbacf3b5f5fcc52a"]
["we9w-2syc-dj4k","Bolivia - Cochabamba - Tiraque - 4 - Kaspi Kancha Alto","BOI  NOE","3248540334","30-05-2021 21:58:55 UTC","Noe","00:05:00",6,"Bolivia","Cochabamba",null,"Tiraque",4,"Kaspi Kancha Alto","-17.375696757808328","-65.68563153035939","4127.0","https://waterforpeople.s3.amazonaws.com/images/bb49f00a-c398-4161-8d57-ec8028589a6e.jpg","1","Kaspicancha Alta","Semi dispersa","Municipio|Comité de Agua",80,60,60,0,180,"Si","Sistema por gravedad","","No",null,null,1996,"Si",null,null,"No",null,null,"Si","Si",0,"No",null,"Si",0,"Si",0.44,{"$nulls":7},0.8,25,24,"No",{"$nulls":4},"Si","Bueno","No",{"$nulls":4},"Si","Si","Entel","No","No","Botan al rio, quebrada","No",null,"Si","Causachun Coca","No","No","d87bb074d34c30ee23caf044d9b035d0"]
["ccdy-gpmk-7654","Bolivia - Cochabamba - Tiraque - 4 - Kaspi Kancha Bajo","BOI  NOE","3246450429","30-05-2021 21:57:08 UTC","Noe","00:06:32",6,"Bolivia","Cochabamba",null,"Tiraque",4,"Kaspi Kancha Bajo","-17.390352808870375","-65.69777992554009","3809.0","https://waterforpeople.s3.amazonaws.com/images/44fe3c62-e8c5-4fa4-b4b7-65623bfd364e.jpg","1","Kaspi Cancha Bajo","Semi dispersa","Municipio|Otra ONG",96,75,75,0,225,"Si","Sistema por gravedad","","Si",null,null,2013,"Si",null,null,"No",null,null,"Si","Si",0,"No",null,"Si",0,"Si",0.48,"No",{"$nulls":6},0.18,111.11111111111111,24,"No",{"$nulls":4},"Si","Bueno","No",{"$nulls":4},"Si","Si","Entel","No","No","Queman|Botan al rio, quebrada","Si","Nolivia Tv","Si","Causachun Coca","No","No","4c4052dc52d3d01744a3a21baa1d2"]
["cd2p-0x1b-x15e","Bolivia - Cochabamba - Tiraque - 4 - Minas Pampa","BOI  NOE","3250640381","30-05-2021 21:14:37 UTC","Noe","00:07:18",6,"Bolivia","Cochabamba",null,"Tiraque",4,"Minas Pampa","-17.37751131411642","-65.70882735773921","3880.0","https://waterforpeople.s3.amazonaws.com/images/719f5af9-6078-47cf-8568-4ae90ed88af5.jpg","1","Minas Pampa","Semi dispersa","Gobierno Nacional|Municipio",41,28,28,0,84,"Si","Sistema por gravedad","","No",null,null,1995,"Si",null,null,"No",null,null,"Si","Si",0,"No",null,"Si",0,"Si",0.41,{"$nulls":7},0.2,100,24,"No",{"$nulls":4},"Si","Bueno","Si","Amerita mantenimiento preventivo",null,null,null,"Si","Si","Entel|Tigo","No","No","Queman|Botan al rio, quebrada","Si","Bolivia Tv","Si","Tiraque y Bolivia Tv","No","No","3e7e6531cc1912b18e3337796f275143"]
["9h6q-bew9-u5y6","Bolivia - Cochabamba - Tiraque - 4 - Murmuntani","BOI  Tiraque1","3234921062","12-06-2021 23:26:58 UTC","Daniel Arellano","00:10:45",6,"Bolivia","Cochabamba",null,"Tiraque",4,"Murmuntani","-17.36672466596883","-65.73361209269184","4003.049810963683","https://waterforpeople.s3.amazonaws.com/images/5491ffb8-43f3-4ab0-9a19-b05ea58fc9f0.jpg","1","Murmuntani","Semi dispersa","Municipio",20,20,20,0,60,"Si","Sistema por gravedad","","No",null,null,2004,"Si",null,null,"No",null,null,"Si","Si",108,"No",null,"Si",0,"Si",0.43,"No",{"$nulls":6},0.3,66.666666666666671,24,"No",{"$nulls":4},"Si","Bueno","Si","Falta cerco",null,null,null,"Si","Si","Entel","No","No","Queman|Entierran","Si","Canal 7","Si","Radio colomi","No","No","8eaa4d50db1e3a769c1750b94bd78"]
["3c9y-29pb-fyk0","Bolivia - Cochabamba - Tiraque - 4 - Parra Rancho","BOI  Tiraque1","3246530066","11-06-2021 00:27:44 UTC","Daniel Arellano","00:08:26",6,"Bolivia","Cochabamba",null,"Tiraque",4,"Parra Rancho","-17.397485306273328","-65.73047463814532","3550.4010226158425","https://waterforpeople.s3.amazonaws.com/images/5ae0f8e1-0564-40f3-9322-2bb3809bce7a.jpg","1","1","Semi dispersa","Municipio|Comité de Agua|Agua Para el Pueblo",120,80,80,0,240,"Si","Sistema por gravedad","","Si",null,null,2010,"Si",null,null,"No",null,null,"Si","Si",0,"No",null,"Si",0,"Si",0.47,"Si","","","No",null,null,null,0.3,66.666666666666671,24,"No",{"$nulls":4},"Si","Bueno","Si","El problema es en  la fuente en el filtro se llena de microbios",null,null,null,"Si","Si","Entel","No","No","Queman|Entierran","Si","Canal 7","No",null,"No","No","818f5a60e2d80b61c455c41b76959e3"]
["0g3s-4ywj-4ub5","Bolivia - Cochabamba - Tiraque - 4 - San Isidro Alto","BOI  Tiraque1","3252720575","11-06-2021 19:12:33 UTC","Daniel Arellano","00:30:00",6,"Bolivia","Cochabamba",null,"Tiraque",4,"San Isidro Alto","-17.376170559491978","-65.73044951009707","0.0","https://waterforpeople.s3.amazonaws.com/images/850b74e3-bdd5-46cc-9368-e20694f25627.jpg","1","San Isidro Alto","Semi dispersa","Comité de Agua",25,18,18,0,54,"Si","Sistema por gravedad","","No",null,null,2001,"Si",null,null,"No",null,null,"No",{"$nulls":15},0.5,40,24,"No",{"$nulls":4},"Si","Malo","Si","Hay reventones en la red, tanque con confisuras.",null,null,null,"Si","Si","Entel","No","No","Queman","Si","Canal Municipal","No",null,"No","No","222570ebed42dd875df731923aeb395"]
["0e8t-shy7-dn5y","Bolivia - Cochabamba - Tiraque - 4 - San Isidro Bajo","BOI  Tiraque1","3242740488","11-06-2021 18:35:41 UTC","Daniel Arellano","00:15:44",6,"Bolivia","Cochabamba",null,"Tiraque",4,"San Isidro Bajo","-17.37473782958498","-65.73585207961791","3810.938794204034","https://waterforpeople.s3.amazonaws.com/images/d72727f6-1d9b-4b13-a179-ea37e2ef710d.jpg","1","Segun su personeria juridica esta       San Isidro Zona Norte","Semi dispersa","Municipio|Otra ONG",90,67,67,0,201,"Si","Sistema por gravedad","","Si",null,null,2005,"Si",null,null,"No",null,null,"Si","Si",0,"No",null,"Si",0,"Si",1.002,{"$nulls":7},0.4,50,24,"No",{"$nulls":4},"Si","Bueno","Si","Falta hacer mantenimiento preventivo  del SAP",null,null,null,"Si","Si","Entel","No","No","Queman","Si","Canal 7","Si","Radio Laser","No","No","fc6b32e67b2965d7a27d4df855efb12"]
["xq6j-4s5v-x2tg","Bolivia - Cochabamba - Tiraque - 4 - Toco Rancho Alto","BOI  Tiraque1","3230890504","11-06-2021 02:13:15 UTC","Daniel Arellano","00:09:20",6,"Bolivia","Cochabamba",null,"Tiraque",4,"Toco Rancho Alto","-17.38285438249084","-65.74595083702872","0.0","https://waterforpeople.s3.amazonaws.com/images/8c83eccf-55e2-4543-863a-4abe5d94fa11.jpg","1","Toco Rancho Alto","Semi dispersa","Comité de Agua|Otra ONG",148,100,100,0,300,"Si","Sistema por gravedad","","No",null,null,1996,"Si",null,null,"No",null,null,"Si","Si",0,"No",null,"Si",0,"Si",0.55000000000000004,{"$nulls":7},0.4,50,24,"No",{"$nulls":4},"No","Bueno","No",{"$nulls":4},"Si","Si","Entel","No","No","Entierran","Si","Canal 7","Si","Laser de Tiraque","No","No","2cca708136da619ef7626996ff10e0a1"]
["7g33-b8v1-ksew","Bolivia - Cochabamba - Tiraque - 4 - Toco Rancho Bajo","BOI  Tiraque1","3248640097","11-06-2021 02:42:40 UTC","Daniel Arellano","00:08:00",6,"Bolivia","Cochabamba",null,"Tiraque",4,"Toco Rancho Bajo","-17.39115792137262","-65.73542033191431","3611.549926938489","https://waterforpeople.s3.amazonaws.com/images/2687624f-654e-41de-9d67-c2b02b4a1ff2.jpg","1","Toco Rancho Bajo","Semi dispersa","Municipio|Otra ONG",48,30,30,0,90,"Si","Sistema por gravedad","","Si",null,null,2011,"Si",null,null,"No",null,null,"Si","Si",0,"No",null,"Si",0,"Si",2,{"$nulls":7},0.6,33.333333333333336,24,"No",{"$nulls":4},"Si","Bueno","Si","Hay filtracion de agua del lago a la fuente",null,null,null,"Si","Si","Entel","No","No","Queman","Si","Canal 7","Si","Radio Laser Tiraque","No","No","2c3416cf8142febb2bd69da99626483"]
["v67e-4mc6-5sa1","Bolivia - Cochabamba - Tiraque - 4 - Villa Junín","BOI  NOE","3238781794","06-06-2021 21:24:52 UTC","Noe","00:08:27",6,"Bolivia","Cochabamba",null,"Tiraque",4,"Villa Junín","-17.41749743465334","-66.15235241129994","2623.0","https://waterforpeople.s3.amazonaws.com/images/8124a4cf-db30-4d32-bcaa-04a3556ed108.jpg","1","Villa Junin","Concentrada","Gobierno Nacional",61,40,32,8,96,"Si","Sistema por gravedad","","No",null,null,2002,"Si",null,null,"Si",3,2,"Si","Si",0,"No",null,"Si",0,"Si",0.49,"No",{"$nulls":6},0.18,111.11111111111111,24,"No",{"$nulls":4},"Si","Bueno","No",{"$nulls":4},"Si","Si","Entel|Tigo","No","No","Queman|Botan al rio, quebrada","No",null,"Si","Causchun Coca","No","No","b253ff76f0989c681ecde1a4d47bfb89"]
["pepe-wva1-6njv","Bolivia - Cochabamba - Tiraque - 4 - Villa Junin Bajo","BOI  NOE","3220680417","30-05-2021 22:06:55 UTC","Noe","00:08:31",6,"Bolivia","Cochabamba",null,"Tiraque",4,"Villa Junin Bajo","-17.406554147601128","-65.71275017224252","3478.0","https://waterforpeople.s3.amazonaws.com/images/c9f3e157-d269-40a3-8b09-58af60ee0890.jpg","1","Villa Junin Bajo","Concentrada","Municipio|Comité de Agua|Otra ONG",41,28,28,0,84,"Si","Sistema por gravedad","","No",null,null,1997,"Si",null,null,"No",null,null,"Si","Si",2,"No",null,"Si",0,"Si",4.22,"No",{"$nulls":6},0.21,95.238095238095241,24,"No",{"$nulls":4},"Si","Bueno","No",{"$nulls":4},"Si","Si","Entel","No","No","Botan al rio, quebrada","Si","Canal Tiraque","Si","Causachun Coca","No","No","a72749c4337eafa81f955b8fe194d256"]
["a1jd-8208-x896","Bolivia - Cochabamba - Tiraque - 4 - Villa Progreso","BOI  Tiraque1","3230950270","17-06-2021 18:38:15 UTC","Daniel Arellano","00:11:20",6,"Bolivia","Cochabamba",null,"Tiraque",4,"Villa Progreso","-17.416512723122494","-65.73174710300086","3301.8232348468155","https://waterforpeople.s3.amazonaws.com/images/0497e488-6b9b-40fc-91aa-4e9bef00f01d.jpg","1","Villa Progreso","Semi dispersa","Municipio",43,15,0,15,"","Si","Sistema por gravedad","","No",null,null,2008,"No","Bajo caudal de agua","","Si",5,5,"No",{"$nulls":8},"No",{"$nulls":7},"",0,"No",{"$nulls":4},"No","No Funciona","Si","La fuente se seco, estan usando agua del sistema de riego",null,null,null,"Si","Si","Entel","No","No","Entierran","Si","Canal 7","Si","Radio Municipal","No","No","fae45e236d7c78b8c8da3ac8226dfc4"]
["kgju-ehw7-25pa","Bolivia - Cochabamba - Tiraque - 5 - Ch´aki Quocha","BOI  Tiraque1","3252710325","09-06-2021 16:48:43 UTC","Daniel Arellano","00:09:23",6,"Bolivia","Cochabamba",null,"Tiraque",5,"Ch´aki Quocha","-17.390268291105702","-65.79153431053956","3503.2139945561066","https://waterforpeople.s3.amazonaws.com/images/44f4397f-1819-40ab-9a8f-3fb5fa9f42b1.jpg",1,"Ch´aki Quocha","Semi dispersa","Municipio|Comité de Agua|Agua Para el Pueblo",43,35,28,7,84,"Si","Sistema por gravedad","","No",null,null,2007,"Si",null,null,"No",null,null,"No",{"$nulls":15},0.7,28.571428571428573,24,"No",{"$nulls":4},"Si","Bueno","No",{"$nulls":4},"Si","Si","Entel","No","No","Queman|Entierran","Si","Canal 7, ATB,","Si","13 de nobiembre colomi, Laser Tiraque","No","No","94f994fd1859a853c98ddd63594d420"]
["u018-1xub-tuss","Bolivia - Cochabamba - Tiraque - 5 - Churo Alto","BOI  Tiraque1","3238720196","05-06-2021 22:08:41 UTC","Daniel Arellano","00:35:41",6,"Bolivia","Cochabamba",null,"Tiraque",5,"Churo Alto","-17.377872477122295","-65.79561566854775","0.0","https://waterforpeople.s3.amazonaws.com/images/a67971d2-f2a0-418a-8a47-4eca8247c0ee.jpg",2,"Churo Alto","Semi dispersa","Municipio|Agua Para el Pueblo",53,48,46,2,138,"Si","Sistema por gravedad","","Si",null,null,2012,"Si",null,null,"No",null,null,"Si","Si",0,"No",null,"Si",0,"Si",1.1599999999999999,"No",{"$nulls":6},0.5,40,24,"No",{"$nulls":4},"Si","Bueno","No",{"$nulls":4},"Si","Si","Entel|Tigo","No","No","Queman","Si","Canal 9 ,canal7 y canal 5","Si","Renovacion, arani, chiwalaque","Si","No","57c6452c5e67261e3678c7f371b8f815"]
["ravk-28nf-t46v","Bolivia - Cochabamba - Tiraque - 5 - Ciacochi","BOI  Tiraque1","3246510071","08-06-2021 04:00:02 UTC","Daniel Arellano","00:17:03",6,"Bolivia","Cochabamba",null,"Tiraque",5,"Ciacochi","-17.355816239473604","-65.79855256951309","3672.3970019444823","https://waterforpeople.s3.amazonaws.com/images/e94871b0-79a1-418a-a981-a9454e4ba291.jpg",1,"Ciacochi","Semi dispersa","Municipio|Otra ONG",50,38,38,0,114,"Si","Sistema por gravedad","","No",null,null,2008,"Si",null,null,"No",null,null,"Si","Si",20,"No",null,"Si",0,"Si",1.17,"No",{"$nulls":6},0.2,100,24,"No",{"$nulls":4},"Si","Bueno","No",{"$nulls":4},"Si","Si","Entel","No","No","Queman","Si","Canal7","Si","Radio colomi","No","No","c784df7cb6bebb11bbbb98ca41d9d4d6"]
["797m-n881-gnnd","Bolivia - Cochabamba - Tiraque - 5 - Cotani Bajo A","BOI  Tiraque1","3230920386","09-06-2021 18:22:06 UTC","Daniel Arellano","00:12:43",6,"Bolivia","Cochabamba",null,"Tiraque",5,"Cotani Bajo A","-17.376756205951544","-65.78773360404396","3666.5610229512677","https://waterforpeople.s3.amazonaws.com/images/fd59beb7-1843-4572-be0c-9f5867a75183.jpg",1,"Cotani Bajo A","Concentrada","Municipio|Comité de Agua|Otra ONG",97,50,50,0,150,"Si","Sistema por gravedad","","Si",null,null,2019,"Si",null,null,"No",null,null,"No",{"$nulls":15},0.2,100,24,"No",{"$nulls":4},"Si","Bueno","No",{"$nulls":4},"Si","Si","Entel","No","No","Queman|Entierran","Si","Canal 7, Bolivision","Si","Radio Chigualaku, Radio Laser Tiraque","No","No","bf957c73f68ebdf547848fd4907970"]
["84hd-0d2n-6rpc","Bolivia - Cochabamba - Tiraque - 5 - Cotani Bajo B","BOI  Tiraque1","3234890209","09-06-2021 19:19:44 UTC","Daniel Arellano","00:18:07",6,"Bolivia","Cochabamba",null,"Tiraque",5,"Cotani Bajo B","-17.368614116388777","-65.7790919754275","3798.2619264042005","https://waterforpeople.s3.amazonaws.com/images/3fb1afc1-35b1-4b43-a976-9d6580c89d52.jpg",1,"Cotani Bajo B","Semi dispersa","Gobierno Nacional|Municipio",52,46,46,0,138,"Si","Sistema por gravedad","","Si",null,null,2019,"Si",null,null,"Si",2,1,"Si","Si",0,"No",null,"Si",0,"Si",1.02,{"$nulls":7},0.2,{"$f":"IF(BE311=\"\",\"\",(20/BE311))","v":100},24,"No",{"$nulls":4},"Si","Bueno","Si","Hay reventones en red",null,null,null,"Si","Si","Entel","No","No","Queman|Entierran","Si","Bolivision","Si","Radio Colomi","No","No","3cbe43a68e5ac3b77dfda080fc9154"]
["p4f7-ty2n-1na8","Bolivia - Cochabamba - Tiraque - 5 - Cotani Piquería","BOI  Tiraque1","3244420225","06-06-2021 00:06:10 UTC","Daniel Arellano","00:09:25",6,"Bolivia","Cochabamba",null,"Tiraque",5,"Cotani Piquería","-17.361812835356506","-65.7859880627701","0.0","https://waterforpeople.s3.amazonaws.com/images/41c4a26d-9c2d-48ca-8d51-b4a13f44a2fb.jpg",1,"Cotani Piquería","Semi dispersa","Municipio|Agua Para el Pueblo|Otra ONG",40,30,30,0,90,"Si","Sistema por gravedad","","Si",null,null,2009,"Si",null,null,"No",null,null,"Si","Si",0,"No",null,"Si",0,"Si",0.69,"No",{"$nulls":6},0.2,100,24,"No",{"$nulls":4},"Si","Bueno","No",{"$nulls":4},"Si","Si","Entel","No","No","Queman","Si","Canal 7","Si","Radio colomi","No","No","8e122e76925170f21a6a8d6dc3318315"]
["mubt-mee2-jgb7","Bolivia - Cochabamba - Tiraque - 5 - Cotani Reversión","BOI  Tiraque1","3230920380","09-06-2021 17:41:57 UTC","Daniel Arellano","00:06:32",6,"Bolivia","Cochabamba",null,"Tiraque",5,"Cotani Reversión","-17.366451468602932","-65.79497448280799","3653.015477613546","https://waterforpeople.s3.amazonaws.com/images/b841bf83-23af-4801-aa9c-f6e2e72c2958.jpg",1,"Cotani Reversión","Concentrada","Municipio|Otra ONG",43,43,43,0,129,"Si","Sistema por gravedad","","Si",null,null,1996,"Si",null,null,"No",null,null,"No",{"$nulls":15},0.2,100,24,"No",{"$nulls":4},"Si","Bueno","No",{"$nulls":4},"Si","Si","Entel","No","No","Queman|Entierran","Si","ATB, canal 7","Si","Radio tiraque y radio colomi","No","No","8c5db3c98f586fb34fa507356e6d60"]
["e3n5-p40r-0b46","Bolivia - Cochabamba - Tiraque - 5 - Rodeo Alto","BOI  Tiraque1","3238790073","08-06-2021 04:05:02 UTC","Daniel Arellano","00:34:23",6,"Bolivia","Cochabamba",null,"Tiraque",5,"Rodeo Alto","-17.37331996564549","-65.7711477287471","3766.3539486164227","https://waterforpeople.s3.amazonaws.com/images/e633f481-c0de-45e1-a79f-84234b1c9222.jpg",1,"Rodeo Alto","Semi dispersa","Gobierno Nacional|Agua Para el Pueblo",80,50,50,0,150,"Si","Sistema por gravedad","","Si",null,null,2002,"Si",null,null,"No",null,null,"Si","Si",0,"No",null,"Si",0,"Si",2.76,"No",{"$nulls":6},0.3,66.666666666666671,24,"No",{"$nulls":4},"Si","Bueno","No",{"$nulls":4},"Si","Si","Entel","No","No","Entierran","Si","Canal 7","Si","La chiguana","No","No","6658aa49f920d5282248b3ebbfda87ef"]
["3wkd-bekr-c7bj","Bolivia - Cochabamba - Tiraque - 5 - Rodeo Bajo","BOI  Tiraque1","3234860087","08-06-2021 04:20:50 UTC","Daniel Arellano","00:39:02",6,"Bolivia","Cochabamba",null,"Tiraque",5,"Rodeo Bajo","-17.386057103100146","-65.76124897123397","0.0","https://waterforpeople.s3.amazonaws.com/images/0fe7ab3c-4b06-43c6-94c9-d3125f5e7ad8.jpg",1,"Rodeo Bajo","Semi dispersa","Municipio|Agua Para el Pueblo",53,45,45,0,135,"Si","Sistema por gravedad","","Si",null,null,2019,"Si",null,null,"No",null,null,"No",{"$nulls":8},"No",{"$nulls":6},0.3,66.666666666666671,24,"No",{"$nulls":4},"Si","Bueno","No",{"$nulls":4},"Si","Si","Entel","Si","No","Queman","Si","ATB, canal 34","Si","Radio colomi","No","No","f6a484f8103dfe55e71c1d9e34e63ef"]
["d7gm-5d73-0819","Bolivia - Cochabamba - Tiraque - 5 - Segundo Rodeo","BOI  Tiraque1","3222480129","08-06-2021 04:56:55 UTC","Daniel Arellano","00:18:07",6,"Bolivia","Cochabamba",null,"Tiraque",5,"Segundo Rodeo","-17.375845557618455","-65.75425849043738","0.0","https://waterforpeople.s3.amazonaws.com/images/b9d83229-bde6-4d27-bf51-435bc66bf5b9.jpg",1,"Segundo Rodeo","Semi dispersa","Gobierno Nacional|Municipio",60,35,35,0,105,"Si","Sistema por gravedad","","No",null,null,1996,"Si",null,null,"No",null,null,"Si","Si",9,"No",null,"Si",0,"Si",1.75,"No",{"$nulls":6},1,20,24,"No",{"$nulls":4},"Si","Bueno","No",{"$nulls":4},"Si","Si","Entel","No","No","Queman","Si","Canal 7","Si","La chiguana","No","No","c5d0ba489de91b26a47639a907a1060"]
["y8cr-45pq-5kr0","Bolivia - Cochabamba - Tiraque - 5 - Titulados Cotani","BOI  Tiraque1","3248390119","18-05-2021 15:33:39 UTC","Daniel Arellano","00:42:14",6,"Bolivia","Cochabamba",null,"Tiraque",5,"Titulados Cotani","-17.35370359128293","-65.7888473995912","3776.3509825244546","https://waterforpeople.s3.amazonaws.com/images/379712c0-bf29-4d2d-9b81-3248a3370398.jpg",5,"Piqueria, Juventud, Reversion, 15 de octubre y Titulados","Semi dispersa","Otra ONG",260,102,92,10,276,"Si","Sistema por gravedad","","Si",null,null,1987,"Si",null,null,"No",null,null,"Si","Si",0,"No",null,"Si",0,"Si",0.84,"No",{"$nulls":6},11,1.8181818181818181,24,"No",{"$nulls":4},"Si","Bueno","No",{"$nulls":4},"Si","Si","Entel","Si","No","Queman","Si","Cana7","Si","Radio punata","Si","No","e258d419945380c3aa18fd367178aed"]
["wpcf-pha1-8gwb","Bolivia - Cochabamba - Tiraque - 5 - Viscachani","BOI  Tiraque1","3220840360","09-06-2021 14:54:48 UTC","Daniel Arellano","00:16:59",6,"Bolivia","Cochabamba",null,"Tiraque",5,"Viscachani","-17.417222765982366","-66.1282901497431","2598.3923811540008","https://waterforpeople.s3.amazonaws.com/images/6510cb99-2b88-4743-b9bc-ae44f09baeaa.jpg",1,"Viscachani","Semi dispersa","Municipio|Agua Para el Pueblo",60,32,32,0,96,"Si","Sistema por gravedad","","Si",null,null,2004,"Si",null,null,"No",null,null,"Si","Si",0,"No",null,"Si",0,"Si",0.61,"No",{"$nulls":6},0.4,50,24,"No",{"$nulls":4},"Si","Bueno","Si","Rajadura en el tanque",null,null,null,"Si","Si","Entel","No","No","Queman","Si","Canal 7","Si","Radio colomi","Si","No","e742fa72133f96d5bfb8c6f39a3268"]
["1ejs-kb8g-r2dx","Bolivia - Cochabamba - Tiraque - 7 - Canton Palca","BOI  Tiraque1","3230920200","08-06-2021 14:06:18 UTC","Daniel Arellano","00:12:28",6,"Bolivia","Cochabamba",null,"Tiraque",7,"Canton Palca","-17.40885926472158","-65.7775430846451","3171.2685430357233","https://waterforpeople.s3.amazonaws.com/images/02ecb495-0ba7-4091-be61-8a2b39043476.jpg","1","Canton  Palca","Concentrada","Municipio|Otra ONG",70,30,30,0,90,"Si","Sistema por gravedad","","No",null,null,1988,"Si",null,null,"No",null,null,"Si","Si",0,"No",null,"Si",0,"Si",1.78,"No",{"$nulls":6},0.5,40,24,"No",{"$nulls":4},"Si","Bueno","Si","Tanque",null,null,null,"Si","Si","Entel","No","No","Queman|Entierran","Si","Canal 7 canal 5","Si","Panamericana","No","No","ea2e2116b3921ef78a161d0ef4af623"]
["d8e4-8c02-0d5g","Bolivia - Cochabamba - Tiraque - 7 - Chapisirca","BOI  Tiraque1","3242740232","08-06-2021 23:40:13 UTC","Daniel Arellano","00:08:30",6,"Bolivia","Cochabamba",null,"Tiraque",7,"Chapisirca","-17.42904543143185","-65.80369004566447","3365.483497028239","https://waterforpeople.s3.amazonaws.com/images/ad4687bb-b34c-4d80-a4dc-d3db5fe8b76b.jpg","1","Chapisirca","Semi dispersa","Gobierno Nacional|Agua Para el Pueblo|Otra ONG",49,25,23,2,69,"Si","Sistema por gravedad","","Si",null,null,2008,"Si",null,null,"No",null,null,"Si","Si",0,"No",null,"Si",0,"Si",7.94,"No",{"$nulls":6},0.5,40,24,"No",{"$nulls":4},"Si","Bueno","No",{"$nulls":4},"Si","Si","Entel","No","No","Queman","Si","Canal 7","Si","Rsdio colomi","No","No","dc1456b6b68bb6bda56f1015b9a3b4"]
["y0a1-xjhr-82pj","Bolivia - Cochabamba - Tiraque - 7 - Chaqui Mayu","BOI  Tiraque1","3252720271","09-06-2021 14:03:43 UTC","Daniel Arellano","00:07:49",6,"Bolivia","Cochabamba",null,"Tiraque",7,"Chaqui Mayu","-17.41727296019888","-66.12839994791348","2624.003234066069","https://waterforpeople.s3.amazonaws.com/images/b105c136-aa75-4bc0-b654-3553761ef4d7.jpg","1","Chaqui Mayu","Concentrada","Comité de Agua",15,12,12,0,36,"Si","Sistema por gravedad",null,"No",null,"",2001,"Si",null,null,"No",null,null,"Si","Si",0,"No",null,"Si",0,"Si",3.95,{"$nulls":7},0.5,40,24,"No",{"$nulls":4},"Si","Bueno","No","Obra de toma en mal estado",null,null,null,"Si","Si","Entel","Si","No","Queman","Si","Canal 7","Si","Radio colomi","No","No","70fce6631feaa4137f3af66d5bec697d"]
["r621-9kre-mwd5","Bolivia - Cochabamba - Tiraque - 7 - Jatun Pampa","BOI  Tiraque1","3252720238","09-06-2021 00:14:00 UTC","Daniel Arellano","00:06:55",6,"Bolivia","Cochabamba",null,"Tiraque",7,"Jatun Pampa","-17.413974094653803","-65.80770291134819","3316.5278080785647","https://waterforpeople.s3.amazonaws.com/images/10e67a84-ad5e-487a-8d66-3ad4cbc266e3.jpg","1","Jatun Pampa","Semi dispersa","Municipio|Otra ONG",45,25,20,5,{"$f":"IF(Y322=0,\"\",(Y322*3))","v":60},"Si","Sistema por gravedad","","No",null,null,2004,"Si",null,null,"No",null,null,"Si","Si",0,"No",null,"Si",0,"Si",6.67,"No",{"$nulls":6},0.3,66.666666666666671,24,"No",{"$nulls":4},"Si","Bueno","No",{"$nulls":4},"Si","Si","Entel","No","No","Queman","Si","Canal 7","No",null,"No","No","f9e6129867ee75bce6d5437c98d0f02b"]
["hg64-044s-vaw2","Bolivia - Cochabamba - Tiraque - 7 - Matadería","BOI  Tiraque1","3240620110","09-06-2021 00:38:28 UTC","Daniel Arellano","00:06:23",6,"Bolivia","Cochabamba",null,"Tiraque",7,"Matadería","-17.389907747437142","-65.80943700852443","0.0","https://waterforpeople.s3.amazonaws.com/images/1f196566-3544-48e4-ad16-65942dea75ff.jpg","1","Mataderia","Semi dispersa","Comité de Agua",37,5,3,2,9,"Si","Sistema por gravedad","","No",null,null,2008,"Si",null,null,"No",null,null,"Si","Si",0,"No",null,"Si",0,"Si",7.56,"No",{"$nulls":6},0.7,28.571428571428573,24,"No",{"$nulls":4},"Si","Bueno","Si","Hay filtracion del tanque de agua",null,null,null,"Si","Si","Entel","No","No","Entierran","Si","Canal 7","Si","Ridio colomi","Si","No","e21b34243df2d589e26d307a7811a9b4"]
["99m9-8yk5-78sh","Bolivia - Cochabamba - Tiraque - 7 - Puca Huasi","BOI  Tiraque1","3228720066","09-06-2021 00:46:53 UTC","Daniel Arellano","00:11:05",6,"Bolivia","Cochabamba",null,"Tiraque",7,"Puca Huasi","-17.405038704703376","-65.76253030894046","3343.1225405307487","https://waterforpeople.s3.amazonaws.com/images/2c5e6eca-721b-4450-9ee2-2010860e917b.jpg","1","Puca Wasi","Semi dispersa","Gobierno Nacional|Municipio",50,30,30,0,90,"Si","Sistema por gravedad","","Si",null,null,2007,"Si",null,null,"No",null,null,"Si","Si",0,"No",null,"Si",0,"Si",0.85,"No",{"$nulls":6},0.2,100,24,"No",{"$nulls":4},"Si","Bueno","No",{"$nulls":4},"Si","Si","Entel","No","No","Queman|Entierran","Si","Canal 7","Si","Radio colomi","No","No","995bd9c3193e2d2286ae60d053cd3827"]
["1ggb-npve-y186","Bolivia - Cochabamba - Tiraque - 8 - Cruz Pampa","BOI  Tiraque1","3230910201","08-06-2021 14:57:43 UTC","Daniel Arellano","00:29:05",6,"Bolivia","Cochabamba",null,"Tiraque",8,"Cruz Pampa","-17.51325004992881","-65.5182188710536","0.0","https://waterforpeople.s3.amazonaws.com/images/ea79a3c5-ba8a-48de-ad61-73588b2b7b5d.jpg",1,"Cruz Pampa","Semi dispersa","Municipio|Otra ONG",70,30,30,0,90,"Si","Sistema por gravedad","","Si",null,null,2002,"Si",null,null,"No",null,null,"No",{"$nulls":8},"No",{"$nulls":6},0.5,40,24,"No",{"$nulls":4},"Si","Bueno","Si","Falta cerco en la toma",null,null,null,"Si","Si","Entel","No","Si",null,"Si","Canal 7","Si","Radio pocona","No","No","72fc53592be5d2e019a892507be8e3d0"]
["fra4-ph9n-b7nw","Bolivia - Cochabamba - Tiraque - 8 - Iskay Wasi","BOI  Tiraque1","3252730088","09-06-2021 12:52:59 UTC","Daniel Arellano","00:46:34",6,"Bolivia","Cochabamba",null,"Tiraque",8,"Iskay Wasi","-17.523081798530395","-65.51474680570277","3689.3509985962883","https://waterforpeople.s3.amazonaws.com/images/1e7b5f2b-cc28-4361-bcca-b26464d0d62a.jpg",3,"1ero de Septiembre, Iskay Wasi y Valle Bajo","Semi dispersa","Municipio|Otra ONG",115,27,27,0,81,"Si","Sistema por gravedad","","Si",null,null,2005,"Si",null,null,"No",null,null,"Si","Si",0,"No",null,"Si",0,"Si",2.1,"No",{"$nulls":6},0.5,40,24,"No",{"$nulls":4},"Si","Bueno","Si","Falta clorador",null,null,null,"Si","Si","Entel","Si","No","Queman|Entierran","Si","Canal 7","Si","Radio la chiguana","No","No","63a8e01f525c96f2f1e65951f48a211"]
["vu07-jcct-wmmy","Bolivia - Cochabamba - Tiraque - 8 - Jatun Pujru","BOI  Tiraque1","3250840241","08-06-2021 18:27:20 UTC","Daniel Arellano","00:27:46",6,"Bolivia","Cochabamba",null,"Tiraque",8,"Jatun Pujru","-17.514965613779882","-65.53173462689995","3846.2930700471625","https://waterforpeople.s3.amazonaws.com/images/7f0c2c8b-7d98-42c1-9449-1862c6832ac6.jpg",1,"Jatun Pujru","Semi dispersa","Municipio|Agua Para el Pueblo",26,12,12,0,36,"Si","Sistema por gravedad","","Si",null,null,2008,"Si",null,null,"No",null,null,"Si","Si",0,"No",null,"Si",0,"Si",1.5,"No",{"$nulls":6},0.5,40,24,"No",{"$nulls":4},"Si","Bueno","No",{"$nulls":4},"Si","Si","Entel","No","No","Queman","Si","Canal 7","Si","Radion pio 12","No","No","27cea1893c1a36314440c242a94092b"]
["y3n4-es4k-xebm","Bolivia - Cochabamba - Tiraque - 8 - Miskha Mayu","BOI  Tiraque1","3252710253","08-06-2021 18:58:28 UTC","Daniel Arellano","00:12:54",6,"Bolivia","Cochabamba",null,"Tiraque",8,"Miskha Mayu","-17.543315721582474","-65.46536555338356","3407.0991584863514","https://waterforpeople.s3.amazonaws.com/images/a93cd715-ddb1-473f-8bdc-8e2ce23c2233.jpg",1,"Miska Mayu","Semi dispersa","Municipio|Agua Para el Pueblo",85,35,35,0,105,"Si","Sistema por gravedad","","No",null,null,2002,"Si",null,null,"No",null,null,"Si","Si",2,"No",null,"Si",0,"Si",0.51,"No",{"$nulls":6},0.3,66.666666666666671,24,"No",{"$nulls":4},"Si","Bueno","Si","Falta el cerco en la fuente y tanque",null,null,null,"Si","Si","Entel","No","No","Queman|Entierran","Si","Canal 7","Si","Radio pocona","No","No","88dc595ccbd849a2269f81d58e708"]
["h21x-2wff-7cgb","Bolivia - Cochabamba - Tiraque - 8 - Monton Kayara","BOI  Tiraque1","3252720227","08-06-2021 21:38:03 UTC","Daniel Arellano","00:13:39",6,"Bolivia","Cochabamba",null,"Tiraque",8,"Monton Kayara ","-17.510057771806686","-65.46833531824048","3714.5814522793517","https://waterforpeople.s3.amazonaws.com/images/e4eeacf4-8e11-44b9-8015-d58c6b13fb2a.jpg",2,"Monton kayara y central","Semi dispersa","Municipio|Otra ONG",80,50,50,0,150,"Si","Sistema por gravedad","","Si",null,null,2005,"Si",null,null,"No",null,null,"Si","Si",0,"No",null,"Si",0,"Si",0.43,"No",{"$nulls":6},0.5,40,24,"No",{"$nulls":4},"Si","Bueno","No",{"$nulls":4},"Si","Si","Entel|Tigo","No","No","Queman|Entierran","Si","Canal 7","Si","Radio pocona","No","No","e64698a9fc8942e4f5c23ae14d4c135d"]
["sud2-sq63-9rwv","Bolivia - Cochabamba - Tiraque - 8 - Palca","BOI  Tiraque1","3242730231","08-06-2021 22:07:03 UTC","Daniel Arellano","00:10:18",6,"Bolivia","Cochabamba",null,"Tiraque",8,"Palca","-17.528223920491264","-65.4802455440414","3543.088280924596","https://waterforpeople.s3.amazonaws.com/images/5cad114a-6221-4910-84e7-09a0f3f182d6.jpg",2,"Palca A y Palca B","Semi dispersa","Municipio|Comité de Agua|Agua Para el Pueblo",64,40,40,0,120,"Si","Sistema por gravedad","","No",null,null,2004,"Si",null,null,"No",null,null,"Si","Si",0,"No",null,"Si",0,"Si",0.53,"No",{"$nulls":6},0.6,33.333333333333336,24,"No",{"$nulls":4},"Si","Bueno","No",{"$nulls":4},"Si","Si","Entel","No","No","Queman|Entierran","Si","Canal 7","Si","Radio pocona","No","No","ba585f914d65976f99334c36745fb59"]
["fht5-fem7-qdtg","Bolivia - Cochabamba - Tiraque - 8 - Sapanani","BOI  Tiraque1","3252720277","09-06-2021 15:03:37 UTC","Daniel Arellano","00:08:03",6,"Bolivia","Cochabamba",null,"Tiraque",8,"Sapanani","-17.556235840014832","-65.43689849254191","3322.9066231464967","https://waterforpeople.s3.amazonaws.com/images/45696110-363b-4b8a-a0dc-023735069488.jpg",1,"Sapanani","Semi dispersa","Municipio",45,20,20,0,60,"Si","Sistema por gravedad","","Si",null,null,2005,"Si",null,null,"No",null,null,"Si","Si",4,"No",null,"Si",0,"Si",1.91,"No",{"$nulls":6},0.7,28.571428571428573,24,"No",{"$nulls":4},"Si","Bueno","Si","Algunos medidores descalibrados",null,null,null,"Si","Si","Entel","No","No","Entierran","Si","Canal 7","Si","Radio pocona","No","No","b9e5cdb059d09eb15eadf84d97f5929"]
["vjm4-a0xy-ynm4","Bolivia - Cochabamba - Tiraque - 8 - Totora Qhocha","BOI  Tiraque1","3220841291","12-06-2021 14:45:57 UTC","Daniel Arellano","00:11:59",6,"Bolivia","Cochabamba",null,"Tiraque",8,"Totora Qhocha","-17.538960605970804","-65.47357421197475","3497.83795000799","https://waterforpeople.s3.amazonaws.com/images/8ff7ab5b-f948-4615-baa0-4a9dbb7758be.jpg",2,"Totora Qhocha y 2 de Agosto","Semi dispersa","Municipio|Otra ONG",50,23,23,0,69,"Si","Sistema por gravedad","","Si",null,null,2006,"Si",null,null,"No",null,null,"No",{"$nulls":15},0.3,66.666666666666671,24,"No",{"$nulls":4},"Si","Malo","Si","Hay filtracion",null,null,null,"Si","Si","Entel","No","No","Queman","Si","Canal 7, Bolivision y ATB","Si","Radio Totora, Aramasi","No","No","715430b6fe3254cce35022338e4855"]
["wtr7-rasn-k0n1","Bolivia - Cochabamba - Tiraque - 9 - Kayarani alto","BOI  NOE","3232520127","23-05-2021 16:58:41 UTC","Noe","00:04:04",6,"Bolivia","Cochabamba",null,"Tiraque",9,"Kayarani alto","-17.467759726569057","-65.52785167470574","3695.0","https://waterforpeople.s3.amazonaws.com/images/943b5646-ac44-4ceb-87dc-f19ff60a39b1.jpg",1,"Kayarani Alto","Concentrada","Municipio|Comité de Agua",80,62,62,0,186,"Si","Sistema por gravedad","","Si",null,null,2000,"Si",null,null,"No",null,null,"Si","Si",0,"No",null,"Si",0,"Si",1.1499999999999999,{"$nulls":7},0.27,74.074074074074076,24,"No",{"$nulls":4},"Si","Bueno","No",{"$nulls":4},"Si","Si","Entel","No","No","Botan al rio, quebrada","Si","Bolivia Tv","Si","Causachun Coca","No","No","504e7cb199db6f833f7de9737273fbdf"]
["qvr4-8vqs-34bx","Bolivia - Cochabamba - Tiraque - 9 - Kayarani Bajo y Medio","BOI  NOE","3252520443","23-05-2021 16:34:01 UTC","Noe","00:09:22",6,"Bolivia","Cochabamba",null,"Tiraque",9,"Kayarani Bajo y Medio","-17.469676961191","-65.51115903072059","3627.0","https://waterforpeople.s3.amazonaws.com/images/f8bd4954-b679-4327-80f7-a04d042ec506.jpg",2,"Kayarani Medio y Bajo","Semi dispersa","Gobierno Nacional|Municipio",65,54,54,0,162,"Si","Sistema por gravedad","","No",null,null,2000,"Si",null,null,"No",null,null,"Si","Si",0,"No",null,"Si",0,"Si",1.37,{"$nulls":7},0.28000000000000003,71.428571428571416,24,"No",{"$nulls":4},"Si","Bueno","No",{"$nulls":4},"Si","Si","Entel","No","No","Queman|Botan al rio, quebrada","Si","Bolivia Tv","Si","Causachun Coca","No","No","cfd66ae18591ca1ba31b408bdd5b367"]
["c3sg-tqv7-6u8a","Bolivia - Cochabamba - Tiraque - 9 - Koari Alto","BOI  NOE","3230710305","30-05-2021 01:23:03 UTC","Noe","00:10:58",6,"Bolivia","Cochabamba",null,"Tiraque",9,"Koari Alto","-17.47075688559562","-65.57920918799937","3688.0","https://waterforpeople.s3.amazonaws.com/images/10eef45f-b261-4107-bdec-6b1c50ceb67b.jpg",1,"Koari Alto","Concentrada","Gobierno Nacional|Municipio",88,75,75,0,225,"Si","Sistema por gravedad","","No",null,null,1997,"Si",null,null,"Si",2,1,"Si","Si",0,"No",null,"Si",0,"Si",1.31,"No",{"$nulls":6},0.22,90.909090909090907,24,"No",{"$nulls":4},"Si","Bueno","Si","Protección de fuente y tanque",null,null,null,"Si","Si","Entel|Tigo","No","No","Entierran|Botan al rio, quebrada","Si","Bolivia Tv","Si","Tiraque y Causachun Coca","No","No","7c9c78fc186ec9352cfe812799a38761"]
["1n8e-pv29-rmp2","Bolivia - Cochabamba - Tiraque - 9 - Koari Bajo","BOI  NOE","3250650307","30-05-2021 01:26:25 UTC","Noe","00:31:42",6,"Bolivia","Cochabamba",null,"Tiraque",9,"Koari Bajo","-17.497389796189964","-65.55533065460622","3801.0","https://waterforpeople.s3.amazonaws.com/images/d51b13fc-ace9-4d70-9b2d-1bf42c385a23.jpg",1,"Koari Bajo","Concentrada","Municipio|Otra ONG",45,37,37,0,111,"Si","Sistema por gravedad","","No",null,null,1997,"Si",null,null,"Si",3,1,"Si","Si",0,"No",null,"Si",0,"Si",1.37,"No",{"$nulls":6},0.24,83.333333333333343,24,"No",{"$nulls":4},"No","Bueno","Si","Proteger tanque almacenamiento",null,null,null,"Si","Si","Entel|Tigo","No","No","Queman|Botan al rio, quebrada","Si","Bolivia Tv","Si","Causachun Coca","No","No","c9a47abae806ca05dfc494dc4d6e472"]
["97js-srsr-pdcp","Bolivia - Cochabamba - Tiraque - 9 - Koari Boqueron","BOI-100-2","3250890244","22-05-2021 23:45:59 UTC","Noe Andrade J.","00:08:08",6,"Bolivia","Cochabamba",null,"Tiraque",9,"Koari Boqueron","-17.470881147310138","-65.60354076325893","3715.0","https://waterforpeople.s3.amazonaws.com/images/c17bb1e6-cd4e-4941-a371-3d489703e27f.jpg",1,"Koari Boqueron","Dispersa","Municipio|Agua Para el Pueblo",60,44,44,0,132,"Si","Sistema por gravedad","","No",null,null,2010,"Si",null,null,"No",null,null,"Si","Si",0,"No",null,"Si",0,"Si",1.61,{"$nulls":7},1,20,24,"No",{"$nulls":4},"Si","Bueno","No",{"$nulls":4},"Si","Si","Entel","No","No","Botan al rio, quebrada","Si","Punata Tv","Si","Tiraque Chapare","No","No","cc3f1a748db82ed459aa57497b3d487"]
["y85f-d7qg-1rfv","Bolivia - Cochabamba - Tiraque - 9 - Koari Lagunilla","BOI-100-2","3228740233","22-05-2021 23:40:38 UTC","Noe Andrade J.","00:06:30",6,"Bolivia","Cochabamba",null,"Tiraque",9,"Koari Lagunilla","-17.445511515252292","-65.60017718933523","3881.0","https://waterforpeople.s3.amazonaws.com/images/a1d4e2f6-efba-4c27-ae39-b3a02ee290ce.jpg",1,"Koari lagunilla","Dispersa","Municipio|Agua Para el Pueblo",35,30,25,5,75,"Si","Sistema por gravedad","","Si",null,null,2012,"Si",null,null,"No",null,null,"Si","Si",0,"No",null,"Si",0,"Si",1.02,{"$nulls":7},0.3,66.666666666666671,24,"No",{"$nulls":4},"Si","Bueno","No",{"$nulls":4},"Si","Si","Entel","No","No","Botan al rio, quebrada","Si","Punata Tv","Si","Causachun Coca","No","No","3da5513553e939b4719a58871c1c949e"]
["78nm-9a6x-t0ye","Bolivia - Cochabamba - Tiraque - 9 - Koari Medio","BOI  NOE","3230670330","23-05-2021 14:55:33 UTC","Noe","00:31:43",6,"Bolivia","Cochabamba",null,"Tiraque",9,"Koari Medio","-17.47109530493617","-65.57085460983217","3829.0","https://waterforpeople.s3.amazonaws.com/images/dddda143-d804-49e3-bc3b-cbc6a0247db2.jpg",1,"Koari Medio (Mogo Rancho)","Concentrada","Municipio|Agua Para el Pueblo",68,40,30,10,90,"Si","Sistema por gravedad","","Si",null,null,2014,"Si",null,null,"No",null,null,"Si","Si",0,"No",null,"Si",0,"Si",1.31,{"$nulls":7},0.25,80,24,"No",{"$nulls":4},"Si","Bueno","No",{"$nulls":4},"Si","Si","Entel","No","No","Queman|Botan al rio, quebrada","Si","Bolivia Tv","Si","Causachun Coca","No","No","a835a0916a47c750907aff751f1e3"]
["cw69-n9wm-0mej","Bolivia - Cochabamba - Tiraque - 9 - Pairumani Toma 1","BOI-100-2","3242790184","22-05-2021 22:57:34 UTC","Noe Andrade J.","00:26:48",6,"Bolivia","Cochabamba",null,"Tiraque",9,"Pairumani Toma 1","-17.470518462359905","-65.48707631416619","3577.0","https://waterforpeople.s3.amazonaws.com/images/bfe0b7fb-7c8b-4549-8a93-a58550f799b3.jpg",1,"Pairumani Toma 1","Concentrada","Municipio|Agua Para el Pueblo",42,37,37,0,111,"Si","Sistema por gravedad","","Si",null,null,2008,"Si",null,null,"No",null,null,"Si","Si",0,"No",null,"Si",0,"Si",0.82,{"$nulls":7},0.25,80,24,"No",{"$nulls":4},"Si","Bueno","No",{"$nulls":4},"Si","Si","Entel","No","No","Botan al rio, quebrada","No",null,"Si","Causachun Coca","No","No","122bdbe4c989ec5b1f8779b87976ded5"]
["cstk-frgy-nuq0","Bolivia - Cochabamba - Tiraque - 9 - Pairumani Toma 2","BOI  NOE","3238570383","23-05-2021 15:04:46 UTC","Noe","00:11:38",6,"Bolivia","Cochabamba",null,"Tiraque",9,"Pairumani Toma 2","-17.474603508599102","-65.47962379641831","3518.0","https://waterforpeople.s3.amazonaws.com/images/b2ff9224-5960-4d27-b53a-166254212225.jpg",1,"Pairumani Toma 2","Concentrada","Municipio|Otra ONG",25,25,25,0,75,"Si","Sistema por gravedad","","Si",null,null,2007,"Si",null,null,"No",null,null,"Si","Si",0,"No",null,"Si",0,"Si",0.87,{"$nulls":7},0.22,90.909090909090907,24,"No",{"$nulls":4},"Si","Bueno","No",{"$nulls":4},"Si","Si","Entel","No","No","Queman|Botan al rio, quebrada","Si","Bolivia Tv","Si","Tiraque y Chapare","No","No","d995689a757cf8ee57714a3dc9b59723"]
["tx21-f22k-nbsr","Bolivia - Cochabamba - Tiraque - 9 - Pairumani Toma 3","BOI  NOE","3252540375","23-05-2021 15:50:00 UTC","Noe","00:08:11",6,"Bolivia","Cochabamba",null,"Tiraque",9,"Pairumani Toma 3","-17.417336124926805","-66.15227504633367","2704.0","https://waterforpeople.s3.amazonaws.com/images/691ca189-d870-4cc1-bade-225b40214203.jpg",1,"Pairumani Toma 3","Concentrada","Municipio|Comité de Agua",26,26,26,0,78,"Si","Sistema por gravedad","","Si",null,null,2007,"Si",null,null,"No",null,null,"Si","Si",0,"No",null,"Si",0,"Si",1,{"$nulls":7},0.25,80,24,"No",{"$nulls":4},"Si","Bueno","No",{"$nulls":4},"Si","Si","Entel","No","No","Queman|Botan al rio, quebrada","Si","Bolivia Tv","Si","Causachun Coca","No","No","61765854f7e4a2d1bf2248fa16aedb"]
["y5tp-6m6b-qd60","Bolivia - Cochabamba - Tiraque - 9 - Tola Pampa Alto","BOI  NOE","3232520112","23-05-2021 16:16:32 UTC","Noe","00:18:17",6,"Bolivia","Cochabamba",null,"Tiraque",9,"Tola Pampa Alto","-17.48670408502221","-65.4457239434123","3385.0","https://waterforpeople.s3.amazonaws.com/images/7b1c9a17-7ae2-408b-8663-616e15b71f07.jpg",1,"Tola Pampa","Concentrada","Municipio|Agua Para el Pueblo",40,25,25,0,75,"Si","Sistema por gravedad","","No",null,null,2002,"Si",null,null,"No",null,null,"Si","Si",0,"No",null,"Si",0,"Si",0.76,{"$nulls":7},0.18,111.11111111111111,24,"No",{"$nulls":4},"Si","Bueno","No",{"$nulls":4},"Si","Si","Entel","No","No","Queman|Entierran|Botan al rio, quebrada","Si","Bolivia Tv","Si","Causachun Coca","No","No","eebf63a3eb7b153ce736ff6c9fcb39"]
["222m-vt7s-3836","Bolivia - Cochabamba - Tiraque - 9 - Tola Pampa Bajo","BOI  NOE","3242530396","23-05-2021 15:55:43 UTC","Noe","00:13:29",6,"Bolivia","Cochabamba",null,"Tiraque",9,"Tola Pampa Bajo","-17.479719906114042","-65.43484020978212","3665.0","https://waterforpeople.s3.amazonaws.com/images/567a3abe-8f87-4281-83e8-56b8dfc9dd1e.jpg",1,"Tola Pampa Bajo","Semi dispersa","Agua Para el Pueblo",54,44,44,0,132,"Si","Sistema por gravedad","","No",null,null,2002,"Si",null,null,"No",null,null,"Si","Si",0,"No",null,"Si",0,"Si",0.74,{"$nulls":7},0.2,100,24,"No",{"$nulls":4},"Si","Bueno","No",{"$nulls":4},"Si","Si","Entel","No","No","Queman|Entierran|Botan al rio, quebrada","No",null,"Si","Causachun Coca","No","No","d21cedfe61bfc8baa513782b5ace9d"]
["k7f9-hhx8-sqvf","Bolivia - Cochabamba - Tiraque - 9 - Villa San Isidro","BOI  NOE","3240470444","23-05-2021 20:32:50 UTC","Noe","00:10:05",6,"Bolivia","Cochabamba",null,"Tiraque",9,"Villa San Isidro","-17.486272039823234","-65.52574496716261","3752.0","https://waterforpeople.s3.amazonaws.com/images/c243aeac-6b65-4a08-bdac-1bd2f87282ee.jpg",1,"Villa San Isidro (Villa Bendon Kuchu)","Concentrada","Gobierno Nacional|Municipio",74,23,23,0,69,"Si","Sistema por gravedad","","No",null,null,2002,"Si",null,null,"Si",2,2,"No",{"$nulls":15},0.32,62.5,12,"No",{"$nulls":4},"No","Malo","Si","Falta de Mantenimiento",null,null,null,"Si","Si","Entel","No","No","Botan al rio, quebrada","Si","Bolivia Tv","Si","Causachun Coca","No","No","ed85acbac9b42caba7db1fdf14c23d"]
["uka6-p3gu-9fp9","Bolivia - Cochabamba - Tiraque - 9 - Villa San Isidro","BOI  NOE","3220640141","23-05-2021 21:10:26 UTC","Noe","00:05:48",6,"Bolivia","Cochabamba",null,"Tiraque",9,"Villa San Isidro","-17.417511641979218","-66.15242960862815","2635.0","https://waterforpeople.s3.amazonaws.com/images/b813a4df-9be8-44e5-9d97-c02edcedbd9e.jpg",1,"Villa San Isidro (Villa Bendon Kuchu)","Concentrada","Municipio|Comité de Agua",74,23,23,0,69,"Si","Sistema por gravedad","Nuevo Tanque en Cosntrucción","Si",null,null,2021,"No","","En construcción","No",null,null,"No",{"$nulls":16},"",24,"No",{"$nulls":4},"No","Bueno","No",{"$nulls":4},"Si","Si","Entel","No","No","Botan al rio, quebrada","Si","Bolivia Tv","Si","Causachun Coca","No","No","232e57d67ae45d78486c71ef7b586032"]
["qkte-904k-wtdv","Bolivia - Cochabamba - Tiraque - 9 - Villa San Isidro","BOI  NOE","3240490138","23-05-2021 21:05:15 UTC","Noe","00:03:59",6,"Bolivia","Cochabamba",null,"Tiraque",9,"Villa San Isidro","-17.476413706317544","-65.53157047368586","3583.0","https://waterforpeople.s3.amazonaws.com/images/9666a253-c28b-4d24-9f04-550410272ad6.jpg",1,"Villa San Isidro","Concentrada","Municipio|Comité de Agua",74,14,14,0,42,"Si","Sistema por gravedad","","Si",null,null,2002,"Si",null,null,"No",null,null,"No",{"$nulls":15},0.35,57.142857142857146,24,"No",{"$nulls":4},"Si","Bueno","No",{"$nulls":4},"Si","Si","Entel","No","No","Botan al rio, quebrada","Si","Bolivia Tv","Si","Causachun Coca","No","No","3d5d95ebe8d96468cdafd2287872f"]
["vyh2-smt1-5grt","Bolivia - Cochabamba - Tiraque - 9 - Villa San Isidro Segundo Rodeo","BOI  NOE","3220650097","23-05-2021 17:05:11 UTC","Noe","00:07:01",6,"Bolivia","Cochabamba",null,"Tiraque",9,"Villa San Isidro Segundo Rodeo","-17.456953232176602","-65.53723471239209","3802.0","https://waterforpeople.s3.amazonaws.com/images/cfe86f3b-2fbc-479f-bbaf-bbf96e06ddfd.jpg",1,"Villa San Isidro 2do Rodeo","Concentrada","Municipio|Agua Para el Pueblo|Otra ONG",78,10,10,0,30,"Si","Sistema por gravedad","","Si",null,null,2004,"Si",null,null,"No",null,null,"No",{"$nulls":15},0.15,133.33333333333334,24,"No",{"$nulls":4},"Si","Bueno","No",{"$nulls":4},"Si","Si","Entel","No","No","Botan al rio, quebrada","No",null,"Si","Causachun Coca","No","No","14cfd010cd28c4621cdde8a7f24266a"]
["h46u-phqs-phr9","Bolivia - Cochabamba - Tiraque - 9 - Koari Alto","BOI-100-2","3242770226","16-06-2021 19:51:13 UTC","Noe Andrade J.","00:37:48",6,"Bolivia","Cochabamba",null,"Tiraque",9,"Yuraj Yacu Koari","-17.417489136569202","-66.15232299081981","2592.0","https://waterforpeople.s3.amazonaws.com/images/1c17ee82-1948-46dc-8202-cb0e88c02647.jpg",1,"Yuraj Yacu Koari","Concentrada","Municipio|Comité de Agua|Agua Para el Pueblo",45,26,26,0,78,"Si","Sistema por gravedad","","No",null,null,2008,"Si",null,null,"Si",2,1,"No",{"$nulls":8},"No",{"$nulls":6},0.18,111.11111111111111,24,"No",{"$nulls":4},"Si","Bueno","Si","Solicitan inspeccion tecnica del SAP",null,null,null,"Si","Si","Entel|Tigo","No","No","Queman|Entierran|Botan al rio, quebrada","No",null,"Si","Causachun Coca","No","No","9787ec7b70b535e532fc59f24b856a17"]
["r8ah-crjx-6h7a","Bolivia - Cochabamba - Tiraque - 9 - Zapata Rancho","BOI-100-2","3238830256","22-05-2021 22:48:55 UTC","Noe Andrade J.","03:22:52",6,"Bolivia","Cochabamba",null,"Tiraque",9,"Zapata Rancho","-17.47794340364635","-65.60105871409178","3632.0","https://waterforpeople.s3.amazonaws.com/images/39ed68fa-0a53-40f2-aca1-a12179a07d97.jpg",1,"Zapata Rancho","Dispersa","Municipio|Agua Para el Pueblo",60,50,50,0,150,"Si","Sistema por gravedad","","No",null,null,2007,"Si",null,null,"No",null,null,"Si","Si",1,"No",null,"Si",0,"Si",0.67,{"$nulls":7},0.83,24.096385542168676,24,"No",{"$nulls":4},"Si","Bueno","No",{"$nulls":4},"Si","Si","Entel","No","No","Botan al rio, quebrada","No",null,"Si","Causachun Coca","No","No","33b71b352814d85bd8e4676ff143"]
["nyh0-ks3k-vpqh","Bolivia - Cochabamba - Tiraque - 10 - Boquerón Alto","BOI-100-2","3240630192","22-05-2021 23:01:41 UTC","Noe Andrade J.","00:08:16",6,"Bolivia","Cochabamba",null,"Tiraque",10,"Boquerón Alto","-17.453596112318337","-65.61168503947556","4023.0","https://waterforpeople.s3.amazonaws.com/images/eecfd43c-dd09-4eda-8c35-9240e5e9e45d.jpg",1,"Boquerón Alto","Dispersa","Municipio|Comité de Agua|Agua Para el Pueblo",120,80,80,0,240,"Si","Sistema por gravedad","","Si",null,null,2012,"Si",null,null,"No",null,null,"Si","Si",0,"No",null,"Si",0,"Si",0.63,{"$nulls":7},1.2,16.666666666666668,24,"No",{"$nulls":4},"Si","Bueno","No",{"$nulls":4},"Si","Si","Entel","No","No","Botan al rio, quebrada","No",null,"Si","Causachun Coca","No","No","2982b214ebb2a4101b15684ef31518f"]
["krje-tjw6-0kg8","Bolivia - Cochabamba - Tiraque - 10 - Boquerón K´hasa","BOI  NOE","3248490155","23-05-2021 21:23:30 UTC","Noe","00:18:18",6,"Bolivia","Cochabamba",null,"Tiraque",10,"Boquerón K´hasa","-17.502798177301884","-65.60548813082278","3824.0","https://waterforpeople.s3.amazonaws.com/images/a25aa5d3-73a1-4b17-b1e5-66c5e3792487.jpg",4,"Suraj Mayu, Chaupi Rancho, Boqueron Grande y 1ro de Marzo","Semi dispersa","Municipio|Comité de Agua|Otra ONG",195,150,150,0,450,"Si","Sistema por gravedad","","Si",null,null,2018,"Si",null,null,"No",null,null,"Si","Si",0,"No",null,"Si",0,"Si",1.17,{"$nulls":7},0.23,86.956521739130437,24,"No",{"$nulls":4},"Si","Bueno","No",{"$nulls":4},"Si","Si","Entel","No","No","Queman|Entierran|Botan al rio, quebrada","Si","Bolivia Tv","Si","Tiraque, Punata y Causachun Coca","No","No","cdf1c32cfdeed1f0967ec8efa77d5"]
["wg23-vr8d-gfyw","Bolivia - Cochabamba - Tiraque - 10 - Boquerón K´hasa","BOI-100-2","3252770250","29-05-2021 23:57:12 UTC","Noe Andrade J.","00:20:57",6,"Bolivia","Cochabamba",null,"Tiraque",10,"Boquerón K´hasa","-17.495368039235473","-65.60839631594718","3757.0","https://waterforpeople.s3.amazonaws.com/images/2591bd24-cd3e-470b-a819-c831bfca19c4.jpg",3,"Boqueron Grande, Chaupi Rancho, 1ro de marzo","Dispersa","Municipio|Comité de Agua|Agua Para el Pueblo",82,80,80,0,240,"Si","Sistema por gravedad","","Si",null,null,2019,"Si",null,null,"No",null,null,"Si","Si",0,"No",null,"Si",0,"Si",1.36,{"$nulls":7},1.1000000000000001,18.18181818181818,24,"No",{"$nulls":4},"Si","Bueno","No",{"$nulls":4},"Si","Si","Entel","No","No","Botan al rio, quebrada","Si","Nacionales","Si","Tiraque, Punata, Chapare","No","No","4ffef7e0c9feb65d498cf7ee8365dd65"]
["d7cs-8csm-3e6j","Bolivia - Cochabamba - Tiraque - 10 - Caña Cota Uray Rancho","BOI  NOE","3248470336","23-05-2021 21:53:00 UTC","Noe","00:06:20",6,"Bolivia","Cochabamba",null,"Tiraque",10,"Caña Cota Uray Rancho","-17.473513022996485","-65.63144663348794","3730.0","https://waterforpeople.s3.amazonaws.com/images/a0293401-0813-4bcb-9487-d0c100d1e5db.jpg",1,"Cañacota Uray Rancho","Semi dispersa","Municipio|Comité de Agua|Agua Para el Pueblo|Otra ONG",152,68,68,0,204,"Si","Sistema por gravedad","","Si",null,null,2018,"Si",null,null,"No",null,null,"Si","Si",0,"No",null,"Si",0,"Si",1.1100000000000001,{"$nulls":7},0.22,90.909090909090907,24,"No",{"$nulls":4},"Si","Bueno","No",{"$nulls":4},"Si","Si","Entel","No","No","Queman|Entierran|Botan al rio, quebrada","Si","Bolivia Tv","Si","Tiraque y Causachun Coca","No","No","cac7eb6bd03b616cc55897927967475c"]
["rdmf-seqa-324v","Bolivia - Cochabamba - Tiraque - 10 - Cañacota Alto","BOI  NOE","3230660422","23-05-2021 22:37:34 UTC","Noe","00:05:21",6,"Bolivia","Cochabamba",null,"Tiraque",10,"Cañacota","-17.471299530006945","-65.62480380758643","3712.0","https://waterforpeople.s3.amazonaws.com/images/22ce2413-49f4-4337-8143-9762b930281b.jpg",1,"Cañacota","Concentrada","Gobierno Nacional|Municipio",132,106,106,0,318,"Si","Sistema por gravedad","","No",null,null,1997,"Si",null,null,"No",null,null,"Si","Si",0,"No",null,"Si",0,"Si",0.62,{"$nulls":7},0.34,58.823529411764703,24,"No",{"$nulls":4},"Si","Bueno","Si","Mejoramiento del SAM",null,null,null,"Si","Si","Entel","No","No","Queman|Entierran|Botan al rio, quebrada","Si","Bolivia Tv","Si","Tiraque, Punata y Causachun Coca","No","No","abc576ddecc916728e9f019299432b"]
["qcmk-g5x9-jqwp","Bolivia - Cochabamba - Tiraque - 10 - Cañacota Alto","BOI  NOE","3226380486","23-05-2021 22:07:55 UTC","Noe","00:06:43",6,"Bolivia","Cochabamba",null,"Tiraque",10,"Cañacota Alto","-17.444679317995906","-65.6185782328248","4017.0","https://waterforpeople.s3.amazonaws.com/images/26c30b18-d821-4154-93a3-509e623b4214.jpg",2,"Cañacota Alto y Villa Flores","Semi dispersa","Municipio|Comité de Agua|Agua Para el Pueblo",92,60,60,0,180,"Si","Sistema por gravedad","","Si",null,null,2016,"Si",null,null,"No",null,null,"Si","Si",0,"No",null,"Si",0,"Si",0.64,{"$nulls":7},0.22,90.909090909090907,24,"No",{"$nulls":4},"Si","Bueno","No",{"$nulls":4},"Si","Si","Entel","No","No","Queman|Botan al rio, quebrada","No",null,"Si","Causachun Coca","No","No","fe324eefab1b4fa76ae5dd38679d95"]
["49xf-59ye-rwku","Bolivia - Cochabamba - Tiraque - 10 - Cebada Jich'ana","BOI  NOE","3234690340","30-05-2021 00:47:55 UTC","Noe","00:07:22",6,"Bolivia","Cochabamba",null,"Tiraque",10,"Cebada Jich'ana","-17.494615595787764","-65.65811038948596","3651.0","https://waterforpeople.s3.amazonaws.com/images/dad2cc87-0764-41a0-8f9d-6ba001427164.jpg",1,"Cebada Jichana","Semi dispersa","Gobierno Nacional|Municipio",55,50,0,50,"","Si","Sistema por gravedad","","No",null,null,1999,"No",null,null,"Si",10,10,"No",{"$nulls":16},"",null,"No",{"$nulls":4},"No","No Funciona","Si","Bajo caudal de Agua y no abastace",null,null,null,"Si","Si","Entel","No","No","Botan al rio, quebrada","No",null,"Si","Tiraque y Causachun Coca","No","No","282798723e7ed6c3ad6c9cfc8c516d0"]
["f2k6-q2h7-mm47","Bolivia - Cochabamba - Tiraque - 10 - Dami rancho","BOI-100-2","3250910263","22-05-2021 23:10:35 UTC","Noe Andrade J.","00:11:18",6,"Bolivia","Cochabamba",null,"Tiraque",10,"Dami rancho","-17.496843840926886","-65.61795621179044","3692.0","https://waterforpeople.s3.amazonaws.com/images/4ed9cd60-3e8e-407e-bb81-91fba3071c20.jpg",1,"Dami Rancho","Semi dispersa","Municipio|Agua Para el Pueblo",75,50,50,0,150,"Si","Sistema por gravedad","","Si",null,null,2008,"Si",null,null,"Si",1,2,"No",{"$nulls":15},0.5,40,12,"No",{"$nulls":4},"No","Malo","Si","No hay suficiente Agua en perido de sequia",null,null,null,"Si","Si","Entel","No","No","Botan al rio, quebrada","Si","Punata Tv","Si","Tiraque y Chapare","No","No","67813afdc214e7109439ae9a35c7b8"]
["v12u-hwyp-99f3","Bolivia - Cochabamba - Tiraque - 10 - Kiska Loma","BOI  NOE","3234610423","23-05-2021 21:50:00 UTC","Noe","00:05:20",6,"Bolivia","Cochabamba",null,"Tiraque",10,"Kiska Loma","-17.49513992574066","-65.63898883759975","3770.0","https://waterforpeople.s3.amazonaws.com/images/e13972ee-7e40-4787-be6b-36a352ce5ed1.jpg",1,"Kiska Loma","Concentrada","Municipio|Comité de Agua|Agua Para el Pueblo",60,30,30,0,90,"Si","Sistema por gravedad","","Si",null,null,2016,"Si",null,null,"No",null,null,"Si","Si",0,"No",null,"Si",0,"Si",0.83,{"$nulls":7},0.26,76.92307692307692,24,"No",{"$nulls":4},"Si","Bueno","No",{"$nulls":4},"Si","Si","Entel","No","No","Queman|Entierran|Botan al rio, quebrada","Si","Bolivia Tv","Si","Causachun Coca","No","No","954e0831d331e2a680f7ff8faeb9b"]
["v0hs-ry0j-4beh","Bolivia - Cochabamba - Villa Rivero - Sub Central Aramasi - Urbanización Aramasí","BOI-VR3","3238900274","22-06-2021 06:13:46 UTC","vr2","00:16:30",6,"Bolivia","Cochabamba",{"$f":"IF(fecha=\"\",\"\",fecha)","v":"22-06-2021 06:13:46 UTC"},"Villa Rivero","Sub Central Aramasi","1ro de Julio","-17.601798637770116","-65.88692226447165","2743.0","https://waterforpeople.s3.amazonaws.com/images/017e0dab-f572-4373-968d-cfa2e1f7316a.jpg","1","1ro de Julio","Semi dispersa","Comité de Agua",438,438,438,0,1314,"Si","Sistema por bombeo y gravedad","","Si",null,null,2019,"Si",null,null,"No",null,null,"No",{"$nulls":9},"Turbidez",{"$nulls":5},1.8,11.111111111111111,24,"No",{"$nulls":4},"Si","Bueno","No",{"$nulls":4},"Si","Si","Entel|Tigo|Viva","Si","Si",null,"Si","canal clitel","Si","radio tormenta, la calle","Si","Si","178c897389b0356e84bcfeb21e1ecc4b"]
["9feu-7yr3-337u","Bolivia - Cochabamba - Villa Rivero - Sub Central Aramasi - Urbanización Aramasí","BOI-VR3","3242770377","18-06-2021 02:18:36 UTC","vr2","00:49:43",6,"Bolivia","Cochabamba","18-06-2021 02:18:36 UTC","Villa Rivero","Sub Central Aramasi","Alamos","-17.61189065873623","-65.87532657198608","2790.0","https://waterforpeople.s3.amazonaws.com/images/66e8e7c8-3de3-4da2-a5c1-11c43447ad5d.jpg","1","Alamos","Semi dispersa","Municipio|Comité de Agua",311,251,251,0,753,"Si","Sistema por bombeo y gravedad","","Si",null,null,2012,"Si",null,null,"No",null,null,"No",{"$nulls":9},"Turbidez",{"$nulls":5},1.7,11.764705882352942,24,"Si",70000,null,null,null,"Si","Bueno","No",{"$nulls":4},"Si","Si","Entel|Tigo|Viva","Si","Si",null,"Si","29,10","Si","radio la calle","Si","Si","ba97f181b91e7f9bb93a1036ddb5e5d"]
["hrae-8g7b-3ngj","Bolivia - Cochabamba - Villa Rivero - Sub Central Aramasi - Aramasí Calicanto","BOI-SB2018","3246650091","13-05-2021 13:24:15 UTC","Vr1","00:15:42",6,"Bolivia","Cochabamba","13-05-2021 13:24:15 UTC","Villa Rivero","Sub Central Aramasi","Aramasí Calicanto","-17.643782207742333","-65.86509788408875","2806.0","https://waterforpeople.s3.amazonaws.com/images/da211fe2-0d01-49da-8585-cc67a2f285bf.jpg","1","Aramasí Calicanto","Dispersa","Municipio|Comité de Agua|Agua Para el Pueblo",52,40,40,0,120,"Si","Sistema por bombeo y gravedad","","Si",null,null,2009,"Si",null,null,"Si",1,7,"No",{"$nulls":9},"Turbidez",{"$nulls":5},1.8,11.111111111111111,24,"No",{"$nulls":4},"Si","Bueno","Si","Se requiere tubería para la aducción",null,null,null,"Si","Si","Entel|Tigo","Si","No","Queman","Si","41, 29, 8, 10, 14","Si","radio la calle,radio morena, panoram","Si","Si","20b6728c857519e2791f2ed63bed341f"]
["1dne-kd9u-wm9h","Bolivia - Cochabamba - Villa Rivero - Sub Central Aramasi - Aramasí Grande","BOI-VR3","3250930078","18-06-2021 02:44:07 UTC","vr2","00:20:06",6,"Bolivia","Cochabamba","18-06-2021 02:44:07 UTC","Villa Rivero","Sub Central Aramasi","Aramasí Grande","-17.63514691963792","-65.8638024609536","2778.0","https://waterforpeople.s3.amazonaws.com/images/ec499ac7-b182-4a5b-9fec-df06b84b6e2e.jpg","1","Aramasí Grande","Dispersa","Comité de Agua",22,22,22,0,66,"Si","Sistema por bombeo (hidropulmon/torre hidroneumática)","","No",null,null,2015,"Si",null,null,"No",null,null,"No",{"$nulls":9},"Turbidez",{"$nulls":5},1.8,11.111111111111111,24,"Si",7300,null,null,null,"Si","Bueno","No",{"$nulls":4},"Si","Si","Entel|Tigo|Viva","Si","No","Queman|Entierran","Si","29, 38,14","Si","chiwalaqui, radio tormenta,","No","No","75c813759d968c7aaaa757c4d19ad83b"]
["s7pr-cc8v-xa1t","Bolivia - Cochabamba - Villa Rivero - Sub Central Aramasi - Linde Aramasí","BOI-VR3","3220910093","18-06-2021 10:50:58 UTC","vr2","00:31:09",6,"Bolivia","Cochabamba","18-06-2021 10:50:58 UTC","Villa Rivero","Sub Central Aramasi","Aramasí Hoyada","-17.643308462575078","-65.8707870170474","3837.0","https://waterforpeople.s3.amazonaws.com/images/e5231a20-ae4f-468f-9532-eea042e9712b.jpg","2","Aramasi Hoyada y Linde Aramasi","Dispersa","Municipio|Comité de Agua",40,38,38,0,114,"Si","Sistema por bombeo y gravedad","","No",null,null,2010,"Si",null,null,"No",null,null,"Si","Si",0,"No",null,"Si",0,"Si",0.92,null,"Turbidez",{"$nulls":5},1.5,13.333333333333334,24,"Si",57500,null,null,null,"Si","Bueno","No",{"$nulls":4},"Si","Si","Entel|Tigo|Viva","Si","No","Queman","Si","29, 10, 41","Si","chiwalaque, panamericana, fides","No","Si","431c5c1192af1362719f4495ce39"]
["fgym-m2x7-yy48","Bolivia - Cochabamba - Villa Rivero - Sub Central Aramasi - Centro Blanco Rancho","BOI-VR3","3235040238","22-06-2021 06:32:19 UTC","vr2","00:08:39",6,"Bolivia","Cochabamba","22-06-2021 06:32:19 UTC","Villa Rivero","Sub Central Aramasi","Blanco Rancho","-17.616206500679255","-65.87202351540327","2783.0","https://waterforpeople.s3.amazonaws.com/images/174c4f2e-d493-49d7-a5bd-e3a898733709.jpg","2","Centro Blanco Rancho y Blanco Rancho","Dispersa","Gobierno Nacional|Municipio|Comité de Agua",82,70,70,0,210,"Si","Sistema por bombeo y gravedad","","Si",null,null,1999,"Si",null,null,"No",null,null,"No",{"$nulls":9},"Turbidez",{"$nulls":5},1,20,24,"No",{"$nulls":4},"Si","Bueno","Si","Cambio de red",null,null,null,"Si","Si","Entel|Tigo","Si","No","Queman","Si","10,29","Si","radio morena, chiwalaque","Si","Si","aedc371812c27d2fee4c294dd5d91c1"]
["gmd4-rxmb-2677","Bolivia - Cochabamba - Villa Rivero - Sub Central Aramasi - Calicanto Rinconada","BOI-VR3","3246590257","21-06-2021 02:04:07 UTC","vr2","00:13:08",6,"Bolivia","Cochabamba","21-06-2021 02:04:07 UTC","Villa Rivero","Sub Central Aramasi","Calicanto Rinconada","-17.642679065465927","-65.86288497783244","2806.0","https://waterforpeople.s3.amazonaws.com/images/f9ca1f5b-9b5f-49a3-8a93-d21557f12831.jpg","1","Calicanto Rinconada","Dispersa","Comité de Agua",32,25,25,0,75,"Si","Sistema por bombeo y gravedad","","Si",null,null,2010,"Si",null,null,"No",null,null,"No",{"$nulls":9},"Turbidez",{"$nulls":5},1.5,13.333333333333334,24,"No",{"$nulls":4},"Si","Bueno","Si","Se requiere refacción del tanque",null,null,null,"Si","Si","Entel|Tigo","Si","Si",null,"Si","10","Si","causchon koka","No","No","c571db9235a5f0d79b60e84485b85ebc"]
["5f3q-09b8-2x1v","Bolivia - Cochabamba - Villa Rivero - Sub Central Aramasi - Centro Aramasi","BOI-VR3","3232700075","18-06-2021 03:12:44 UTC","vr2","00:21:16",6,"Bolivia","Cochabamba","18-06-2021 03:12:44 UTC","Villa Rivero","Sub Central Aramasi","Centro Aramasi","-17.624527886509895","-65.86455892771482","2774.0","https://waterforpeople.s3.amazonaws.com/images/c89f5508-a7ca-44db-bc5b-4a11f2641d2d.jpg","2","Centro Aramasi y Cruce Aramasi","Dispersa","Gobierno Nacional|Municipio",55,55,55,0,165,"Si","Sistema por bombeo y gravedad","","Si",null,null,2010,"Si",null,null,"No",null,null,"No",{"$nulls":9},"Turbidez",{"$nulls":5},1.8,11.111111111111111,20,"Si",44160,null,null,null,"Si","Bueno","No",{"$nulls":4},"Si","Si","Entel|Tigo","Si","No","Queman|Entierran","Si","14, 29","Si","la calle, panamericana","No","Si","50b6578212564ebd4818a9bd98f799ed"]
["fgym-m2x7-yy48","Bolivia - Cochabamba - Villa Rivero - Sub Central Aramasi - Centro Blanco Rancho","BOI-VR3","3235040238","22-06-2021 06:32:19 UTC","vr2","00:08:39",6,"Bolivia","Cochabamba","22-06-2021 06:32:19 UTC","Villa Rivero","Sub Central Aramasi","Centro Blanco Rancho","-17.616206500679255","-65.87202351540327","2783.0","https://waterforpeople.s3.amazonaws.com/images/174c4f2e-d493-49d7-a5bd-e3a898733709.jpg","2","Centro Blanco Rancho y Blanco Rancho","Dispersa","Gobierno Nacional|Municipio|Comité de Agua",55,50,50,0,150,"Si","Sistema por bombeo y gravedad","","Si",null,null,1999,"Si",null,null,"No",null,null,"No",{"$nulls":9},"Turbidez",{"$nulls":5},1,20,24,"No",{"$nulls":4},"Si","Bueno","Si","Cambio de red",null,null,null,"Si","Si","Entel|Tigo","Si","No","Queman","Si","10,29","Si","radio morena, chiwalaque","Si","Si","aedc371812c27d2fee4c294dd5d91c1"]
["cc6u-n8xg-8gt1","Bolivia - Cochabamba - Villa Rivero - Sub Central Aramasi - Linde Huatuyo","BOI-VR3","3242810226","21-06-2021 10:43:01 UTC","vr2","00:12:04",6,"Bolivia","Cochabamba","21-06-2021 10:43:01 UTC","Villa Rivero","Sub Central Aramasi","Centro Huatuyo","-17.64288098551333","-65.86649145931005","2835.0","https://waterforpeople.s3.amazonaws.com/images/24ac1bf7-91e2-4dd1-a948-a42d50a49d72.jpg","4","Centro Huatuyo, Linde Huatuyo, Santa Rosa Huatuyo, Calicanto Aramasi","Dispersa","Municipio|Comité de Agua",57,57,57,0,171,"Si","Sistema por bombeo y gravedad","","Si",null,null,2003,"Si",null,null,"No",null,null,"No",{"$nulls":9},"Turbidez",{"$nulls":5},1.8,11.111111111111111,24,"No",{"$nulls":4},"Si","Bueno","No",{"$nulls":4},"Si","Si","Entel|Tigo","Si","No","Queman|Entierran","Si","14,29,10","Si","radio tormenta, chiwalaque","Si","Si","4e1f09557c9ad32eb1bbc3f2db1ae15"]
["5f3q-09b8-2x1v","Bolivia - Cochabamba - Villa Rivero - Sub Central Aramasi - Centro Aramasi","BOI-VR3","3232700075","18-06-2021 03:12:44 UTC","vr2","00:21:16",6,"Bolivia","Cochabamba","18-06-2021 03:12:44 UTC","Villa Rivero","Sub Central Aramasi","Cruce Aramasi","-17.624527886509895","-65.86455892771482","2774.0","https://waterforpeople.s3.amazonaws.com/images/c89f5508-a7ca-44db-bc5b-4a11f2641d2d.jpg","2","Centro Aramasi y Cruce Aramasi","Dispersa","Gobierno Nacional|Municipio",41,41,41,0,123,"Si","Sistema por bombeo y gravedad","","Si",null,null,2010,"Si",null,null,"No",null,null,"No",{"$nulls":9},"Turbidez",{"$nulls":5},1.8,11.111111111111111,20,"Si",44160,null,null,null,"Si","Bueno","No",{"$nulls":4},"Si","Si","Entel|Tigo","Si","No","Queman|Entierran","Si","14, 29","Si","la calle, panamericana","No","Si","50b6578212564ebd4818a9bd98f799ed"]
["uvqw-uux0-ybtn","Bolivia - Cochabamba - Villa Rivero - Sub Central Aramasi - Linde Aramasí","BOI-VR3","3235020327","22-06-2021 18:47:18 UTC","vr2","00:10:55",6,"Bolivia","Cochabamba","22-06-2021 18:47:18 UTC","Villa Rivero","Sub Central Aramasi","Linde Aramasí","-17.63677246402949","-65.87508550845087","2826.0","https://waterforpeople.s3.amazonaws.com/images/dd1adbe6-63c0-42ed-998b-04f1ed29b6be.jpg","2","Aramasi Hoyada y Linde Aramasi","Dispersa","Municipio|Comité de Agua",84,84,84,0,252,"Si","Sistema por bombeo y gravedad","","No",null,null,2010,"Si",null,null,"No",null,null,"No",{"$nulls":9},"Turbidez",{"$nulls":5},2,10,24,"No",{"$nulls":4},"Si","Bueno","No",{"$nulls":4},"Si","Si","Entel|Tigo","Si","Si",null,"Si","10,29","Si","la calle, tormenta","No","Si","51134cca32e220571e72e6364366aa1b"]
["j9m4-yy9g-2n4q","Bolivia - Cochabamba - Villa Rivero - Sub Central Aramasi - Urbanización Aramasí","BOI-VR3","3240720109","25-06-2021 15:02:18 UTC","vr2","00:20:59",6,"Bolivia","Cochabamba","25-06-2021 15:02:18 UTC","Villa Rivero","Sub Central Aramasi","Linde Botao","-17.60357836727053","-65.88607451878488","3699.0","https://waterforpeople.s3.amazonaws.com/images/4276b396-c7b9-425c-b6bd-519ff430a700.jpg",2,"Urb. Aramasi 8 de Mayo y Linde Botao","Semi dispersa","Gobierno Nacional|Municipio",26,26,26,0,78,"Si","Sistema por bombeo y gravedad","","Si",null,null,2009,"Si",null,null,"No",null,null,"No",{"$nulls":9},"Turbidez",{"$nulls":5},1.8,11.111111111111111,24,"No",{"$nulls":4},"Si","Bueno","Si","ninguno",null,null,null,"Si","Si","Entel","No","Si",null,"Si","4138","Si","la calke","Si","Si","ca173bf6f6741ead38bb2f4bddae7c8"]
["cc6u-n8xg-8gt1","Bolivia - Cochabamba - Villa Rivero - Sub Central Aramasi - Linde Huatuyo","BOI-VR3","3242810226","21-06-2021 10:43:01 UTC","vr2","00:12:04",6,"Bolivia","Cochabamba","21-06-2021 10:43:01 UTC","Villa Rivero","Sub Central Aramasi","Linde Huatuyo","-17.64288098551333","-65.86649145931005","2835.0","https://waterforpeople.s3.amazonaws.com/images/24ac1bf7-91e2-4dd1-a948-a42d50a49d72.jpg","4","Centro Huatuyo, Linde Huatuyo, Santa Rosa Huatuyo, Calicanto Aramasi","Dispersa","Municipio|Comité de Agua",50,50,50,0,150,"Si","Sistema por bombeo y gravedad","","Si",null,null,2003,"Si",null,null,"No",null,null,"No",{"$nulls":9},"Turbidez",{"$nulls":5},1.8,11.111111111111111,24,"No",{"$nulls":4},"Si","Bueno","No",{"$nulls":4},"Si","Si","Entel|Tigo","Si","No","Queman|Entierran","Si","14,29,10","Si","radio tormenta, chiwalaque","Si","Si","4e1f09557c9ad32eb1bbc3f2db1ae15"]
["1585-vdbu-41g3","Bolivia - Cochabamba - Villa Rivero - Sub Central Aramasi - Linde Pajpani","BOI-VR3","3250990141","21-06-2021 10:25:55 UTC","vr2","00:14:01",6,"Bolivia","Cochabamba","21-06-2021 10:25:55 UTC","Villa Rivero","Sub Central Aramasi","Linde Pajpani","-17.649671584367752","-65.88314780965447","2835.0","https://waterforpeople.s3.amazonaws.com/images/4c2e63eb-1163-4b0a-9732-2dce55f9573d.jpg","1","Linde Pajpani","Dispersa","Comité de Agua",45,45,45,0,135,"Si","Sistema por bombeo y gravedad","","Si",null,null,2015,"Si",null,null,"No",null,null,"No",{"$nulls":9},"Turbidez",{"$nulls":5},1.8,11.111111111111111,24,"No",{"$nulls":4},"Si","Bueno","No",{"$nulls":4},"Si","Si","Entel|Tigo","Si","No","Queman|Entierran","Si","10,29,44","Si","radio tormenta, kausachon coca","No","No","a637c9ecf1cbe26983f96970848921f"]
["svuk-q9f7-5abb","Bolivia - Cochabamba - Villa Rivero - Sub Central Aramasi - Pajpani Centro","BOI-VR3","3235010278","22-06-2021 06:59:50 UTC","vr2","00:06:18",6,"Bolivia","Cochabamba","22-06-2021 06:59:50 UTC","Villa Rivero","Sub Central Aramasi","Pajpani Centro","-17.63307030312717","-65.8858179487288","2779.0","https://waterforpeople.s3.amazonaws.com/images/6869d307-3f01-4e4d-a4b3-2095a6032818.jpg","1","Pajpani Centro","Dispersa","Gobierno Nacional|Municipio",38,38,38,0,114,"Si","Sistema por bombeo y gravedad","","Si",null,null,2018,"Si",null,null,"No",null,null,"No",{"$nulls":9},"Turbidez",{"$nulls":5},1.8,{"$f":"IF(BE375=\"\",\"\",(20/BE375))","v":11.111111111111111},24,"No",{"$nulls":4},"Si","Bueno","No",{"$nulls":4},"Si","Si","Entel|Tigo","Si","No","Queman","Si","10 clitel,5 bolivicion, 8","Si","radio bella morena","No","No","75d65ad11d2e89c32c19dd32fc8fa3d"]
["rf3c-bb58-2e4p","Bolivia - Cochabamba - Villa Rivero - Sub Central Aramasi - Pajpani Chico","BOI-VR3","3250990157","22-06-2021 07:05:44 UTC","vr2","00:05:46",6,"Bolivia","Cochabamba","22-06-2021 07:05:44 UTC","Villa Rivero","Sub Central Aramasi","Pajpani Chico","-17.626886763609946","-65.88315594010055","2780.0","https://waterforpeople.s3.amazonaws.com/images/bc953280-5c5d-401a-8f14-72ba29c10b02.jpg","1","Pajpani Chico","Dispersa","Municipio|Comité de Agua",44,22,22,0,66,"Si","Sistema por bombeo (hidropulmon/torre hidroneumática)","","Si",null,null,2017,"Si",null,null,"No",null,null,"No",{"$nulls":9},"Turbidez",{"$nulls":5},1.8,11.111111111111111,24,"No",{"$nulls":4},"No","Malo","Si","Exceso de limo en el agua, se requiere un tanque de sedimentación",null,null,null,"Si","Si","Entel|Tigo","Si","No","Queman","Si","10,29","Si","bella morena,radio la calle","No","No","57997038ff6e1e1dee382e33ef17cca5"]
["2df3-pvh5-v10k","Bolivia - Cochabamba - Villa Rivero - Sub Central Aramasi - Pajpani Grande","BOI-VR3","3232720244","22-06-2021 06:38:11 UTC","vr2","00:08:01",6,"Bolivia","Cochabamba","22-06-2021 06:38:11 UTC","Villa Rivero","Sub Central Aramasi","Pajpani Grande","-17.640320607461035","-65.88854919187725","2835.0","https://waterforpeople.s3.amazonaws.com/images/7e8b5b62-24ba-4f53-b957-6293e21c4edd.jpg","2","Pajpani Grande y Pajpani Sobra","Dispersa","Gobierno Nacional|Municipio|Comité de Agua",28,26,26,0,78,"Si","Sistema por bombeo y gravedad","","Si",null,null,2000,"Si",null,null,"No",null,null,"No",{"$nulls":9},"Turbidez",{"$nulls":5},1.2,16.666666666666668,24,"No",{"$nulls":4},"Si","Bueno","No",{"$nulls":4},"Si","Si","Entel|Tigo","Si","No","Queman","Si","29,10","Si","radio morena","No","Si","67a3c1f8142766c2df5c27520f28b3"]
["2df3-pvh5-v10k","Bolivia - Cochabamba - Villa Rivero - Sub Central Aramasi - Pajpani Grande","BOI-VR3","3232720244","22-06-2021 06:38:11 UTC","vr2","00:08:01",6,"Bolivia","Cochabamba","22-06-2021 06:38:11 UTC","Villa Rivero","Sub Central Aramasi","Pajpani Sobra","-17.640320607461035","-65.88854919187725","2835.0","https://waterforpeople.s3.amazonaws.com/images/7e8b5b62-24ba-4f53-b957-6293e21c4edd.jpg","2","Pajpani Grande y Pajpani Sobra","Dispersa","Gobierno Nacional|Municipio|Comité de Agua",28,25,25,0,75,"Si","Sistema por bombeo y gravedad","","Si",null,null,2000,"Si",null,null,"No",null,null,"No",{"$nulls":9},"Turbidez",{"$nulls":5},1.2,16.666666666666668,24,"No",{"$nulls":4},"Si","Bueno","No",{"$nulls":4},"Si","Si","Entel|Tigo","Si","No","Queman","Si","29,10","Si","radio morena","No","Si","67a3c1f8142766c2df5c27520f28b3"]
["cc6u-n8xg-8gt1","Bolivia - Cochabamba - Villa Rivero - Sub Central Aramasi - Linde Huatuyo","BOI-VR3","3242810226","21-06-2021 10:43:01 UTC","vr2","00:12:04",6,"Bolivia","Cochabamba","21-06-2021 10:43:01 UTC","Villa Rivero","Sub Central Aramasi","Santa Rosa Huatuyo","-17.64288098551333","-65.86649145931005","2835.0","https://waterforpeople.s3.amazonaws.com/images/24ac1bf7-91e2-4dd1-a948-a42d50a49d72.jpg","4","Centro Huatuyo, Linde Huatuyo, Santa Rosa Huatuyo, Calicanto Aramasi","Dispersa","Municipio|Comité de Agua",25,25,25,0,75,"Si","Sistema por bombeo y gravedad","","Si",null,null,2003,"Si",null,null,"No",null,null,"No",{"$nulls":9},"Turbidez",{"$nulls":5},1.8,11.111111111111111,24,"No",{"$nulls":4},"Si","Bueno","No",{"$nulls":4},"Si","Si","Entel|Tigo","Si","No","Queman|Entierran","Si","14,29,10","Si","radio tormenta, chiwalaque","Si","Si","4e1f09557c9ad32eb1bbc3f2db1ae15"]
["dxup-pywa-rg2t","Bolivia - Cochabamba - Villa Rivero - Sub Central Aramasi - Thagoni","BOI-VR3","3231140129","23-06-2021 12:55:45 UTC","vr2","00:16:33",6,"Bolivia","Cochabamba","23-06-2021 12:55:45 UTC","Villa Rivero","Sub Central Aramasi","Thagoni","-17.688241163268685","-65.87312892079353","3007.0","https://waterforpeople.s3.amazonaws.com/images/058b4bba-dad8-4452-9469-a70fa3be4864.jpg","1","Thagoni","Dispersa","Gobierno Nacional|Municipio|Comité de Agua",30,30,30,0,90,"Si","Sistema por bombeo y gravedad","","Si",null,null,2017,"Si",null,null,"No",null,null,"No",{"$nulls":9},"Turbidez",{"$nulls":5},1.5,13.333333333333334,24,"No",{"$nulls":4},"Si","Bueno","No",{"$nulls":4},"Si","Si","Entel","Si","No","Queman","Si","14,10","Si","kausachon coca","No","No","9db5bb9d794c1fda393654d2422f7a22"]
["j9m4-yy9g-2n4q","Bolivia - Cochabamba - Villa Rivero - Sub Central Aramasi - Urbanización Aramasí","BOI-VR3","3240720109","25-06-2021 15:02:18 UTC","vr2","00:20:59",6,"Bolivia","Cochabamba","25-06-2021 15:02:18 UTC","Villa Rivero","Sub Central Aramasi","Urbanización Aramasí","-17.60357836727053","-65.88607451878488","3699.0","https://waterforpeople.s3.amazonaws.com/images/4276b396-c7b9-425c-b6bd-519ff430a700.jpg",2,"Urb. Aramasi 8 de Mayo y Linde Botao","Semi dispersa","Gobierno Nacional|Municipio",650,438,438,0,1314,"Si","Sistema por bombeo y gravedad","","Si",null,null,2009,"Si",null,null,"No",null,null,"No",{"$nulls":9},"Turbidez",{"$nulls":5},1.8,11.111111111111111,24,"No",{"$nulls":4},"Si","Bueno","Si","ninguno",null,null,null,"Si","Si","Entel","No","Si",null,"Si","4138","Si","la calke","Si","Si","ca173bf6f6741ead38bb2f4bddae7c8"]
["wvms-9qc8-bmhf","Bolivia - Cochabamba - Villa Rivero - Sub Central Villa Rivero - Balderrama Kuchu","BOI-VR3","3231130147","23-06-2021 12:32:22 UTC","vr2","00:14:53",6,"Bolivia","Cochabamba","23-06-2021 12:32:22 UTC","Villa Rivero","Sub Central Villa Rivero","Balderrama Kuchu","-17.662200685590506","-65.8112998958677","2190.0","https://waterforpeople.s3.amazonaws.com/images/be7ed4d4-f619-48bb-b5f8-b5d682c6fa04.jpg","1","Balderrama Kuchu","Dispersa","Municipio|Comité de Agua|Agua Para el Pueblo",25,20,20,0,60,"Si","Sistema por bombeo (hidropulmon/torre hidroneumática)","","Si",null,null,2021,"Si",null,null,"No",null,null,"Si","Si",0,"No",null,"Si",0,"Si",1.42,null,"Turbidez",{"$nulls":5},2,10,24,"No",{"$nulls":4},"Si","Bueno","No",{"$nulls":4},"Si","Si","Entel|Tigo","Si","No","Queman","Si","14","Si","panamericana","No","No","7ffa9ed0aebbb845f0aa2c3c9913f686"]
["01rp-a980-4b25","Bolivia - Cochabamba - Villa Rivero - Sub Central Villa Rivero - Junta Vecinal Villa Rivero","BOI-VR3","3232720265","22-06-2021 05:45:41 UTC","vr2","00:09:20",6,"Bolivia","Cochabamba","22-06-2021 05:45:41 UTC","Villa Rivero","Sub Central Villa Rivero","Buen Retiro","-17.61497008614242","-65.81640430726111","2760.0","https://waterforpeople.s3.amazonaws.com/images/f7067e89-261b-4530-98b6-4bd1b7ac93b4.jpg","3","Buen Retiro, Hoyada, JV Villa Rivero","Concentrada","Municipio|Comité de Agua",30,30,30,0,90,"Si","Sistema por bombeo y gravedad","","No",null,null,2010,"Si",null,null,"No",null,null,"No",{"$nulls":9},"Turbidez",{"$nulls":5},2,10,24,"No",{"$nulls":4},"Si","Bueno","No",{"$nulls":4},"Si","Si","Entel|Tigo","Si","Si",null,"Si","44,29","Si","kausachon coca","Si","Si","936fbb1fa4c4a346344f50e3cd1b59e"]
["a218-b6nd-mtcc","Bolivia - Cochabamba - Villa Rivero - Sub Central Villa Rivero - Centro Hoyada","BOI-VR3","3231060244","21-06-2021 03:05:08 UTC","vr2","00:13:46",6,"Bolivia","Cochabamba","21-06-2021 03:05:08 UTC","Villa Rivero","Sub Central Villa Rivero","Centro Hoyada","-17.61917097028345","-65.81907344050705","2780.0","https://waterforpeople.s3.amazonaws.com/images/eeb8422e-f450-4758-b350-64c42dc14476.jpg","1","Centro Hoyada","Semi dispersa","Comité de Agua",34,34,34,0,102,"Si","Sistema por bombeo (hidropulmon/torre hidroneumática)","","Si",null,null,2003,"Si",null,null,"No",null,null,"Si","Si",4,"No",null,"Si",0,"Si",6.52,null,"Turbidez",{"$nulls":5},1,20,24,"Si",13600,null,null,null,"Si","Bueno","No",{"$nulls":4},"Si","Si","Entel|Tigo","Si","No","Queman|Entierran","Si","29,38,44","Si","radio tormenta, kausacho loka","No","Si","3f7d149c47c4f964aae83284c67ddeb0"]
["s33b-493y-x6je","Bolivia - Cochabamba - Villa Rivero - Sub Central Villa Rivero - Centro Nazacara","BOI-VR3","3224630189","21-06-2021 02:38:27 UTC","vr2","00:33:14",6,"Bolivia","Cochabamba","21-06-2021 02:38:27 UTC","Villa Rivero","Sub Central Villa Rivero","Centro Nazacara","-17.63281411025673","-65.82943967543542","2808.0","https://waterforpeople.s3.amazonaws.com/images/858d7cbf-95a3-4854-bb84-275f4aa0cd64.jpg","1","Centro Nazacara","Dispersa","Comité de Agua",22,22,22,0,66,"Si","Sistema por bombeo y gravedad","","No",null,null,2018,"Si",null,null,"No",null,null,"No",{"$nulls":9},"Turbidez",{"$nulls":5},0.8,25,24,"Si",1300,null,null,null,"No","Malo","Si","Requieren un pozo para agua potable, actualmente están usando el pozo de riego",null,null,null,"Si","Si","Entel|Tigo","Si","No","Queman","Si","10 clitel, 44 horvitel","Si","causachon coca","No","Si","d68821d769d79b53b6ff7721d9cdb55b"]
["x4kw-eg0w-y7ac","Bolivia - Cochabamba - Villa Rivero - Sub Central Villa Rivero - Chaco Vinto","BOI-VR3","3220990098","21-06-2021 11:14:47 UTC","vr2","00:30:19",6,"Bolivia","Cochabamba","21-06-2021 11:14:47 UTC","Villa Rivero","Sub Central Villa Rivero","Chaco Vinto","-17.629413194954395","-65.8088808786124","2814.0","https://waterforpeople.s3.amazonaws.com/images/ca0bf1b6-0dcf-46c2-8e21-def1ba1fbac5.jpg","1","Chaco Vinto","Dispersa","Gobierno Nacional|Comité de Agua",34,34,34,0,{"$f":"IF(Y386=0,\"\",(Y386*3))","v":102},"Si","Sistema por bombeo y gravedad","","No",null,null,2000,"Si",null,null,"Si",1,2,"Si","Si",0,"No",null,"Si",0,"Si",23.3,null,"Turbidez",{"$nulls":5},0.5,40,24,"No",{"$nulls":4},"No","Malo","Si","Requieren un pozo para agua potable, actualmente están usando el pozo de riego",null,null,null,"Si","Si","Entel|Tigo","Si","No","Queman","Si","20,29,14","Si","radio morena","Si","No","3943a6d5834d3e1b96fa87d85ac2c2"]
["rg7m-7r3d-f81t","Bolivia - Cochabamba - Villa Rivero - Sub Central Villa Rivero - Collpa Esquina","BOI-VR3","3240670219","21-06-2021 10:56:31 UTC","vr2","00:07:57",6,"Bolivia","Cochabamba","21-06-2021 10:56:31 UTC","Villa Rivero","Sub Central Villa Rivero","Collpa Esquina","-17.615044894628227","-65.81940276548266","7631.0","https://waterforpeople.s3.amazonaws.com/images/2d6a6d90-8dc2-43df-9306-8ef475a7ebb8.jpg","1","Collpa Esquina","Dispersa","Municipio|Comité de Agua",42,42,42,0,126,"Si","Sistema por bombeo (hidropulmon/torre hidroneumática)","","Si",null,null,2009,"Si",null,null,"No",null,null,"Si","Si",0,"No",null,"Si",0,"Si",0.55000000000000004,null,"Turbidez",{"$nulls":5},0.8,25,24,"No",{"$nulls":4},"Si","Bueno","No",{"$nulls":4},"Si","Si","Entel|Tigo","Si","No","Queman","Si","20,10","Si","panorama, la calle, radio morena","Si","Si","44aac74bc79c2646550c9502d483af8"]
["63e4-ttu8-9wtj","Bolivia - Cochabamba - Villa Rivero - Sub Central Villa Rivero - Condaya","BOI-VR3","3220980182","22-06-2021 00:16:57 UTC","vr2","00:14:36",6,"Bolivia","Cochabamba","22-06-2021 00:16:57 UTC","Villa Rivero","Sub Central Villa Rivero","Condaya","-17.642827425152063","-65.83839900791645","2830.0","https://waterforpeople.s3.amazonaws.com/images/52e77c42-55ea-47dd-a268-fb705fa49cc3.jpg","1","Condaya","Dispersa","Municipio|Comité de Agua",25,25,25,0,75,"Si","Sistema por bombeo y gravedad","","Si",null,null,2006,"Si",null,null,"No",null,null,"Si","Si",0,"No",null,"Si",0,"Si",0.89,null,"Turbidez",{"$nulls":5},1.4,14.285714285714286,24,"No",{"$nulls":4},"Si","Bueno","No",{"$nulls":4},"Si","Si","Entel|Tigo","Si","No","Queman|Entierran","Si","13,10,20","Si","la calle,bella morena, chiwalaque","Si","No","693c837e7128f165b88fdc133e935c78"]
["yx90-he72-ar2r","Bolivia - Cochabamba - Villa Rivero - Sub Central Villa Rivero - Villa Santa Fe","BOI-666-19","3231240216","29-06-2021 16:10:00 UTC","Grover Quiroga","00:03:53",6,"Bolivia","Cochabamba","29-06-2021 16:10:00 UTC","Villa Rivero","Sub Central Villa Rivero","Enequeri",-17.59784878,-65.807147400000005,2754,"https://waterforpeople.s3.amazonaws.com/images/bf344c9a-1b23-42a1-a348-73633cb9c3ca.jpg","4","Villa Santa Fe, Enequeri, Nueva Felicidad, Manchay K´uchu","Semi dispersa","Gobierno Nacional|Municipio",40,40,40,0,120,"Si","Sistema por bombeo y gravedad","","Si",null,null,1999,"Si",null,null,"No",null,null,"No",{"$nulls":9},"Turbidez",{"$nulls":5},2.5,8,24,"No",{"$nulls":4},"Si","Malo","Si","Solicitan ampliación de red",null,null,null,"Si","Si","Entel|Tigo","Si","No","Queman","Si","44, 29","Si","Morena","No","No","b26de785b7ddef8e3d75eb1b965c8d37"]
["69q6-avbu-y7tt","Bolivia - Cochabamba - Villa Rivero - Sub Central Villa Rivero - Escobar","BOI-VR3","3228940132","22-06-2021 05:54:24 UTC","vr2","00:05:15",6,"Bolivia","Cochabamba","22-06-2021 05:54:24 UTC","Villa Rivero","Sub Central Villa Rivero","Escobar","-17.60716590564698","-65.81585956737399","2726.0","https://waterforpeople.s3.amazonaws.com/images/8777920d-c475-4bf9-936e-46fcde88c5f5.jpg","2","Sscobar y Salinas B","Semi dispersa","Municipio|Comité de Agua",70,70,70,0,210,"Si","Sistema por bombeo y gravedad","","Si",null,null,2000,"Si",null,null,"No",null,null,"Si","Si",0,"No",null,"Si",0,"Si",0.92,null,"Turbidez",{"$nulls":5},1.8,11.111111111111111,24,"No",{"$nulls":4},"Si","Bueno","No",{"$nulls":4},"Si","Si","Entel|Tigo|Viva","Si","Si",null,"Si","29,44,38,","Si","morena ,la calle","Si","Si","ca3bc5ac5e6949376bbd1ae6f3d1827"]
["01rp-a980-4b25","Bolivia - Cochabamba - Villa Rivero - Sub Central Villa Rivero - Junta Vecinal Villa Rivero","BOI-VR3","3232720265","22-06-2021 05:45:41 UTC","vr2","00:09:20",6,"Bolivia","Cochabamba","22-06-2021 05:45:41 UTC","Villa Rivero","Sub Central Villa Rivero","Hoyada","-17.61497008614242","-65.81640430726111","2760.0","https://waterforpeople.s3.amazonaws.com/images/f7067e89-261b-4530-98b6-4bd1b7ac93b4.jpg","3","Buen Retiro, Hoyada, JV Villa Rivero","Concentrada","Municipio|Comité de Agua",42,42,42,0,126,"Si","Sistema por bombeo y gravedad","","No",null,null,2010,"Si",null,null,"No",null,null,"No",{"$nulls":9},"Turbidez",{"$nulls":5},2,10,24,"No",{"$nulls":4},"Si","Bueno","No",{"$nulls":4},"Si","Si","Entel|Tigo","Si","Si",null,"Si","44,29","Si","kausachon coca","Si","Si","936fbb1fa4c4a346344f50e3cd1b59e"]
["qxv1-29j6-7cgv","Bolivia - Cochabamba - Villa Rivero - Sub Central Villa Rivero - Ichocollo","BOI-VR3","3228940129","22-06-2021 05:24:28 UTC","vr2","01:16:55",6,"Bolivia","Cochabamba","22-06-2021 05:24:28 UTC","Villa Rivero","Sub Central Villa Rivero","Ichocollo","-17.610835125669837","-65.82464061677456","2797.0","https://waterforpeople.s3.amazonaws.com/images/04fcdd35-287c-4b55-9390-5411d76337e0.jpg","1","Ichocollo","Dispersa","Municipio|Comité de Agua|Iglesia",27,27,27,0,81,"Si","Sistema por bombeo y gravedad","","Si",null,null,2009,"Si",null,null,"No",null,null,"Si","Si",0,"No",null,"Si",0,"Si",6.09,null,"Turbidez",{"$nulls":5},0.5,40,24,"No",{"$nulls":4},"Si","Bueno","No",{"$nulls":4},"Si","Si","Entel|Tigo","Si","No","Queman","Si","20,8,10","Si","tormenta,radio morena","Si","Si","1b7a7753e523451c377b7fdc2566cc3"]
["01rp-a980-4b25","Bolivia - Cochabamba - Villa Rivero - Sub Central Villa Rivero - Junta Vecinal Villa Rivero","BOI-VR3","3232720265","22-06-2021 05:45:41 UTC","vr2","00:09:20",6,"Bolivia","Cochabamba","22-06-2021 05:45:41 UTC","Villa Rivero","Sub Central Villa Rivero","Junta Vecinal Villa Rivero","-17.61497008614242","-65.81640430726111","2760.0","https://waterforpeople.s3.amazonaws.com/images/f7067e89-261b-4530-98b6-4bd1b7ac93b4.jpg","3","Buen Retiro, Hoyada, JV Villa Rivero","Concentrada","Municipio|Comité de Agua",321,321,321,0,963,"Si","Sistema por bombeo y gravedad","","No",null,null,2010,"Si",null,null,"No",null,null,"Si","Si",0,"No",null,"Si",0,"Si",1.02,null,"Turbidez",{"$nulls":5},2,10,24,"No",{"$nulls":4},"Si","Bueno","No",{"$nulls":4},"Si","Si","Entel|Tigo","Si","Si",null,"Si","44,29","Si","kausachon coca","Si","Si","936fbb1fa4c4a346344f50e3cd1b59e"]
["yx90-he72-ar2r","Bolivia - Cochabamba - Villa Rivero - Sub Central Villa Rivero - Villa Santa Fe","BOI-666-19","3231240216","29-06-2021 16:10:00 UTC","Grover Quiroga","00:03:53",6,"Bolivia","Cochabamba","29-06-2021 16:10:00 UTC","Villa Rivero","Sub Central Villa Rivero","Manchay K`uchu",-17.604431689999998,-65.801658500000002,2732,"https://waterforpeople.s3.amazonaws.com/images/bf344c9a-1b23-42a1-a348-73633cb9c3ca.jpg","4","Villa Santa Fe, Enequeri, Nueva Felicidad, Manchay K´uchu","Semi dispersa","Gobierno Nacional|Municipio",22,22,22,0,66,"Si","Sistema por bombeo y gravedad","","Si",null,null,1999,"Si",null,null,"No",null,null,"No",{"$nulls":9},"Turbidez",{"$nulls":5},2.5,8,24,"No",{"$nulls":4},"Si","Malo","Si","Solicitan ampliación de red",null,null,null,"Si","Si","Entel|Tigo","Si","No","Queman","Si","44, 29","Si","Morena","No","No","b26de785b7ddef8e3d75eb1b965c8d37"]
["4f7b-ty18-y80y","Bolivia - Cochabamba - Villa Rivero - Sub Central Villa Rivero - Villa Victoria","BOI-VR3","3238840419","18-06-2021 11:23:48 UTC","vr2","00:13:10",6,"Bolivia","Cochabamba","18-06-2021 11:23:48 UTC","Villa Rivero","Sub Central Villa Rivero","Mogopata","-17.613986511714756","-65.82251722924411","2751.0","https://waterforpeople.s3.amazonaws.com/images/2a7a6792-72d6-4585-9fae-56262f53d631.jpg","3","Mogopata, Pampa Kjassi, Villa Victoria","Semi dispersa","Municipio|Comité de Agua",32,32,32,0,96,"Si","Sistema por bombeo y gravedad","","Si",null,null,2005,"Si",null,null,"No",null,null,"No",{"$nulls":9},"Turbidez",{"$nulls":5},0.8,25,24,"Si",57500,null,null,null,"Si","Bueno","No",{"$nulls":4},"Si","Si","Entel|Tigo|Viva","Si","Si",null,"Si","44, 29, 14","Si","radio fides","Si","Si","d165654b328c32ce6923451eab2643"]
["pbx2-m8t5-kjh8","Bolivia - Cochabamba - Villa Rivero - Sub Central Villa Rivero - Nazacara","BOI-VR3","3246590292","22-06-2021 00:06:41 UTC","vr2","00:19:57",6,"Bolivia","Cochabamba","22-06-2021 00:06:41 UTC","Villa Rivero","Sub Central Villa Rivero","Nazacara","-17.629570229910314","-65.82391482777894","2808.0","https://waterforpeople.s3.amazonaws.com/images/19cd624c-f39c-4e67-9202-62f4a059b0d7.jpg","1","Nazacara","Dispersa","Comité de Agua",45,45,45,0,135,"Si","Sistema por bombeo (hidropulmon/torre hidroneumática)","","Si",null,null,2018,"Si",null,null,"No",null,null,"No",{"$nulls":9},"Turbidez",{"$nulls":5},1.2,16.666666666666668,24,"No",{"$nulls":4},"Si","Bueno","Si","ninguno",null,null,null,"Si","Si","Entel|Tigo","Si","No","Queman","Si","34,29, 44,","Si","radio morena, tormenta","No","No","a98b50e62d8b68541d3a49b93ed7469"]
["yx90-he72-ar2r","Bolivia - Cochabamba - Villa Rivero - Sub Central Villa Rivero - Villa Santa Fe","BOI-666-19","3231240216","29-06-2021 16:10:00 UTC","Grover Quiroga","00:03:53",6,"Bolivia","Cochabamba","29-06-2021 16:10:00 UTC","Villa Rivero","Sub Central Villa Rivero","Nueva Felicidad",-17.598112069999999,-65.81158868,2754,"https://waterforpeople.s3.amazonaws.com/images/bf344c9a-1b23-42a1-a348-73633cb9c3ca.jpg","4","Villa Santa Fe, Enequeri, Nueva Felicidad, Manchay K´uchu","Semi dispersa","Gobierno Nacional|Municipio",33,33,33,0,99,"Si","Sistema por bombeo y gravedad","","Si",null,null,1999,"Si",null,null,"No",null,null,"Si","Si",0,"No",null,"Si",0,"Si",0.78,null,"Turbidez",{"$nulls":5},2.5,8,24,"No",{"$nulls":4},"Si","Malo","Si","Solicitan ampliación de red",null,null,null,"Si","Si","Entel|Tigo","Si","No","Queman","Si","44, 29","Si","Morena","No","No","b26de785b7ddef8e3d75eb1b965c8d37"]
["4f7b-ty18-y80y","Bolivia - Cochabamba - Villa Rivero - Sub Central Villa Rivero - Villa Victoria","BOI-VR3","3238840419","18-06-2021 11:23:48 UTC","vr2","00:13:10",6,"Bolivia","Cochabamba","18-06-2021 11:23:48 UTC","Villa Rivero","Sub Central Villa Rivero","Pampa Kjassi","-17.613986511714756","-65.82251722924411","2751.0","https://waterforpeople.s3.amazonaws.com/images/2a7a6792-72d6-4585-9fae-56262f53d631.jpg","3","Mogopata, Pampa Kjassi, Villa Victoria","Semi dispersa","Municipio|Comité de Agua",140,140,140,0,420,"Si","Sistema por bombeo y gravedad","","Si",null,null,2005,"Si",null,null,"No",null,null,"No",{"$nulls":9},"Turbidez",{"$nulls":5},0.8,25,24,"Si",57500,null,null,null,"Si","Bueno","No",{"$nulls":4},"Si","Si","Entel|Tigo|Viva","Si","Si",null,"Si","44, 29, 14","Si","radio fides","Si","Si","d165654b328c32ce6923451eab2643"]
["y6hv-cjmp-3w28","Bolivia - Cochabamba - Villa Rivero - Sub Central Villa Rivero - Salinas A","BOI-VR3","3228930112","21-06-2021 11:04:48 UTC","vr2","00:16:44",6,"Bolivia","Cochabamba","21-06-2021 11:04:48 UTC","Villa Rivero","Sub Central Villa Rivero","Salinas  A","-17.60917198844254","-65.81887302920222","2735.0","https://waterforpeople.s3.amazonaws.com/images/8b265c01-1f1f-4003-8a9a-4092c0b6f64d.jpg","3","Salinas A, Salinas B, 8 famias de Escobar","Semi dispersa","Municipio|Comité de Agua",45,45,45,0,135,"Si","Sistema por bombeo y gravedad","","No",null,null,2010,"Si",null,null,"No",null,null,"Si","Si",0,"No",null,"Si",0,"Si",0.5,null,"Turbidez",{"$nulls":5},1.1499999999999999,17.39130434782609,24,"No",{"$nulls":4},"Si","Bueno","No",{"$nulls":4},"Si","Si","Entel|Tigo|Viva","Si","No","Queman","Si","14, clitel,29,","Si","tormenta, la calle","Si","Si","9ea514a1819a228aab6a8264b66c4ec"]
["y6hv-cjmp-3w28","Bolivia - Cochabamba - Villa Rivero - Sub Central Villa Rivero - Salinas A","BOI-VR3","3228930112","21-06-2021 11:04:48 UTC","vr2","00:16:44",6,"Bolivia","Cochabamba","21-06-2021 11:04:48 UTC","Villa Rivero","Sub Central Villa Rivero","Salinas  B","-17.60917198844254","-65.81887302920222","2735.0","https://waterforpeople.s3.amazonaws.com/images/8b265c01-1f1f-4003-8a9a-4092c0b6f64d.jpg","3","Salinas A, Salinas B, 8 famias de Escobar","Semi dispersa","Municipio|Comité de Agua",36,36,36,0,108,"Si","Sistema por bombeo y gravedad","","No",null,null,2010,"Si",null,null,"No",null,null,"Si","Si",0,"No",null,"Si",0,"Si",0.5,null,"Turbidez",{"$nulls":5},1.1499999999999999,17.39130434782609,24,"No",{"$nulls":4},"Si","Bueno","No",{"$nulls":4},"Si","Si","Entel|Tigo|Viva","Si","No","Queman","Si","14, clitel,29,","Si","tormenta, la calle","Si","Si","9ea514a1819a228aab6a8264b66c4ec"]
["4rkm-xx30-gqkc","Bolivia - Cochabamba - Villa Rivero - Sub Central Villa Rivero - San Francisco","BOI-VR3","3224630211","21-06-2021 11:11:20 UTC","vr2","00:05:53",6,"Bolivia","Cochabamba","21-06-2021 11:11:20 UTC","Villa Rivero","Sub Central Villa Rivero","San Francisco","-17.693455377593637","-65.86729008704424","8049.0","https://waterforpeople.s3.amazonaws.com/images/21771b54-a271-49b1-a7ea-2a7bb6a848d5.jpg","1","San Francisco","Dispersa","Municipio|Comité de Agua",43,16,16,0,48,"Si","Sistema por bombeo y gravedad","","Si",null,null,2019,"Si",null,null,"No",null,null,"No",{"$nulls":9},"Turbidez",{"$nulls":5},1.5,13.333333333333334,24,"No",{"$nulls":4},"Si","Bueno","No",{"$nulls":4},"Si","Si","Entel","Si","No","Queman","No",null,"Si","kausachun coca","No","Si","5eb23222a8d994ab0a52354133f201"]
["yx90-he72-ar2r","Bolivia - Cochabamba - Villa Rivero - Sub Central Villa Rivero - Villa Santa Fe","BOI-666-19","3231240216","29-06-2021 16:10:00 UTC","Grover Quiroga","00:03:53",6,"Bolivia","Cochabamba","29-06-2021 16:10:00 UTC","Villa Rivero","Sub Central Villa Rivero","Villa Santa Fe",-17.60717124,-65.808409549999993,2733,"https://waterforpeople.s3.amazonaws.com/images/bf344c9a-1b23-42a1-a348-73633cb9c3ca.jpg","4","Villa Santa Fe, Enequeri, Nueva Felicidad, Manchay K´uchu","Semi dispersa","Gobierno Nacional|Municipio",47,47,47,0,141,"Si","Sistema por bombeo y gravedad","","Si",null,null,1999,"Si",null,null,"No",null,null,"No",{"$nulls":9},"Turbidez",{"$nulls":5},2.5,8,24,"No",{"$nulls":4},"Si","Malo","Si","Solicitan ampliación de red",null,null,null,"Si","Si","Entel|Tigo","Si","No","Queman","Si","44, 29","Si","Morena","No","No","b26de785b7ddef8e3d75eb1b965c8d37"]
["4f7b-ty18-y80y","Bolivia - Cochabamba - Villa Rivero - Sub Central Villa Rivero - Villa Victoria","BOI-VR3","3238840419","18-06-2021 11:23:48 UTC","vr2","00:13:10",6,"Bolivia","Cochabamba","18-06-2021 11:23:48 UTC","Villa Rivero","Sub Central Villa Rivero","Villa Victoria","-17.613986511714756","-65.82251722924411","2751.0","https://waterforpeople.s3.amazonaws.com/images/2a7a6792-72d6-4585-9fae-56262f53d631.jpg","3","Mogopata, Pampa Kjassi, Villa Victoria","Semi dispersa","Municipio|Comité de Agua",65,65,65,0,195,"Si","Sistema por bombeo y gravedad","","Si",null,null,2005,"Si",null,null,"No",null,null,"Si","Si",0,"No",null,"Si",0,"Si",1.03,null,"Turbidez",{"$nulls":5},0.8,25,24,"Si",57500,null,null,null,"Si","Bueno","No",{"$nulls":4},"Si","Si","Entel|Tigo|Viva","Si","Si",null,"Si","44, 29, 14","Si","radio fides","Si","Si","d165654b328c32ce6923451eab2643"]

{"sheet":"ESRI_MAPINFO_SHEET","index":1,"n_rows":0,"n_cols":0,"rows_kept":0,"cut":false,"hidden":true,"merged":[]}